Workbook

Sheet Cattle - EU reference prices
A2: EU cattle and calf reference prices
A3: Source: EU Commission, AHDB
A4: Units: €/100kg dw and p/kg dw
A5: Last updated: 25/06/2021
C7: Week ending | D7: 2021-06-20 | E7: <----- click here to select week
C9: Young bulls R3 | H9: Steers R3 | N9: Young bulls R3 | Q9: Steers
C10: €/100kg dw | D10: % change on week | E10: % change on year | F10: p/kg dw * | H10: €/100kg dw | I10: % change on week | J10: % change on year | K10: p/kg dw * | N10: =D7-7 -> 2021-06-13 | O10: =D7-364 -> 2020-06-21 | Q10: =N10 -> 2021-06-13 | R10: =O10 -> 2020-06-21
B11: Belgium | C11: =INDEX('Young Bulls R3 2005+'!$C$10:$AG$1000,MATCH('Cattle - EU reference prices'!$D$7,'Young Bulls R3 2005+'!$A$10:$A$1000,0),MATCH('Cattle - EU reference prices'!$S11,'Young Bulls R3 2005+'!$C$6:$AG$6,0)) -> 305.78 | D11: =IF(C11="","",IF(N11="","",C11/N11*100-100)) -> 0.2458774547 | E11: =IF(C11="","",IF(O11="","",C11/O11*100-100)) -> 2.904257109 | F11: =IF(C11="","",INDEX('Young Bulls R3 2005+ £'!$D$258:$AG$1029,MATCH('Cattle - EU reference prices'!$D$7,'Young Bulls R3 2005+ £'!$A$258:$A$1029,0),MATCH('Cattle - EU reference prices'!$S11,'Young Bulls R3 2005+ £'!$D$253:$AG$253,0))) -> 262.3954968 | H11: =((INDEX('Steers R3 2005+'!$C$10:$AG$1000,MATCH('Cattle - EU reference prices'!$D$7,'Steers R3 2005+'!$A$10:$A$1000,0),MATCH('Cattle - EU reference prices'!$S11,'Steers R3 2005+'!$C$313:$AG$313,0)))) ->  | I11: =IF(H11="","",IF(Q11="","",H11/Q11*100-100)) ->  | J11: =IF(H11="","",IF(R11="","",H11/R11*100-100)) ->  | K11: =IF(H11="","",INDEX('Steers R3 2005+ £'!$D$257:$AG$1029,MATCH('Cattle - EU reference prices'!$D$7,'Steers R3 2005+ £'!$A$257:$A$1029,0),MATCH('Cattle - EU reference prices'!$S11,'Steers R3 2005+ £'!$D$252:$AG$252,0))) ->  | N11: =(INDEX('Young Bulls R3 2005+'!$C$10:$AG$1007,MATCH('Cattle - EU reference prices'!$N$10,'Young Bulls R3 2005+'!$A$10:$A$1007,0),MATCH('Cattle - EU reference prices'!$S11,'Young Bulls R3 2005+'!$C$6:$AG$6,0))) -> 305.03 | O11: =INDEX('Young Bulls R3 2005+'!$C$10:$AG$1007,MATCH('Cattle - EU reference prices'!$O$10,'Young Bulls R3 2005+'!$A$10:$A$1007,0),MATCH('Cattle - EU reference prices'!$S11,'Young Bulls R3 2005+'!$C$6:$AG$6,0)) -> 297.15 | Q11: =INDEX('Steers R3 2005+'!$C$10:$AG$1000,MATCH('Cattle - EU reference prices'!$Q$10,'Steers R3 2005+'!$A$10:$A$1000,0),MATCH('Cattle - EU reference prices'!$S11,'Steers R3 2005+'!$C$313:$AG$313,0)) ->  | R11: =INDEX('Steers R3 2005+'!$C$10:$AG$1000,MATCH('Cattle - EU reference prices'!$R$10,'Steers R3 2005+'!$A$10:$A$1000,0),MATCH('Cattle - EU reference prices'!$S11,'Steers R3 2005+'!$C$313:$AG$313,0)) ->  | S11: BE
B12: Bulgaria | C12: =INDEX('Young Bulls R3 2005+'!$C$10:$AG$1000,MATCH('Cattle - EU reference prices'!$D$7,'Young Bulls R3 2005+'!$A$10:$A$1000,0),MATCH('Cattle - EU reference prices'!$S12,'Young Bulls R3 2005+'!$C$6:$AG$6,0)) ->  | D12: =IF(C12="","",IF(N12="","",C12/N12*100-100)) ->  | E12: =IF(C12="","",IF(O12="","",C12/O12*100-100)) ->  | F12: =IF(C12="","",INDEX('Young Bulls R3 2005+ £'!$D$258:$AG$1029,MATCH('Cattle - EU reference prices'!$D$7,'Young Bulls R3 2005+ £'!$A$258:$A$1029,0),MATCH('Cattle - EU reference prices'!$S12,'Young Bulls R3 2005+ £'!$D$253:$AG$253,0))) ->  | H12: =((INDEX('Steers R3 2005+'!$C$10:$AG$1000,MATCH('Cattle - EU reference prices'!$D$7,'Steers R3 2005+'!$A$10:$A$1000,0),MATCH('Cattle - EU reference prices'!$S12,'Steers R3 2005+'!$C$313:$AG$313,0)))) ->  | I12: =IF(H12="","",IF(Q12="","",H12/Q12*100-100)) ->  | J12: =IF(H12="","",IF(R12="","",H12/R12*100-100)) ->  | K12: =IF(H12="","",INDEX('Steers R3 2005+ £'!$D$257:$AG$1029,MATCH('Cattle - EU reference prices'!$D$7,'Steers R3 2005+ £'!$A$257:$A$1029,0),MATCH('Cattle - EU reference prices'!$S12,'Steers R3 2005+ £'!$D$252:$AG$252,0))) ->  | N12: =(INDEX('Young Bulls R3 2005+'!$C$10:$AG$1007,MATCH('Cattle - EU reference prices'!$N$10,'Young Bulls R3 2005+'!$A$10:$A$1007,0),MATCH('Cattle - EU reference prices'!$S12,'Young Bulls R3 2005+'!$C$6:$AG$6,0))) ->  | O12: =INDEX('Young Bulls R3 2005+'!$C$10:$AG$1007,MATCH('Cattle - EU reference prices'!$O$10,'Young Bulls R3 2005+'!$A$10:$A$1007,0),MATCH('Cattle - EU reference prices'!$S12,'Young Bulls R3 2005+'!$C$6:$AG$6,0)) ->  | Q12: =INDEX('Steers R3 2005+'!$C$10:$AG$1000,MATCH('Cattle - EU reference prices'!$Q$10,'Steers R3 2005+'!$A$10:$A$1000,0),MATCH('Cattle - EU reference prices'!$S12,'Steers R3 2005+'!$C$313:$AG$313,0)) ->  | R12: =INDEX('Steers R3 2005+'!$C$10:$AG$1000,MATCH('Cattle - EU reference prices'!$R$10,'Steers R3 2005+'!$A$10:$A$1000,0),MATCH('Cattle - EU reference prices'!$S12,'Steers R3 2005+'!$C$313:$AG$313,0)) ->  | S12: BG
B13: Czech Republic | C13: =INDEX('Young Bulls R3 2005+'!$C$10:$AG$1000,MATCH('Cattle - EU reference prices'!$D$7,'Young Bulls R3 2005+'!$A$10:$A$1000,0),MATCH('Cattle - EU reference prices'!$S13,'Young Bulls R3 2005+'!$C$6:$AG$6,0)) -> 346.5693 | D13: -0.911602518 | E13: =IF(C13="","",IF(O13="","",C13/O13*100-100)) -> 11.71524852 | F13: =IF(C13="","",INDEX('Young Bulls R3 2005+ £'!$D$258:$AG$1029,MATCH('Cattle - EU reference prices'!$D$7,'Young Bulls R3 2005+ £'!$A$258:$A$1029,0),MATCH('Cattle - EU reference prices'!$S13,'Young Bulls R3 2005+ £'!$D$253:$AG$253,0))) -> 297.3975526 | H13: =((INDEX('Steers R3 2005+'!$C$10:$AG$1000,MATCH('Cattle - EU reference prices'!$D$7,'Steers R3 2005+'!$A$10:$A$1000,0),MATCH('Cattle - EU reference prices'!$S13,'Steers R3 2005+'!$C$313:$AG$313,0)))) ->  | K13: =IF(H13="","",INDEX('Steers R3 2005+ £'!$D$257:$AG$1029,MATCH('Cattle - EU reference prices'!$D$7,'Steers R3 2005+ £'!$A$257:$A$1029,0),MATCH('Cattle - EU reference prices'!$S13,'Steers R3 2005+ £'!$D$252:$AG$252,0))) ->  | N13: =(INDEX('Young Bulls R3 2005+'!$C$10:$AG$1007,MATCH('Cattle - EU reference prices'!$N$10,'Young Bulls R3 2005+'!$A$10:$A$1007,0),MATCH('Cattle - EU reference prices'!$S13,'Young Bulls R3 2005+'!$C$6:$AG$6,0))) -> 349.7577 | O13: =INDEX('Young Bulls R3 2005+'!$C$10:$AG$1007,MATCH('Cattle - EU reference prices'!$O$10,'Young Bulls R3 2005+'!$A$10:$A$1007,0),MATCH('Cattle - EU reference prices'!$S13,'Young Bulls R3 2005+'!$C$6:$AG$6,0)) -> 310.2256 | Q13: =INDEX('Steers R3 2005+'!$C$10:$AG$1000,MATCH('Cattle - EU reference prices'!$Q$10,'Steers R3 2005+'!$A$10:$A$1000,0),MATCH('Cattle - EU reference prices'!$S13,'Steers R3 2005+'!$C$313:$AG$313,0)) ->  | R13: =INDEX('Steers R3 2005+'!$C$10:$AG$1000,MATCH('Cattle - EU reference prices'!$R$10,'Steers R3 2005+'!$A$10:$A$1000,0),MATCH('Cattle - EU reference prices'!$S13,'Steers R3 2005+'!$C$313:$AG$313,0)) ->  | S13: CZ
B14: Denmark | C14: =INDEX('Young Bulls R3 2005+'!$C$10:$AG$1000,MATCH('Cattle - EU reference prices'!$D$7,'Young Bulls R3 2005+'!$A$10:$A$1000,0),MATCH('Cattle - EU reference prices'!$S14,'Young Bulls R3 2005+'!$C$6:$AG$6,0)) -> 336.1848 | D14: 0.8076067906 | E14: =IF(C14="","",IF(O14="","",C14/O14*100-100)) -> 5.049181926 | F14: =IF(C14="","",INDEX('Young Bulls R3 2005+ £'!$D$258:$AG$1029,MATCH('Cattle - EU reference prices'!$D$7,'Young Bulls R3 2005+ £'!$A$258:$A$1029,0),MATCH('Cattle - EU reference prices'!$S14,'Young Bulls R3 2005+ £'!$D$253:$AG$253,0))) -> 288.4864203 | H14: =((INDEX('Steers R3 2005+'!$C$10:$AG$1000,MATCH('Cattle - EU reference prices'!$D$7,'Steers R3 2005+'!$A$10:$A$1000,0),MATCH('Cattle - EU reference prices'!$S14,'Steers R3 2005+'!$C$313:$AG$313,0)))) -> 340.7569 | J14: -1.757092519 | K14: =IF(H14="","",INDEX('Steers R3 2005+ £'!$D$257:$AG$1029,MATCH('Cattle - EU reference prices'!$D$7,'Steers R3 2005+ £'!$A$257:$A$1029,0),MATCH('Cattle - EU reference prices'!$S14,'Steers R3 2005+ £'!$D$252:$AG$252,0))) -> 292.4098242 | N14: =(INDEX('Young Bulls R3 2005+'!$C$10:$AG$1007,MATCH('Cattle - EU reference prices'!$N$10,'Young Bulls R3 2005+'!$A$10:$A$1007,0),MATCH('Cattle - EU reference prices'!$S14,'Young Bulls R3 2005+'!$C$6:$AG$6,0))) -> 333.4915 | O14: =INDEX('Young Bulls R3 2005+'!$C$10:$AG$1007,MATCH('Cattle - EU reference prices'!$O$10,'Young Bulls R3 2005+'!$A$10:$A$1007,0),MATCH('Cattle - EU reference prices'!$S14,'Young Bulls R3 2005+'!$C$6:$AG$6,0)) -> 320.0261 | Q14: =INDEX('Steers R3 2005+'!$C$10:$AG$1000,MATCH('Cattle - EU reference prices'!$Q$10,'Steers R3 2005+'!$A$10:$A$1000,0),MATCH('Cattle - EU reference prices'!$S14,'Steers R3 2005+'!$C$313:$AG$313,0)) ->  | R14: =INDEX('Steers R3 2005+'!$C$10:$AG$1000,MATCH('Cattle - EU reference prices'!$R$10,'Steers R3 2005+'!$A$10:$A$1000,0),MATCH('Cattle - EU reference prices'!$S14,'Steers R3 2005+'!$C$313:$AG$313,0)) -> 346.8514 | S14: DK
B15: Germany | C15: =INDEX('Young Bulls R3 2005+'!$C$10:$AG$1000,MATCH('Cattle - EU reference prices'!$D$7,'Young Bulls R3 2005+'!$A$10:$A$1000,0),MATCH('Cattle - EU reference prices'!$S15,'Young Bulls R3 2005+'!$C$6:$AG$6,0)) -> 401.89 | D15: 0.01493168753 | E15: 13.25630548 | F15: =IF(C15="","",INDEX('Young Bulls R3 2005+ £'!$D$258:$AG$1029,MATCH('Cattle - EU reference prices'!$D$7,'Young Bulls R3 2005+ £'!$A$258:$A$1029,0),MATCH('Cattle - EU reference prices'!$S15,'Young Bulls R3 2005+ £'!$D$253:$AG$253,0))) -> 344.8692727 | H15: =((INDEX('Steers R3 2005+'!$C$10:$AG$1000,MATCH('Cattle - EU reference prices'!$D$7,'Steers R3 2005+'!$A$10:$A$1000,0),MATCH('Cattle - EU reference prices'!$S15,'Steers R3 2005+'!$C$313:$AG$313,0)))) -> 452.86 | I15: -2.963423257 | J15: 13.72962656 | K15: =IF(H15="","",INDEX('Steers R3 2005+ £'!$D$257:$AG$1029,MATCH('Cattle - EU reference prices'!$D$7,'Steers R3 2005+ £'!$A$257:$A$1029,0),MATCH('Cattle - EU reference prices'!$S15,'Steers R3 2005+ £'!$D$252:$AG$252,0))) -> 388.6075763 | N15: =(INDEX('Young Bulls R3 2005+'!$C$10:$AG$1007,MATCH('Cattle - EU reference prices'!$N$10,'Young Bulls R3 2005+'!$A$10:$A$1007,0),MATCH('Cattle - EU reference prices'!$S15,'Young Bulls R3 2005+'!$C$6:$AG$6,0))) -> 401.83 | O15: =INDEX('Young Bulls R3 2005+'!$C$10:$AG$1007,MATCH('Cattle - EU reference prices'!$O$10,'Young Bulls R3 2005+'!$A$10:$A$1007,0),MATCH('Cattle - EU reference prices'!$S15,'Young Bulls R3 2005+'!$C$6:$AG$6,0)) -> 354.85 | Q15: =INDEX('Steers R3 2005+'!$C$10:$AG$1000,MATCH('Cattle - EU reference prices'!$Q$10,'Steers R3 2005+'!$A$10:$A$1000,0),MATCH('Cattle - EU reference prices'!$S15,'Steers R3 2005+'!$C$313:$AG$313,0)) -> 466.69 | R15: =INDEX('Steers R3 2005+'!$C$10:$AG$1000,MATCH('Cattle - EU reference prices'!$R$10,'Steers R3 2005+'!$A$10:$A$1000,0),MATCH('Cattle - EU reference prices'!$S15,'Steers R3 2005+'!$C$313:$AG$313,0)) -> 398.19 | S15: DE
B16: Estonia | C16: =INDEX('Young Bulls R3 2005+'!$C$10:$AG$1000,MATCH('Cattle - EU reference prices'!$D$7,'Young Bulls R3 2005+'!$A$10:$A$1000,0),MATCH('Cattle - EU reference prices'!$S16,'Young Bulls R3 2005+'!$C$6:$AG$6,0)) ->  | F16: =IF(C16="","",INDEX('Young Bulls R3 2005+ £'!$D$258:$AG$1029,MATCH('Cattle - EU reference prices'!$D$7,'Young Bulls R3 2005+ £'!$A$258:$A$1029,0),MATCH('Cattle - EU reference prices'!$S16,'Young Bulls R3 2005+ £'!$D$253:$AG$253,0))) ->  | H16: =((INDEX('Steers R3 2005+'!$C$10:$AG$1000,MATCH('Cattle - EU reference prices'!$D$7,'Steers R3 2005+'!$A$10:$A$1000,0),MATCH('Cattle - EU reference prices'!$S16,'Steers R3 2005+'!$C$313:$AG$313,0)))) ->  | K16: =IF(H16="","",INDEX('Steers R3 2005+ £'!$D$257:$AG$1029,MATCH('Cattle - EU reference prices'!$D$7,'Steers R3 2005+ £'!$A$257:$A$1029,0),MATCH('Cattle - EU reference prices'!$S16,'Steers R3 2005+ £'!$D$252:$AG$252,0))) ->  | N16: =(INDEX('Young Bulls R3 2005+'!$C$10:$AG$1007,MATCH('Cattle - EU reference prices'!$N$10,'Young Bulls R3 2005+'!$A$10:$A$1007,0),MATCH('Cattle - EU reference prices'!$S16,'Young Bulls R3 2005+'!$C$6:$AG$6,0))) -> 303.01 | O16: =INDEX('Young Bulls R3 2005+'!$C$10:$AG$1007,MATCH('Cattle - EU reference prices'!$O$10,'Young Bulls R3 2005+'!$A$10:$A$1007,0),MATCH('Cattle - EU reference prices'!$S16,'Young Bulls R3 2005+'!$C$6:$AG$6,0)) -> c | Q16: =INDEX('Steers R3 2005+'!$C$10:$AG$1000,MATCH('Cattle - EU reference prices'!$Q$10,'Steers R3 2005+'!$A$10:$A$1000,0),MATCH('Cattle - EU reference prices'!$S16,'Steers R3 2005+'!$C$313:$AG$313,0)) ->  | R16: =INDEX('Steers R3 2005+'!$C$10:$AG$1000,MATCH('Cattle - EU reference prices'!$R$10,'Steers R3 2005+'!$A$10:$A$1000,0),MATCH('Cattle - EU reference prices'!$S16,'Steers R3 2005+'!$C$313:$AG$313,0)) ->  | S16: EE
B17: Greece | C17: =INDEX('Young Bulls R3 2005+'!$C$10:$AG$1000,MATCH('Cattle - EU reference prices'!$D$7,'Young Bulls R3 2005+'!$A$10:$A$1000,0),MATCH('Cattle - EU reference prices'!$S17,'Young Bulls R3 2005+'!$C$6:$AG$6,0)) -> 383.69 | D17: 0 | F17: =IF(C17="","",INDEX('Young Bulls R3 2005+ £'!$D$258:$AG$1029,MATCH('Cattle - EU reference prices'!$D$7,'Young Bulls R3 2005+ £'!$A$258:$A$1029,0),MATCH('Cattle - EU reference prices'!$S17,'Young Bulls R3 2005+ £'!$D$253:$AG$253,0))) -> 329.2515147 | H17: =((INDEX('Steers R3 2005+'!$C$10:$AG$1000,MATCH('Cattle - EU reference prices'!$D$7,'Steers R3 2005+'!$A$10:$A$1000,0),MATCH('Cattle - EU reference prices'!$S17,'Steers R3 2005+'!$C$313:$AG$313,0)))) ->  | K17: =IF(H17="","",INDEX('Steers R3 2005+ £'!$D$257:$AG$1029,MATCH('Cattle - EU reference prices'!$D$7,'Steers R3 2005+ £'!$A$257:$A$1029,0),MATCH('Cattle - EU reference prices'!$S17,'Steers R3 2005+ £'!$D$252:$AG$252,0))) ->  | N17: =(INDEX('Young Bulls R3 2005+'!$C$10:$AG$1007,MATCH('Cattle - EU reference prices'!$N$10,'Young Bulls R3 2005+'!$A$10:$A$1007,0),MATCH('Cattle - EU reference prices'!$S17,'Young Bulls R3 2005+'!$C$6:$AG$6,0))) -> 383.69 | O17: =INDEX('Young Bulls R3 2005+'!$C$10:$AG$1007,MATCH('Cattle - EU reference prices'!$O$10,'Young Bulls R3 2005+'!$A$10:$A$1007,0),MATCH('Cattle - EU reference prices'!$S17,'Young Bulls R3 2005+'!$C$6:$AG$6,0)) ->  | Q17: =INDEX('Steers R3 2005+'!$C$10:$AG$1000,MATCH('Cattle - EU reference prices'!$Q$10,'Steers R3 2005+'!$A$10:$A$1000,0),MATCH('Cattle - EU reference prices'!$S17,'Steers R3 2005+'!$C$313:$AG$313,0)) ->  | R17: =INDEX('Steers R3 2005+'!$C$10:$AG$1000,MATCH('Cattle - EU reference prices'!$R$10,'Steers R3 2005+'!$A$10:$A$1000,0),MATCH('Cattle - EU reference prices'!$S17,'Steers R3 2005+'!$C$313:$AG$313,0)) ->  | S17: GR
B18: Spain | C18: =INDEX('Young Bulls R3 2005+'!$C$10:$AG$1000,MATCH('Cattle - EU reference prices'!$D$7,'Young Bulls R3 2005+'!$A$10:$A$1000,0),MATCH('Cattle - EU reference prices'!$S18,'Young Bulls R3 2005+'!$C$6:$AG$6,0)) -> 372.92 | D18: 0.5825871184 | E18: 7.864518555 | F18: =IF(C18="","",INDEX('Young Bulls R3 2005+ £'!$D$258:$AG$1029,MATCH('Cattle - EU reference prices'!$D$7,'Young Bulls R3 2005+ £'!$A$258:$A$1029,0),MATCH('Cattle - EU reference prices'!$S18,'Young Bulls R3 2005+ £'!$D$253:$AG$253,0))) -> 320.0095777 | H18: =((INDEX('Steers R3 2005+'!$C$10:$AG$1000,MATCH('Cattle - EU reference prices'!$D$7,'Steers R3 2005+'!$A$10:$A$1000,0),MATCH('Cattle - EU reference prices'!$S18,'Steers R3 2005+'!$C$313:$AG$313,0)))) ->  | K18: =IF(H18="","",INDEX('Steers R3 2005+ £'!$D$257:$AG$1029,MATCH('Cattle - EU reference prices'!$D$7,'Steers R3 2005+ £'!$A$257:$A$1029,0),MATCH('Cattle - EU reference prices'!$S18,'Steers R3 2005+ £'!$D$252:$AG$252,0))) ->  | N18: =(INDEX('Young Bulls R3 2005+'!$C$10:$AG$1007,MATCH('Cattle - EU reference prices'!$N$10,'Young Bulls R3 2005+'!$A$10:$A$1007,0),MATCH('Cattle - EU reference prices'!$S18,'Young Bulls R3 2005+'!$C$6:$AG$6,0))) -> 370.76 | O18: =INDEX('Young Bulls R3 2005+'!$C$10:$AG$1007,MATCH('Cattle - EU reference prices'!$O$10,'Young Bulls R3 2005+'!$A$10:$A$1007,0),MATCH('Cattle - EU reference prices'!$S18,'Young Bulls R3 2005+'!$C$6:$AG$6,0)) -> 345.73 | Q18: =INDEX('Steers R3 2005+'!$C$10:$AG$1000,MATCH('Cattle - EU reference prices'!$Q$10,'Steers R3 2005+'!$A$10:$A$1000,0),MATCH('Cattle - EU reference prices'!$S18,'Steers R3 2005+'!$C$313:$AG$313,0)) ->  | R18: =INDEX('Steers R3 2005+'!$C$10:$AG$1000,MATCH('Cattle - EU reference prices'!$R$10,'Steers R3 2005+'!$A$10:$A$1000,0),MATCH('Cattle - EU reference prices'!$S18,'Steers R3 2005+'!$C$313:$AG$313,0)) ->  | S18: ES
B19: France | C19: =INDEX('Young Bulls R3 2005+'!$C$10:$AG$1000,MATCH('Cattle - EU reference prices'!$D$7,'Young Bulls R3 2005+'!$A$10:$A$1000,0),MATCH('Cattle - EU reference prices'!$S19,'Young Bulls R3 2005+'!$C$6:$AG$6,0)) -> 379 | D19: 0.2645502646 | E19: 3.835616438 | F19: =IF(C19="","",INDEX('Young Bulls R3 2005+ £'!$D$258:$AG$1029,MATCH('Cattle - EU reference prices'!$D$7,'Young Bulls R3 2005+ £'!$A$258:$A$1029,0),MATCH('Cattle - EU reference prices'!$S19,'Young Bulls R3 2005+ £'!$D$253:$AG$253,0))) -> 325.2269386 | H19: =((INDEX('Steers R3 2005+'!$C$10:$AG$1000,MATCH('Cattle - EU reference prices'!$D$7,'Steers R3 2005+'!$A$10:$A$1000,0),MATCH('Cattle - EU reference prices'!$S19,'Steers R3 2005+'!$C$313:$AG$313,0)))) -> 381 | I19: -1.295336788 | J19: 3.532608696 | K19: =IF(H19="","",INDEX('Steers R3 2005+ £'!$D$257:$AG$1029,MATCH('Cattle - EU reference prices'!$D$7,'Steers R3 2005+ £'!$A$257:$A$1029,0),MATCH('Cattle - EU reference prices'!$S19,'Steers R3 2005+ £'!$D$252:$AG$252,0))) -> 326.9431757 | N19: =(INDEX('Young Bulls R3 2005+'!$C$10:$AG$1007,MATCH('Cattle - EU reference prices'!$N$10,'Young Bulls R3 2005+'!$A$10:$A$1007,0),MATCH('Cattle - EU reference prices'!$S19,'Young Bulls R3 2005+'!$C$6:$AG$6,0))) -> 378 | O19: =INDEX('Young Bulls R3 2005+'!$C$10:$AG$1007,MATCH('Cattle - EU reference prices'!$O$10,'Young Bulls R3 2005+'!$A$10:$A$1007,0),MATCH('Cattle - EU reference prices'!$S19,'Young Bulls R3 2005+'!$C$6:$AG$6,0)) -> 365 | Q19: =INDEX('Steers R3 2005+'!$C$10:$AG$1000,MATCH('Cattle - EU reference prices'!$Q$10,'Steers R3 2005+'!$A$10:$A$1000,0),MATCH('Cattle - EU reference prices'!$S19,'Steers R3 2005+'!$C$313:$AG$313,0)) -> 386 | R19: =INDEX('Steers R3 2005+'!$C$10:$AG$1000,MATCH('Cattle - EU reference prices'!$R$10,'Steers R3 2005+'!$A$10:$A$1000,0),MATCH('Cattle - EU reference prices'!$S19,'Steers R3 2005+'!$C$313:$AG$313,0)) -> 368 | S19: FR
B20: Irish Republic | C20: =INDEX('Young Bulls R3 2005+'!$C$10:$AG$1000,MATCH('Cattle - EU reference prices'!$D$7,'Young Bulls R3 2005+'!$A$10:$A$1000,0),MATCH('Cattle - EU reference prices'!$S20,'Young Bulls R3 2005+'!$C$6:$AG$6,0)) -> 405.29 | D20: 0.8409843 | E20: 16.69065991 | F20: =IF(C20="","",INDEX('Young Bulls R3 2005+ £'!$D$258:$AG$1029,MATCH('Cattle - EU reference prices'!$D$7,'Young Bulls R3 2005+ £'!$A$258:$A$1029,0),MATCH('Cattle - EU reference prices'!$S20,'Young Bulls R3 2005+ £'!$D$253:$AG$253,0))) -> 347.7868758 | H20: =((INDEX('Steers R3 2005+'!$C$10:$AG$1000,MATCH('Cattle - EU reference prices'!$D$7,'Steers R3 2005+'!$A$10:$A$1000,0),MATCH('Cattle - EU reference prices'!$S20,'Steers R3 2005+'!$C$313:$AG$313,0)))) -> 417.43 | I20: 0.5855421687 | J20: 15.49720547 | K20: =IF(H20="","",INDEX('Steers R3 2005+ £'!$D$257:$AG$1029,MATCH('Cattle - EU reference prices'!$D$7,'Steers R3 2005+ £'!$A$257:$A$1029,0),MATCH('Cattle - EU reference prices'!$S20,'Steers R3 2005+ £'!$D$252:$AG$252,0))) -> 358.2044353 | N20: =(INDEX('Young Bulls R3 2005+'!$C$10:$AG$1007,MATCH('Cattle - EU reference prices'!$N$10,'Young Bulls R3 2005+'!$A$10:$A$1007,0),MATCH('Cattle - EU reference prices'!$S20,'Young Bulls R3 2005+'!$C$6:$AG$6,0))) -> 401.91 | O20: =INDEX('Young Bulls R3 2005+'!$C$10:$AG$1007,MATCH('Cattle - EU reference prices'!$O$10,'Young Bulls R3 2005+'!$A$10:$A$1007,0),MATCH('Cattle - EU reference prices'!$S20,'Young Bulls R3 2005+'!$C$6:$AG$6,0)) -> 347.32 | Q20: =INDEX('Steers R3 2005+'!$C$10:$AG$1000,MATCH('Cattle - EU reference prices'!$Q$10,'Steers R3 2005+'!$A$10:$A$1000,0),MATCH('Cattle - EU reference prices'!$S20,'Steers R3 2005+'!$C$313:$AG$313,0)) -> 415 | R20: =INDEX('Steers R3 2005+'!$C$10:$AG$1000,MATCH('Cattle - EU reference prices'!$R$10,'Steers R3 2005+'!$A$10:$A$1000,0),MATCH('Cattle - EU reference prices'!$S20,'Steers R3 2005+'!$C$313:$AG$313,0)) -> 361.42 | S20: IE
B21: Croatia | C21: =INDEX('Young Bulls R3 2005+'!$C$10:$AG$1000,MATCH('Cattle - EU reference prices'!$D$7,'Young Bulls R3 2005+'!$A$10:$A$1000,0),MATCH('Cattle - EU reference prices'!$S21,'Young Bulls R3 2005+'!$C$6:$AG$6,0)) -> 365.3534 | D21: -0.7106318669 | E21: 9.252413638 | F21: =IF(C21="","",INDEX('Young Bulls R3 2005+ £'!$D$258:$AG$1029,MATCH('Cattle - EU reference prices'!$D$7,'Young Bulls R3 2005+ £'!$A$258:$A$1029,0),MATCH('Cattle - EU reference prices'!$S21,'Young Bulls R3 2005+ £'!$D$253:$AG$253,0))) -> 313.5165377 | H21: =((INDEX('Steers R3 2005+'!$C$10:$AG$1000,MATCH('Cattle - EU reference prices'!$D$7,'Steers R3 2005+'!$A$10:$A$1000,0),MATCH('Cattle - EU reference prices'!$S21,'Steers R3 2005+'!$C$313:$AG$313,0)))) ->  | K21: =IF(H21="","",INDEX('Steers R3 2005+ £'!$D$257:$AG$1029,MATCH('Cattle - EU reference prices'!$D$7,'Steers R3 2005+ £'!$A$257:$A$1029,0),MATCH('Cattle - EU reference prices'!$S21,'Steers R3 2005+ £'!$D$252:$AG$252,0))) ->  | N21: =(INDEX('Young Bulls R3 2005+'!$C$10:$AG$1007,MATCH('Cattle - EU reference prices'!$N$10,'Young Bulls R3 2005+'!$A$10:$A$1007,0),MATCH('Cattle - EU reference prices'!$S21,'Young Bulls R3 2005+'!$C$6:$AG$6,0))) -> 367.9683 | O21: =INDEX('Young Bulls R3 2005+'!$C$10:$AG$1007,MATCH('Cattle - EU reference prices'!$O$10,'Young Bulls R3 2005+'!$A$10:$A$1007,0),MATCH('Cattle - EU reference prices'!$S21,'Young Bulls R3 2005+'!$C$6:$AG$6,0)) -> 334.4122 | Q21: =INDEX('Steers R3 2005+'!$C$10:$AG$1000,MATCH('Cattle - EU reference prices'!$Q$10,'Steers R3 2005+'!$A$10:$A$1000,0),MATCH('Cattle - EU reference prices'!$S21,'Steers R3 2005+'!$C$313:$AG$313,0)) ->  | R21: =INDEX('Steers R3 2005+'!$C$10:$AG$1000,MATCH('Cattle - EU reference prices'!$R$10,'Steers R3 2005+'!$A$10:$A$1000,0),MATCH('Cattle - EU reference prices'!$S21,'Steers R3 2005+'!$C$313:$AG$313,0)) ->  | S21: HR
B22: Italy | C22: =INDEX('Young Bulls R3 2005+'!$C$10:$AG$1000,MATCH('Cattle - EU reference prices'!$D$7,'Young Bulls R3 2005+'!$A$10:$A$1000,0),MATCH('Cattle - EU reference prices'!$S22,'Young Bulls R3 2005+'!$C$6:$AG$6,0)) -> 383.88 | D22: -0.04166232684 | E22: -1.70029704 | F22: =IF(C22="","",INDEX('Young Bulls R3 2005+ £'!$D$258:$AG$1029,MATCH('Cattle - EU reference prices'!$D$7,'Young Bulls R3 2005+ £'!$A$258:$A$1029,0),MATCH('Cattle - EU reference prices'!$S22,'Young Bulls R3 2005+ £'!$D$253:$AG$253,0))) -> 329.4145572 | H22: =((INDEX('Steers R3 2005+'!$C$10:$AG$1000,MATCH('Cattle - EU reference prices'!$D$7,'Steers R3 2005+'!$A$10:$A$1000,0),MATCH('Cattle - EU reference prices'!$S22,'Steers R3 2005+'!$C$313:$AG$313,0)))) -> 285.79 | K22: =IF(H22="","",INDEX('Steers R3 2005+ £'!$D$257:$AG$1029,MATCH('Cattle - EU reference prices'!$D$7,'Steers R3 2005+ £'!$A$257:$A$1029,0),MATCH('Cattle - EU reference prices'!$S22,'Steers R3 2005+ £'!$D$252:$AG$252,0))) -> 245.2417065 | N22: =(INDEX('Young Bulls R3 2005+'!$C$10:$AG$1007,MATCH('Cattle - EU reference prices'!$N$10,'Young Bulls R3 2005+'!$A$10:$A$1007,0),MATCH('Cattle - EU reference prices'!$S22,'Young Bulls R3 2005+'!$C$6:$AG$6,0))) -> 384.04 | O22: =INDEX('Young Bulls R3 2005+'!$C$10:$AG$1007,MATCH('Cattle - EU reference prices'!$O$10,'Young Bulls R3 2005+'!$A$10:$A$1007,0),MATCH('Cattle - EU reference prices'!$S22,'Young Bulls R3 2005+'!$C$6:$AG$6,0)) -> 390.52 | Q22: =INDEX('Steers R3 2005+'!$C$10:$AG$1000,MATCH('Cattle - EU reference prices'!$Q$10,'Steers R3 2005+'!$A$10:$A$1000,0),MATCH('Cattle - EU reference prices'!$S22,'Steers R3 2005+'!$C$313:$AG$313,0)) ->  | R22: =INDEX('Steers R3 2005+'!$C$10:$AG$1000,MATCH('Cattle - EU reference prices'!$R$10,'Steers R3 2005+'!$A$10:$A$1000,0),MATCH('Cattle - EU reference prices'!$S22,'Steers R3 2005+'!$C$313:$AG$313,0)) ->  | S22: IT
B23: Cyprus | C23: =INDEX('Young Bulls R3 2005+'!$C$10:$AG$1000,MATCH('Cattle - EU reference prices'!$D$7,'Young Bulls R3 2005+'!$A$10:$A$1000,0),MATCH('Cattle - EU reference prices'!$S23,'Young Bulls R3 2005+'!$C$6:$AG$6,0)) ->  | F23: =IF(C23="","",INDEX('Young Bulls R3 2005+ £'!$D$258:$AG$1029,MATCH('Cattle - EU reference prices'!$D$7,'Young Bulls R3 2005+ £'!$A$258:$A$1029,0),MATCH('Cattle - EU reference prices'!$S23,'Young Bulls R3 2005+ £'!$D$253:$AG$253,0))) ->  | H23: =((INDEX('Steers R3 2005+'!$C$10:$AG$1000,MATCH('Cattle - EU reference prices'!$D$7,'Steers R3 2005+'!$A$10:$A$1000,0),MATCH('Cattle - EU reference prices'!$S23,'Steers R3 2005+'!$C$313:$AG$313,0)))) ->  | K23: =IF(H23="","",INDEX('Steers R3 2005+ £'!$D$257:$AG$1029,MATCH('Cattle - EU reference prices'!$D$7,'Steers R3 2005+ £'!$A$257:$A$1029,0),MATCH('Cattle - EU reference prices'!$S23,'Steers R3 2005+ £'!$D$252:$AG$252,0))) ->  | N23: =(INDEX('Young Bulls R3 2005+'!$C$10:$AG$1007,MATCH('Cattle - EU reference prices'!$N$10,'Young Bulls R3 2005+'!$A$10:$A$1007,0),MATCH('Cattle - EU reference prices'!$S23,'Young Bulls R3 2005+'!$C$6:$AG$6,0))) ->  | O23: =INDEX('Young Bulls R3 2005+'!$C$10:$AG$1007,MATCH('Cattle - EU reference prices'!$O$10,'Young Bulls R3 2005+'!$A$10:$A$1007,0),MATCH('Cattle - EU reference prices'!$S23,'Young Bulls R3 2005+'!$C$6:$AG$6,0)) ->  | Q23: =INDEX('Steers R3 2005+'!$C$10:$AG$1000,MATCH('Cattle - EU reference prices'!$Q$10,'Steers R3 2005+'!$A$10:$A$1000,0),MATCH('Cattle - EU reference prices'!$S23,'Steers R3 2005+'!$C$313:$AG$313,0)) ->  | R23: =INDEX('Steers R3 2005+'!$C$10:$AG$1000,MATCH('Cattle - EU reference prices'!$R$10,'Steers R3 2005+'!$A$10:$A$1000,0),MATCH('Cattle - EU reference prices'!$S23,'Steers R3 2005+'!$C$313:$AG$313,0)) ->  | S23: CY
B24: Latvia | C24: =INDEX('Young Bulls R3 2005+'!$C$10:$AG$1000,MATCH('Cattle - EU reference prices'!$D$7,'Young Bulls R3 2005+'!$A$10:$A$1000,0),MATCH('Cattle - EU reference prices'!$S24,'Young Bulls R3 2005+'!$C$6:$AG$6,0)) -> 315.57 | D24: 1.287071511 | E24: 7.132672461 | F24: =IF(C24="","",INDEX('Young Bulls R3 2005+ £'!$D$258:$AG$1029,MATCH('Cattle - EU reference prices'!$D$7,'Young Bulls R3 2005+ £'!$A$258:$A$1029,0),MATCH('Cattle - EU reference prices'!$S24,'Young Bulls R3 2005+ £'!$D$253:$AG$253,0))) -> 270.7964776 | H24: =((INDEX('Steers R3 2005+'!$C$10:$AG$1000,MATCH('Cattle - EU reference prices'!$D$7,'Steers R3 2005+'!$A$10:$A$1000,0),MATCH('Cattle - EU reference prices'!$S24,'Steers R3 2005+'!$C$313:$AG$313,0)))) ->  | K24: =IF(H24="","",INDEX('Steers R3 2005+ £'!$D$257:$AG$1029,MATCH('Cattle - EU reference prices'!$D$7,'Steers R3 2005+ £'!$A$257:$A$1029,0),MATCH('Cattle - EU reference prices'!$S24,'Steers R3 2005+ £'!$D$252:$AG$252,0))) ->  | N24: =(INDEX('Young Bulls R3 2005+'!$C$10:$AG$1007,MATCH('Cattle - EU reference prices'!$N$10,'Young Bulls R3 2005+'!$A$10:$A$1007,0),MATCH('Cattle - EU reference prices'!$S24,'Young Bulls R3 2005+'!$C$6:$AG$6,0))) -> 311.56 | O24: =INDEX('Young Bulls R3 2005+'!$C$10:$AG$1007,MATCH('Cattle - EU reference prices'!$O$10,'Young Bulls R3 2005+'!$A$10:$A$1007,0),MATCH('Cattle - EU reference prices'!$S24,'Young Bulls R3 2005+'!$C$6:$AG$6,0)) -> 294.56 | Q24: =INDEX('Steers R3 2005+'!$C$10:$AG$1000,MATCH('Cattle - EU reference prices'!$Q$10,'Steers R3 2005+'!$A$10:$A$1000,0),MATCH('Cattle - EU reference prices'!$S24,'Steers R3 2005+'!$C$313:$AG$313,0)) -> 315.26 | R24: =INDEX('Steers R3 2005+'!$C$10:$AG$1000,MATCH('Cattle - EU reference prices'!$R$10,'Steers R3 2005+'!$A$10:$A$1000,0),MATCH('Cattle - EU reference prices'!$S24,'Steers R3 2005+'!$C$313:$AG$313,0)) ->  | S24: LV
B25: Lithuania | C25: =INDEX('Young Bulls R3 2005+'!$C$10:$AG$1000,MATCH('Cattle - EU reference prices'!$D$7,'Young Bulls R3 2005+'!$A$10:$A$1000,0),MATCH('Cattle - EU reference prices'!$S25,'Young Bulls R3 2005+'!$C$6:$AG$6,0)) -> 296.98 | D25: 0.7599918572 | E25: 10.22938163 | F25: =IF(C25="","",INDEX('Young Bulls R3 2005+ £'!$D$258:$AG$1029,MATCH('Cattle - EU reference prices'!$D$7,'Young Bulls R3 2005+ £'!$A$258:$A$1029,0),MATCH('Cattle - EU reference prices'!$S25,'Young Bulls R3 2005+ £'!$D$253:$AG$253,0))) -> 254.8440533 | H25: =((INDEX('Steers R3 2005+'!$C$10:$AG$1000,MATCH('Cattle - EU reference prices'!$D$7,'Steers R3 2005+'!$A$10:$A$1000,0),MATCH('Cattle - EU reference prices'!$S25,'Steers R3 2005+'!$C$313:$AG$313,0)))) ->  | K25: =IF(H25="","",INDEX('Steers R3 2005+ £'!$D$257:$AG$1029,MATCH('Cattle - EU reference prices'!$D$7,'Steers R3 2005+ £'!$A$257:$A$1029,0),MATCH('Cattle - EU reference prices'!$S25,'Steers R3 2005+ £'!$D$252:$AG$252,0))) ->  | N25: =(INDEX('Young Bulls R3 2005+'!$C$10:$AG$1007,MATCH('Cattle - EU reference prices'!$N$10,'Young Bulls R3 2005+'!$A$10:$A$1007,0),MATCH('Cattle - EU reference prices'!$S25,'Young Bulls R3 2005+'!$C$6:$AG$6,0))) -> 294.74 | O25: =INDEX('Young Bulls R3 2005+'!$C$10:$AG$1007,MATCH('Cattle - EU reference prices'!$O$10,'Young Bulls R3 2005+'!$A$10:$A$1007,0),MATCH('Cattle - EU reference prices'!$S25,'Young Bulls R3 2005+'!$C$6:$AG$6,0)) -> 269.42 | Q25: =INDEX('Steers R3 2005+'!$C$10:$AG$1000,MATCH('Cattle - EU reference prices'!$Q$10,'Steers R3 2005+'!$A$10:$A$1000,0),MATCH('Cattle - EU reference prices'!$S25,'Steers R3 2005+'!$C$313:$AG$313,0)) ->  | R25: =INDEX('Steers R3 2005+'!$C$10:$AG$1000,MATCH('Cattle - EU reference prices'!$R$10,'Steers R3 2005+'!$A$10:$A$1000,0),MATCH('Cattle - EU reference prices'!$S25,'Steers R3 2005+'!$C$313:$AG$313,0)) ->  | S25: LT
B26: Luxembourg | C26: =INDEX('Young Bulls R3 2005+'!$C$10:$AG$1000,MATCH('Cattle - EU reference prices'!$D$7,'Young Bulls R3 2005+'!$A$10:$A$1000,0),MATCH('Cattle - EU reference prices'!$S26,'Young Bulls R3 2005+'!$C$6:$AG$6,0)) -> 362.24 | D26: -0.09928295643 | E26: 1.29753915 | F26: =IF(C26="","",INDEX('Young Bulls R3 2005+ £'!$D$258:$AG$1029,MATCH('Cattle - EU reference prices'!$D$7,'Young Bulls R3 2005+ £'!$A$258:$A$1029,0),MATCH('Cattle - EU reference prices'!$S26,'Young Bulls R3 2005+ £'!$D$253:$AG$253,0))) -> 310.8448713 | H26: =((INDEX('Steers R3 2005+'!$C$10:$AG$1000,MATCH('Cattle - EU reference prices'!$D$7,'Steers R3 2005+'!$A$10:$A$1000,0),MATCH('Cattle - EU reference prices'!$S26,'Steers R3 2005+'!$C$313:$AG$313,0)))) ->  | K26: =IF(H26="","",INDEX('Steers R3 2005+ £'!$D$257:$AG$1029,MATCH('Cattle - EU reference prices'!$D$7,'Steers R3 2005+ £'!$A$257:$A$1029,0),MATCH('Cattle - EU reference prices'!$S26,'Steers R3 2005+ £'!$D$252:$AG$252,0))) ->  | N26: =(INDEX('Young Bulls R3 2005+'!$C$10:$AG$1007,MATCH('Cattle - EU reference prices'!$N$10,'Young Bulls R3 2005+'!$A$10:$A$1007,0),MATCH('Cattle - EU reference prices'!$S26,'Young Bulls R3 2005+'!$C$6:$AG$6,0))) -> 362.6 | O26: =INDEX('Young Bulls R3 2005+'!$C$10:$AG$1007,MATCH('Cattle - EU reference prices'!$O$10,'Young Bulls R3 2005+'!$A$10:$A$1007,0),MATCH('Cattle - EU reference prices'!$S26,'Young Bulls R3 2005+'!$C$6:$AG$6,0)) -> 357.6 | Q26: =INDEX('Steers R3 2005+'!$C$10:$AG$1000,MATCH('Cattle - EU reference prices'!$Q$10,'Steers R3 2005+'!$A$10:$A$1000,0),MATCH('Cattle - EU reference prices'!$S26,'Steers R3 2005+'!$C$313:$AG$313,0)) -> c | R26: =INDEX('Steers R3 2005+'!$C$10:$AG$1000,MATCH('Cattle - EU reference prices'!$R$10,'Steers R3 2005+'!$A$10:$A$1000,0),MATCH('Cattle - EU reference prices'!$S26,'Steers R3 2005+'!$C$313:$AG$313,0)) -> 364.07 | S26: LU
B27: Hungary | C27: =INDEX('Young Bulls R3 2005+'!$C$10:$AG$1000,MATCH('Cattle - EU reference prices'!$D$7,'Young Bulls R3 2005+'!$A$10:$A$1000,0),MATCH('Cattle - EU reference prices'!$S27,'Young Bulls R3 2005+'!$C$6:$AG$6,0)) ->  | F27: =IF(C27="","",INDEX('Young Bulls R3 2005+ £'!$D$258:$AG$1029,MATCH('Cattle - EU reference prices'!$D$7,'Young Bulls R3 2005+ £'!$A$258:$A$1029,0),MATCH('Cattle - EU reference prices'!$S27,'Young Bulls R3 2005+ £'!$D$253:$AG$253,0))) ->  | H27: =((INDEX('Steers R3 2005+'!$C$10:$AG$1000,MATCH('Cattle - EU reference prices'!$D$7,'Steers R3 2005+'!$A$10:$A$1000,0),MATCH('Cattle - EU reference prices'!$S27,'Steers R3 2005+'!$C$313:$AG$313,0)))) ->  | K27: =IF(H27="","",INDEX('Steers R3 2005+ £'!$D$257:$AG$1029,MATCH('Cattle - EU reference prices'!$D$7,'Steers R3 2005+ £'!$A$257:$A$1029,0),MATCH('Cattle - EU reference prices'!$S27,'Steers R3 2005+ £'!$D$252:$AG$252,0))) ->  | N27: =(INDEX('Young Bulls R3 2005+'!$C$10:$AG$1007,MATCH('Cattle - EU reference prices'!$N$10,'Young Bulls R3 2005+'!$A$10:$A$1007,0),MATCH('Cattle - EU reference prices'!$S27,'Young Bulls R3 2005+'!$C$6:$AG$6,0))) ->  | O27: =INDEX('Young Bulls R3 2005+'!$C$10:$AG$1007,MATCH('Cattle - EU reference prices'!$O$10,'Young Bulls R3 2005+'!$A$10:$A$1007,0),MATCH('Cattle - EU reference prices'!$S27,'Young Bulls R3 2005+'!$C$6:$AG$6,0)) ->  | Q27: =INDEX('Steers R3 2005+'!$C$10:$AG$1000,MATCH('Cattle - EU reference prices'!$Q$10,'Steers R3 2005+'!$A$10:$A$1000,0),MATCH('Cattle - EU reference prices'!$S27,'Steers R3 2005+'!$C$313:$AG$313,0)) ->  | R27: =INDEX('Steers R3 2005+'!$C$10:$AG$1000,MATCH('Cattle - EU reference prices'!$R$10,'Steers R3 2005+'!$A$10:$A$1000,0),MATCH('Cattle - EU reference prices'!$S27,'Steers R3 2005+'!$C$313:$AG$313,0)) ->  | S27: HU
B28: Malta | C28: =INDEX('Young Bulls R3 2005+'!$C$10:$AG$1000,MATCH('Cattle - EU reference prices'!$D$7,'Young Bulls R3 2005+'!$A$10:$A$1000,0),MATCH('Cattle - EU reference prices'!$S28,'Young Bulls R3 2005+'!$C$6:$AG$6,0)) ->  | F28: =IF(C28="","",INDEX('Young Bulls R3 2005+ £'!$D$258:$AG$1029,MATCH('Cattle - EU reference prices'!$D$7,'Young Bulls R3 2005+ £'!$A$258:$A$1029,0),MATCH('Cattle - EU reference prices'!$S28,'Young Bulls R3 2005+ £'!$D$253:$AG$253,0))) ->  | H28: =((INDEX('Steers R3 2005+'!$C$10:$AG$1000,MATCH('Cattle - EU reference prices'!$D$7,'Steers R3 2005+'!$A$10:$A$1000,0),MATCH('Cattle - EU reference prices'!$S28,'Steers R3 2005+'!$C$313:$AG$313,0)))) ->  | K28: =IF(H28="","",INDEX('Steers R3 2005+ £'!$D$257:$AG$1029,MATCH('Cattle - EU reference prices'!$D$7,'Steers R3 2005+ £'!$A$257:$A$1029,0),MATCH('Cattle - EU reference prices'!$S28,'Steers R3 2005+ £'!$D$252:$AG$252,0))) ->  | N28: =(INDEX('Young Bulls R3 2005+'!$C$10:$AG$1007,MATCH('Cattle - EU reference prices'!$N$10,'Young Bulls R3 2005+'!$A$10:$A$1007,0),MATCH('Cattle - EU reference prices'!$S28,'Young Bulls R3 2005+'!$C$6:$AG$6,0))) ->  | O28: =INDEX('Young Bulls R3 2005+'!$C$10:$AG$1007,MATCH('Cattle - EU reference prices'!$O$10,'Young Bulls R3 2005+'!$A$10:$A$1007,0),MATCH('Cattle - EU reference prices'!$S28,'Young Bulls R3 2005+'!$C$6:$AG$6,0)) ->  | Q28: =INDEX('Steers R3 2005+'!$C$10:$AG$1000,MATCH('Cattle - EU reference prices'!$Q$10,'Steers R3 2005+'!$A$10:$A$1000,0),MATCH('Cattle - EU reference prices'!$S28,'Steers R3 2005+'!$C$313:$AG$313,0)) ->  | R28: =INDEX('Steers R3 2005+'!$C$10:$AG$1000,MATCH('Cattle - EU reference prices'!$R$10,'Steers R3 2005+'!$A$10:$A$1000,0),MATCH('Cattle - EU reference prices'!$S28,'Steers R3 2005+'!$C$313:$AG$313,0)) ->  | S28: MT
B29: Netherlands | C29: =INDEX('Young Bulls R3 2005+'!$C$10:$AG$1000,MATCH('Cattle - EU reference prices'!$D$7,'Young Bulls R3 2005+'!$A$10:$A$1000,0),MATCH('Cattle - EU reference prices'!$S29,'Young Bulls R3 2005+'!$C$6:$AG$6,0)) -> 366 | D29: 1.104972376 | E29: 29.32862191 | F29: =IF(C29="","",INDEX('Young Bulls R3 2005+ £'!$D$258:$AG$1029,MATCH('Cattle - EU reference prices'!$D$7,'Young Bulls R3 2005+ £'!$A$258:$A$1029,0),MATCH('Cattle - EU reference prices'!$S29,'Young Bulls R3 2005+ £'!$D$253:$AG$253,0))) -> 314.0713971 | H29: =((INDEX('Steers R3 2005+'!$C$10:$AG$1000,MATCH('Cattle - EU reference prices'!$D$7,'Steers R3 2005+'!$A$10:$A$1000,0),MATCH('Cattle - EU reference prices'!$S29,'Steers R3 2005+'!$C$313:$AG$313,0)))) ->  | K29: =IF(H29="","",INDEX('Steers R3 2005+ £'!$D$257:$AG$1029,MATCH('Cattle - EU reference prices'!$D$7,'Steers R3 2005+ £'!$A$257:$A$1029,0),MATCH('Cattle - EU reference prices'!$S29,'Steers R3 2005+ £'!$D$252:$AG$252,0))) ->  | N29: =(INDEX('Young Bulls R3 2005+'!$C$10:$AG$1007,MATCH('Cattle - EU reference prices'!$N$10,'Young Bulls R3 2005+'!$A$10:$A$1007,0),MATCH('Cattle - EU reference prices'!$S29,'Young Bulls R3 2005+'!$C$6:$AG$6,0))) -> 362 | O29: =INDEX('Young Bulls R3 2005+'!$C$10:$AG$1007,MATCH('Cattle - EU reference prices'!$O$10,'Young Bulls R3 2005+'!$A$10:$A$1007,0),MATCH('Cattle - EU reference prices'!$S29,'Young Bulls R3 2005+'!$C$6:$AG$6,0)) -> 283 | Q29: =INDEX('Steers R3 2005+'!$C$10:$AG$1000,MATCH('Cattle - EU reference prices'!$Q$10,'Steers R3 2005+'!$A$10:$A$1000,0),MATCH('Cattle - EU reference prices'!$S29,'Steers R3 2005+'!$C$313:$AG$313,0)) ->  | R29: =INDEX('Steers R3 2005+'!$C$10:$AG$1000,MATCH('Cattle - EU reference prices'!$R$10,'Steers R3 2005+'!$A$10:$A$1000,0),MATCH('Cattle - EU reference prices'!$S29,'Steers R3 2005+'!$C$313:$AG$313,0)) ->  | S29: NL
B30: Austria | C30: =INDEX('Young Bulls R3 2005+'!$C$10:$AG$1000,MATCH('Cattle - EU reference prices'!$D$7,'Young Bulls R3 2005+'!$A$10:$A$1000,0),MATCH('Cattle - EU reference prices'!$S30,'Young Bulls R3 2005+'!$C$6:$AG$6,0)) -> 381.27 | D30: 0.1286832292 | E30: 9.400017216 | F30: =IF(C30="","",INDEX('Young Bulls R3 2005+ £'!$D$258:$AG$1029,MATCH('Cattle - EU reference prices'!$D$7,'Young Bulls R3 2005+ £'!$A$258:$A$1029,0),MATCH('Cattle - EU reference prices'!$S30,'Young Bulls R3 2005+ £'!$D$253:$AG$253,0))) -> 327.1748677 | H30: =((INDEX('Steers R3 2005+'!$C$10:$AG$1000,MATCH('Cattle - EU reference prices'!$D$7,'Steers R3 2005+'!$A$10:$A$1000,0),MATCH('Cattle - EU reference prices'!$S30,'Steers R3 2005+'!$C$313:$AG$313,0)))) -> 443.47 | I30: 1.441086991 | J30: 8.925895905 | K30: =IF(H30="","",INDEX('Steers R3 2005+ £'!$D$257:$AG$1029,MATCH('Cattle - EU reference prices'!$D$7,'Steers R3 2005+ £'!$A$257:$A$1029,0),MATCH('Cattle - EU reference prices'!$S30,'Steers R3 2005+ £'!$D$252:$AG$252,0))) -> 380.5498429 | N30: =(INDEX('Young Bulls R3 2005+'!$C$10:$AG$1007,MATCH('Cattle - EU reference prices'!$N$10,'Young Bulls R3 2005+'!$A$10:$A$1007,0),MATCH('Cattle - EU reference prices'!$S30,'Young Bulls R3 2005+'!$C$6:$AG$6,0))) -> 380.78 | O30: =INDEX('Young Bulls R3 2005+'!$C$10:$AG$1007,MATCH('Cattle - EU reference prices'!$O$10,'Young Bulls R3 2005+'!$A$10:$A$1007,0),MATCH('Cattle - EU reference prices'!$S30,'Young Bulls R3 2005+'!$C$6:$AG$6,0)) -> 348.51 | Q30: =INDEX('Steers R3 2005+'!$C$10:$AG$1000,MATCH('Cattle - EU reference prices'!$Q$10,'Steers R3 2005+'!$A$10:$A$1000,0),MATCH('Cattle - EU reference prices'!$S30,'Steers R3 2005+'!$C$313:$AG$313,0)) -> 437.17 | R30: =INDEX('Steers R3 2005+'!$C$10:$AG$1000,MATCH('Cattle - EU reference prices'!$R$10,'Steers R3 2005+'!$A$10:$A$1000,0),MATCH('Cattle - EU reference prices'!$S30,'Steers R3 2005+'!$C$313:$AG$313,0)) -> 407.13 | S30: AT
B31: Poland | C31: =INDEX('Young Bulls R3 2005+'!$C$10:$AG$1000,MATCH('Cattle - EU reference prices'!$D$7,'Young Bulls R3 2005+'!$A$10:$A$1000,0),MATCH('Cattle - EU reference prices'!$S31,'Young Bulls R3 2005+'!$C$6:$AG$6,0)) -> 348.2235 | D31: -0.1785885769 | E31: 22.4008706 | F31: =IF(C31="","",INDEX('Young Bulls R3 2005+ £'!$D$258:$AG$1029,MATCH('Cattle - EU reference prices'!$D$7,'Young Bulls R3 2005+ £'!$A$258:$A$1029,0),MATCH('Cattle - EU reference prices'!$S31,'Young Bulls R3 2005+ £'!$D$253:$AG$253,0))) -> 298.8170524 | H31: =((INDEX('Steers R3 2005+'!$C$10:$AG$1000,MATCH('Cattle - EU reference prices'!$D$7,'Steers R3 2005+'!$A$10:$A$1000,0),MATCH('Cattle - EU reference prices'!$S31,'Steers R3 2005+'!$C$313:$AG$313,0)))) ->  | K31: =IF(H31="","",INDEX('Steers R3 2005+ £'!$D$257:$AG$1029,MATCH('Cattle - EU reference prices'!$D$7,'Steers R3 2005+ £'!$A$257:$A$1029,0),MATCH('Cattle - EU reference prices'!$S31,'Steers R3 2005+ £'!$D$252:$AG$252,0))) ->  | N31: =(INDEX('Young Bulls R3 2005+'!$C$10:$AG$1007,MATCH('Cattle - EU reference prices'!$N$10,'Young Bulls R3 2005+'!$A$10:$A$1007,0),MATCH('Cattle - EU reference prices'!$S31,'Young Bulls R3 2005+'!$C$6:$AG$6,0))) -> 348.8465 | O31: =INDEX('Young Bulls R3 2005+'!$C$10:$AG$1007,MATCH('Cattle - EU reference prices'!$O$10,'Young Bulls R3 2005+'!$A$10:$A$1007,0),MATCH('Cattle - EU reference prices'!$S31,'Young Bulls R3 2005+'!$C$6:$AG$6,0)) -> 284.4943 | Q31: =INDEX('Steers R3 2005+'!$C$10:$AG$1000,MATCH('Cattle - EU reference prices'!$Q$10,'Steers R3 2005+'!$A$10:$A$1000,0),MATCH('Cattle - EU reference prices'!$S31,'Steers R3 2005+'!$C$313:$AG$313,0)) ->  | R31: =INDEX('Steers R3 2005+'!$C$10:$AG$1000,MATCH('Cattle - EU reference prices'!$R$10,'Steers R3 2005+'!$A$10:$A$1000,0),MATCH('Cattle - EU reference prices'!$S31,'Steers R3 2005+'!$C$313:$AG$313,0)) ->  | S31: PL
B32: Portugal | C32: =INDEX('Young Bulls R3 2005+'!$C$10:$AG$1000,MATCH('Cattle - EU reference prices'!$D$7,'Young Bulls R3 2005+'!$A$10:$A$1000,0),MATCH('Cattle - EU reference prices'!$S32,'Young Bulls R3 2005+'!$C$6:$AG$6,0)) -> 391.04 | D32: -1.40440231 | E32: 1.66917997 | F32: =IF(C32="","",INDEX('Young Bulls R3 2005+ £'!$D$258:$AG$1029,MATCH('Cattle - EU reference prices'!$D$7,'Young Bulls R3 2005+ £'!$A$258:$A$1029,0),MATCH('Cattle - EU reference prices'!$S32,'Young Bulls R3 2005+ £'!$D$253:$AG$253,0))) -> 335.5586862 | H32: =((INDEX('Steers R3 2005+'!$C$10:$AG$1000,MATCH('Cattle - EU reference prices'!$D$7,'Steers R3 2005+'!$A$10:$A$1000,0),MATCH('Cattle - EU reference prices'!$S32,'Steers R3 2005+'!$C$313:$AG$313,0)))) ->  | K32: =IF(H32="","",INDEX('Steers R3 2005+ £'!$D$257:$AG$1029,MATCH('Cattle - EU reference prices'!$D$7,'Steers R3 2005+ £'!$A$257:$A$1029,0),MATCH('Cattle - EU reference prices'!$S32,'Steers R3 2005+ £'!$D$252:$AG$252,0))) ->  | N32: =(INDEX('Young Bulls R3 2005+'!$C$10:$AG$1007,MATCH('Cattle - EU reference prices'!$N$10,'Young Bulls R3 2005+'!$A$10:$A$1007,0),MATCH('Cattle - EU reference prices'!$S32,'Young Bulls R3 2005+'!$C$6:$AG$6,0))) -> 396.61 | O32: =INDEX('Young Bulls R3 2005+'!$C$10:$AG$1007,MATCH('Cattle - EU reference prices'!$O$10,'Young Bulls R3 2005+'!$A$10:$A$1007,0),MATCH('Cattle - EU reference prices'!$S32,'Young Bulls R3 2005+'!$C$6:$AG$6,0)) -> 384.62 | Q32: =INDEX('Steers R3 2005+'!$C$10:$AG$1000,MATCH('Cattle - EU reference prices'!$Q$10,'Steers R3 2005+'!$A$10:$A$1000,0),MATCH('Cattle - EU reference prices'!$S32,'Steers R3 2005+'!$C$313:$AG$313,0)) ->  | R32: =INDEX('Steers R3 2005+'!$C$10:$AG$1000,MATCH('Cattle - EU reference prices'!$R$10,'Steers R3 2005+'!$A$10:$A$1000,0),MATCH('Cattle - EU reference prices'!$S32,'Steers R3 2005+'!$C$313:$AG$313,0)) ->  | S32: PT
B33: Romania | C33: =INDEX('Young Bulls R3 2005+'!$C$10:$AG$1000,MATCH('Cattle - EU reference prices'!$D$7,'Young Bulls R3 2005+'!$A$10:$A$1000,0),MATCH('Cattle - EU reference prices'!$S33,'Young Bulls R3 2005+'!$C$6:$AG$6,0)) -> 327.8608 | D33: -7.190969697 | E33: 0.07832622414 | F33: =IF(C33="","",INDEX('Young Bulls R3 2005+ £'!$D$258:$AG$1029,MATCH('Cattle - EU reference prices'!$D$7,'Young Bulls R3 2005+ £'!$A$258:$A$1029,0),MATCH('Cattle - EU reference prices'!$S33,'Young Bulls R3 2005+ £'!$D$253:$AG$253,0))) -> 281.3434413 | H33: =((INDEX('Steers R3 2005+'!$C$10:$AG$1000,MATCH('Cattle - EU reference prices'!$D$7,'Steers R3 2005+'!$A$10:$A$1000,0),MATCH('Cattle - EU reference prices'!$S33,'Steers R3 2005+'!$C$313:$AG$313,0)))) -> 305.3824 | I33: -6.640522061 | K33: =IF(H33="","",INDEX('Steers R3 2005+ £'!$D$257:$AG$1029,MATCH('Cattle - EU reference prices'!$D$7,'Steers R3 2005+ £'!$A$257:$A$1029,0),MATCH('Cattle - EU reference prices'!$S33,'Steers R3 2005+ £'!$D$252:$AG$252,0))) -> 262.0543088 | N33: =(INDEX('Young Bulls R3 2005+'!$C$10:$AG$1007,MATCH('Cattle - EU reference prices'!$N$10,'Young Bulls R3 2005+'!$A$10:$A$1007,0),MATCH('Cattle - EU reference prices'!$S33,'Young Bulls R3 2005+'!$C$6:$AG$6,0))) -> 353.2639 | O33: =INDEX('Young Bulls R3 2005+'!$C$10:$AG$1007,MATCH('Cattle - EU reference prices'!$O$10,'Young Bulls R3 2005+'!$A$10:$A$1007,0),MATCH('Cattle - EU reference prices'!$S33,'Young Bulls R3 2005+'!$C$6:$AG$6,0)) -> 327.6042 | Q33: =INDEX('Steers R3 2005+'!$C$10:$AG$1000,MATCH('Cattle - EU reference prices'!$Q$10,'Steers R3 2005+'!$A$10:$A$1000,0),MATCH('Cattle - EU reference prices'!$S33,'Steers R3 2005+'!$C$313:$AG$313,0)) -> 327.1038 | R33: =INDEX('Steers R3 2005+'!$C$10:$AG$1000,MATCH('Cattle - EU reference prices'!$R$10,'Steers R3 2005+'!$A$10:$A$1000,0),MATCH('Cattle - EU reference prices'!$S33,'Steers R3 2005+'!$C$313:$AG$313,0)) ->  | S33: RO
B34: Slovenia | C34: =INDEX('Young Bulls R3 2005+'!$C$10:$AG$1000,MATCH('Cattle - EU reference prices'!$D$7,'Young Bulls R3 2005+'!$A$10:$A$1000,0),MATCH('Cattle - EU reference prices'!$S34,'Young Bulls R3 2005+'!$C$6:$AG$6,0)) -> 324.99 | D34: 0.8158580469 | E34: 5.932396753 | F34: =IF(C34="","",INDEX('Young Bulls R3 2005+ £'!$D$258:$AG$1029,MATCH('Cattle - EU reference prices'!$D$7,'Young Bulls R3 2005+ £'!$A$258:$A$1029,0),MATCH('Cattle - EU reference prices'!$S34,'Young Bulls R3 2005+ £'!$D$253:$AG$253,0))) -> 278.8799545 | H34: =((INDEX('Steers R3 2005+'!$C$10:$AG$1000,MATCH('Cattle - EU reference prices'!$D$7,'Steers R3 2005+'!$A$10:$A$1000,0),MATCH('Cattle - EU reference prices'!$S34,'Steers R3 2005+'!$C$313:$AG$313,0)))) ->  | K34: =IF(H34="","",INDEX('Steers R3 2005+ £'!$D$257:$AG$1029,MATCH('Cattle - EU reference prices'!$D$7,'Steers R3 2005+ £'!$A$257:$A$1029,0),MATCH('Cattle - EU reference prices'!$S34,'Steers R3 2005+ £'!$D$252:$AG$252,0))) ->  | N34: =(INDEX('Young Bulls R3 2005+'!$C$10:$AG$1007,MATCH('Cattle - EU reference prices'!$N$10,'Young Bulls R3 2005+'!$A$10:$A$1007,0),MATCH('Cattle - EU reference prices'!$S34,'Young Bulls R3 2005+'!$C$6:$AG$6,0))) -> 322.36 | O34: =INDEX('Young Bulls R3 2005+'!$C$10:$AG$1007,MATCH('Cattle - EU reference prices'!$O$10,'Young Bulls R3 2005+'!$A$10:$A$1007,0),MATCH('Cattle - EU reference prices'!$S34,'Young Bulls R3 2005+'!$C$6:$AG$6,0)) -> 306.79 | Q34: =INDEX('Steers R3 2005+'!$C$10:$AG$1000,MATCH('Cattle - EU reference prices'!$Q$10,'Steers R3 2005+'!$A$10:$A$1000,0),MATCH('Cattle - EU reference prices'!$S34,'Steers R3 2005+'!$C$313:$AG$313,0)) -> 320 | R34: =INDEX('Steers R3 2005+'!$C$10:$AG$1000,MATCH('Cattle - EU reference prices'!$R$10,'Steers R3 2005+'!$A$10:$A$1000,0),MATCH('Cattle - EU reference prices'!$S34,'Steers R3 2005+'!$C$313:$AG$313,0)) ->  | S34: SI
B35: Slovakia | C35: =INDEX('Young Bulls R3 2005+'!$C$10:$AG$1000,MATCH('Cattle - EU reference prices'!$D$7,'Young Bulls R3 2005+'!$A$10:$A$1000,0),MATCH('Cattle - EU reference prices'!$S35,'Young Bulls R3 2005+'!$C$6:$AG$6,0)) -> 361.51 | D35: 2.026359608 | E35: -1.904865276 | F35: =IF(C35="","",INDEX('Young Bulls R3 2005+ £'!$D$258:$AG$1029,MATCH('Cattle - EU reference prices'!$D$7,'Young Bulls R3 2005+ £'!$A$258:$A$1029,0),MATCH('Cattle - EU reference prices'!$S35,'Young Bulls R3 2005+ £'!$D$253:$AG$253,0))) -> 310.2184448 | H35: =((INDEX('Steers R3 2005+'!$C$10:$AG$1000,MATCH('Cattle - EU reference prices'!$D$7,'Steers R3 2005+'!$A$10:$A$1000,0),MATCH('Cattle - EU reference prices'!$S35,'Steers R3 2005+'!$C$313:$AG$313,0)))) ->  | K35: =IF(H35="","",INDEX('Steers R3 2005+ £'!$D$257:$AG$1029,MATCH('Cattle - EU reference prices'!$D$7,'Steers R3 2005+ £'!$A$257:$A$1029,0),MATCH('Cattle - EU reference prices'!$S35,'Steers R3 2005+ £'!$D$252:$AG$252,0))) ->  | N35: =(INDEX('Young Bulls R3 2005+'!$C$10:$AG$1007,MATCH('Cattle - EU reference prices'!$N$10,'Young Bulls R3 2005+'!$A$10:$A$1007,0),MATCH('Cattle - EU reference prices'!$S35,'Young Bulls R3 2005+'!$C$6:$AG$6,0))) -> 354.33 | O35: =INDEX('Young Bulls R3 2005+'!$C$10:$AG$1007,MATCH('Cattle - EU reference prices'!$O$10,'Young Bulls R3 2005+'!$A$10:$A$1007,0),MATCH('Cattle - EU reference prices'!$S35,'Young Bulls R3 2005+'!$C$6:$AG$6,0)) -> 368.53 | Q35: =INDEX('Steers R3 2005+'!$C$10:$AG$1000,MATCH('Cattle - EU reference prices'!$Q$10,'Steers R3 2005+'!$A$10:$A$1000,0),MATCH('Cattle - EU reference prices'!$S35,'Steers R3 2005+'!$C$313:$AG$313,0)) ->  | R35: =INDEX('Steers R3 2005+'!$C$10:$AG$1000,MATCH('Cattle - EU reference prices'!$R$10,'Steers R3 2005+'!$A$10:$A$1000,0),MATCH('Cattle - EU reference prices'!$S35,'Steers R3 2005+'!$C$313:$AG$313,0)) ->  | S35: SK
B36: Finland | C36: =INDEX('Young Bulls R3 2005+'!$C$10:$AG$1000,MATCH('Cattle - EU reference prices'!$D$7,'Young Bulls R3 2005+'!$A$10:$A$1000,0),MATCH('Cattle - EU reference prices'!$S36,'Young Bulls R3 2005+'!$C$6:$AG$6,0)) -> 375.76 | D36: -0.7999155205 | E36: -1.157407407 | F36: =IF(C36="","",INDEX('Young Bulls R3 2005+ £'!$D$258:$AG$1029,MATCH('Cattle - EU reference prices'!$D$7,'Young Bulls R3 2005+ £'!$A$258:$A$1029,0),MATCH('Cattle - EU reference prices'!$S36,'Young Bulls R3 2005+ £'!$D$253:$AG$253,0))) -> 322.4466344 | H36: =((INDEX('Steers R3 2005+'!$C$10:$AG$1000,MATCH('Cattle - EU reference prices'!$D$7,'Steers R3 2005+'!$A$10:$A$1000,0),MATCH('Cattle - EU reference prices'!$S36,'Steers R3 2005+'!$C$313:$AG$313,0)))) ->  | K36: =IF(H36="","",INDEX('Steers R3 2005+ £'!$D$257:$AG$1029,MATCH('Cattle - EU reference prices'!$D$7,'Steers R3 2005+ £'!$A$257:$A$1029,0),MATCH('Cattle - EU reference prices'!$S36,'Steers R3 2005+ £'!$D$252:$AG$252,0))) ->  | N36: =(INDEX('Young Bulls R3 2005+'!$C$10:$AG$1007,MATCH('Cattle - EU reference prices'!$N$10,'Young Bulls R3 2005+'!$A$10:$A$1007,0),MATCH('Cattle - EU reference prices'!$S36,'Young Bulls R3 2005+'!$C$6:$AG$6,0))) -> 378.79 | O36: =INDEX('Young Bulls R3 2005+'!$C$10:$AG$1007,MATCH('Cattle - EU reference prices'!$O$10,'Young Bulls R3 2005+'!$A$10:$A$1007,0),MATCH('Cattle - EU reference prices'!$S36,'Young Bulls R3 2005+'!$C$6:$AG$6,0)) -> 380.16 | Q36: =INDEX('Steers R3 2005+'!$C$10:$AG$1000,MATCH('Cattle - EU reference prices'!$Q$10,'Steers R3 2005+'!$A$10:$A$1000,0),MATCH('Cattle - EU reference prices'!$S36,'Steers R3 2005+'!$C$313:$AG$313,0)) ->  | R36: =INDEX('Steers R3 2005+'!$C$10:$AG$1000,MATCH('Cattle - EU reference prices'!$R$10,'Steers R3 2005+'!$A$10:$A$1000,0),MATCH('Cattle - EU reference prices'!$S36,'Steers R3 2005+'!$C$313:$AG$313,0)) ->  | S36: FI
B37: Sweden | C37: =INDEX('Young Bulls R3 2005+'!$C$10:$AG$1000,MATCH('Cattle - EU reference prices'!$D$7,'Young Bulls R3 2005+'!$A$10:$A$1000,0),MATCH('Cattle - EU reference prices'!$S37,'Young Bulls R3 2005+'!$C$6:$AG$6,0)) -> 474.621 | D37: 0.2473334037 | E37: 12.28748298 | F37: =IF(C37="","",INDEX('Young Bulls R3 2005+ £'!$D$258:$AG$1029,MATCH('Cattle - EU reference prices'!$D$7,'Young Bulls R3 2005+ £'!$A$258:$A$1029,0),MATCH('Cattle - EU reference prices'!$S37,'Young Bulls R3 2005+ £'!$D$253:$AG$253,0))) -> 407.2810945 | H37: =((INDEX('Steers R3 2005+'!$C$10:$AG$1000,MATCH('Cattle - EU reference prices'!$D$7,'Steers R3 2005+'!$A$10:$A$1000,0),MATCH('Cattle - EU reference prices'!$S37,'Steers R3 2005+'!$C$313:$AG$313,0)))) -> 496.8935 | I37: 0.5847921254 | J37: 19.43383918 | K37: =IF(H37="","",INDEX('Steers R3 2005+ £'!$D$257:$AG$1029,MATCH('Cattle - EU reference prices'!$D$7,'Steers R3 2005+ £'!$A$257:$A$1029,0),MATCH('Cattle - EU reference prices'!$S37,'Steers R3 2005+ £'!$D$252:$AG$252,0))) -> 426.3935404 | N37: =(INDEX('Young Bulls R3 2005+'!$C$10:$AG$1007,MATCH('Cattle - EU reference prices'!$N$10,'Young Bulls R3 2005+'!$A$10:$A$1007,0),MATCH('Cattle - EU reference prices'!$S37,'Young Bulls R3 2005+'!$C$6:$AG$6,0))) -> 473.45 | O37: =INDEX('Young Bulls R3 2005+'!$C$10:$AG$1007,MATCH('Cattle - EU reference prices'!$O$10,'Young Bulls R3 2005+'!$A$10:$A$1007,0),MATCH('Cattle - EU reference prices'!$S37,'Young Bulls R3 2005+'!$C$6:$AG$6,0)) -> 422.6838 | Q37: =INDEX('Steers R3 2005+'!$C$10:$AG$1000,MATCH('Cattle - EU reference prices'!$Q$10,'Steers R3 2005+'!$A$10:$A$1000,0),MATCH('Cattle - EU reference prices'!$S37,'Steers R3 2005+'!$C$313:$AG$313,0)) -> 494.0046 | R37: =INDEX('Steers R3 2005+'!$C$10:$AG$1000,MATCH('Cattle - EU reference prices'!$R$10,'Steers R3 2005+'!$A$10:$A$1000,0),MATCH('Cattle - EU reference prices'!$S37,'Steers R3 2005+'!$C$313:$AG$313,0)) -> 416.0408 | S37: SE
B38: Great Britain | C38: =INDEX('Young Bulls R3 2005+'!$C$10:$AG$1000,MATCH('Cattle - EU reference prices'!$D$7,'Young Bulls R3 2005+'!$A$10:$A$1000,0),MATCH('Cattle - EU reference prices'!$S38,'Young Bulls R3 2005+'!$C$6:$AG$6,0)) -> 459.1323543 | D38: =IF(C38="","",IF(N38="","",C38/N38*100-100)) -> 1.578033722 | E38: =IF(C38="","",IF(O38="","",C38/O38*100-100)) -> 13.78872563 | F38: =IF(C38="","",INDEX('Young Bulls R3 2005+ £'!$D$258:$AG$1029,MATCH('Cattle - EU reference prices'!$D$7,'Young Bulls R3 2005+ £'!$A$258:$A$1029,0),MATCH('Cattle - EU reference prices'!$S38,'Young Bulls R3 2005+ £'!$D$253:$AG$253,0))) -> 393.99 | H38: =((INDEX('Steers R3 2005+'!$C$10:$AG$1000,MATCH('Cattle - EU reference prices'!$D$7,'Steers R3 2005+'!$A$10:$A$1000,0),MATCH('Cattle - EU reference prices'!$S38,'Steers R3 2005+'!$C$313:$AG$313,0)))) -> 461.9757842 | I38: =IF(H38="","",IF(Q38="","",H38/Q38*100-100)) -> 1.00540944 | J38: =IF(H38="","",IF(R38="","",H38/R38*100-100)) -> 13.47029622 | K38: =IF(H38="","",INDEX('Steers R3 2005+ £'!$D$257:$AG$1029,MATCH('Cattle - EU reference prices'!$D$7,'Steers R3 2005+ £'!$A$257:$A$1029,0),MATCH('Cattle - EU reference prices'!$S38,'Steers R3 2005+ £'!$D$252:$AG$252,0))) -> 396.43 | N38: =(INDEX('Young Bulls R3 2005+'!$C$10:$AG$1007,MATCH('Cattle - EU reference prices'!$N$10,'Young Bulls R3 2005+'!$A$10:$A$1007,0),MATCH('Cattle - EU reference prices'!$S38,'Young Bulls R3 2005+'!$C$6:$AG$6,0))) -> 451.9996475 | O38: =INDEX('Young Bulls R3 2005+'!$C$10:$AG$1007,MATCH('Cattle - EU reference prices'!$O$10,'Young Bulls R3 2005+'!$A$10:$A$1007,0),MATCH('Cattle - EU reference prices'!$S38,'Young Bulls R3 2005+'!$C$6:$AG$6,0)) -> 403.4954709 | Q38: =INDEX('Steers R3 2005+'!$C$10:$AG$1000,MATCH('Cattle - EU reference prices'!$Q$10,'Steers R3 2005+'!$A$10:$A$1000,0),MATCH('Cattle - EU reference prices'!$S38,'Steers R3 2005+'!$C$313:$AG$313,0)) -> 457.37727 | R38: =INDEX('Steers R3 2005+'!$C$10:$AG$1000,MATCH('Cattle - EU reference prices'!$R$10,'Steers R3 2005+'!$A$10:$A$1000,0),MATCH('Cattle - EU reference prices'!$S38,'Steers R3 2005+'!$C$313:$AG$313,0)) -> 407.1336725 | S38: GB
B39: United Kingdom | C39: =INDEX('Young Bulls R3 2005+'!$C$10:$AG$1000,MATCH('Cattle - EU reference prices'!$D$7,'Young Bulls R3 2005+'!$A$10:$A$1000,0),MATCH('Cattle - EU reference prices'!$S39,'Young Bulls R3 2005+'!$C$6:$AG$6,0)) ->  | F39: =IF(C39="","",INDEX('Young Bulls R3 2005+ £'!$D$258:$AG$1029,MATCH('Cattle - EU reference prices'!$D$7,'Young Bulls R3 2005+ £'!$A$258:$A$1029,0),MATCH('Cattle - EU reference prices'!$S39,'Young Bulls R3 2005+ £'!$D$253:$AG$253,0))) ->  | H39: =((INDEX('Steers R3 2005+'!$C$10:$AG$1000,MATCH('Cattle - EU reference prices'!$D$7,'Steers R3 2005+'!$A$10:$A$1000,0),MATCH('Cattle - EU reference prices'!$S39,'Steers R3 2005+'!$C$313:$AG$313,0)))) ->  | K39: =IF(H39="","",INDEX('Steers R3 2005+ £'!$D$257:$AG$1029,MATCH('Cattle - EU reference prices'!$D$7,'Steers R3 2005+ £'!$A$257:$A$1029,0),MATCH('Cattle - EU reference prices'!$S39,'Steers R3 2005+ £'!$D$252:$AG$252,0))) ->  | N39: =(INDEX('Young Bulls R3 2005+'!$C$10:$AG$1007,MATCH('Cattle - EU reference prices'!$N$10,'Young Bulls R3 2005+'!$A$10:$A$1007,0),MATCH('Cattle - EU reference prices'!$S39,'Young Bulls R3 2005+'!$C$6:$AG$6,0))) ->  | O39: =INDEX('Young Bulls R3 2005+'!$C$10:$AG$1007,MATCH('Cattle - EU reference prices'!$O$10,'Young Bulls R3 2005+'!$A$10:$A$1007,0),MATCH('Cattle - EU reference prices'!$S39,'Young Bulls R3 2005+'!$C$6:$AG$6,0)) -> 401.4057 | Q39: =INDEX('Steers R3 2005+'!$C$10:$AG$1000,MATCH('Cattle - EU reference prices'!$Q$10,'Steers R3 2005+'!$A$10:$A$1000,0),MATCH('Cattle - EU reference prices'!$S39,'Steers R3 2005+'!$C$313:$AG$313,0)) ->  | R39: =INDEX('Steers R3 2005+'!$C$10:$AG$1000,MATCH('Cattle - EU reference prices'!$R$10,'Steers R3 2005+'!$A$10:$A$1000,0),MATCH('Cattle - EU reference prices'!$S39,'Steers R3 2005+'!$C$313:$AG$313,0)) -> 406.0996 | S39: UK
B40: EU (ex UK) | C40: =INDEX('Young Bulls R3 2005+'!$C$10:$AG$1000,MATCH('Cattle - EU reference prices'!$D$7,'Young Bulls R3 2005+'!$A$10:$A$1000,0),MATCH('Cattle - EU reference prices'!$S40,'Young Bulls R3 2005+'!$C$6:$AG$6,0)) -> 388.1732 | D40: 0.2140474064 | E40: 11.06160711 | F40: =IF(C40="","",INDEX('Young Bulls R3 2005+ £'!$D$258:$AG$1029,MATCH('Cattle - EU reference prices'!$D$7,'Young Bulls R3 2005+ £'!$A$258:$A$1029,0),MATCH('Cattle - EU reference prices'!$S40,'Young Bulls R3 2005+ £'!$D$253:$AG$253,0))) -> 333.0986319 | H40: =((INDEX('Steers R3 2005+'!$C$10:$AG$1000,MATCH('Cattle - EU reference prices'!$D$7,'Steers R3 2005+'!$A$10:$A$1000,0),MATCH('Cattle - EU reference prices'!$S40,'Steers R3 2005+'!$C$313:$AG$313,0)))) -> 414.3231 | I40: 0.09782126034 | J40: 12.77669989 | K40: =IF(H40="","",INDEX('Steers R3 2005+ £'!$D$257:$AG$1029,MATCH('Cattle - EU reference prices'!$D$7,'Steers R3 2005+ £'!$A$257:$A$1029,0),MATCH('Cattle - EU reference prices'!$S40,'Steers R3 2005+ £'!$D$252:$AG$252,0))) -> 355.5383467 | N40: =(INDEX('Young Bulls R3 2005+'!$C$10:$AG$1007,MATCH('Cattle - EU reference prices'!$N$10,'Young Bulls R3 2005+'!$A$10:$A$1007,0),MATCH('Cattle - EU reference prices'!$S40,'Young Bulls R3 2005+'!$C$6:$AG$6,0))) -> 387.3441 | O40: =INDEX('Young Bulls R3 2005+'!$C$10:$AG$1007,MATCH('Cattle - EU reference prices'!$O$10,'Young Bulls R3 2005+'!$A$10:$A$1007,0),MATCH('Cattle - EU reference prices'!$S40,'Young Bulls R3 2005+'!$C$6:$AG$6,0)) -> 349.5116 | Q40: =INDEX('Steers R3 2005+'!$C$10:$AG$1000,MATCH('Cattle - EU reference prices'!$Q$10,'Steers R3 2005+'!$A$10:$A$1000,0),MATCH('Cattle - EU reference prices'!$S40,'Steers R3 2005+'!$C$313:$AG$313,0)) -> 413.9182 | R40: =INDEX('Steers R3 2005+'!$C$10:$AG$1000,MATCH('Cattle - EU reference prices'!$R$10,'Steers R3 2005+'!$A$10:$A$1000,0),MATCH('Cattle - EU reference prices'!$S40,'Steers R3 2005+'!$C$313:$AG$313,0)) -> 367.3836 | S40: EU ave
C42: Cows O3 | H42: Heifers R3 | N42: Cows | Q42: Heifers
C43: €/100kg dw | D43: % change on week | E43: % change on year | F43: p/kg dw * | H43: €/100kg dw | I43: % change on week | J43: % change on year | K43: p/kg dw * | N43: =N10 -> 2021-06-13 | O43: =O10 -> 2020-06-21 | Q43: =N10 -> 2021-06-13 | R43: =O10 -> 2020-06-21
B44: Belgium | C44: =INDEX('Cow O3 2005+'!$C$10:$AG$1000,MATCH('Cattle - EU reference prices'!$D$7,'Cow O3 2005+'!$A$10:$A$1000,0),MATCH('Cattle - EU reference prices'!$S11,'Cow O3 2005+'!$C$6:$AG$6,0)) -> 287.31 | D44: =IF(C44="","",IF(N44="","",C44/N44*100-100)) -> 1.598359206 | E44: =IF(C44="","",IF(O44="","",C44/O44*100-100)) -> 16.19752487 | F44: =IF(C44="","",INDEX('Cows O3 2005+ £'!$D$322:$AG$1029,MATCH('Cattle - EU reference prices'!$D$7,'Cows O3 2005+ £'!$A$322:$A$1029,0),MATCH('Cattle - EU reference prices'!$S11,'Cows O3 2005+ £'!$D$315:$AG$315,0))) -> 246.5460468 | H44: =INDEX('Heifers R3 2005+'!$C$257:$AG$1000,MATCH('Cattle - EU reference prices'!$D$7,'Heifers R3 2005+'!$A$257:$A$1000,0),MATCH('Cattle - EU reference prices'!$S11,'Heifers R3 2005+'!$C$253:$AG$253,0)) -> 326.5 | I44: =IF(H44="","",IF(Q44="","",H44/Q44*100-100)) -> -1.508295626 | J44: =IF(H44="","",IF(R44="","",H44/R44*100-100)) -> 6.006493506 | K44: =IF(H44="","",INDEX('Heifers R3 2005 + £'!$D$257:$AG$1029,MATCH('Cattle - EU reference prices'!$D$7,'Heifers R3 2005 + £'!$A$257:$A$1029,0),MATCH('Cattle - EU reference prices'!$S11,'Heifers R3 2005 + £'!$D$252:$AG$252,0))) -> 280.1757136 | N44: =INDEX('Cow O3 2005+'!$C$10:$AG$1000,MATCH('Cattle - EU reference prices'!$N$10,'Cow O3 2005+'!$A$10:$A$1000,0),MATCH('Cattle - EU reference prices'!$S11,'Cow O3 2005+'!$C$6:$AG$6,0)) -> 282.79 | O44: =INDEX('Cow O3 2005+'!$C$10:$AG$1000,MATCH('Cattle - EU reference prices'!$O$10,'Cow O3 2005+'!$A$10:$A$1000,0),MATCH('Cattle - EU reference prices'!$S11,'Cow O3 2005+'!$C$6:$AG$6,0)) -> 247.26 | Q44: =INDEX('Heifers R3 2005+'!$C$257:$AG$1000,MATCH('Cattle - EU reference prices'!$Q$10,'Heifers R3 2005+'!$A$257:$A$1000,0),MATCH('Cattle - EU reference prices'!$S11,'Heifers R3 2005+'!$C$253:$AG$253,0)) -> 331.5 | R44: =INDEX('Heifers R3 2005+'!$C$257:$AG$1000,MATCH('Cattle - EU reference prices'!$R$10,'Heifers R3 2005+'!$A$257:$A$1000,0),MATCH('Cattle - EU reference prices'!$S11,'Heifers R3 2005+'!$C$253:$AG$253,0)) -> 308
B45: Bulgaria | C45: =INDEX('Cow O3 2005+'!$C$10:$AG$1000,MATCH('Cattle - EU reference prices'!$D$7,'Cow O3 2005+'!$A$10:$A$1000,0),MATCH('Cattle - EU reference prices'!$S12,'Cow O3 2005+'!$C$6:$AG$6,0)) -> 185.8728 | D45: =IF(C45="","",IF(N45="","",C45/N45*100-100)) -> -9.571894783 | E45: =IF(C45="","",IF(O45="","",C45/O45*100-100)) -> -19.80896295 | F45: =IF(C45="","",INDEX('Cows O3 2005+ £'!$D$322:$AG$1029,MATCH('Cattle - EU reference prices'!$D$7,'Cows O3 2005+ £'!$A$322:$A$1029,0),MATCH('Cattle - EU reference prices'!$S12,'Cows O3 2005+ £'!$D$315:$AG$315,0))) -> 159.5009016 | H45: =INDEX('Heifers R3 2005+'!$C$257:$AG$1000,MATCH('Cattle - EU reference prices'!$D$7,'Heifers R3 2005+'!$A$257:$A$1000,0),MATCH('Cattle - EU reference prices'!$S12,'Heifers R3 2005+'!$C$253:$AG$253,0)) ->  | J45: =IF(H45="","",IF(R45="","",H45/R45*100-100)) ->  | K45: =IF(H45="","",INDEX('Heifers R3 2005 + £'!$D$257:$AG$1029,MATCH('Cattle - EU reference prices'!$D$7,'Heifers R3 2005 + £'!$A$257:$A$1029,0),MATCH('Cattle - EU reference prices'!$S12,'Heifers R3 2005 + £'!$D$252:$AG$252,0))) ->  | N45: =INDEX('Cow O3 2005+'!$C$10:$AG$1000,MATCH('Cattle - EU reference prices'!$N$10,'Cow O3 2005+'!$A$10:$A$1000,0),MATCH('Cattle - EU reference prices'!$S12,'Cow O3 2005+'!$C$6:$AG$6,0)) -> 205.5476 | O45: =INDEX('Cow O3 2005+'!$C$10:$AG$1000,MATCH('Cattle - EU reference prices'!$O$10,'Cow O3 2005+'!$A$10:$A$1000,0),MATCH('Cattle - EU reference prices'!$S12,'Cow O3 2005+'!$C$6:$AG$6,0)) -> 231.7875 | Q45: =INDEX('Heifers R3 2005+'!$C$257:$AG$1000,MATCH('Cattle - EU reference prices'!$Q$10,'Heifers R3 2005+'!$A$257:$A$1000,0),MATCH('Cattle - EU reference prices'!$S12,'Heifers R3 2005+'!$C$253:$AG$253,0)) ->  | R45: =INDEX('Heifers R3 2005+'!$C$257:$AG$1000,MATCH('Cattle - EU reference prices'!$R$10,'Heifers R3 2005+'!$A$257:$A$1000,0),MATCH('Cattle - EU reference prices'!$S12,'Heifers R3 2005+'!$C$253:$AG$253,0)) -> 
B46: Czech Republic | C46: =INDEX('Cow O3 2005+'!$C$10:$AG$1000,MATCH('Cattle - EU reference prices'!$D$7,'Cow O3 2005+'!$A$10:$A$1000,0),MATCH('Cattle - EU reference prices'!$S13,'Cow O3 2005+'!$C$6:$AG$6,0)) -> 255.9994 | D46: 0.82400184 | E46: 21.07871932 | F46: =IF(C46="","",INDEX('Cows O3 2005+ £'!$D$322:$AG$1029,MATCH('Cattle - EU reference prices'!$D$7,'Cows O3 2005+ £'!$A$322:$A$1029,0),MATCH('Cattle - EU reference prices'!$S13,'Cows O3 2005+ £'!$D$315:$AG$315,0))) -> 219.6778394 | H46: =INDEX('Heifers R3 2005+'!$C$257:$AG$1000,MATCH('Cattle - EU reference prices'!$D$7,'Heifers R3 2005+'!$A$257:$A$1000,0),MATCH('Cattle - EU reference prices'!$S13,'Heifers R3 2005+'!$C$253:$AG$253,0)) -> 289.7765 | I46: -0.802714214 | J46: 12.38355452 | K46: =IF(H46="","",INDEX('Heifers R3 2005 + £'!$D$257:$AG$1029,MATCH('Cattle - EU reference prices'!$D$7,'Heifers R3 2005 + £'!$A$257:$A$1029,0),MATCH('Cattle - EU reference prices'!$S13,'Heifers R3 2005 + £'!$D$252:$AG$252,0))) -> 248.6625962 | N46: =INDEX('Cow O3 2005+'!$C$10:$AG$1000,MATCH('Cattle - EU reference prices'!$N$10,'Cow O3 2005+'!$A$10:$A$1000,0),MATCH('Cattle - EU reference prices'!$S13,'Cow O3 2005+'!$C$6:$AG$6,0)) -> 253.9072 | O46: =INDEX('Cow O3 2005+'!$C$10:$AG$1000,MATCH('Cattle - EU reference prices'!$O$10,'Cow O3 2005+'!$A$10:$A$1000,0),MATCH('Cattle - EU reference prices'!$S13,'Cow O3 2005+'!$C$6:$AG$6,0)) -> 211.4322 | Q46: =INDEX('Heifers R3 2005+'!$C$257:$AG$1000,MATCH('Cattle - EU reference prices'!$Q$10,'Heifers R3 2005+'!$A$257:$A$1000,0),MATCH('Cattle - EU reference prices'!$S13,'Heifers R3 2005+'!$C$253:$AG$253,0)) -> 292.1214 | R46: =INDEX('Heifers R3 2005+'!$C$257:$AG$1000,MATCH('Cattle - EU reference prices'!$R$10,'Heifers R3 2005+'!$A$257:$A$1000,0),MATCH('Cattle - EU reference prices'!$S13,'Heifers R3 2005+'!$C$253:$AG$253,0)) -> 257.846
B47: Denmark | C47: =INDEX('Cow O3 2005+'!$C$10:$AG$1000,MATCH('Cattle - EU reference prices'!$D$7,'Cow O3 2005+'!$A$10:$A$1000,0),MATCH('Cattle - EU reference prices'!$S14,'Cow O3 2005+'!$C$6:$AG$6,0)) -> 296.6495 | D47: 0.6398349864 | E47: 7.625906015 | F47: =IF(C47="","",INDEX('Cows O3 2005+ £'!$D$322:$AG$1029,MATCH('Cattle - EU reference prices'!$D$7,'Cows O3 2005+ £'!$A$322:$A$1029,0),MATCH('Cattle - EU reference prices'!$S14,'Cows O3 2005+ £'!$D$315:$AG$315,0))) -> 254.5604452 | H47: =INDEX('Heifers R3 2005+'!$C$257:$AG$1000,MATCH('Cattle - EU reference prices'!$D$7,'Heifers R3 2005+'!$A$257:$A$1000,0),MATCH('Cattle - EU reference prices'!$S14,'Heifers R3 2005+'!$C$253:$AG$253,0)) -> 334.4367 | I47: 1.802256207 | J47: 3.505204094 | K47: =IF(H47="","",INDEX('Heifers R3 2005 + £'!$D$257:$AG$1029,MATCH('Cattle - EU reference prices'!$D$7,'Heifers R3 2005 + £'!$A$257:$A$1029,0),MATCH('Cattle - EU reference prices'!$S14,'Heifers R3 2005 + £'!$D$252:$AG$252,0))) -> 286.9863432 | N47: =INDEX('Cow O3 2005+'!$C$10:$AG$1000,MATCH('Cattle - EU reference prices'!$N$10,'Cow O3 2005+'!$A$10:$A$1000,0),MATCH('Cattle - EU reference prices'!$S14,'Cow O3 2005+'!$C$6:$AG$6,0)) -> 294.7635 | O47: =INDEX('Cow O3 2005+'!$C$10:$AG$1000,MATCH('Cattle - EU reference prices'!$O$10,'Cow O3 2005+'!$A$10:$A$1000,0),MATCH('Cattle - EU reference prices'!$S14,'Cow O3 2005+'!$C$6:$AG$6,0)) -> 275.6302 | Q47: =INDEX('Heifers R3 2005+'!$C$257:$AG$1000,MATCH('Cattle - EU reference prices'!$Q$10,'Heifers R3 2005+'!$A$257:$A$1000,0),MATCH('Cattle - EU reference prices'!$S14,'Heifers R3 2005+'!$C$253:$AG$253,0)) -> 328.516 | R47: =INDEX('Heifers R3 2005+'!$C$257:$AG$1000,MATCH('Cattle - EU reference prices'!$R$10,'Heifers R3 2005+'!$A$257:$A$1000,0),MATCH('Cattle - EU reference prices'!$S14,'Heifers R3 2005+'!$C$253:$AG$253,0)) -> 323.111
B48: Germany | C48: =INDEX('Cow O3 2005+'!$C$10:$AG$1000,MATCH('Cattle - EU reference prices'!$D$7,'Cow O3 2005+'!$A$10:$A$1000,0),MATCH('Cattle - EU reference prices'!$S15,'Cow O3 2005+'!$C$6:$AG$6,0)) -> 344.98 | D48: 1.893256934 | E48: 25.33788694 | F48: =IF(C48="","",INDEX('Cows O3 2005+ £'!$D$322:$AG$1029,MATCH('Cattle - EU reference prices'!$D$7,'Cows O3 2005+ £'!$A$322:$A$1029,0),MATCH('Cattle - EU reference prices'!$S15,'Cows O3 2005+ £'!$D$315:$AG$315,0))) -> 296.0337448 | H48: =INDEX('Heifers R3 2005+'!$C$257:$AG$1000,MATCH('Cattle - EU reference prices'!$D$7,'Heifers R3 2005+'!$A$257:$A$1000,0),MATCH('Cattle - EU reference prices'!$S15,'Heifers R3 2005+'!$C$253:$AG$253,0)) -> 378.68 | I48: 0.4909375581 | J48: 14.74108414 | K48: =IF(H48="","",INDEX('Heifers R3 2005 + £'!$D$257:$AG$1029,MATCH('Cattle - EU reference prices'!$D$7,'Heifers R3 2005 + £'!$A$257:$A$1029,0),MATCH('Cattle - EU reference prices'!$S15,'Heifers R3 2005 + £'!$D$252:$AG$252,0))) -> 324.9523406 | N48: =INDEX('Cow O3 2005+'!$C$10:$AG$1000,MATCH('Cattle - EU reference prices'!$N$10,'Cow O3 2005+'!$A$10:$A$1000,0),MATCH('Cattle - EU reference prices'!$S15,'Cow O3 2005+'!$C$6:$AG$6,0)) -> 338.57 | O48: =INDEX('Cow O3 2005+'!$C$10:$AG$1000,MATCH('Cattle - EU reference prices'!$O$10,'Cow O3 2005+'!$A$10:$A$1000,0),MATCH('Cattle - EU reference prices'!$S15,'Cow O3 2005+'!$C$6:$AG$6,0)) -> 275.24 | Q48: =INDEX('Heifers R3 2005+'!$C$257:$AG$1000,MATCH('Cattle - EU reference prices'!$Q$10,'Heifers R3 2005+'!$A$257:$A$1000,0),MATCH('Cattle - EU reference prices'!$S15,'Heifers R3 2005+'!$C$253:$AG$253,0)) -> 376.83 | R48: =INDEX('Heifers R3 2005+'!$C$257:$AG$1000,MATCH('Cattle - EU reference prices'!$R$10,'Heifers R3 2005+'!$A$257:$A$1000,0),MATCH('Cattle - EU reference prices'!$S15,'Heifers R3 2005+'!$C$253:$AG$253,0)) -> 330.03
B49: Estonia | C49: =INDEX('Cow O3 2005+'!$C$10:$AG$1000,MATCH('Cattle - EU reference prices'!$D$7,'Cow O3 2005+'!$A$10:$A$1000,0),MATCH('Cattle - EU reference prices'!$S16,'Cow O3 2005+'!$C$6:$AG$6,0)) -> 269.96 | D49: 4.465598638 | E49: 13.21451038 | F49: =IF(C49="","",INDEX('Cows O3 2005+ £'!$D$322:$AG$1029,MATCH('Cattle - EU reference prices'!$D$7,'Cows O3 2005+ £'!$A$322:$A$1029,0),MATCH('Cattle - EU reference prices'!$S16,'Cows O3 2005+ £'!$D$315:$AG$315,0))) -> 231.6576895 | H49: =INDEX('Heifers R3 2005+'!$C$257:$AG$1000,MATCH('Cattle - EU reference prices'!$D$7,'Heifers R3 2005+'!$A$257:$A$1000,0),MATCH('Cattle - EU reference prices'!$S16,'Heifers R3 2005+'!$C$253:$AG$253,0)) ->  | I49: =IF(H49="na","na",IF(H49="","",IF(Q49="","",H49/Q49*100-100))) ->  | J49: =IF(H49="na","na",IF(H49="","",IF(R49="","",H49/R49*100-100))) ->  | K49: =IF(H49="na","na",IF(H49="","",INDEX('Heifers R3 2005 + £'!$D$257:$AG$1029,MATCH('Cattle - EU reference prices'!$D$7,'Heifers R3 2005 + £'!$A$257:$A$1029,0),MATCH('Cattle - EU reference prices'!$S16,'Heifers R3 2005 + £'!$D$252:$AG$252,0)))) ->  | N49: =INDEX('Cow O3 2005+'!$C$10:$AG$1000,MATCH('Cattle - EU reference prices'!$N$10,'Cow O3 2005+'!$A$10:$A$1000,0),MATCH('Cattle - EU reference prices'!$S16,'Cow O3 2005+'!$C$6:$AG$6,0)) -> 258.42 | O49: =INDEX('Cow O3 2005+'!$C$10:$AG$1000,MATCH('Cattle - EU reference prices'!$O$10,'Cow O3 2005+'!$A$10:$A$1000,0),MATCH('Cattle - EU reference prices'!$S16,'Cow O3 2005+'!$C$6:$AG$6,0)) -> 238.45 | Q49: =INDEX('Heifers R3 2005+'!$C$257:$AG$1000,MATCH('Cattle - EU reference prices'!$Q$10,'Heifers R3 2005+'!$A$257:$A$1000,0),MATCH('Cattle - EU reference prices'!$S16,'Heifers R3 2005+'!$C$253:$AG$253,0)) ->  | R49: =INDEX('Heifers R3 2005+'!$C$257:$AG$1000,MATCH('Cattle - EU reference prices'!$R$10,'Heifers R3 2005+'!$A$257:$A$1000,0),MATCH('Cattle - EU reference prices'!$S16,'Heifers R3 2005+'!$C$253:$AG$253,0)) -> 240.72
B50: Greece | C50: =INDEX('Cow O3 2005+'!$C$10:$AG$1000,MATCH('Cattle - EU reference prices'!$D$7,'Cow O3 2005+'!$A$10:$A$1000,0),MATCH('Cattle - EU reference prices'!$S17,'Cow O3 2005+'!$C$6:$AG$6,0)) -> 192 | D50: 0 | E50: -3.66281987 | F50: =IF(C50="","",INDEX('Cows O3 2005+ £'!$D$322:$AG$1029,MATCH('Cattle - EU reference prices'!$D$7,'Cows O3 2005+ £'!$A$322:$A$1029,0),MATCH('Cattle - EU reference prices'!$S17,'Cows O3 2005+ £'!$D$315:$AG$315,0))) -> 164.7587657 | H50: =INDEX('Heifers R3 2005+'!$C$257:$AG$1000,MATCH('Cattle - EU reference prices'!$D$7,'Heifers R3 2005+'!$A$257:$A$1000,0),MATCH('Cattle - EU reference prices'!$S17,'Heifers R3 2005+'!$C$253:$AG$253,0)) ->  | K50: =IF(H50="","",INDEX('Heifers R3 2005 + £'!$D$257:$AG$1029,MATCH('Cattle - EU reference prices'!$D$7,'Heifers R3 2005 + £'!$A$257:$A$1029,0),MATCH('Cattle - EU reference prices'!$S17,'Heifers R3 2005 + £'!$D$252:$AG$252,0))) ->  | N50: =INDEX('Cow O3 2005+'!$C$10:$AG$1000,MATCH('Cattle - EU reference prices'!$N$10,'Cow O3 2005+'!$A$10:$A$1000,0),MATCH('Cattle - EU reference prices'!$S17,'Cow O3 2005+'!$C$6:$AG$6,0)) -> 192 | O50: =INDEX('Cow O3 2005+'!$C$10:$AG$1000,MATCH('Cattle - EU reference prices'!$O$10,'Cow O3 2005+'!$A$10:$A$1000,0),MATCH('Cattle - EU reference prices'!$S17,'Cow O3 2005+'!$C$6:$AG$6,0)) -> 199.3 | Q50: =INDEX('Heifers R3 2005+'!$C$257:$AG$1000,MATCH('Cattle - EU reference prices'!$Q$10,'Heifers R3 2005+'!$A$257:$A$1000,0),MATCH('Cattle - EU reference prices'!$S17,'Heifers R3 2005+'!$C$253:$AG$253,0)) ->  | R50: =INDEX('Heifers R3 2005+'!$C$257:$AG$1000,MATCH('Cattle - EU reference prices'!$R$10,'Heifers R3 2005+'!$A$257:$A$1000,0),MATCH('Cattle - EU reference prices'!$S17,'Heifers R3 2005+'!$C$253:$AG$253,0)) -> 
B51: Spain | C51: =INDEX('Cow O3 2005+'!$C$10:$AG$1000,MATCH('Cattle - EU reference prices'!$D$7,'Cow O3 2005+'!$A$10:$A$1000,0),MATCH('Cattle - EU reference prices'!$S18,'Cow O3 2005+'!$C$6:$AG$6,0)) -> 264.12 | D51: 0.8245533669 | E51: 12.91039672 | F51: =IF(C51="","",INDEX('Cows O3 2005+ £'!$D$322:$AG$1029,MATCH('Cattle - EU reference prices'!$D$7,'Cows O3 2005+ £'!$A$322:$A$1029,0),MATCH('Cattle - EU reference prices'!$S18,'Cows O3 2005+ £'!$D$315:$AG$315,0))) -> 226.6462771 | H51: =INDEX('Heifers R3 2005+'!$C$257:$AG$1000,MATCH('Cattle - EU reference prices'!$D$7,'Heifers R3 2005+'!$A$257:$A$1000,0),MATCH('Cattle - EU reference prices'!$S18,'Heifers R3 2005+'!$C$253:$AG$253,0)) -> 373.38 | I51: 4.702616304 | J51: 8.088235294 | K51: =IF(H51="","",INDEX('Heifers R3 2005 + £'!$D$257:$AG$1029,MATCH('Cattle - EU reference prices'!$D$7,'Heifers R3 2005 + £'!$A$257:$A$1029,0),MATCH('Cattle - EU reference prices'!$S18,'Heifers R3 2005 + £'!$D$252:$AG$252,0))) -> 320.4043122 | N51: =INDEX('Cow O3 2005+'!$C$10:$AG$1000,MATCH('Cattle - EU reference prices'!$N$10,'Cow O3 2005+'!$A$10:$A$1000,0),MATCH('Cattle - EU reference prices'!$S18,'Cow O3 2005+'!$C$6:$AG$6,0)) -> 261.96 | O51: =INDEX('Cow O3 2005+'!$C$10:$AG$1000,MATCH('Cattle - EU reference prices'!$O$10,'Cow O3 2005+'!$A$10:$A$1000,0),MATCH('Cattle - EU reference prices'!$S18,'Cow O3 2005+'!$C$6:$AG$6,0)) -> 233.92 | Q51: =INDEX('Heifers R3 2005+'!$C$257:$AG$1000,MATCH('Cattle - EU reference prices'!$Q$10,'Heifers R3 2005+'!$A$257:$A$1000,0),MATCH('Cattle - EU reference prices'!$S18,'Heifers R3 2005+'!$C$253:$AG$253,0)) -> 356.61 | R51: =INDEX('Heifers R3 2005+'!$C$257:$AG$1000,MATCH('Cattle - EU reference prices'!$R$10,'Heifers R3 2005+'!$A$257:$A$1000,0),MATCH('Cattle - EU reference prices'!$S18,'Heifers R3 2005+'!$C$253:$AG$253,0)) -> 345.44
B52: France | C52: =INDEX('Cow O3 2005+'!$C$10:$AG$1000,MATCH('Cattle - EU reference prices'!$D$7,'Cow O3 2005+'!$A$10:$A$1000,0),MATCH('Cattle - EU reference prices'!$S19,'Cow O3 2005+'!$C$6:$AG$6,0)) -> 334 | D52: 0.6024096386 | E52: 7.395498392 | F52: =IF(C52="","",INDEX('Cows O3 2005+ £'!$D$322:$AG$1029,MATCH('Cattle - EU reference prices'!$D$7,'Cows O3 2005+ £'!$A$322:$A$1029,0),MATCH('Cattle - EU reference prices'!$S19,'Cows O3 2005+ £'!$D$315:$AG$315,0))) -> 286.6116029 | H52: =INDEX('Heifers R3 2005+'!$C$257:$AG$1000,MATCH('Cattle - EU reference prices'!$D$7,'Heifers R3 2005+'!$A$257:$A$1000,0),MATCH('Cattle - EU reference prices'!$S19,'Heifers R3 2005+'!$C$253:$AG$253,0)) -> 420 | I52: 0.2386634845 | J52: 3.194103194 | K52: =IF(H52="","",INDEX('Heifers R3 2005 + £'!$D$257:$AG$1029,MATCH('Cattle - EU reference prices'!$D$7,'Heifers R3 2005 + £'!$A$257:$A$1029,0),MATCH('Cattle - EU reference prices'!$S19,'Heifers R3 2005 + £'!$D$252:$AG$252,0))) -> 360.4098 | N52: =INDEX('Cow O3 2005+'!$C$10:$AG$1000,MATCH('Cattle - EU reference prices'!$N$10,'Cow O3 2005+'!$A$10:$A$1000,0),MATCH('Cattle - EU reference prices'!$S19,'Cow O3 2005+'!$C$6:$AG$6,0)) -> 332 | O52: =INDEX('Cow O3 2005+'!$C$10:$AG$1000,MATCH('Cattle - EU reference prices'!$O$10,'Cow O3 2005+'!$A$10:$A$1000,0),MATCH('Cattle - EU reference prices'!$S19,'Cow O3 2005+'!$C$6:$AG$6,0)) -> 311 | Q52: =INDEX('Heifers R3 2005+'!$C$257:$AG$1000,MATCH('Cattle - EU reference prices'!$Q$10,'Heifers R3 2005+'!$A$257:$A$1000,0),MATCH('Cattle - EU reference prices'!$S19,'Heifers R3 2005+'!$C$253:$AG$253,0)) -> 419 | R52: =INDEX('Heifers R3 2005+'!$C$257:$AG$1000,MATCH('Cattle - EU reference prices'!$R$10,'Heifers R3 2005+'!$A$257:$A$1000,0),MATCH('Cattle - EU reference prices'!$S19,'Heifers R3 2005+'!$C$253:$AG$253,0)) -> 407
B53: Irish Republic | C53: =INDEX('Cow O3 2005+'!$C$10:$AG$1000,MATCH('Cattle - EU reference prices'!$D$7,'Cow O3 2005+'!$A$10:$A$1000,0),MATCH('Cattle - EU reference prices'!$S20,'Cow O3 2005+'!$C$6:$AG$6,0)) -> 334.32 | D53: 1.352088765 | E53: 22.93888358 | F53: =IF(C53="","",INDEX('Cows O3 2005+ £'!$D$322:$AG$1029,MATCH('Cattle - EU reference prices'!$D$7,'Cows O3 2005+ £'!$A$322:$A$1029,0),MATCH('Cattle - EU reference prices'!$S20,'Cows O3 2005+ £'!$D$315:$AG$315,0))) -> 286.8862008 | H53: =INDEX('Heifers R3 2005+'!$C$257:$AG$1000,MATCH('Cattle - EU reference prices'!$D$7,'Heifers R3 2005+'!$A$257:$A$1000,0),MATCH('Cattle - EU reference prices'!$S20,'Heifers R3 2005+'!$C$253:$AG$253,0)) -> 419.63 | I53: 0.3851490359 | J53: 15.02700036 | K53: =IF(H53="","",INDEX('Heifers R3 2005 + £'!$D$257:$AG$1029,MATCH('Cattle - EU reference prices'!$D$7,'Heifers R3 2005 + £'!$A$257:$A$1029,0),MATCH('Cattle - EU reference prices'!$S20,'Heifers R3 2005 + £'!$D$252:$AG$252,0))) -> 360.0922961 | N53: =INDEX('Cow O3 2005+'!$C$10:$AG$1000,MATCH('Cattle - EU reference prices'!$N$10,'Cow O3 2005+'!$A$10:$A$1000,0),MATCH('Cattle - EU reference prices'!$S20,'Cow O3 2005+'!$C$6:$AG$6,0)) -> 329.86 | O53: =INDEX('Cow O3 2005+'!$C$10:$AG$1000,MATCH('Cattle - EU reference prices'!$O$10,'Cow O3 2005+'!$A$10:$A$1000,0),MATCH('Cattle - EU reference prices'!$S20,'Cow O3 2005+'!$C$6:$AG$6,0)) -> 271.94 | Q53: =INDEX('Heifers R3 2005+'!$C$257:$AG$1000,MATCH('Cattle - EU reference prices'!$Q$10,'Heifers R3 2005+'!$A$257:$A$1000,0),MATCH('Cattle - EU reference prices'!$S20,'Heifers R3 2005+'!$C$253:$AG$253,0)) -> 418.02 | R53: =INDEX('Heifers R3 2005+'!$C$257:$AG$1000,MATCH('Cattle - EU reference prices'!$R$10,'Heifers R3 2005+'!$A$257:$A$1000,0),MATCH('Cattle - EU reference prices'!$S20,'Heifers R3 2005+'!$C$253:$AG$253,0)) -> 364.81
B54: Croatia | C54: =INDEX('Cow O3 2005+'!$C$10:$AG$1000,MATCH('Cattle - EU reference prices'!$D$7,'Cow O3 2005+'!$A$10:$A$1000,0),MATCH('Cattle - EU reference prices'!$S21,'Cow O3 2005+'!$C$6:$AG$6,0)) -> 234.1838 | D54: =IF(C54="","",IF(N54="","",C54/N54*100-100)) ->  | F54: =IF(C54="","",INDEX('Cows O3 2005+ £'!$D$322:$AG$1029,MATCH('Cattle - EU reference prices'!$D$7,'Cows O3 2005+ £'!$A$322:$A$1029,0),MATCH('Cattle - EU reference prices'!$S21,'Cows O3 2005+ £'!$D$315:$AG$315,0))) -> 200.9574679 | H54: =INDEX('Heifers R3 2005+'!$C$257:$AG$1000,MATCH('Cattle - EU reference prices'!$D$7,'Heifers R3 2005+'!$A$257:$A$1000,0),MATCH('Cattle - EU reference prices'!$S21,'Heifers R3 2005+'!$C$253:$AG$253,0)) -> 390.5732 | I54: =IF(H54="","",IF(Q54="","",H54/Q54*100-100)) -> -5.532576687 | J54: 15.55926117 | K54: =IF(H54="","",INDEX('Heifers R3 2005 + £'!$D$257:$AG$1029,MATCH('Cattle - EU reference prices'!$D$7,'Heifers R3 2005 + £'!$A$257:$A$1029,0),MATCH('Cattle - EU reference prices'!$S21,'Heifers R3 2005 + £'!$D$252:$AG$252,0))) -> 335.1581164 | N54: =INDEX('Cow O3 2005+'!$C$10:$AG$1000,MATCH('Cattle - EU reference prices'!$N$10,'Cow O3 2005+'!$A$10:$A$1000,0),MATCH('Cattle - EU reference prices'!$S21,'Cow O3 2005+'!$C$6:$AG$6,0)) ->  | O54: =INDEX('Cow O3 2005+'!$C$10:$AG$1000,MATCH('Cattle - EU reference prices'!$O$10,'Cow O3 2005+'!$A$10:$A$1000,0),MATCH('Cattle - EU reference prices'!$S21,'Cow O3 2005+'!$C$6:$AG$6,0)) ->  | Q54: =INDEX('Heifers R3 2005+'!$C$257:$AG$1000,MATCH('Cattle - EU reference prices'!$Q$10,'Heifers R3 2005+'!$A$257:$A$1000,0),MATCH('Cattle - EU reference prices'!$S21,'Heifers R3 2005+'!$C$253:$AG$253,0)) -> 413.4475 | R54: =INDEX('Heifers R3 2005+'!$C$257:$AG$1000,MATCH('Cattle - EU reference prices'!$R$10,'Heifers R3 2005+'!$A$257:$A$1000,0),MATCH('Cattle - EU reference prices'!$S21,'Heifers R3 2005+'!$C$253:$AG$253,0)) -> 337.9852
B55: Italy | C55: =INDEX('Cow O3 2005+'!$C$10:$AG$1000,MATCH('Cattle - EU reference prices'!$D$7,'Cow O3 2005+'!$A$10:$A$1000,0),MATCH('Cattle - EU reference prices'!$S22,'Cow O3 2005+'!$C$6:$AG$6,0)) -> 306.5 | D55: =IF(C55="","",IF(N55="","",C55/N55*100-100)) -> 2.528935572 | E55: =IF(C55="","",IF(O55="","",C55/O55*100-100)) -> 16.20853081 | F55: =IF(C55="","",INDEX('Cows O3 2005+ £'!$D$322:$AG$1029,MATCH('Cattle - EU reference prices'!$D$7,'Cows O3 2005+ £'!$A$322:$A$1029,0),MATCH('Cattle - EU reference prices'!$S22,'Cows O3 2005+ £'!$D$315:$AG$315,0))) -> 263.0133421 | H55: =INDEX('Heifers R3 2005+'!$C$257:$AG$1000,MATCH('Cattle - EU reference prices'!$D$7,'Heifers R3 2005+'!$A$257:$A$1000,0),MATCH('Cattle - EU reference prices'!$S22,'Heifers R3 2005+'!$C$253:$AG$253,0)) -> 441.99 | I55: =IF(H55="","",IF(Q55="","",H55/Q55*100-100)) -> 9.74301676 | J55: =IF(H55="","",IF(R55="","",H55/R55*100-100)) -> 5.045631714 | K55: =IF(H55="","",INDEX('Heifers R3 2005 + £'!$D$257:$AG$1029,MATCH('Cattle - EU reference prices'!$D$7,'Heifers R3 2005 + £'!$A$257:$A$1029,0),MATCH('Cattle - EU reference prices'!$S22,'Heifers R3 2005 + £'!$D$252:$AG$252,0))) -> 379.2798274 | N55: =INDEX('Cow O3 2005+'!$C$10:$AG$1000,MATCH('Cattle - EU reference prices'!$N$10,'Cow O3 2005+'!$A$10:$A$1000,0),MATCH('Cattle - EU reference prices'!$S22,'Cow O3 2005+'!$C$6:$AG$6,0)) -> 298.94 | O55: =INDEX('Cow O3 2005+'!$C$10:$AG$1000,MATCH('Cattle - EU reference prices'!$O$10,'Cow O3 2005+'!$A$10:$A$1000,0),MATCH('Cattle - EU reference prices'!$S22,'Cow O3 2005+'!$C$6:$AG$6,0)) -> 263.75 | Q55: =INDEX('Heifers R3 2005+'!$C$257:$AG$1000,MATCH('Cattle - EU reference prices'!$Q$10,'Heifers R3 2005+'!$A$257:$A$1000,0),MATCH('Cattle - EU reference prices'!$S22,'Heifers R3 2005+'!$C$253:$AG$253,0)) -> 402.75 | R55: =INDEX('Heifers R3 2005+'!$C$257:$AG$1000,MATCH('Cattle - EU reference prices'!$R$10,'Heifers R3 2005+'!$A$257:$A$1000,0),MATCH('Cattle - EU reference prices'!$S22,'Heifers R3 2005+'!$C$253:$AG$253,0)) -> 420.76
B56: Cyprus | C56: =INDEX('Cow O3 2005+'!$C$10:$AG$1000,MATCH('Cattle - EU reference prices'!$D$7,'Cow O3 2005+'!$A$10:$A$1000,0),MATCH('Cattle - EU reference prices'!$S23,'Cow O3 2005+'!$C$6:$AG$6,0)) ->  | F56: =IF(C56="","",INDEX('Cows O3 2005+ £'!$D$322:$AG$1029,MATCH('Cattle - EU reference prices'!$D$7,'Cows O3 2005+ £'!$A$322:$A$1029,0),MATCH('Cattle - EU reference prices'!$S23,'Cows O3 2005+ £'!$D$315:$AG$315,0))) ->  | H56: =INDEX('Heifers R3 2005+'!$C$257:$AG$1000,MATCH('Cattle - EU reference prices'!$D$7,'Heifers R3 2005+'!$A$257:$A$1000,0),MATCH('Cattle - EU reference prices'!$S23,'Heifers R3 2005+'!$C$253:$AG$253,0)) ->  | K56: =IF(H56="","",INDEX('Heifers R3 2005 + £'!$D$257:$AG$1029,MATCH('Cattle - EU reference prices'!$D$7,'Heifers R3 2005 + £'!$A$257:$A$1029,0),MATCH('Cattle - EU reference prices'!$S23,'Heifers R3 2005 + £'!$D$252:$AG$252,0))) ->  | N56: =INDEX('Cow O3 2005+'!$C$10:$AG$1000,MATCH('Cattle - EU reference prices'!$N$10,'Cow O3 2005+'!$A$10:$A$1000,0),MATCH('Cattle - EU reference prices'!$S23,'Cow O3 2005+'!$C$6:$AG$6,0)) ->  | O56: =INDEX('Cow O3 2005+'!$C$10:$AG$1000,MATCH('Cattle - EU reference prices'!$O$10,'Cow O3 2005+'!$A$10:$A$1000,0),MATCH('Cattle - EU reference prices'!$S23,'Cow O3 2005+'!$C$6:$AG$6,0)) ->  | Q56: =INDEX('Heifers R3 2005+'!$C$257:$AG$1000,MATCH('Cattle - EU reference prices'!$Q$10,'Heifers R3 2005+'!$A$257:$A$1000,0),MATCH('Cattle - EU reference prices'!$S23,'Heifers R3 2005+'!$C$253:$AG$253,0)) ->  | R56: =INDEX('Heifers R3 2005+'!$C$257:$AG$1000,MATCH('Cattle - EU reference prices'!$R$10,'Heifers R3 2005+'!$A$257:$A$1000,0),MATCH('Cattle - EU reference prices'!$S23,'Heifers R3 2005+'!$C$253:$AG$253,0)) -> 
B57: Latvia | C57: =INDEX('Cow O3 2005+'!$C$10:$AG$1000,MATCH('Cattle - EU reference prices'!$D$7,'Cow O3 2005+'!$A$10:$A$1000,0),MATCH('Cattle - EU reference prices'!$S24,'Cow O3 2005+'!$C$6:$AG$6,0)) -> 250.89 | D57: -2.680372382 | E57: 7.942176139 | F57: =IF(C57="","",INDEX('Cows O3 2005+ £'!$D$322:$AG$1029,MATCH('Cattle - EU reference prices'!$D$7,'Cows O3 2005+ £'!$A$322:$A$1029,0),MATCH('Cattle - EU reference prices'!$S24,'Cows O3 2005+ £'!$D$315:$AG$315,0))) -> 215.2933684 | H57: =INDEX('Heifers R3 2005+'!$C$257:$AG$1000,MATCH('Cattle - EU reference prices'!$D$7,'Heifers R3 2005+'!$A$257:$A$1000,0),MATCH('Cattle - EU reference prices'!$S24,'Heifers R3 2005+'!$C$253:$AG$253,0)) -> 298.43 | I57: 26.13804472 | J57: 27.2785431 | K57: =IF(H57="","",INDEX('Heifers R3 2005 + £'!$D$257:$AG$1029,MATCH('Cattle - EU reference prices'!$D$7,'Heifers R3 2005 + £'!$A$257:$A$1029,0),MATCH('Cattle - EU reference prices'!$S24,'Heifers R3 2005 + £'!$D$252:$AG$252,0))) -> 256.0883253 | N57: =INDEX('Cow O3 2005+'!$C$10:$AG$1000,MATCH('Cattle - EU reference prices'!$N$10,'Cow O3 2005+'!$A$10:$A$1000,0),MATCH('Cattle - EU reference prices'!$S24,'Cow O3 2005+'!$C$6:$AG$6,0)) -> 257.8 | O57: =INDEX('Cow O3 2005+'!$C$10:$AG$1000,MATCH('Cattle - EU reference prices'!$O$10,'Cow O3 2005+'!$A$10:$A$1000,0),MATCH('Cattle - EU reference prices'!$S24,'Cow O3 2005+'!$C$6:$AG$6,0)) -> 232.43 | Q57: =INDEX('Heifers R3 2005+'!$C$257:$AG$1000,MATCH('Cattle - EU reference prices'!$Q$10,'Heifers R3 2005+'!$A$257:$A$1000,0),MATCH('Cattle - EU reference prices'!$S24,'Heifers R3 2005+'!$C$253:$AG$253,0)) -> 236.59 | R57: =INDEX('Heifers R3 2005+'!$C$257:$AG$1000,MATCH('Cattle - EU reference prices'!$R$10,'Heifers R3 2005+'!$A$257:$A$1000,0),MATCH('Cattle - EU reference prices'!$S24,'Heifers R3 2005+'!$C$253:$AG$253,0)) -> 234.47
B58: Lithuania | C58: =INDEX('Cow O3 2005+'!$C$10:$AG$1000,MATCH('Cattle - EU reference prices'!$D$7,'Cow O3 2005+'!$A$10:$A$1000,0),MATCH('Cattle - EU reference prices'!$S25,'Cow O3 2005+'!$C$6:$AG$6,0)) -> 281.01 | D58: -1.12244898 | E58: 16.08625604 | F58: =IF(C58="","",INDEX('Cows O3 2005+ £'!$D$322:$AG$1029,MATCH('Cattle - EU reference prices'!$D$7,'Cows O3 2005+ £'!$A$322:$A$1029,0),MATCH('Cattle - EU reference prices'!$S25,'Cows O3 2005+ £'!$D$315:$AG$315,0))) -> 241.1398998 | H58: =INDEX('Heifers R3 2005+'!$C$257:$AG$1000,MATCH('Cattle - EU reference prices'!$D$7,'Heifers R3 2005+'!$A$257:$A$1000,0),MATCH('Cattle - EU reference prices'!$S25,'Heifers R3 2005+'!$C$253:$AG$253,0)) -> 268.77 | I58: -0.08921601427 | J58: 17.01933124 | K58: =IF(H58="","",INDEX('Heifers R3 2005 + £'!$D$257:$AG$1029,MATCH('Cattle - EU reference prices'!$D$7,'Heifers R3 2005 + £'!$A$257:$A$1029,0),MATCH('Cattle - EU reference prices'!$S25,'Heifers R3 2005 + £'!$D$252:$AG$252,0))) -> 230.6365284 | N58: =INDEX('Cow O3 2005+'!$C$10:$AG$1000,MATCH('Cattle - EU reference prices'!$N$10,'Cow O3 2005+'!$A$10:$A$1000,0),MATCH('Cattle - EU reference prices'!$S25,'Cow O3 2005+'!$C$6:$AG$6,0)) -> 284.2 | O58: =INDEX('Cow O3 2005+'!$C$10:$AG$1000,MATCH('Cattle - EU reference prices'!$O$10,'Cow O3 2005+'!$A$10:$A$1000,0),MATCH('Cattle - EU reference prices'!$S25,'Cow O3 2005+'!$C$6:$AG$6,0)) -> 242.07 | Q58: =INDEX('Heifers R3 2005+'!$C$257:$AG$1000,MATCH('Cattle - EU reference prices'!$Q$10,'Heifers R3 2005+'!$A$257:$A$1000,0),MATCH('Cattle - EU reference prices'!$S25,'Heifers R3 2005+'!$C$253:$AG$253,0)) -> 269.01 | R58: =INDEX('Heifers R3 2005+'!$C$257:$AG$1000,MATCH('Cattle - EU reference prices'!$R$10,'Heifers R3 2005+'!$A$257:$A$1000,0),MATCH('Cattle - EU reference prices'!$S25,'Heifers R3 2005+'!$C$253:$AG$253,0)) -> 229.68
B59: Luxembourg | C59: =INDEX('Cow O3 2005+'!$C$10:$AG$1000,MATCH('Cattle - EU reference prices'!$D$7,'Cow O3 2005+'!$A$10:$A$1000,0),MATCH('Cattle - EU reference prices'!$S26,'Cow O3 2005+'!$C$6:$AG$6,0)) -> 320.52 | D59: 4.342730647 | E59: 20.0224677 | F59: =IF(C59="","",INDEX('Cows O3 2005+ £'!$D$322:$AG$1029,MATCH('Cattle - EU reference prices'!$D$7,'Cows O3 2005+ £'!$A$322:$A$1029,0),MATCH('Cattle - EU reference prices'!$S26,'Cows O3 2005+ £'!$D$315:$AG$315,0))) -> 275.0441645 | H59: =INDEX('Heifers R3 2005+'!$C$257:$AG$1000,MATCH('Cattle - EU reference prices'!$D$7,'Heifers R3 2005+'!$A$257:$A$1000,0),MATCH('Cattle - EU reference prices'!$S26,'Heifers R3 2005+'!$C$253:$AG$253,0)) -> 412.38 | I59: 0.5853944095 | J59: 4.779327693 | K59: =IF(H59="","",INDEX('Heifers R3 2005 + £'!$D$257:$AG$1029,MATCH('Cattle - EU reference prices'!$D$7,'Heifers R3 2005 + £'!$A$257:$A$1029,0),MATCH('Cattle - EU reference prices'!$S26,'Heifers R3 2005 + £'!$D$252:$AG$252,0))) -> 353.8709365 | N59: =INDEX('Cow O3 2005+'!$C$10:$AG$1000,MATCH('Cattle - EU reference prices'!$N$10,'Cow O3 2005+'!$A$10:$A$1000,0),MATCH('Cattle - EU reference prices'!$S26,'Cow O3 2005+'!$C$6:$AG$6,0)) -> 307.18 | O59: =INDEX('Cow O3 2005+'!$C$10:$AG$1000,MATCH('Cattle - EU reference prices'!$O$10,'Cow O3 2005+'!$A$10:$A$1000,0),MATCH('Cattle - EU reference prices'!$S26,'Cow O3 2005+'!$C$6:$AG$6,0)) -> 267.05 | Q59: =INDEX('Heifers R3 2005+'!$C$257:$AG$1000,MATCH('Cattle - EU reference prices'!$Q$10,'Heifers R3 2005+'!$A$257:$A$1000,0),MATCH('Cattle - EU reference prices'!$S26,'Heifers R3 2005+'!$C$253:$AG$253,0)) -> 409.98 | R59: =INDEX('Heifers R3 2005+'!$C$257:$AG$1000,MATCH('Cattle - EU reference prices'!$R$10,'Heifers R3 2005+'!$A$257:$A$1000,0),MATCH('Cattle - EU reference prices'!$S26,'Heifers R3 2005+'!$C$253:$AG$253,0)) -> 393.57
B60: Hungary | C60: =INDEX('Cow O3 2005+'!$C$10:$AG$1000,MATCH('Cattle - EU reference prices'!$D$7,'Cow O3 2005+'!$A$10:$A$1000,0),MATCH('Cattle - EU reference prices'!$S27,'Cow O3 2005+'!$C$6:$AG$6,0)) -> 209.6069 | D60: 4.143233968 | E60: 12.37186357 | F60: =IF(C60="","",INDEX('Cows O3 2005+ £'!$D$322:$AG$1029,MATCH('Cattle - EU reference prices'!$D$7,'Cows O3 2005+ £'!$A$322:$A$1029,0),MATCH('Cattle - EU reference prices'!$S27,'Cows O3 2005+ £'!$D$315:$AG$315,0))) -> 179.8675736 | H60: =INDEX('Heifers R3 2005+'!$C$257:$AG$1000,MATCH('Cattle - EU reference prices'!$D$7,'Heifers R3 2005+'!$A$257:$A$1000,0),MATCH('Cattle - EU reference prices'!$S27,'Heifers R3 2005+'!$C$253:$AG$253,0)) -> 198.8978 | I60: 0.2124689068 | J60: 3.386692338 | K60: =IF(H60="","",INDEX('Heifers R3 2005 + £'!$D$257:$AG$1029,MATCH('Cattle - EU reference prices'!$D$7,'Heifers R3 2005 + £'!$A$257:$A$1029,0),MATCH('Cattle - EU reference prices'!$S27,'Heifers R3 2005 + £'!$D$252:$AG$252,0))) -> 170.677896 | N60: =INDEX('Cow O3 2005+'!$C$10:$AG$1000,MATCH('Cattle - EU reference prices'!$N$10,'Cow O3 2005+'!$A$10:$A$1000,0),MATCH('Cattle - EU reference prices'!$S27,'Cow O3 2005+'!$C$6:$AG$6,0)) -> 201.2679 | O60: =INDEX('Cow O3 2005+'!$C$10:$AG$1000,MATCH('Cattle - EU reference prices'!$O$10,'Cow O3 2005+'!$A$10:$A$1000,0),MATCH('Cattle - EU reference prices'!$S27,'Cow O3 2005+'!$C$6:$AG$6,0)) -> 186.5297 | Q60: =INDEX('Heifers R3 2005+'!$C$257:$AG$1000,MATCH('Cattle - EU reference prices'!$Q$10,'Heifers R3 2005+'!$A$257:$A$1000,0),MATCH('Cattle - EU reference prices'!$S27,'Heifers R3 2005+'!$C$253:$AG$253,0)) -> 198.4761 | R60: =INDEX('Heifers R3 2005+'!$C$257:$AG$1000,MATCH('Cattle - EU reference prices'!$R$10,'Heifers R3 2005+'!$A$257:$A$1000,0),MATCH('Cattle - EU reference prices'!$S27,'Heifers R3 2005+'!$C$253:$AG$253,0)) -> 192.3824
B61: Malta | C61: =INDEX('Cow O3 2005+'!$C$10:$AG$1000,MATCH('Cattle - EU reference prices'!$D$7,'Cow O3 2005+'!$A$10:$A$1000,0),MATCH('Cattle - EU reference prices'!$S28,'Cow O3 2005+'!$C$6:$AG$6,0)) ->  | F61: =IF(C61="","",INDEX('Cows O3 2005+ £'!$D$322:$AG$1029,MATCH('Cattle - EU reference prices'!$D$7,'Cows O3 2005+ £'!$A$322:$A$1029,0),MATCH('Cattle - EU reference prices'!$S28,'Cows O3 2005+ £'!$D$315:$AG$315,0))) ->  | H61: =INDEX('Heifers R3 2005+'!$C$257:$AG$1000,MATCH('Cattle - EU reference prices'!$D$7,'Heifers R3 2005+'!$A$257:$A$1000,0),MATCH('Cattle - EU reference prices'!$S28,'Heifers R3 2005+'!$C$253:$AG$253,0)) ->  | K61: =IF(H61="","",INDEX('Heifers R3 2005 + £'!$D$257:$AG$1029,MATCH('Cattle - EU reference prices'!$D$7,'Heifers R3 2005 + £'!$A$257:$A$1029,0),MATCH('Cattle - EU reference prices'!$S28,'Heifers R3 2005 + £'!$D$252:$AG$252,0))) ->  | N61: =INDEX('Cow O3 2005+'!$C$10:$AG$1000,MATCH('Cattle - EU reference prices'!$N$10,'Cow O3 2005+'!$A$10:$A$1000,0),MATCH('Cattle - EU reference prices'!$S28,'Cow O3 2005+'!$C$6:$AG$6,0)) ->  | O61: =INDEX('Cow O3 2005+'!$C$10:$AG$1000,MATCH('Cattle - EU reference prices'!$O$10,'Cow O3 2005+'!$A$10:$A$1000,0),MATCH('Cattle - EU reference prices'!$S28,'Cow O3 2005+'!$C$6:$AG$6,0)) -> 222.84 | Q61: =INDEX('Heifers R3 2005+'!$C$257:$AG$1000,MATCH('Cattle - EU reference prices'!$Q$10,'Heifers R3 2005+'!$A$257:$A$1000,0),MATCH('Cattle - EU reference prices'!$S28,'Heifers R3 2005+'!$C$253:$AG$253,0)) ->  | R61: =INDEX('Heifers R3 2005+'!$C$257:$AG$1000,MATCH('Cattle - EU reference prices'!$R$10,'Heifers R3 2005+'!$A$257:$A$1000,0),MATCH('Cattle - EU reference prices'!$S28,'Heifers R3 2005+'!$C$253:$AG$253,0)) -> 
B62: Netherlands | C62: =INDEX('Cow O3 2005+'!$C$10:$AG$1000,MATCH('Cattle - EU reference prices'!$D$7,'Cow O3 2005+'!$A$10:$A$1000,0),MATCH('Cattle - EU reference prices'!$S29,'Cow O3 2005+'!$C$6:$AG$6,0)) -> 334 | D62: 1.829268293 | E62: 21.45454545 | F62: =IF(C62="","",INDEX('Cows O3 2005+ £'!$D$322:$AG$1029,MATCH('Cattle - EU reference prices'!$D$7,'Cows O3 2005+ £'!$A$322:$A$1029,0),MATCH('Cattle - EU reference prices'!$S29,'Cows O3 2005+ £'!$D$315:$AG$315,0))) -> 286.6116029 | H62: =INDEX('Heifers R3 2005+'!$C$257:$AG$1000,MATCH('Cattle - EU reference prices'!$D$7,'Heifers R3 2005+'!$A$257:$A$1000,0),MATCH('Cattle - EU reference prices'!$S29,'Heifers R3 2005+'!$C$253:$AG$253,0)) -> 395 | I62: 4.221635884 | J62: 30.79470199 | K62: =IF(H62="","",INDEX('Heifers R3 2005 + £'!$D$257:$AG$1029,MATCH('Cattle - EU reference prices'!$D$7,'Heifers R3 2005 + £'!$A$257:$A$1029,0),MATCH('Cattle - EU reference prices'!$S29,'Heifers R3 2005 + £'!$D$252:$AG$252,0))) -> 338.9568357 | N62: =INDEX('Cow O3 2005+'!$C$10:$AG$1000,MATCH('Cattle - EU reference prices'!$N$10,'Cow O3 2005+'!$A$10:$A$1000,0),MATCH('Cattle - EU reference prices'!$S29,'Cow O3 2005+'!$C$6:$AG$6,0)) -> 328 | O62: =INDEX('Cow O3 2005+'!$C$10:$AG$1000,MATCH('Cattle - EU reference prices'!$O$10,'Cow O3 2005+'!$A$10:$A$1000,0),MATCH('Cattle - EU reference prices'!$S29,'Cow O3 2005+'!$C$6:$AG$6,0)) -> 275 | Q62: =INDEX('Heifers R3 2005+'!$C$257:$AG$1000,MATCH('Cattle - EU reference prices'!$Q$10,'Heifers R3 2005+'!$A$257:$A$1000,0),MATCH('Cattle - EU reference prices'!$S29,'Heifers R3 2005+'!$C$253:$AG$253,0)) -> 379 | R62: =INDEX('Heifers R3 2005+'!$C$257:$AG$1000,MATCH('Cattle - EU reference prices'!$R$10,'Heifers R3 2005+'!$A$257:$A$1000,0),MATCH('Cattle - EU reference prices'!$S29,'Heifers R3 2005+'!$C$253:$AG$253,0)) -> 302
B63: Austria | C63: =INDEX('Cow O3 2005+'!$C$10:$AG$1000,MATCH('Cattle - EU reference prices'!$D$7,'Cow O3 2005+'!$A$10:$A$1000,0),MATCH('Cattle - EU reference prices'!$S30,'Cow O3 2005+'!$C$6:$AG$6,0)) -> 293.77 | D63: 1.125645439 | E63: 15.77142857 | F63: =IF(C63="","",INDEX('Cows O3 2005+ £'!$D$322:$AG$1029,MATCH('Cattle - EU reference prices'!$D$7,'Cows O3 2005+ £'!$A$322:$A$1029,0),MATCH('Cattle - EU reference prices'!$S30,'Cows O3 2005+ £'!$D$315:$AG$315,0))) -> 252.0894927 | H63: =INDEX('Heifers R3 2005+'!$C$257:$AG$1000,MATCH('Cattle - EU reference prices'!$D$7,'Heifers R3 2005+'!$A$257:$A$1000,0),MATCH('Cattle - EU reference prices'!$S30,'Heifers R3 2005+'!$C$253:$AG$253,0)) -> 374.5 | I63: 1.150605013 | J63: 10.93009479 | K63: =IF(H63="","",INDEX('Heifers R3 2005 + £'!$D$257:$AG$1029,MATCH('Cattle - EU reference prices'!$D$7,'Heifers R3 2005 + £'!$A$257:$A$1029,0),MATCH('Cattle - EU reference prices'!$S30,'Heifers R3 2005 + £'!$D$252:$AG$252,0))) -> 321.365405 | N63: =INDEX('Cow O3 2005+'!$C$10:$AG$1000,MATCH('Cattle - EU reference prices'!$N$10,'Cow O3 2005+'!$A$10:$A$1000,0),MATCH('Cattle - EU reference prices'!$S30,'Cow O3 2005+'!$C$6:$AG$6,0)) -> 290.5 | O63: =INDEX('Cow O3 2005+'!$C$10:$AG$1000,MATCH('Cattle - EU reference prices'!$O$10,'Cow O3 2005+'!$A$10:$A$1000,0),MATCH('Cattle - EU reference prices'!$S30,'Cow O3 2005+'!$C$6:$AG$6,0)) -> 253.75 | Q63: =INDEX('Heifers R3 2005+'!$C$257:$AG$1000,MATCH('Cattle - EU reference prices'!$Q$10,'Heifers R3 2005+'!$A$257:$A$1000,0),MATCH('Cattle - EU reference prices'!$S30,'Heifers R3 2005+'!$C$253:$AG$253,0)) -> 370.24 | R63: =INDEX('Heifers R3 2005+'!$C$257:$AG$1000,MATCH('Cattle - EU reference prices'!$R$10,'Heifers R3 2005+'!$A$257:$A$1000,0),MATCH('Cattle - EU reference prices'!$S30,'Heifers R3 2005+'!$C$253:$AG$253,0)) -> 337.6
B64: Poland | C64: =INDEX('Cow O3 2005+'!$C$10:$AG$1000,MATCH('Cattle - EU reference prices'!$D$7,'Cow O3 2005+'!$A$10:$A$1000,0),MATCH('Cattle - EU reference prices'!$S31,'Cow O3 2005+'!$C$6:$AG$6,0)) -> 286.3171 | D64: -0.7327241745 | E64: 19.54036282 | F64: =IF(C64="","",INDEX('Cows O3 2005+ £'!$D$322:$AG$1029,MATCH('Cattle - EU reference prices'!$D$7,'Cows O3 2005+ £'!$A$322:$A$1029,0),MATCH('Cattle - EU reference prices'!$S31,'Cows O3 2005+ £'!$D$315:$AG$315,0))) -> 245.6940208 | H64: =INDEX('Heifers R3 2005+'!$C$257:$AG$1000,MATCH('Cattle - EU reference prices'!$D$7,'Heifers R3 2005+'!$A$257:$A$1000,0),MATCH('Cattle - EU reference prices'!$S31,'Heifers R3 2005+'!$C$253:$AG$253,0)) -> 334.7368 | I64: -1.969617144 | J64: 13.01459541 | K64: =IF(H64="","",INDEX('Heifers R3 2005 + £'!$D$257:$AG$1029,MATCH('Cattle - EU reference prices'!$D$7,'Heifers R3 2005 + £'!$A$257:$A$1029,0),MATCH('Cattle - EU reference prices'!$S31,'Heifers R3 2005 + £'!$D$252:$AG$252,0))) -> 287.2438646 | N64: =INDEX('Cow O3 2005+'!$C$10:$AG$1000,MATCH('Cattle - EU reference prices'!$N$10,'Cow O3 2005+'!$A$10:$A$1000,0),MATCH('Cattle - EU reference prices'!$S31,'Cow O3 2005+'!$C$6:$AG$6,0)) -> 288.4305 | O64: =INDEX('Cow O3 2005+'!$C$10:$AG$1000,MATCH('Cattle - EU reference prices'!$O$10,'Cow O3 2005+'!$A$10:$A$1000,0),MATCH('Cattle - EU reference prices'!$S31,'Cow O3 2005+'!$C$6:$AG$6,0)) -> 239.515 | Q64: =INDEX('Heifers R3 2005+'!$C$257:$AG$1000,MATCH('Cattle - EU reference prices'!$Q$10,'Heifers R3 2005+'!$A$257:$A$1000,0),MATCH('Cattle - EU reference prices'!$S31,'Heifers R3 2005+'!$C$253:$AG$253,0)) -> 341.4623 | R64: =INDEX('Heifers R3 2005+'!$C$257:$AG$1000,MATCH('Cattle - EU reference prices'!$R$10,'Heifers R3 2005+'!$A$257:$A$1000,0),MATCH('Cattle - EU reference prices'!$S31,'Heifers R3 2005+'!$C$253:$AG$253,0)) -> 296.189
B65: Portugal | C65: =INDEX('Cow O3 2005+'!$C$10:$AG$1000,MATCH('Cattle - EU reference prices'!$D$7,'Cow O3 2005+'!$A$10:$A$1000,0),MATCH('Cattle - EU reference prices'!$S32,'Cow O3 2005+'!$C$6:$AG$6,0)) -> 217.76 | D65: -1.256064934 | E65: 10.56613354 | F65: =IF(C65="","",INDEX('Cows O3 2005+ £'!$D$322:$AG$1029,MATCH('Cattle - EU reference prices'!$D$7,'Cows O3 2005+ £'!$A$322:$A$1029,0),MATCH('Cattle - EU reference prices'!$S32,'Cows O3 2005+ £'!$D$315:$AG$315,0))) -> 186.8639001 | H65: =INDEX('Heifers R3 2005+'!$C$257:$AG$1000,MATCH('Cattle - EU reference prices'!$D$7,'Heifers R3 2005+'!$A$257:$A$1000,0),MATCH('Cattle - EU reference prices'!$S32,'Heifers R3 2005+'!$C$253:$AG$253,0)) -> 375.66 | I65: -1.741996234 | J65: 0.6510730649 | K65: =IF(H65="","",INDEX('Heifers R3 2005 + £'!$D$257:$AG$1029,MATCH('Cattle - EU reference prices'!$D$7,'Heifers R3 2005 + £'!$A$257:$A$1029,0),MATCH('Cattle - EU reference prices'!$S32,'Heifers R3 2005 + £'!$D$252:$AG$252,0))) -> 322.3608225 | N65: =INDEX('Cow O3 2005+'!$C$10:$AG$1000,MATCH('Cattle - EU reference prices'!$N$10,'Cow O3 2005+'!$A$10:$A$1000,0),MATCH('Cattle - EU reference prices'!$S32,'Cow O3 2005+'!$C$6:$AG$6,0)) -> 220.53 | O65: =INDEX('Cow O3 2005+'!$C$10:$AG$1000,MATCH('Cattle - EU reference prices'!$O$10,'Cow O3 2005+'!$A$10:$A$1000,0),MATCH('Cattle - EU reference prices'!$S32,'Cow O3 2005+'!$C$6:$AG$6,0)) -> 196.95 | Q65: =INDEX('Heifers R3 2005+'!$C$257:$AG$1000,MATCH('Cattle - EU reference prices'!$Q$10,'Heifers R3 2005+'!$A$257:$A$1000,0),MATCH('Cattle - EU reference prices'!$S32,'Heifers R3 2005+'!$C$253:$AG$253,0)) -> 382.32 | R65: =INDEX('Heifers R3 2005+'!$C$257:$AG$1000,MATCH('Cattle - EU reference prices'!$R$10,'Heifers R3 2005+'!$A$257:$A$1000,0),MATCH('Cattle - EU reference prices'!$S32,'Heifers R3 2005+'!$C$253:$AG$253,0)) -> 373.23
B66: Romania | C66: =INDEX('Cow O3 2005+'!$C$10:$AG$1000,MATCH('Cattle - EU reference prices'!$D$7,'Cow O3 2005+'!$A$10:$A$1000,0),MATCH('Cattle - EU reference prices'!$S33,'Cow O3 2005+'!$C$6:$AG$6,0)) -> 250.7606 | D66: -0.9652664425 | E66: 2.985868431 | F66: =IF(C66="","",INDEX('Cows O3 2005+ £'!$D$322:$AG$1029,MATCH('Cattle - EU reference prices'!$D$7,'Cows O3 2005+ £'!$A$322:$A$1029,0),MATCH('Cattle - EU reference prices'!$S33,'Cows O3 2005+ £'!$D$315:$AG$315,0))) -> 215.1823278 | H66: =INDEX('Heifers R3 2005+'!$C$257:$AG$1000,MATCH('Cattle - EU reference prices'!$D$7,'Heifers R3 2005+'!$A$257:$A$1000,0),MATCH('Cattle - EU reference prices'!$S33,'Heifers R3 2005+'!$C$253:$AG$253,0)) -> 276.3307 | I66: -7.04968169 | J66: -6.135884378 | K66: =IF(H66="","",INDEX('Heifers R3 2005 + £'!$D$257:$AG$1029,MATCH('Cattle - EU reference prices'!$D$7,'Heifers R3 2005 + £'!$A$257:$A$1029,0),MATCH('Cattle - EU reference prices'!$S33,'Heifers R3 2005 + £'!$D$252:$AG$252,0))) -> 237.1245055 | N66: =INDEX('Cow O3 2005+'!$C$10:$AG$1000,MATCH('Cattle - EU reference prices'!$N$10,'Cow O3 2005+'!$A$10:$A$1000,0),MATCH('Cattle - EU reference prices'!$S33,'Cow O3 2005+'!$C$6:$AG$6,0)) -> 253.2047 | O66: =INDEX('Cow O3 2005+'!$C$10:$AG$1000,MATCH('Cattle - EU reference prices'!$O$10,'Cow O3 2005+'!$A$10:$A$1000,0),MATCH('Cattle - EU reference prices'!$S33,'Cow O3 2005+'!$C$6:$AG$6,0)) -> 243.4903 | Q66: =INDEX('Heifers R3 2005+'!$C$257:$AG$1000,MATCH('Cattle - EU reference prices'!$Q$10,'Heifers R3 2005+'!$A$257:$A$1000,0),MATCH('Cattle - EU reference prices'!$S33,'Heifers R3 2005+'!$C$253:$AG$253,0)) -> 297.2886 | R66: =INDEX('Heifers R3 2005+'!$C$257:$AG$1000,MATCH('Cattle - EU reference prices'!$R$10,'Heifers R3 2005+'!$A$257:$A$1000,0),MATCH('Cattle - EU reference prices'!$S33,'Heifers R3 2005+'!$C$253:$AG$253,0)) -> 294.3944
B67: Slovenia | C67: =INDEX('Cow O3 2005+'!$C$10:$AG$1000,MATCH('Cattle - EU reference prices'!$D$7,'Cow O3 2005+'!$A$10:$A$1000,0),MATCH('Cattle - EU reference prices'!$S34,'Cow O3 2005+'!$C$6:$AG$6,0)) -> 257.34 | D67: 4.350999554 | E67: 23.84023099 | F67: =IF(C67="","",INDEX('Cows O3 2005+ £'!$D$322:$AG$1029,MATCH('Cattle - EU reference prices'!$D$7,'Cows O3 2005+ £'!$A$322:$A$1029,0),MATCH('Cattle - EU reference prices'!$S34,'Cows O3 2005+ £'!$D$315:$AG$315,0))) -> 220.8282332 | H67: =INDEX('Heifers R3 2005+'!$C$257:$AG$1000,MATCH('Cattle - EU reference prices'!$D$7,'Heifers R3 2005+'!$A$257:$A$1000,0),MATCH('Cattle - EU reference prices'!$S34,'Heifers R3 2005+'!$C$253:$AG$253,0)) -> 322.11 | I67: -1.429096028 | J67: 6.62010526 | K67: =IF(H67="","",INDEX('Heifers R3 2005 + £'!$D$257:$AG$1029,MATCH('Cattle - EU reference prices'!$D$7,'Heifers R3 2005 + £'!$A$257:$A$1029,0),MATCH('Cattle - EU reference prices'!$S34,'Heifers R3 2005 + £'!$D$252:$AG$252,0))) -> 276.408573 | N67: =INDEX('Cow O3 2005+'!$C$10:$AG$1000,MATCH('Cattle - EU reference prices'!$N$10,'Cow O3 2005+'!$A$10:$A$1000,0),MATCH('Cattle - EU reference prices'!$S34,'Cow O3 2005+'!$C$6:$AG$6,0)) -> 246.61 | O67: =INDEX('Cow O3 2005+'!$C$10:$AG$1000,MATCH('Cattle - EU reference prices'!$O$10,'Cow O3 2005+'!$A$10:$A$1000,0),MATCH('Cattle - EU reference prices'!$S34,'Cow O3 2005+'!$C$6:$AG$6,0)) -> 207.8 | Q67: =INDEX('Heifers R3 2005+'!$C$257:$AG$1000,MATCH('Cattle - EU reference prices'!$Q$10,'Heifers R3 2005+'!$A$257:$A$1000,0),MATCH('Cattle - EU reference prices'!$S34,'Heifers R3 2005+'!$C$253:$AG$253,0)) -> 326.78 | R67: =INDEX('Heifers R3 2005+'!$C$257:$AG$1000,MATCH('Cattle - EU reference prices'!$R$10,'Heifers R3 2005+'!$A$257:$A$1000,0),MATCH('Cattle - EU reference prices'!$S34,'Heifers R3 2005+'!$C$253:$AG$253,0)) -> 302.11
B68: Slovakia | C68: =INDEX('Cow O3 2005+'!$C$10:$AG$1000,MATCH('Cattle - EU reference prices'!$D$7,'Cow O3 2005+'!$A$10:$A$1000,0),MATCH('Cattle - EU reference prices'!$S35,'Cow O3 2005+'!$C$6:$AG$6,0)) -> 179.54 | D68: 0.3297010338 | E68: -4.158436983 | F68: =IF(C68="","",INDEX('Cows O3 2005+ £'!$D$322:$AG$1029,MATCH('Cattle - EU reference prices'!$D$7,'Cows O3 2005+ £'!$A$322:$A$1029,0),MATCH('Cattle - EU reference prices'!$S35,'Cows O3 2005+ £'!$D$315:$AG$315,0))) -> 154.0666083 | H68: =INDEX('Heifers R3 2005+'!$C$257:$AG$1000,MATCH('Cattle - EU reference prices'!$D$7,'Heifers R3 2005+'!$A$257:$A$1000,0),MATCH('Cattle - EU reference prices'!$S35,'Heifers R3 2005+'!$C$253:$AG$253,0)) ->  | I68: =IF(H68="na","na",IF(H68="","",IF(Q68="","",H68/Q68*100-100))) ->  | J68: =IF(H68="na","na",IF(H68="","",IF(R68="","",H68/R68*100-100))) ->  | K68: =IF(H68="na","na",IF(H68="","",INDEX('Heifers R3 2005 + £'!$D$257:$AG$1029,MATCH('Cattle - EU reference prices'!$D$7,'Heifers R3 2005 + £'!$A$257:$A$1029,0),MATCH('Cattle - EU reference prices'!$S35,'Heifers R3 2005 + £'!$D$252:$AG$252,0)))) ->  | N68: =INDEX('Cow O3 2005+'!$C$10:$AG$1000,MATCH('Cattle - EU reference prices'!$N$10,'Cow O3 2005+'!$A$10:$A$1000,0),MATCH('Cattle - EU reference prices'!$S35,'Cow O3 2005+'!$C$6:$AG$6,0)) -> 178.95 | O68: =INDEX('Cow O3 2005+'!$C$10:$AG$1000,MATCH('Cattle - EU reference prices'!$O$10,'Cow O3 2005+'!$A$10:$A$1000,0),MATCH('Cattle - EU reference prices'!$S35,'Cow O3 2005+'!$C$6:$AG$6,0)) -> 187.33 | Q68: =INDEX('Heifers R3 2005+'!$C$257:$AG$1000,MATCH('Cattle - EU reference prices'!$Q$10,'Heifers R3 2005+'!$A$257:$A$1000,0),MATCH('Cattle - EU reference prices'!$S35,'Heifers R3 2005+'!$C$253:$AG$253,0)) ->  | R68: =INDEX('Heifers R3 2005+'!$C$257:$AG$1000,MATCH('Cattle - EU reference prices'!$R$10,'Heifers R3 2005+'!$A$257:$A$1000,0),MATCH('Cattle - EU reference prices'!$S35,'Heifers R3 2005+'!$C$253:$AG$253,0)) -> c
B69: Finland | C69: =INDEX('Cow O3 2005+'!$C$10:$AG$1000,MATCH('Cattle - EU reference prices'!$D$7,'Cow O3 2005+'!$A$10:$A$1000,0),MATCH('Cattle - EU reference prices'!$S36,'Cow O3 2005+'!$C$6:$AG$6,0)) -> 312.55 | D69: -0.06714413608 | E69: 2.616718104 | F69: =IF(C69="","",INDEX('Cows O3 2005+ £'!$D$322:$AG$1029,MATCH('Cattle - EU reference prices'!$D$7,'Cows O3 2005+ £'!$A$322:$A$1029,0),MATCH('Cattle - EU reference prices'!$S36,'Cows O3 2005+ £'!$D$315:$AG$315,0))) -> 268.2049595 | H69: =INDEX('Heifers R3 2005+'!$C$257:$AG$1000,MATCH('Cattle - EU reference prices'!$D$7,'Heifers R3 2005+'!$A$257:$A$1000,0),MATCH('Cattle - EU reference prices'!$S36,'Heifers R3 2005+'!$C$253:$AG$253,0)) -> 380.45 | I69: =IF(H69="c","",IF(Q69="","",H69/Q69*100-100)) -> 0.8375520157 | J69: =IF(H69="c","",IF(R69="","",H69/R69*100-100)) -> 0.594923321 | K69: =IF(H69="c","",INDEX('Heifers R3 2005 + £'!$D$257:$AG$1029,MATCH('Cattle - EU reference prices'!$D$7,'Heifers R3 2005 + £'!$A$257:$A$1029,0),MATCH('Cattle - EU reference prices'!$S36,'Heifers R3 2005 + £'!$D$252:$AG$252,0))) -> 326.4712105 | N69: =INDEX('Cow O3 2005+'!$C$10:$AG$1000,MATCH('Cattle - EU reference prices'!$N$10,'Cow O3 2005+'!$A$10:$A$1000,0),MATCH('Cattle - EU reference prices'!$S36,'Cow O3 2005+'!$C$6:$AG$6,0)) -> 312.76 | O69: =INDEX('Cow O3 2005+'!$C$10:$AG$1000,MATCH('Cattle - EU reference prices'!$O$10,'Cow O3 2005+'!$A$10:$A$1000,0),MATCH('Cattle - EU reference prices'!$S36,'Cow O3 2005+'!$C$6:$AG$6,0)) -> 304.58 | Q69: =INDEX('Heifers R3 2005+'!$C$257:$AG$1000,MATCH('Cattle - EU reference prices'!$Q$10,'Heifers R3 2005+'!$A$257:$A$1000,0),MATCH('Cattle - EU reference prices'!$S36,'Heifers R3 2005+'!$C$253:$AG$253,0)) -> 377.29 | R69: =INDEX('Heifers R3 2005+'!$C$257:$AG$1000,MATCH('Cattle - EU reference prices'!$R$10,'Heifers R3 2005+'!$A$257:$A$1000,0),MATCH('Cattle - EU reference prices'!$S36,'Heifers R3 2005+'!$C$253:$AG$253,0)) -> 378.2
B70: Sweden | C70: =INDEX('Cow O3 2005+'!$C$10:$AG$1000,MATCH('Cattle - EU reference prices'!$D$7,'Cow O3 2005+'!$A$10:$A$1000,0),MATCH('Cattle - EU reference prices'!$S37,'Cow O3 2005+'!$C$6:$AG$6,0)) -> 430.6673 | D70: -0.2037323904 | E70: 11.06525521 | F70: =IF(C70="","",INDEX('Cows O3 2005+ £'!$D$322:$AG$1029,MATCH('Cattle - EU reference prices'!$D$7,'Cows O3 2005+ £'!$A$322:$A$1029,0),MATCH('Cattle - EU reference prices'!$S37,'Cows O3 2005+ £'!$D$315:$AG$315,0))) -> 369.5636082 | H70: =INDEX('Heifers R3 2005+'!$C$257:$AG$1000,MATCH('Cattle - EU reference prices'!$D$7,'Heifers R3 2005+'!$A$257:$A$1000,0),MATCH('Cattle - EU reference prices'!$S37,'Heifers R3 2005+'!$C$253:$AG$253,0)) -> 466.1457 | I70: -1.563427504 | J70: 11.18100286 | K70: =IF(H70="","",INDEX('Heifers R3 2005 + £'!$D$257:$AG$1029,MATCH('Cattle - EU reference prices'!$D$7,'Heifers R3 2005 + £'!$A$257:$A$1029,0),MATCH('Cattle - EU reference prices'!$S37,'Heifers R3 2005 + £'!$D$252:$AG$252,0))) -> 400.0082822 | N70: =INDEX('Cow O3 2005+'!$C$10:$AG$1000,MATCH('Cattle - EU reference prices'!$N$10,'Cow O3 2005+'!$A$10:$A$1000,0),MATCH('Cattle - EU reference prices'!$S37,'Cow O3 2005+'!$C$6:$AG$6,0)) -> 431.5465 | O70: =INDEX('Cow O3 2005+'!$C$10:$AG$1000,MATCH('Cattle - EU reference prices'!$O$10,'Cow O3 2005+'!$A$10:$A$1000,0),MATCH('Cattle - EU reference prices'!$S37,'Cow O3 2005+'!$C$6:$AG$6,0)) -> 387.7606 | Q70: =INDEX('Heifers R3 2005+'!$C$257:$AG$1000,MATCH('Cattle - EU reference prices'!$Q$10,'Heifers R3 2005+'!$A$257:$A$1000,0),MATCH('Cattle - EU reference prices'!$S37,'Heifers R3 2005+'!$C$253:$AG$253,0)) -> 473.5493 | R70: =INDEX('Heifers R3 2005+'!$C$257:$AG$1000,MATCH('Cattle - EU reference prices'!$R$10,'Heifers R3 2005+'!$A$257:$A$1000,0),MATCH('Cattle - EU reference prices'!$S37,'Heifers R3 2005+'!$C$253:$AG$253,0)) -> 419.2674
B71: Great Britain | C71: =INDEX('Cow O3 2005+'!$C$10:$AG$1000,MATCH('Cattle - EU reference prices'!$D$7,'Cow O3 2005+'!$A$10:$A$1000,0),MATCH('Cattle - EU reference prices'!$S38,'Cow O3 2005+'!$C$6:$AG$6,0)) -> 354.9859077 | D71: =IF(C71="","",IF(N71="","",C71/N71*100-100)) -> 1.122043722 | E71: =IF(C71="","",IF(O71="","",C71/O71*100-100)) -> 14.19463582 | F71: =IF(C71="","",INDEX('Cows O3 2005+ £'!$D$322:$AG$1029,MATCH('Cattle - EU reference prices'!$D$7,'Cows O3 2005+ £'!$A$322:$A$1029,0),MATCH('Cattle - EU reference prices'!$S38,'Cows O3 2005+ £'!$D$315:$AG$315,0))) -> 304.62 | H71: =INDEX('Heifers R3 2005+'!$C$257:$AG$1000,MATCH('Cattle - EU reference prices'!$D$7,'Heifers R3 2005+'!$A$257:$A$1000,0),MATCH('Cattle - EU reference prices'!$S38,'Heifers R3 2005+'!$C$253:$AG$253,0)) -> 461.0202053 | I71: =IF(H71="","",IF(Q71="","",H71/Q71*100-100)) -> 0.8606542068 | J71: =IF(H71="","",IF(R71="","",H71/R71*100-100)) -> 13.43397978 | K71: =IF(H71="","",INDEX('Heifers R3 2005 + £'!$D$257:$AG$1029,MATCH('Cattle - EU reference prices'!$D$7,'Heifers R3 2005 + £'!$A$257:$A$1029,0),MATCH('Cattle - EU reference prices'!$S38,'Heifers R3 2005 + £'!$D$252:$AG$252,0))) -> 395.61 | N71: =INDEX('Cow O3 2005+'!$C$10:$AG$1000,MATCH('Cattle - EU reference prices'!$N$10,'Cow O3 2005+'!$A$10:$A$1000,0),MATCH('Cattle - EU reference prices'!$S38,'Cow O3 2005+'!$C$6:$AG$6,0)) -> 351.0470068 | O71: =INDEX('Cow O3 2005+'!$C$10:$AG$1000,MATCH('Cattle - EU reference prices'!$O$10,'Cow O3 2005+'!$A$10:$A$1000,0),MATCH('Cattle - EU reference prices'!$S38,'Cow O3 2005+'!$C$6:$AG$6,0)) -> 310.8604053 | Q71: =INDEX('Heifers R3 2005+'!$C$257:$AG$1000,MATCH('Cattle - EU reference prices'!$Q$10,'Heifers R3 2005+'!$A$257:$A$1000,0),MATCH('Cattle - EU reference prices'!$S38,'Heifers R3 2005+'!$C$253:$AG$253,0)) -> 457.0862731 | R71: =INDEX('Heifers R3 2005+'!$C$257:$AG$1000,MATCH('Cattle - EU reference prices'!$R$10,'Heifers R3 2005+'!$A$257:$A$1000,0),MATCH('Cattle - EU reference prices'!$S38,'Heifers R3 2005+'!$C$253:$AG$253,0)) -> 406.4216086
B72: United Kingdom | C72: =INDEX('Cow O3 2005+'!$C$10:$AG$1000,MATCH('Cattle - EU reference prices'!$D$7,'Cow O3 2005+'!$A$10:$A$1000,0),MATCH('Cattle - EU reference prices'!$S39,'Cow O3 2005+'!$C$6:$AG$6,0)) ->  | F72: =IF(C72="","",INDEX('Cows O3 2005+ £'!$D$322:$AG$1029,MATCH('Cattle - EU reference prices'!$D$7,'Cows O3 2005+ £'!$A$322:$A$1029,0),MATCH('Cattle - EU reference prices'!$S39,'Cows O3 2005+ £'!$D$315:$AG$315,0))) ->  | H72: =INDEX('Heifers R3 2005+'!$C$257:$AG$1000,MATCH('Cattle - EU reference prices'!$D$7,'Heifers R3 2005+'!$A$257:$A$1000,0),MATCH('Cattle - EU reference prices'!$S39,'Heifers R3 2005+'!$C$253:$AG$253,0)) ->  | K72: =IF(H72="","",INDEX('Heifers R3 2005 + £'!$D$257:$AG$1029,MATCH('Cattle - EU reference prices'!$D$7,'Heifers R3 2005 + £'!$A$257:$A$1029,0),MATCH('Cattle - EU reference prices'!$S39,'Heifers R3 2005 + £'!$D$252:$AG$252,0))) ->  | N72: =INDEX('Cow O3 2005+'!$C$10:$AG$1000,MATCH('Cattle - EU reference prices'!$N$10,'Cow O3 2005+'!$A$10:$A$1000,0),MATCH('Cattle - EU reference prices'!$S39,'Cow O3 2005+'!$C$6:$AG$6,0)) ->  | O72: =INDEX('Cow O3 2005+'!$C$10:$AG$1000,MATCH('Cattle - EU reference prices'!$O$10,'Cow O3 2005+'!$A$10:$A$1000,0),MATCH('Cattle - EU reference prices'!$S39,'Cow O3 2005+'!$C$6:$AG$6,0)) -> 311.6298 | Q72: =INDEX('Heifers R3 2005+'!$C$257:$AG$1000,MATCH('Cattle - EU reference prices'!$Q$10,'Heifers R3 2005+'!$A$257:$A$1000,0),MATCH('Cattle - EU reference prices'!$S39,'Heifers R3 2005+'!$C$253:$AG$253,0)) ->  | R72: =INDEX('Heifers R3 2005+'!$C$257:$AG$1000,MATCH('Cattle - EU reference prices'!$R$10,'Heifers R3 2005+'!$A$257:$A$1000,0),MATCH('Cattle - EU reference prices'!$S39,'Heifers R3 2005+'!$C$253:$AG$253,0)) -> 405.3979
B73: EU (ex UK) | C73: =INDEX('Cow O3 2005+'!$C$10:$AG$1000,MATCH('Cattle - EU reference prices'!$D$7,'Cow O3 2005+'!$A$10:$A$1000,0),MATCH('Cattle - EU reference prices'!$S40,'Cow O3 2005+'!$C$6:$AG$6,0)) -> 319.4612 | D73: 0.9271896436 | E73: 16.19390554 | F73: =IF(C73="","",INDEX('Cows O3 2005+ £'!$D$322:$AG$1029,MATCH('Cattle - EU reference prices'!$D$7,'Cows O3 2005+ £'!$A$322:$A$1029,0),MATCH('Cattle - EU reference prices'!$S40,'Cows O3 2005+ £'!$D$315:$AG$315,0))) -> 274.1355886 | H73: =INDEX('Heifers R3 2005+'!$C$257:$AG$1000,MATCH('Cattle - EU reference prices'!$D$7,'Heifers R3 2005+'!$A$257:$A$1000,0),MATCH('Cattle - EU reference prices'!$S40,'Heifers R3 2005+'!$C$253:$AG$253,0)) -> 395.403 | I73: 0.7768218127 | J73: 8.376740346 | K73: =IF(H73="","",INDEX('Heifers R3 2005 + £'!$D$257:$AG$1029,MATCH('Cattle - EU reference prices'!$D$7,'Heifers R3 2005 + £'!$A$257:$A$1029,0),MATCH('Cattle - EU reference prices'!$S40,'Heifers R3 2005 + £'!$D$252:$AG$252,0))) -> 339.3026575 | N73: =INDEX('Cow O3 2005+'!$C$10:$AG$1000,MATCH('Cattle - EU reference prices'!$N$10,'Cow O3 2005+'!$A$10:$A$1000,0),MATCH('Cattle - EU reference prices'!$S40,'Cow O3 2005+'!$C$6:$AG$6,0)) -> 316.5264 | O73: =INDEX('Cow O3 2005+'!$C$10:$AG$1000,MATCH('Cattle - EU reference prices'!$O$10,'Cow O3 2005+'!$A$10:$A$1000,0),MATCH('Cattle - EU reference prices'!$S40,'Cow O3 2005+'!$C$6:$AG$6,0)) -> 274.938 | Q73: =INDEX('Heifers R3 2005+'!$C$257:$AG$1000,MATCH('Cattle - EU reference prices'!$Q$10,'Heifers R3 2005+'!$A$257:$A$1000,0),MATCH('Cattle - EU reference prices'!$S40,'Heifers R3 2005+'!$C$253:$AG$253,0)) -> 392.3551 | R73: =INDEX('Heifers R3 2005+'!$C$257:$AG$1000,MATCH('Cattle - EU reference prices'!$R$10,'Heifers R3 2005+'!$A$257:$A$1000,0),MATCH('Cattle - EU reference prices'!$S40,'Heifers R3 2005+'!$C$253:$AG$253,0)) -> 364.8412
C75: Veal calves
C76: €/100kg dw | D76: % change on week | E76: % change on year | F76: p/kg dw * | N76: =D7-7 -> 2021-06-13 | O76: =D7-364 -> 2020-06-21
B77: Belgium | C77: =INDEX('Calf data'!$D$57:$I$1150,MATCH('Cattle - EU reference prices'!$D$7+4,'Calf data'!$B$57:$B$1150,0),MATCH('Cattle - EU reference prices'!$B77,'Calf data'!$D$4:$I$4,0)) -> 561 | D77: =IF(C77="","",IF(N77="","",C77/N77*100-100)) -> 0.9628363178 | E77: =IF(C77="","",IF(O77="","",C77/O77*100-100)) -> 10.1511879 | F77: =C77*D84 -> 481.4045186 | N77: =INDEX('Calf data'!$D$57:$I$1046,MATCH('Cattle - EU reference prices'!$D$7-3,'Calf data'!$B$57:$B$1046,0),MATCH('Cattle - EU reference prices'!$B77,'Calf data'!$D$4:$I$4,0)) -> 555.65 | O77: =INDEX('Calf data'!$D$57:$I$1046,MATCH('Cattle - EU reference prices'!$D$7-360,'Calf data'!$B$57:$B$1046,0),MATCH('Cattle - EU reference prices'!$B77,'Calf data'!$D$4:$I$4,0)) -> 509.3 | S77: Belgium
B78: France | C78: =INDEX('Calf data'!$D$57:$I$1150,MATCH('Cattle - EU reference prices'!$D$7+4,'Calf data'!$B$57:$B$1150,0),MATCH('Cattle - EU reference prices'!$B78,'Calf data'!$D$4:$I$4,0)) -> 546 | D78: =IF(C78="","",IF(N78="","",C78/N78*100-100)) -> -0.5464480874 | E78: =IF(C78="","",IF(O78="","",C78/O78*100-100)) -> 13.2780083 | F78: =C78*D84 -> 468.53274 | N78: =INDEX('Calf data'!$D$57:$I$1046,MATCH('Cattle - EU reference prices'!$D$7-3,'Calf data'!$B$57:$B$1046,0),MATCH('Cattle - EU reference prices'!$B78,'Calf data'!$D$4:$I$4,0)) -> 549 | O78: =INDEX('Calf data'!$D$57:$I$1046,MATCH('Cattle - EU reference prices'!$D$7-360,'Calf data'!$B$57:$B$1046,0),MATCH('Cattle - EU reference prices'!$B78,'Calf data'!$D$4:$I$4,0)) -> 482 | S78: France
B79: Italy | C79: =INDEX('Calf data'!$D$57:$I$1150,MATCH('Cattle - EU reference prices'!$D$7+4,'Calf data'!$B$57:$B$1150,0),MATCH('Cattle - EU reference prices'!$B79,'Calf data'!$D$4:$I$4,0)) -> 454.5 | D79: =IF(C79="","",IF(N79="","",C79/N79*100-100)) -> -1.302931596 | E79: =IF(C79="","",IF(O79="","",C79/O79*100-100)) -> 20.39735099 | F79: =C79*D84 -> 390.0148907 | N79: =INDEX('Calf data'!$D$57:$I$1046,MATCH('Cattle - EU reference prices'!$D$7-3,'Calf data'!$B$57:$B$1046,0),MATCH('Cattle - EU reference prices'!$B79,'Calf data'!$D$4:$I$4,0)) -> 460.5 | O79: =INDEX('Calf data'!$D$57:$I$1046,MATCH('Cattle - EU reference prices'!$D$7-360,'Calf data'!$B$57:$B$1046,0),MATCH('Cattle - EU reference prices'!$B79,'Calf data'!$D$4:$I$4,0)) -> 377.5 | S79: Italy
B80: Netherlands | C80: =INDEX('Calf data'!$D$57:$I$1150,MATCH('Cattle - EU reference prices'!$D$7+4,'Calf data'!$B$57:$B$1150,0),MATCH('Cattle - EU reference prices'!$B80,'Calf data'!$D$4:$I$4,0)) -> 471.63 | D80: =IF(C80="","",IF(N80="","",C80/N80*100-100)) -> 14.20995278 | E80: =IF(C80="","",IF(O80="","",C80/O80*100-100)) -> 37.92367305 | F80: =C80*D84 -> 404.7144618 | N80: =INDEX('Calf data'!$D$57:$I$1046,MATCH('Cattle - EU reference prices'!$D$7-3,'Calf data'!$B$57:$B$1046,0),MATCH('Cattle - EU reference prices'!$B80,'Calf data'!$D$4:$I$4,0)) -> 412.95 | O80: =INDEX('Calf data'!$D$57:$I$1046,MATCH('Cattle - EU reference prices'!$D$7-360,'Calf data'!$B$57:$B$1046,0),MATCH('Cattle - EU reference prices'!$B80,'Calf data'!$D$4:$I$4,0)) -> 341.95 | S80: Netherlands
B81: Germany | C81: =INDEX('Calf data'!$D$57:$I$1150,MATCH('Cattle - EU reference prices'!$D$7+4,'Calf data'!$B$57:$B$1150,0),MATCH('Cattle - EU reference prices'!$B81,'Calf data'!$D$4:$I$4,0)) -> 430 | D81: =IF(C81="","",IF(N81="","",C81/N81*100-100)) -> 0.4672897196 | E81: =IF(C81="","",IF(O81="","",C81/O81*100-100)) -> 30.69908815 | F81: =C81*D84 -> 368.9909857 | N81: =INDEX('Calf data'!$D$57:$I$1046,MATCH('Cattle - EU reference prices'!$D$7-3,'Calf data'!$B$57:$B$1046,0),MATCH('Cattle - EU reference prices'!$B81,'Calf data'!$D$4:$I$4,0)) -> 428 | O81: =INDEX('Calf data'!$D$57:$I$1046,MATCH('Cattle - EU reference prices'!$D$7-360,'Calf data'!$B$57:$B$1046,0),MATCH('Cattle - EU reference prices'!$B81,'Calf data'!$D$4:$I$4,0)) -> 329 | S81: Germany
B82: EU | C82: =INDEX('Calf data'!$D$57:$I$1150,MATCH('Cattle - EU reference prices'!$D$7+4,'Calf data'!$B$57:$B$1150,0),MATCH('Cattle - EU reference prices'!$B82,'Calf data'!$D$4:$I$4,0)) -> 475.4958791 | D82: =IF(C82="na","na",IF(C82="","",IF(N82="","",C82/N82*100-100))) -> 0.08729829714 | E82: =IF(C82="na","na",IF(C82="","",IF(O82="","",C82/O82*100-100))) -> 17.72418676 | F82: =IF(C82="na","na",C82*D84) -> 408.0318445 | N82: =INDEX('Calf data'!$D$57:$I$1046,MATCH('Cattle - EU reference prices'!$D$7-3,'Calf data'!$B$57:$B$1046,0),MATCH('Cattle - EU reference prices'!$B82,'Calf data'!$D$4:$I$4,0)) -> 475.0811413 | O82: =INDEX('Calf data'!$D$57:$I$1046,MATCH('Cattle - EU reference prices'!$D$7-360,'Calf data'!$B$57:$B$1046,0),MATCH('Cattle - EU reference prices'!$B82,'Calf data'!$D$4:$I$4,0)) -> 403.906701 | S82: EU
B84: *Converted at weekly rate of 1 € = | D84: =VLOOKUP(D7,'Young Bulls R3 2005+ £'!A10:C2000,3,FALSE) -> 0.8581185714

Sheet Disclaimer and notes
A2: Notes
A4: These prices are subject to retrospective changes.
A5: na = not available
A6: EU excludes UK with effect w/e 09/02/2020. Weekly price change shown is compared with EU price excluding the UK. Annual price change shown is compared to the EU price including the UK.
A8: With effect w/e 02/01/2021, UK prices are no longer being reported by the EU Commission. The GB cattle prices shown are reported by AHDB.
A10: Disclaimer
A12: While AHDB seeks to ensure that the information contained within this document is accurate at the time of printing, no warranty is given in respect of the information and data provided. You are responsible for how you use the information. To the maximum extent permitted by law, AHDB accepts no liability for loss, damage or injury howsoever caused or suffered (including that caused by negligence) directly or indirectly in relation to the information or data provided in this publication.
A18: All intellectual property rights in the information and data in this document belong to or are licensed by AHDB. You are authorised to use such information for your internal business purposes only and you must not provide this information to any other third parties, including further publication of the information, or for commercial gain in any way whatsoever without the prior written permission of AHDB for each third party disclosure, publication or commercial arrangement. For more information, please see our Terms of Use and Privacy Notice or contact the Director of Corporate Affairs at info@ahdb.org.uk
A24: © Agriculture and Horticulture Development Board 2021. All rights reserved.
A26: Contact us
A28: Head office address | B28: Agriculture and Horticulture Development Board Stoneleigh Park Kenilworth Warwickshire CV8 2TL
A31: Telephone | B31: 024 7669 2051
A32: Email | B32: mi@ahdb.org.uk
A33: Website | B33: ahdb.org.uk

Sheet Dates (hidden)
A1: 2021-06-20 | C1: < update this cell only
A2: =A1-7 -> 2021-06-13
A3: =A2-7 -> 2021-06-06
A4: 2021-05-30
A5: 2021-05-23
A6: 2021-05-16
A7: 2021-05-09
A8: 2021-05-02
A9: 2021-04-25
A10: 2021-04-18
A11: 2021-04-11
A12: 2021-04-04
A13: 2021-03-28
A14: 2021-03-21
A15: 2021-03-14
A16: 2021-03-07
A17: 2021-02-28
A18: 2021-02-21
A19: 2021-02-14
A20: 2021-02-07
A21: 2021-01-31
A22: 2021-01-24
A23: 2021-01-17
A24: 2021-01-10
A25: 2021-01-03
A26: 2020-12-27
A27: 2020-12-20
A28: 2020-12-13
A29: 2020-12-06
A30: 2020-11-29
A31: 2020-11-22
A32: 2020-11-15
A33: 2020-11-08
A34: 2020-11-01
A35: 2020-10-25
A36: 2020-10-18
A37: 2020-10-11
A38: 2020-10-04
A39: 2020-09-27
A40: 2020-09-20
A41: 2020-09-13
A42: 2020-09-06
A43: 2020-08-30
A44: 2020-08-23
A45: 2020-08-16
A46: 2020-08-09
A47: 2020-08-02
A48: 2020-07-26
A49: 2020-07-19
A50: 2020-07-12
A51: 2020-07-05
A52: 2020-06-28
A53: 2020-06-21
A54: 2020-06-14
A55: 2020-06-07
A56: 2020-05-31
A57: 2020-05-24
A58: 2020-05-17
A59: 2020-05-10
A60: 2020-05-03
A61: 2020-04-26
A62: 2020-04-19
A63: 2020-04-12
A64: 2020-04-05
A65: 2020-03-29
A66: 2020-03-22
A67: =A66-7 -> 2020-03-15
A68: 2020-03-08
A69: 2020-03-01
A70: 2020-02-23
A71: 2020-02-16
A72: 2020-02-09
A73: 2020-02-02
A74: 2020-01-26
A75: 2020-01-19
A76: 2020-01-12
A77: 2020-01-05
A78: 2019-12-29
A79: 2019-12-22
A80: 2019-12-15
A81: 2019-12-08
A82: 2019-12-01
A83: 2019-11-24
A84: 2019-11-17
A85: 2019-11-10
A86: 2019-11-03
A87: 2019-10-27
A88: 2019-10-20
A89: 2019-10-13
A90: 2019-10-06
A91: 2019-09-29
A92: 2019-09-22
A93: 2019-09-15
A94: 2019-09-08
A95: 2019-09-01
A96: 2019-08-25
A97: 2019-08-18
A98: 2019-08-11
A99: 2019-08-04
A100: 2019-07-28
A101: 2019-07-21
A102: 2019-07-14
A103: 2019-07-07
A104: 2019-06-30
A105: 2019-06-23
A106: 2019-06-16
A107: 2019-06-09
A108: 2019-06-02
A109: 2019-05-26
A110: 2019-05-19
A111: 2019-05-12
A112: 2019-05-05
A113: 2019-04-28
A114: 2019-04-21
A115: 2019-04-14
A116: 2019-04-07
A117: 2019-03-31
A118: 2019-03-24
A119: 2019-03-17
A120: 2019-03-10
A121: 2019-03-03
A122: 2019-02-24
A123: 2019-02-17
A124: 2019-02-10
A125: 2019-02-03
A126: 2019-01-27
A127: 2019-01-20
A128: 2019-01-13
A129: 2019-01-06
A130: 2018-12-30
A131: =A130-7 -> 2018-12-23
A132: 2018-12-16
A133: 2018-12-09
A134: 2018-12-02
A135: 2018-11-25
A136: 2018-11-18
A137: 2018-11-11
A138: 2018-11-04
A139: 2018-10-28
A140: 2018-10-21
A141: 2018-10-14
A142: 2018-10-07
A143: 2018-09-30
A144: 2018-09-23
A145: 2018-09-16
A146: 2018-09-09
A147: 2018-09-02
A148: 2018-08-26
A149: 2018-08-19
A150: 2018-08-12
A151: 2018-08-05
A152: 2018-07-29
A153: 2018-07-22
A154: 2018-07-15
A155: 2018-07-08
A156: 2018-07-01
A157: 2018-06-24
A158: 2018-06-17
A159: 2018-06-10
A160: 2018-06-03
A161: 2018-05-27
A162: 2018-05-20
A163: 2018-05-13
A164: 2018-05-06
A165: 2018-04-29
A166: 2018-04-22
A167: 2018-04-15
A168: 2018-04-08
A169: 2018-04-01
A170: 2018-03-25
A171: 2018-03-18
A172: 2018-03-11
A173: 2018-03-04
A174: 2018-02-25
A175: 2018-02-18
A176: 2018-02-11
A177: 2018-02-04
A178: 2018-01-28
A179: 2018-01-21
A180: 2018-01-14
A181: 2018-01-07
A182: 2017-12-31
A183: 2017-12-24
A184: 2017-12-17
A185: 2017-12-10
A186: 2017-12-03
A187: 2017-11-26
A188: 2017-11-19
A189: 2017-11-12
A190: 2017-11-05
A191: 2017-10-29
A192: 2017-10-22
A193: 2017-10-15
A194: 2017-10-08
A195: =A194-7 -> 2017-10-01
A196: 2017-09-24
A197: 2017-09-17
A198: 2017-09-10
A199: 2017-09-03
A200: 2017-08-27
... 62 more rows

Sheet Calf data (hidden)
B1: Veal calves slaughtered at about 6 months
B2: € per 100kg dw
B3: VEAUX de boucherie | I3: 2011
A4: W/e date | B4: Report date | D4: Belgium | E4: Germany | F4: France | G4: Italy | H4: Netherlands | I4: EU
B5: 2008-01-10 | C5: 1 | D5: 715.55 | F5: 675 | G5: 631 | H5: 556.9 | I5: 634
B6: =B5+7 -> 2008-01-17 | C6: 2 | D6: 715.55 | F6: 676.9 | G6: 602 | H6: 556.9 | I6: 627.84
B7: =B6+7 -> 2008-01-24 | C7: 3 | D7: 712.85 | F7: 677.3 | G7: 589 | H7: 556.9 | I7: 624.72
B8: =B7+7 -> 2008-01-31 | C8: 4 | D8: 710.6 | F8: 675.4 | G8: 558 | H8: 546.9 | I8: 613.56
B9: 2008-02-07 | C9: 5 | D9: 704.75 | F9: 672.8 | G9: 518 | H9: 541.9 | I9: 601.11
B10: 2008-02-14 | C10: 6 | D10: 694.55 | F10: 667.7 | G10: 503 | H10: 526.9 | I10: 590.55
B11: 2008-02-21 | C11: 7 | D11: 690.65 | F11: 661.8 | G11: 485 | H11: 521.9 | I11: 582.13
B12: 2008-02-28 | C12: 8 | D12: 686.15 | F12: 656.5 | G12: 469 | H12: 516.9 | I12: 574.39
B13: 2008-03-06 | C13: 9 | D13: 680.9 | F13: 650.6 | G13: 484 | H13: 516.9 | I13: 575.19
B14: 2008-03-13 | C14: 10 | D14: 680.9 | F14: 647.2 | G14: 498 | H14: 506.9 | I14: 574.34
B15: 2008-03-20 | C15: 11 | D15: 672.5 | F15: 642.6 | G15: 485 | H15: 501.9 | I15: 567.38
B16: 2008-03-27 | C16: 12 | D16: 672.5 | F16: 642.6 | G16: 485 | H16: 501.9 | I16: 567.38
B17: 2008-04-03 | C17: 13 | D17: 661.25 | F17: 642.6 | G17: 490 | H17: 471.9 | I17: 559.51
B18: 2008-04-10 | C18: 14 | D18: 645.05 | F18: 609.8 | G18: 460 | H18: 451.9 | I18: 531.98
B19: 2008-04-17 | C19: 15 | D19: 628.7 | F19: 597.8 | G19: 446 | H19: 436.9 | I19: 518.39
B20: 2008-04-24 | C20: 16 | D20: 612.95 | F20: 589.9 | G20: 440 | H20: 421.9 | I20: 508.48
B21: 2008-05-01 | C21: 17 | D21: 598.55 | F21: 580.6 | G21: 432 | H21: 406.9 | I21: 497.59
B22: 2008-05-08 | C22: 18 | D22: 598.55 | F22: 571.3 | G22: 427 | H22: 396.9 | I22: 489.7
B23: 2008-05-15 | C23: 19 | D23: 594.35 | F23: 561.2 | G23: 419 | H23: 396.9 | I23: 483.29
B24: 2008-05-22 | C24: 20 | D24: 595.1 | F24: 553.9 | G24: 425 | H24: 396.9 | I24: 481.72
B25: 2008-05-29 | C25: 21 | D25: 595.1 | F25: 550.5 | G25: 445 | H25: 391.9 | I25: 483.7
B26: 2008-06-05 | C26: 22 | D26: 595.1 | F26: 543.9 | G26: 439 | H26: 386.9 | I26: 478.1
B27: 2008-06-12 | C27: 23 | D27: 589.1 | F27: 541 | G27: 444 | H27: 376.9 | I27: 474.92
B28: 2008-06-19 | C28: 24 | D28: 581.45 | F28: 535.5 | G28: 449 | H28: 361.9 | I28: 469.16
B29: 2008-06-26 | C29: 25 | D29: 576.2 | F29: 532.3 | G29: 431 | H29: 346.9 | I29: 458.98
B30: 2008-07-03 | C30: 26 | D30: 573.2 | F30: 526.8 | G30: 405 | H30: 331.9 | I30: 446.07
B31: 2008-07-10 | C31: 27 | D31: 567.4 | F31: 520.3 | G31: 393 | H31: 321.9 | I31: 437.32
B32: 2008-07-17 | C32: 28 | D32: 566.2 | F32: 512.7 | G32: 375 | H32: 321.9 | I32: 427.94
B33: 2008-07-24 | C33: 29 | D33: 566.2 | F33: 509.6 | G33: 375 | H33: 321.9 | I33: 428.44
B34: 2008-07-31 | C34: 30 | D34: 598.55 | F34: 506.9 | G34: 369 | H34: 321.9 | I34: 427.87
B35: 2008-08-07 | C35: 31 | D35: 538 | F35: 506.1 | G35: 357 | H35: 321.9 | I35: 420.9
B36: 2008-08-14 | C36: 32 | D36: 538 | F36: 505.8 | G36: 357 | H36: 326.9 | I36: 422.17
B37: 2008-08-21 | C37: 33 | D37: 538 | F37: 507.5 | G37: 377 | H37: 326.9 | I37: 429.08
B38: 2008-08-28 | C38: 34 | D38: 549.5 | F38: 514.6 | G38: 377 | H38: 351.9 | I38: 438.35
B39: 2008-09-04 | C39: 35 | D39: 566.45 | F39: 524.5 | G39: 377 | H39: 371.9 | I39: 449.13
B40: 2008-09-11 | C40: 36 | D40: 583.3 | F40: 534.5 | G40: 377 | H40: 396.9 | I40: 461.34
B41: 2008-09-18 | C41: 37 | D41: 583.3 | F41: 542.1 | G41: 377 | H41: 391.9 | I41: 463.13
B42: 2008-09-25 | C42: 38 | D42: 581.5 | F42: 546.4 | G42: 377 | H42: 381.9 | I42: 462.03
B43: 2008-10-02 | C43: 39 | D43: 580.3 | F43: 549 | G43: 408 | H43: 381.9 | I43: 470.48
B44: 2008-10-09 | C44: 40 | D44: 577 | F44: 548.8 | G44: 412 | H44: 399.63 | I44: 476.1
B45: 2008-10-16 | C45: 41 | D45: 577 | F45: 551 | G45: 412 | H45: 399.63 | I45: 477.02
B46: 2008-10-23 | C46: 42 | D46: 571.75 | F46: 552.9 | G46: 408 | H46: 394.8 | I46: 475.18
B47: 2008-10-30 | C47: 43 | D47: 571.75 | F47: 553.2 | G47: 402 | H47: 385.45 | I47: 471.26
B48: 2008-11-06 | C48: 44 | D48: 569.95 | F48: 553.2 | G48: 401 | H48: 380.8 | I48: 469.61
B49: 2008-11-13 | C49: 45 | D49: 561.1 | F49: 553.2 | G49: 391 | H49: 371.13 | I49: 463.96
B50: 2008-11-20 | C50: 46 | D50: 557.5 | F50: 553.2 | G50: 390 | H50: 371.13 | I50: 463.5
B51: 2008-11-27 | C51: 47 | D51: 563.5 | F51: 553.2 | G51: 391 | H51: 371.13 | I51: 464.11
B52: 2008-12-04 | C52: 48 | D52: 563.5 | F52: 553.3 | G52: 407 | H52: 375.8 | I52: 469.3
B53: 2008-12-11 | C53: 49 | D53: 581.8 | F53: 553.3 | G53: 414 | H53: 384.63 | I53: 474.58
B54: 2008-12-18 | C54: 50 | D54: 590 | F54: 552.8 | G54: 423 | H54: 394.8 | I54: 479.87
B55: 2008-12-25 | C55: 51 | D55: 590 | F55: 552.5 | G55: 423 | H55: 399.63 | I55: 481.09
B56: 2009-01-01 | C56: 52 | D56: 590 | F56: 552.5 | G56: 423 | H56: 399.63 | I56: 481.09
B57: 2009-01-08 | C57: 1 | D57: 590 | F57: 552.6 | G57: 430 | H57: 399.63 | I57: 482.82
B58: =B57+7 -> 2009-01-15 | C58: 2 | D58: 599 | F58: 544 | G58: 411 | H58: 414.13 | I58: 483.45
B59: 2009-01-22 | C59: 3 | D59: 610.3 | F59: 554.2 | G59: 424 | H59: 422.8 | I59: 489.77
B60: 2009-01-29 | C60: 4 | D60: 613.75 | F60: 554.4 | G60: 443 | H60: 428.45 | I60: 496.2
B61: 2009-02-05 | C61: 5 | D61: 610.75 | F61: 554.4 | G61: 432 | H61: 422.8 | I61: 491.8
B62: 2009-02-12 | C62: 6 | D62: 604.75 | F62: 554.4 | G62: 432 | H62: 413.8 | I62: 488.92
B63: 2009-02-19 | C63: 7 | D63: 601.75 | F63: 553.9 | G63: 430 | H63: 409.63 | I63: 486.88
B64: 2009-02-26 | C64: 8 | D64: 601.75 | F64: 553.6 | G64: 426 | H64: 413.8 | I64: 486.96
B65: 2009-03-05 | C65: 9 | D65: 604.75 | F65: 553.6 | G65: 435 | H65: 423.8 | I65: 492.09
B66: 2009-03-12 | C66: 10 | D66: 607.15 | F66: 553.6 | G66: 429 | H66: 423.8 | I66: 490.8
B67: 2009-03-19 | C67: 11 | D67: 607.15 | F67: 553.6 | G67: 429 | H67: 423.8 | I67: 490.8
B68: 2009-03-26 | C68: 12 | D68: 605.95 | F68: 553.5 | G68: 442 | H68: 422.8 | I68: 493.53
B69: 2009-04-02 | C69: 13 | D69: 602.35 | F69: 551.2 | G69: 431 | H69: 422.8 | I69: 489.7
B70: 2009-04-09 | C70: 14 | D70: 602.35 | F70: 550.5 | G70: 431 | H70: 404.8 | I70: 484.38
B71: 2009-04-16 | C71: 15 | D71: 596.5 | F71: 550.6 | G71: 428 | H71: 389.8 | I71: 479.16
B72: 2009-04-23 | C72: 16 | D72: 596.5 | F72: 549.7 | G72: 426 | H72: 389.8 | I72: 478.3
B73: 2009-04-30 | C73: 17 | D73: 583.45 | F73: 549.6 | G73: 410 | H73: 389.8 | I73: 473.61
B74: 2009-05-07 | C74: 18 | D74: 577.15 | F74: 548 | G74: 394 | H74: 366.8 | I74: 462.29
B75: 2009-05-14 | C75: 19 | D75: 574 | F75: 547.7 | G75: 395 | H75: 371.8 | I75: 463.61
B76: 2009-05-21 | C76: 20 | D76: 580 | F76: 548.4 | G76: 388 | H76: 380.8 | I76: 465.1
B77: 2009-05-28 | C77: 21 | D77: 586 | F77: 549.2 | G77: 402 | H77: 380.8 | I77: 469.17
B78: 2009-06-04 | C78: 22 | D78: 584.35 | F78: 549 | G78: 395 | H78: 376.63 | I78: 466.14
B79: 2009-06-11 | C79: 23 | D79: 584.35 | F79: 549 | G79: 399 | H79: 376.63 | I79: 467.1
B80: 2009-06-18 | C80: 24 | D80: 584.35 | F80: 549.6 | G80: 399 | H80: 376.63 | I80: 467.35
B81: 2009-06-25 | C81: 25 | D81: 591.7 | F81: 549.3 | G81: 398 | H81: 385.8 | I81: 470
B82: 2009-07-02 | C82: 26 | D82: 591.7 | F82: 549.2 | G82: 408 | H82: 385.8 | I82: 472.36
B83: 2009-07-09 | C83: 27 | D83: 591.7 | F83: 548.9 | G83: 403 | H83: 385.8 | I83: 471.03
B84: 2009-07-16 | C84: 28 | D84: 592.45 | F84: 547.7 | G84: 423 | H84: 385.8 | I84: 475.38
B85: 2009-07-23 | C85: 29 | D85: 592.45 | F85: 547.9 | G85: 423 | H85: 394.8 | I85: 477.97
B86: 2009-07-30 | C86: 30 | D86: 592.45 | F86: 547.8 | G86: 440 | H86: 399.8 | I86: 483.4
B87: 2009-08-06 | C87: 31 | D87: 599.85 | F87: 548 | G87: 440 | H87: 399.8 | I87: 483.95
B88: 2009-08-13 | C88: 32 | D88: 599.85 | F88: 550.4 | G88: 433 | H88: 399.8 | I88: 483.27
B89: 2009-08-20 | C89: 33 | D89: 604.2 | F89: 555.8 | G89: 440 | H89: 404.8 | I89: 488.88
B90: 2009-08-27 | C90: 34 | D90: 616.55 | F90: 555.8 | G90: 443 | H90: 418.8 | I90: 494.27
B91: 2009-09-03 | C91: 35 | D91: 616.55 | F91: 555.8 | G91: 443 | H91: 428.45 | I91: 498.88
B92: 2009-09-10 | C92: 36 | D92: 624.5 | F92: 566.6 | G92: 451 | H92: 428.45 | I92: 506.3
B93: 2009-09-17 | C93: 37 | D93: 624.5 | F93: 566.8 | G93: 472 | H93: 418.8 | I93: 506.33
B94: 2009-09-24 | C94: 38 | D94: 624.5 | F94: 566.8 | G94: 472 | H94: 418.8 | I94: 506.33
B95: 2009-10-01 | C95: 39 | D95: 624.5 | F95: 567.1 | G95: 485 | H95: 440.95 | I95: 515.76
B96: 2009-10-08 | C96: 40 | D96: 624.5 | F96: 567.3 | G96: 485 | H96: 440.95 | I96: 515.84
B97: 2009-10-15 | C97: 41 | D97: 624.5 | F97: 567 | G97: 485 | H97: 440.95 | I97: 515.72
B98: 2009-10-22 | C98: 42 | D98: 624.5 | F98: 567.1 | G98: 484 | H98: 440.95 | I98: 515.52
B99: 2009-10-29 | C99: 43 | D99: 624.5 | F99: 567.3 | G99: 484 | H99: 436.13 | I99: 514.26
B100: 2009-11-05 | C100: 44 | D100: 610.75 | F100: 567.5 | G100: 479 | H100: 431.95 | I100: 511.12
B101: 2009-11-12 | C101: 45 | D101: 620.3 | F101: 568.2 | G101: 482 | H101: 431.95 | I101: 512.73
B102: 2009-11-19 | C102: 46 | D102: 617.35 | F102: 570.5 | G102: 469 | H102: 436.13 | I102: 511.55
B103: 2009-11-26 | C103: 47 | D103: 617.9 | F103: 570.6 | G103: 473 | H103: 445.95 | I103: 515.33
B104: 2009-12-03 | C104: 48 | D104: 617.95 | F104: 570.6 | G104: 473 | H104: 445.95 | I104: 515.33
B105: 2009-12-10 | C105: 49 | D105: 613.85 | F105: 570.6 | G105: 473 | H105: 445.95 | I105: 515.08
B106: 2009-12-17 | C106: 50 | D106: 610.3 | F106: 570.6 | G106: 495 | H106: 445.95 | I106: 520.14
B107: 2009-12-24 | C107: 51 | D107: 610.05 | F107: 570.4 | G107: 498 | H107: 445.95 | I107: 520.76
B108: =B107+7 -> 2009-12-31 | C108: 52 | D108: 610.05 | F108: 570.4 | G108: 512 | H108: 445.95 | I108: 524.12
B109: 2010-01-07 | C109: 1 | D109: 610.05 | F109: 570.9 | G109: 512 | H109: 445.95 | I109: 524.33
B110: =B109+7 -> 2010-01-14 | C110: 2 | D110: 610.05 | F110: 574.1 | G110: 508 | H110: 459.95 | I110: 528.62
B111: 2010-01-21 | C111: 3 | D111: 626.45 | F111: 578.1 | G111: 517 | H111: 459.95 | I111: 533.47
B112: 2010-01-28 | C112: 4 | D112: 625.9 | F112: 579.2 | G112: 518 | H112: 473.95 | I112: 538.04
B113: 2010-02-04 | C113: 5 | D113: 621.45 | F113: 579.2 | G113: 522 | H113: 464.95 | I113: 536.22
B114: 2010-02-11 | C114: 6 | D114: 616.05 | F114: 579.2 | G114: 499 | H114: 450.63 | I114: 526.36
B115: 2010-02-18 | C115: 7 | D115: 612 | F115: 579.1 | G115: 486 | H115: 445.95 | I115: 521.65
B116: 2010-02-25 | C116: 8 | D116: 608.7 | F116: 579 | G116: 470 | H116: 445.95 | I116: 517.56
B117: 2010-03-04 | C117: 9 | D117: 607.5 | F117: 579.1 | G117: 458 | H117: 445.95 | I117: 514.65
B118: 2010-03-11 | C118: 10 | D118: 608.1 | F118: 579.1 | G118: 458 | H118: 445.95 | I118: 514.69
B119: 2010-03-18 | C119: 11 | D119: 610.15 | F119: 580.3 | G119: 456 | H119: 450.63 | I119: 516.14
B120: 2010-03-25 | C120: 12 | D120: 615.1 | F120: 580.2 | G120: 452 | H120: 459.95 | I120: 518.05
B121: 2010-04-01 | C121: 13 | D121: 616.55 | F121: 580.1 | G121: 449 | H121: 454.95 | I121: 515.98
B122: 2010-04-08 | C122: 14 | D122: 612.55 | F122: 580.2 | G122: 446 | H122: 450.63 | I122: 513.85
B123: 2010-04-15 | C123: 15 | D123: 609.75 | F123: 580.1 | G123: 436 | H123: 440.95 | I123: 508.53
B124: 2010-04-22 | C124: 16 | D124: 598.5 | F124: 580.1 | G124: 423 | H124: 431.95 | I124: 502.2
B125: 2010-04-29 | C125: 17 | D125: 593.4 | F125: 580.2 | G125: 414 | H125: 417.63 | I125: 495.77
B126: 2010-05-06 | C126: 18 | D126: 586.65 | F126: 580.1 | G126: 405 | H126: 419.25 | I126: 491.85
B127: 2010-05-13 | C127: 19 | D127: 583.2 | F127: 573.7 | G127: 395 | H127: 407.95 | I127: 485.16
B128: 2010-05-20 | C128: 20 | D128: 588.15 | F128: 567.1 | G128: 399 | H128: 407.95 | I128: 483.66
B129: 2010-05-27 | C129: 21 | D129: 594.9 | F129: 563.7 | G129: 401 | H129: 412.95 | I129: 484.53
B130: 2010-06-03 | C130: 22 | D130: 599.55 | F130: 564.2 | G130: 401 | H130: 412.95 | I130: 487.54
B131: 2010-06-10 | C131: 23 | D131: 601.5 | F131: 563.5 | G131: 407 | H131: 421.95 | I131: 488.9
B132: 2010-06-17 | C132: 24 | D132: 600.6 | F132: 563.4 | G132: 408 | H132: 421.95 | I132: 488.95
B133: 2010-06-24 | C133: 25 | D133: 595.65 | F133: 562.5 | G133: 403 | H133: 421.95 | I133: 484.55
B134: 2010-07-01 | C134: 26 | D134: 591.45 | F134: 561.7 | G134: 403 | H134: 403.13 | I134: 481.21
B135: 2010-07-08 | C135: 27 | D135: 586.05 | F135: 561.3 | G135: 403 | H135: 398.95 | I135: 479.55
B136: 2010-07-15 | C136: 28 | D136: 586.05 | F136: 559.8 | G136: 402 | H136: 393.95 | I136: 477.28
B137: 2010-07-22 | C137: 29 | D137: 584.1 | F137: 558.8 | G137: 402 | H137: 388.95 | I137: 475.35
B138: 2010-07-29 | C138: 30 | D138: 584.1 | F138: 558.9 | G138: 404 | H138: 388.95 | I138: 475.87
B139: 2010-08-05 | C139: 31 | D139: 584.1 | F139: 558.9 | G139: 401 | H139: 388.95 | I139: 475.15
B140: 2010-08-12 | C140: 32 | D140: 589.95 | F140: 558.9 | G140: 407 | H140: 388.95 | I140: 476.95
B141: 2010-08-19 | C141: 33 | D141: 601.1 | F141: 558.9 | G141: 420 | H141: 403.13 | I141: 484.72
B142: =B141+7 -> 2010-08-26 | C142: 34 | D142: 608.15 | F142: 562.7 | G142: 430 | H142: 417.63 | I142: 493.19
B143: 2010-09-02 | C143: 35 | D143: 609.5 | F143: 566.6 | G143: 421 | H143: 431.95 | I143: 496.75
B144: 2010-09-09 | C144: 36 | D144: 611.9 | F144: 570.2 | G144: 421 | H144: 436.13 | I144: 507.73
B145: 2010-09-16 | C145: 37 | D145: 611.9 | F145: 571.3 | G145: 454 | H145: 440.95 | I145: 509.3
B146: 2010-09-23 | C146: 38 | D146: 611.9 | F146: 571.3 | G146: 449 | H146: 440.95 | I146: 508.1
B147: 2010-09-30 | C147: 39 | D147: 611.9 | F147: 573.6 | G147: 450 | H147: 440.95 | I147: 509.3
B148: 2010-10-07 | C148: 40 | D148: 611.9 | F148: 575.5 | G148: 450 | H148: 440.95 | I148: 510.1
B149: 2010-10-14 | C149: 41 | D149: 612.8 | F149: 576.6 | G149: 465 | H149: 455.3 | I149: 515.43
B150: 2010-10-21 | C150: 42 | D150: 612.8 | F150: 578.8 | G150: 458 | H150: 450.63 | I150: 516.16
B151: 2010-10-28 | C151: 43 | D151: 614.45 | F151: 579.1 | G151: 462 | H151: 454.95 | I151: 518.55
B152: 2010-11-04 | C152: 44 | D152: 614.45 | F152: 583.1 | G152: 459 | H152: 454.95 | I152: 519.51
B153: 2010-11-11 | C153: 45 | D153: 614.45 | F153: 586.6 | G153: 459 | H153: 454.95 | I153: 520.97
B154: 2010-11-18 | C154: 46 | D154: 617.9 | F154: 589.4 | G154: 450 | H154: 459.95 | I154: 521.6
B155: 2010-11-25 | C155: 47 | D155: 620.6 | F155: 591.8 | G155: 450 | H155: 464.95 | I155: 524.16
B156: 2010-12-02 | C156: 48 | D156: 622.1 | F156: 592.1 | G156: 452 | H156: 464.95 | I156: 524.86
B157: 2010-12-09 | C157: 49 | D157: 622.55 | F157: 592.7 | G157: 459 | H157: 464.95 | I157: 526.82
B158: 2010-12-16 | C158: 50 | D158: 622.55 | F158: 592.7 | G158: 463 | H158: 459.95 | I158: 526.39
B159: 2010-12-23 | C159: 51 | D159: 622.55 | F159: 592.9 | G159: 479 | H159: 459.95 | I159: 530.31
B160: 2010-12-30 | C160: 52 | D160: 622.55 | F160: 594.9 | G160: 499 | H160: 469.13 | I160: 538.51
B161: 2011-01-06 | C161: 53 | D161: 625.4 | F161: 594.9 | G161: 499 | H161: 478.95 | I161: 541.43
B162: =B161+7 -> 2011-01-13 | C162: 2 | D162: 627.2 | F162: 597.6 | G162: 496 | H162: 483.63 | I162: 543.25
B163: =B162+7 -> 2011-01-20 | C163: 3 | D163: 630.65 | F163: 598.9 | G163: 505 | H163: 492.95 | I163: 548.77
B164: 2011-01-27 | C164: 4 | D164: 632.9 | F164: 600.1 | G164: 511 | H164: 497.95 | I164: 552.25
B165: 2011-02-03 | C165: 5 | D165: 631.55 | F165: 603.9 | G165: 495 | H165: 503.875 | I165: 551.5713
B166: 2011-02-10 | C166: 6 | D166: 629.9 | F166: 605 | G166: 494 | H166: 503.88 | I166: 551.69
B167: 2011-02-17 | C167: 7 | D167: 633.35 | F167: 605 | G167: 507 | H167: 506.95 | I167: 555.88
B168: 2011-02-24 | C168: 8 | D168: 635.95 | F168: 604.9 | G168: 502 | H168: 506.95 | I168: 554.8
B169: 2011-03-03 | C169: 9 | D169: 635.95 | F169: 604.9 | G169: 500 | H169: 506.95 | I169: 554.32
B170: 2011-03-10 | C170: 10 | D170: 639.85 | F170: 604.9 | G170: 501 | H170: 506.95 | I170: 554.8
B171: 2011-03-17 | C171: 11 | D171: 641.65 | F171: 604.5 | G171: 501 | H171: 506.95 | I171: 554.75
B172: 2011-03-24 | C172: 12 | D172: 643.9 | F172: 604.5 | G172: 499 | H172: 506.95 | I172: 554.41
B173: 2011-03-31 | C173: 13 | D173: 644.95 | F173: 604.6 | G173: 505 | H173: 506.95 | I173: 555.95
B174: 2011-04-07 | C174: 14 | D174: 644.8 | F174: 604.6 | G174: 498 | H174: 506.95 | I174: 554.26
B175: 2011-04-14 | C175: 15 | D175: 646.6 | F175: 604.6 | G175: 503 | H175: 506.95 | I175: 555.58
B176: 2011-04-21 | C176: 16 | D176: 646.3 | F176: 604.6 | G176: 494 | H176: 506.95 | I176: 553.4
B177: 2011-04-28 | C177: 17 | D177: 644.3 | F177: 604.6 | G177: 495 | H177: 502.13 | I177: 552.17
B178: 2011-05-05 | C178: 18 | D178: 642.65 | F178: 604.6 | G178: 484 | H178: 502.13 | I178: 549.42
B179: 2011-05-12 | C179: 19 | D179: 639.05 | F179: 603 | G179: 472 | H179: 497.95 | I179: 544.49
B180: 2011-05-19 | C180: 20 | D180: 635.75 | F180: 602.6 | G180: 469 | H180: 487.95 | I180: 540.6
B181: 2011-05-26 | C181: 21 | D181: 634 | F181: 600.1 | G181: 469 | H181: 478.95 | I181: 536.94
B182: 2011-06-02 | C182: 22 | D182: 633.6 | F182: 596.3 | G182: 468 | H182: 469.13 | I182: 532.34
B183: 2011-06-09 | C183: 23 | D183: 629.55 | F183: 595.3 | G183: 456 | H183: 469.13 | I183: 528.79
B184: 2011-06-16 | C184: 24 | D184: 628.65 | F184: 595.3 | G184: 466 | H184: 464.95 | I184: 529.97
B185: 2011-06-23 | C185: 25 | D185: 625.95 | F185: 595.2 | G185: 469 | H185: 459.95 | I185: 529.08
B186: 2011-06-30 | C186: 26 | D186: 622.5 | F186: 595.2 | G186: 472 | H186: 454.95 | I186: 528.19
B187: 2011-07-07 | C187: 27 | D187: 619.15 | F187: 595.2 | G187: 462 | H187: 454.95 | I187: 525.59
B188: 2011-07-14 | C188: 28 | D188: 619.15 | F188: 595.2 | G188: 460 | H188: 454.95 | I188: 525.11
B189: 2011-07-21 | C189: 29 | D189: 619.15 | F189: 595.2 | G189: 459 | H189: 454.95 | I189: 524.87
B190: 2011-07-28 | C190: 30 | D190: 619.15 | F190: 595.4 | G190: 459 | H190: 454.59 | I190: 524.95
B191: 2011-08-04 | C191: 31 | D191: 619.15 | F191: 598.5 | G191: 458 | H191: 454.95 | I191: 526.01
B192: 2011-08-11 | C192: 32 | D192: 616.15 | F192: 602.2 | G192: 462 | H192: 459.95 | I192: 529.73
B193: 2011-08-18 | C193: 33 | D193: 624.85 | F193: 605.1 | G193: 473 | H193: 468.95 | I193: 536.6347
B194: =B193+7 -> 2011-08-25 | C194: 34 | D194: 626.85 | F194: 609.6 | G194: 482 | H194: 473.95 | I194: 542.1992
B195: 2011-09-01 | C195: 35 | D195: 630 | F195: 614.1 | G195: 483 | H195: 483.63 | I195: 547.22
B196: 2011-09-08 | C196: 36 | D196: 631.35 | F196: 615.7 | G196: 476 | H196: 483.63 | I196: 546.29
B197: 2011-09-15 | C197: 37 | D197: 630.85 | F197: 615.7 | G197: 487 | H197: 483.63 | I197: 548.9
B198: 2011-09-22 | C198: 38 | D198: 631.2 | F198: 615.7 | G198: 499 | H198: 487.95 | I198: 553.01
B199: 2011-09-29 | C199: 39 | D199: 630.35 | F199: 618.3 | G199: 500 | H199: 487.95 | I199: 554.29
B200: 2011-10-06 | C200: 40 | D200: 630.35 | F200: 620.8 | G200: 503 | H200: 487.95 | I200: 556.055
... 534 more rows

Sheet Young Bulls R3 2005+ (hidden)
A1: Deadweight Cattle prices
A3: Young Bulls | B3: R3
A5: 2005
C6: BE | D6: BG | E6: CZ | F6: DK | G6: DE | H6: EE | I6: GR | J6: ES | K6: FR | L6: IE | M6: HR | N6: IT | O6: CY | P6: LV | Q6: LT | R6: LU | S6: HU | T6: MT | U6: NL | V6: AT | W6: PL | X6: PT | Y6: RO | Z6: SI | AA6: SK | AB6: FI | AC6: SE | AD6: UK | AE6: EU ave | AF6: GB
AF7: GB starts 30/09/2018
A8: w/e | C8: euro per 100 kg dw
A10: 2005-01-09 | B10: 1 | C10: 209.4 | E10: 235.45 | F10: 259.32 | G10: 286.35 | I10: 368.19 | J10: 282.87 | K10: 295 | L10: 261.64 | N10: 309 | P10: 154.61 | Q10: 168.55 | R10: 264.89 | S10: 246.81 | T10: 319.73 | U10: 244.04 | V10: 294.16 | W10: 210.44 | X10: 283.9 | Z10: 254.14 | AA10: 223.56 | AB10: 295.47 | AC10: 240.81 | AD10: 246.97 | AE10: 280.76
A11: 2005-01-16 | B11: 2 | C11: 210.65 | E11: 236.61 | F11: 263.98 | G11: 295.45 | I11: 371.24 | J11: 284.29 | K11: 298 | L11: 271.31 | N11: 309.7 | P11: 158.49 | Q11: 169.41 | R11: 276.26 | S11: 233.68 | T11: 320.44 | U11: 261.57 | V11: 296.27 | W11: 211.45 | X11: 294.5 | Z11: 255.7 | AA11: 224.9 | AB11: 299.3 | AC11: 256.55 | AD11: 260.88 | AE11: 285.45
A12: 2005-01-23 | B12: 3 | C12: 211.73 | E12: 236.83 | F12: 264.76 | G12: 293.82 | I12: 367.42 | J12: 285.41 | K12: 300 | L12: 274.91 | N12: 313.42 | P12: 166.88 | Q12: 169.01 | R12: 276.26 | S12: 243.36 | T12: 320.95 | U12: 250.03 | V12: 297.2 | W12: 211.37 | X12: 302.5 | Z12: 256.81 | AA12: 227.66 | AB12: 294.85 | AC12: 255.93 | AD12: 265.69 | AE12: 286.36
A13: 2005-01-30 | B13: 4 | C13: 211.55 | E13: 241.59 | F13: 264.17 | G13: 283.54 | I13: 366.12 | J13: 286.04 | K13: 300 | L13: 275.74 | N13: 307.84 | P13: 167.02 | Q13: 164.28 | R13: 275.58 | S13: 259.31 | T13: 321.28 | U13: 258.18 | V13: 294.27 | W13: 213.38 | X13: 302.4 | Z13: 257.17 | AA13: 227.24 | AB13: 302.67 | AC13: 251.61 | AD13: 268.23 | AE13: 283.53
A14: 2005-02-06 | B14: 5 | C14: 212.62 | E14: 241.3 | F14: 264.7 | G14: 278.2 | I14: 367.14 | J14: 283.19 | K14: 302 | L14: 277.12 | N14: 309.66 | P14: 164.16 | Q14: 173.56 | R14: 284.2 | S14: 258.77 | T14: 321.56 | U14: 253.42 | V14: 295.86 | W14: 221.32 | X14: 309.5 | Z14: 259.52 | AA14: 236.21 | AB14: 295.11 | AC14: 259.65 | AD14: 270.82 | AE14: 283.1
A15: 2005-02-13 | B15: 6 | C15: 214.75 | E15: 243.6 | F15: 268.06 | G15: 274.15 | I15: 371.31 | J15: 289.52 | K15: 303 | L15: 279.12 | N15: 309.9 | P15: 166.88 | Q15: 175.07 | R15: 277.63 | S15: 273.54 | T15: 322.14 | U15: 259.76 | V15: 297.41 | W15: 224.72 | X15: 306.4 | Z15: 260.15 | AA15: 229.82 | AB15: 289.2 | AC15: 254.88 | AD15: 271.28 | AE15: 283.99
A16: 2005-02-20 | B16: 7 | C16: 220.56 | E16: 243.54 | F16: 266.54 | G16: 275.5 | I16: 368.39 | J16: 287.32 | K16: 304 | L16: 281.33 | N16: 315.18 | P16: 167.74 | Q16: 175.97 | R16: 277.63 | S16: 264.74 | T16: 321.68 | U16: 260.65 | V16: 301.96 | W16: 226.25 | X16: 308.9 | Z16: 259.69 | AA16: 224.79 | AB16: 286.84 | AC16: 262.6 | AD16: 272.61 | AE16: 285.17
A17: 2005-02-27 | B17: 8 | C17: 225.67 | E17: 245.59 | F17: 266.44 | G17: 278.26 | I17: 362.26 | J17: 288.87 | K17: 305 | L17: 281.83 | N17: 313.21 | P17: 169.23 | Q17: 186.48 | R17: 276.46 | S17: 240.34 | T17: 321.3 | U17: 270.13 | V17: 305.11 | W17: 228.47 | X17: 309.5 | Z17: 260.24 | AA17: 235.23 | AB17: 290.58 | AC17: 258.21 | AD17: 270.76 | AE17: 286.17
A18: 2005-03-06 | B18: 9 | C18: 227.73 | E18: 248.03 | F18: 270.45 | G18: 293.51 | I18: 369 | J18: 292.2 | K18: 308 | L18: 283.3 | N18: 313.79 | P18: 177.06 | Q18: 185.64 | R18: 288.81 | S18: 227.7 | T18: 321.54 | U18: 265.9 | V18: 309.04 | W18: 230.95 | X18: 308.9 | Z18: 260.14 | AA18: 239.69 | AB18: 290.97 | AC18: 254.27 | AD18: 271.63 | AE18: 291.52
A19: 2005-03-13 | B19: 10 | C19: 228.99 | E19: 250.82 | F19: 287.43 | G19: 324.61 | I19: 370.74 | J19: 289.98 | K19: 309 | L19: 282.16 | N19: 315.41 | P19: 168.06 | Q19: 204.27 | R19: 274.4 | S19: 244.73 | T19: 317.77 | U19: 271.74 | V19: 309.89 | W19: 223.48 | X19: 310.5 | Z19: 266.59 | AA19: 182.44 | AB19: 292.32 | AC19: 259.84 | AD19: 267.54 | AE19: 298.89
A20: 2005-03-20 | B20: 11 | C20: 230.06 | E20: 250 | F20: 286.95 | G20: 322.42 | I20: 370.96 | J20: 293.81 | K20: 311 | L20: 283.47 | N20: 316.5 | P20: 178.8 | Q20: 199.96 | R20: 318.5 | S20: 244.17 | T20: 320.4 | U20: 275.61 | V20: 310.4 | W20: 225.44 | X20: 308.6 | Z20: 265.72 | AA20: 239.2 | AB20: 287.98 | AC20: 261.28 | AD20: 266.24 | AE20: 299.85
A21: 2005-03-27 | B21: 12 | C21: 231.23 | E21: 248.04 | F21: 284.34 | G21: 322.23 | I21: 365.47 | J21: 293.84 | K21: 312 | L21: 284.28 | N21: 320.15 | P21: 165.21 | Q21: 218.41 | R21: 283.02 | S21: 255.67 | T21: 320.94 | U21: 274.47 | V21: 310.62 | W21: 222.05 | X21: 310.9 | Z21: 266.76 | AA21: 228.92 | AB21: 290.47 | AC21: 257.83 | AD21: 266.06 | AE21: 300.02
A22: 2005-04-03 | B22: 13 | C22: 232.57 | E22: 246.81 | F22: 297.19 | G22: 324.6 | I22: 364.43 | J22: 294.27 | K22: 311 | L22: 282.92 | N22: 315.25 | Q22: 215.02 | R22: 284.2 | S22: 241.97 | T22: 321.75 | U22: 275.25 | V22: 311.33 | W22: 221.51 | X22: 307 | Z22: 266.33 | AA22: 235.66 | AB22: 288.13 | AC22: 261.5 | AD22: 267.09 | AE22: 300.87
A23: 2005-04-10 | B23: 14 | C23: 234.35 | E23: 250.45 | F23: 299.75 | G23: 324.48 | I23: 371.47 | J23: 296.6 | K23: 309 | L23: 285.1 | N23: 315.67 | P23: 180.18 | Q23: 211.94 | R23: 280.77 | S23: 259.88 | T23: 323.65 | U23: 282.33 | V23: 313.33 | W23: 223.73 | X23: 310.1 | Z23: 265.85 | AA23: 235.08 | AB23: 287.27 | AC23: 262.08 | AD23: 270.66 | AE23: 301.03
A24: 2005-04-17 | B24: 15 | C24: 235.88 | E24: 250.87 | F24: 298.22 | G24: 320.88 | I24: 372.91 | J24: 294.34 | K24: 307 | L24: 284.38 | N24: 313.13 | P24: 176.71 | Q24: 201.09 | R24: 287.63 | S24: 262.31 | T24: 323.81 | U24: 270.86 | V24: 312.69 | W24: 221.88 | X24: 307.4 | Z24: 265.85 | AA24: 244.85 | AB24: 291.67 | AC24: 262.7 | AD24: 272.25 | AE24: 298.84
A25: 2005-04-24 | B25: 16 | C25: 236.14 | E25: 246.6 | F25: 304.37 | G25: 317.2 | I25: 366.15 | J25: 293.3 | K25: 305 | L25: 283.46 | N25: 319.74 | P25: 177.34 | Q25: 208.49 | R25: 286.75 | S25: 259.19 | T25: 325.79 | U25: 269.5 | V25: 312.56 | W25: 217.32 | X25: 304.1 | Z25: 264.37 | AA25: 237.1 | AB25: 297.93 | AC25: 261.81 | AD25: 273.81 | AE25: 297.84
A26: 2005-05-01 | B26: 17 | C26: 236.14 | E26: 247.57 | F26: 307.88 | G26: 317.2 | I26: 363.93 | J26: 290.64 | K26: 306 | L26: 283.59 | N26: 313.42 | P26: 183.06 | Q26: 210.66 | R26: 308.7 | S26: 264.43 | T26: 328.52 | U26: 265.75 | V26: 308.52 | W26: 215.77 | X26: 299.7 | Z26: 263.3 | AA26: 236.57 | AB26: 294.77 | AC26: 266.09 | AD26: 277.31 | AE26: 296.55
A27: 2005-05-08 | B27: 18 | C27: 236.05 | E27: 251.73 | F27: 302.78 | G27: 309.84 | I27: 364.47 | J27: 295.7 | K27: 306 | L27: 282.09 | N27: 316.99 | P27: 177.2 | Q27: 210.66 | R27: 294 | S27: 264.12 | T27: 328.73 | U27: 266.51 | V27: 307.32 | W27: 218.62 | X27: 301.8 | Z27: 266.57 | AA27: 240.16 | AB27: 288.35 | AC27: 266.84 | AD27: 275.71 | AE27: 296.17
A28: 2005-05-15 | B28: 19 | C28: 236.59 | E28: 254.42 | F28: 302.85 | G28: 311.13 | I28: 372.89 | J28: 294.42 | K28: 306 | L28: 283.32 | N28: 317.11 | P28: 170.41 | Q28: 215.55 | R28: 283.81 | S28: 262.99 | T28: 328.68 | U28: 266.81 | V28: 305.77 | W28: 210.95 | X28: 300.7 | Z28: 266.67 | AA28: 247 | AB28: 296.54 | AC28: 264.9 | AD28: 275.59 | AE28: 295.8
A29: 2005-05-22 | B29: 20 | C29: 237.13 | E29: 252.41 | F29: 302.89 | G29: 310.49 | I29: 370.89 | J29: 288.35 | K29: 308 | L29: 283.55 | N29: 319.92 | P29: 170.96 | Q29: 223.87 | R29: 294 | S29: 260.38 | T29: 328.68 | U29: 274.78 | V29: 305.35 | W29: 221.22 | X29: 302.3 | Z29: 267.83 | AA29: 245.22 | AB29: 291.73 | AC29: 260.7 | AD29: 274.03 | AE29: 295.79
A30: 2005-05-29 | B30: 21 | C30: 238.49 | E30: 253.89 | F30: 302.31 | G30: 308.54 | I30: 365.69 | J30: 287.52 | K30: 310 | L30: 283.86 | N30: 319.92 | P30: 167.58 | Q30: 219.46 | R30: 289.3 | T30: 328.68 | U30: 273.68 | V30: 307.85 | W30: 218.32 | X30: 303 | Z30: 269.19 | AA30: 243.84 | AB30: 296.38 | AC30: 262.92 | AD30: 274.42 | AE30: 295.38
A31: 2005-06-05 | B31: 22 | C31: 239.12 | E31: 244.75 | F31: 300.35 | G31: 304.29 | I31: 368.22 | J31: 289.82 | K31: 310 | L31: 282.27 | N31: 316.82 | P31: 164.02 | Q31: 218.1 | R31: 295.27 | S31: 250.14 | T31: 328.68 | U31: 281.5 | V31: 308.36 | W31: 221.65 | X31: 302.3 | Z31: 267.69 | AA31: 247.69 | AB31: 290.75 | AC31: 264.02 | AD31: 277.18 | AE31: 294.63
A32: 2005-06-12 | B32: 23 | C32: 241.08 | E32: 255.6 | F32: 301.22 | G32: 297.52 | I32: 368.12 | J32: 280.07 | K32: 308 | L32: 280.94 | N32: 319.38 | P32: 172.86 | Q32: 231.33 | R32: 343 | S32: 269.11 | T32: 336.13 | U32: 275.74 | V32: 304.46 | W32: 224.82 | X32: 304.8 | Z32: 268.94 | AA32: 252.74 | AB32: 296.28 | AC32: 266.4 | AD32: 280.01 | AE32: 291.68
A33: 2005-06-19 | B33: 24 | C33: 241.95 | E33: 255.23 | F33: 294.202 | G33: 289.87 | I33: 374 | J33: 286.82 | K33: 307 | L33: 281.05 | N33: 320.52 | P33: 162.44 | Q33: 230.27 | R33: 301.15 | S33: 271.55 | T33: 336.13 | U33: 267.81 | V33: 298.9 | W33: 225.71 | X33: 300.2 | Z33: 269.78 | AA33: 242.88 | AB33: 294.61 | AC33: 264.15 | AD33: 280.21 | AE33: 290.91
A34: 2005-06-26 | B34: 25 | C34: 240.8 | E34: 257.99 | F34: 286.29 | G34: 287.16 | I34: 368.66 | J34: 288.09 | K34: 304 | L34: 279.58 | N34: 320.52 | P34: 147.98 | Q34: 208.92 | R34: 304.39 | S34: 259.21 | T34: 336.13 | U34: 263.19 | V34: 296.09 | W34: 226.01 | X34: 299.5 | Z34: 269.2 | AA34: 256.06 | AB34: 297.04 | AC34: 263.55 | AD34: 282.39 | AE34: 289.84
A35: 2005-07-03 | B35: 26 | C35: 241.51 | E35: 257.15 | F35: 284.4 | G35: 287.26 | I35: 371.39 | J35: 281.15 | K35: 300 | L35: 275.78 | N35: 320.64 | P35: 160.15 | Q35: 208.45 | R35: 289.3 | S35: 341.95 | T35: 273.31 | U35: 295.09 | V35: 237.74 | W35: 295.09 | X35: 237.74 | Z35: 296.5 | AA35: 272.91 | AB35: 250.96 | AC35: 259.22 | AD35: 279.24 | AE35: 288.65
A36: 2005-07-10 | B36: 27 | C36: 241.51 | E36: 257.31 | F36: 285.63 | G36: 285.47 | I36: 370.09 | J36: 286.61 | K36: 298 | L36: 273.14 | N36: 310.54 | P36: 166.7 | Q36: 202.52 | R36: 264.6 | S36: 258.08 | T36: 341.95 | U36: 264.63 | V36: 290.98 | W36: 227.105 | X36: 296.1 | Z36: 271.35 | AA36: 250.74 | AB36: 301.75 | AC36: 260.91 | AD36: 272.14 | AE36: 286.22
A37: 2005-07-17 | B37: 28 | C37: 241.51 | E37: 256.14 | F37: 279.29 | G37: 285 | I37: 371.8 | J37: 278.97 | K37: 296 | L37: 267.55 | N37: 312.65 | P37: 163.31 | Q37: 201.91 | R37: 274.6 | S37: 258.31 | T37: 344.75 | U37: 264.8 | V37: 291.6 | W37: 222.07 | X37: 297.1 | AA37: 283.72 | AB37: 299.56 | AC37: 259.6 | AD37: 261.17 | AE37: 283.92
A38: 2005-07-24 | B38: 29 | C38: 241.51 | E38: 262.67 | F38: 277.95 | G38: 286.98 | I38: 371.02 | J38: 286.82 | K38: 295 | L38: 264.82 | N38: 314.47 | P38: 174.31 | Q38: 193.68 | R38: 292.5 | S38: 268.34 | T38: 344.75 | U38: 270.81 | V38: 293.3 | W38: 219.28 | X38: 294.3 | Z38: 281.71 | AA38: 246.8 | AB38: 302.12 | AC38: 261.13 | AD38: 254.42 | AE38: 285.59
A39: 2005-07-31 | B39: 30 | C39: 242.05 | E39: 260.5 | F39: 277.2 | G39: 289.31 | I39: 373.94 | J39: 285.4 | K39: 297 | L39: 258.5 | N39: 317.36 | P39: 156.24 | Q39: 199 | R39: 280.97 | S39: 277.18 | T39: 344.75 | U39: 268.63 | V39: 295.2 | W39: 221.08 | X39: 294.6 | Z39: 283.35 | AA39: 244.21 | AB39: 299.8 | AC39: 260.17 | AD39: 251.87 | AE39: 286.57
A40: 2005-08-07 | B40: 31 | C40: 242.05 | E40: 259.38 | F40: 278.13 | G40: 292.21 | I40: 370.09 | J40: 292.3 | K40: 297 | L40: 246.63 | N40: 327.47 | P40: 166.66 | Q40: 194.27 | R40: 308.7 | S40: 277.43 | T40: 344.75 | U40: 266.93 | V40: 292.45 | W40: 229.85 | X40: 292.3 | Z40: 282.31 | AA40: 251.11 | AB40: 306.8 | AC40: 262.78 | AD40: 249.07 | AE40: 290.35
A41: 2005-08-14 | B41: 32 | C41: 242.68 | E41: 259.82 | F41: 288.41 | G41: 291.71 | I41: 373.699 | J41: 292.48 | K41: 297 | L41: 243.32 | N41: 319.16 | P41: 156.64 | Q41: 211.94 | R41: 282.83 | S41: 254.85 | T41: 344.75 | U41: 268.26 | V41: 297.09 | W41: 231.5 | X41: 294.7 | Z41: 282.35 | AA41: 253.24 | AB41: 299.97 | AC41: 264.58 | AD41: 247.46 | AE41: 289.46
A42: 2005-08-21 | B42: 33 | C42: 242.51 | E42: 264.11 | F42: 283.43 | G42: 289.81 | I42: 368.71 | J42: 286.4 | K42: 298 | L42: 241.2 | N42: 324.25 | P42: 175.29 | R42: 290.57 | S42: 269.58 | T42: 344.76 | U42: 268.47 | V42: 299.75 | W42: 220.83 | X42: 293.6 | Z42: 285.05 | AA42: 248.98 | AB42: 308.85 | AC42: 261.1 | AD42: 250.34 | AE42: 288.16
A43: 2005-08-28 | B43: 34 | C43: 242.87 | E43: 264.76 | F43: 277.98 | G43: 288.93 | I43: 371.11 | J43: 291.23 | K43: 298 | L43: 241.72 | N43: 318.92 | P43: 153.73 | Q43: 197.35 | R43: 280.57 | S43: 276.07 | T43: 344.75 | U43: 271.04 | V43: 302.46 | W43: 223.59 | X43: 292.2 | Z43: 282.94 | AA43: 246.23 | AB43: 311.63 | AC43: 260.21 | AD43: 248.74 | AE43: 288.18
A44: 2005-09-04 | B44: 35 | C44: 242.79 | E44: 265.55 | F44: 298.6 | G44: 288.87 | I44: 373.99 | J44: 292.55 | K44: 296 | L44: 248.79 | N44: 313.2 | P44: 127.86 | Q44: 195.12 | R44: 282.34 | T44: 344.75 | U44: 264.72 | V44: 301.06 | W44: 230.84 | X44: 296.4 | Z44: 281.85 | AA44: 247.26 | AB44: 308.75 | AC44: 261.69 | AD44: 244.31 | AE44: 287.87
A45: 2005-09-11 | B45: 36 | C45: 241.02 | E45: 267.09 | F45: 298.15 | G45: 287.88 | I45: 371.27 | J45: 292.54 | K45: 294 | L45: 248.71 | N45: 310.8 | Q45: 192.52 | R45: 294 | S45: 274.92 | T45: 344.75 | U45: 271.13 | V45: 302.17 | W45: 230.54 | X45: 298.4 | Z45: 285.04 | AA45: 250.14 | AB45: 313.65 | AC45: 261.78 | AD45: 246.42 | AE45: 287.64
A46: 2005-09-18 | B46: 37 | C46: 240.3 | E46: 264.67 | F46: 290.63 | G46: 284.39 | I46: 371.27 | J46: 296.25 | K46: 292 | L46: 248.71 | N46: 309.09 | Q46: 187.61 | R46: 292.63 | T46: 344.75 | U46: 268.24 | V46: 297.05 | W46: 233.85 | X46: 297.7 | Z46: 284.92 | AA46: 253.18 | AB46: 301.49 | AC46: 262.66 | AD46: 247.79 | AE46: 287
A47: 2005-09-25 | B47: 38 | C47: 238.26 | E47: 263.94 | F47: 290.1 | G47: 279.59 | I47: 368.78 | J47: 294.97 | K47: 288 | L47: 249.72 | N47: 312.29 | Q47: 203.76 | R47: 290.47 | S47: 263.37 | T47: 344.75 | U47: 272.81 | V47: 295.24 | W47: 232.03 | X47: 302.7 | Z47: 285.5 | AA47: 248.21 | AB47: 306.3 | AC47: 256.22 | AD47: 246 | AE47: 285.13
A48: 2005-10-02 | B48: 39 | C48: 238.17 | E48: 258.58 | F48: 290.4 | G48: 277.99 | I48: 363.17 | J48: 295.59 | K48: 286 | L48: 238.54 | N48: 323.02 | P48: 169.4 | Q48: 195.58 | R48: 307.23 | S48: 258.87 | T48: 344.75 | U48: 265.27 | V48: 291.95 | W48: 226.64 | X48: 307.8 | Z48: 285.53 | AA48: 246.95 | AB48: 302.01 | AC48: 255.64 | AD48: 242.08 | AE48: 284.74
A49: 2005-10-09 | B49: 40 | C49: 237.4 | E49: 258.88 | F49: 290.4 | G49: 278.74 | I49: 363.18 | J49: 295.58 | K49: 286 | L49: 241.69 | N49: 329.29 | P49: 172.28 | Q49: 206.58 | R49: 295.27 | T49: 344.75 | U49: 263.97 | V49: 293 | W49: 224.82 | X49: 304.9 | Z49: 283.38 | AA49: 242.84 | AB49: 300.54 | AC49: 255.57 | AD49: 240.39 | AE49: 285.61
A50: 2005-10-16 | B50: 41 | C50: 238.62 | E50: 254.54 | F50: 291.32 | G50: 282.57 | I50: 368.91 | J50: 295.92 | K50: 289 | L50: 240.41 | N50: 329.45 | P50: 144.35 | Q50: 205.86 | R50: 293.9 | S50: 260.53 | T50: 344.75 | U50: 265.78 | V50: 295.26 | W50: 226.98 | X50: 308.1 | Z50: 284.54 | AA50: 239.63 | AB50: 307.61 | AC50: 251.53 | AD50: 238.74 | AE50: 287.19
A51: 2005-10-23 | B51: 42 | C51: 239.16 | E51: 245.36 | F51: 291.32 | G51: 285.84 | I51: 368.27 | J51: 297.76 | K51: 291 | L51: 252.4 | N51: 329.45 | P51: 134.99 | Q51: 205.6 | R51: 281.06 | T51: 344.75 | U51: 270.59 | V51: 297.79 | W51: 227.09 | X51: 306.6 | Z51: 279.46 | AA51: 247.87 | AB51: 307.5 | AC51: 251.34 | AD51: 240.57 | AE51: 288.75
A52: 2005-10-30 | B52: 43 | C52: 239.16 | E52: 251.67 | F52: 289.52 | G52: 286.08 | I52: 368.65 | J52: 301.76 | K52: 293 | L52: 251.85 | N52: 312.52 | P52: 129.24 | Q52: 200.85 | R52: 298.7 | T52: 344.75 | U52: 269.21 | V52: 296.94 | W52: 224 | X52: 310.6 | Z52: 277.34 | AA52: 244.79 | AB52: 303.75 | AC52: 249.13 | AD52: 245.59 | AE52: 287.51
A53: 2005-11-06 | B53: 44 | C53: 239.34 | E53: 251.59 | F53: 291.57 | G53: 286.4 | I53: 368.65 | J53: 306.5 | K53: 297 | L53: 255.99 | N53: 324.02 | P53: 155.08 | Q53: 195.17 | R53: 289.1 | S53: 259.37 | T53: 344.75 | U53: 274.84 | V53: 297.52 | W53: 223.98 | X53: 313.8 | Z53: 284.51 | AA53: 247.66 | AB53: 303.71 | AC53: 247.16 | AD53: 252.24 | AE53: 291.31
A54: 2005-11-13 | B54: 45 | C54: 241.21 | E54: 253.72 | F54: 289.64 | G54: 287.96 | I54: 372.5 | J54: 307.34 | K54: 300 | L54: 259.6 | N54: 328.43 | P54: 157.94 | Q54: 200.89 | R54: 276.26 | S54: 252.42 | T54: 344.75 | U54: 274.78 | V54: 297.68 | W54: 222.58 | X54: 314 | Z54: 284.43 | AA54: 249.36 | AB54: 302.34 | AC54: 251.48 | AD54: 260.89 | AE54: 293.4
A55: 2005-11-20 | B55: 46 | C55: 242.1 | E55: 252.98 | F55: 290.21 | G55: 290.07 | I55: 369.63 | J55: 307.65 | K55: 304 | L55: 261.61 | N55: 332.76 | P55: 157.98 | Q55: 214.44 | R55: 292.14 | S55: 247.29 | T55: 344.75 | U55: 265.92 | V55: 297.34 | W55: 222.11 | X55: 319.9 | Z55: 284.57 | AA55: 241.58 | AB55: 303.67 | AC55: 248.08 | AD55: 265.88 | AE55: 295.27
A56: 2005-11-27 | B56: 47 | C56: 242.46 | E56: 254.1 | F56: 291.29 | G56: 290.32 | I56: 370.553 | J56: 308.77 | K56: 306 | L56: 265.52 | N56: 336.99 | P56: 136.48 | Q56: 217.99 | R56: 292.14 | T56: 344.75 | U56: 283.21 | V56: 299.3 | W56: 225.01 | X56: 325.6 | Z56: 285.78 | AA56: 251.23 | AB56: 305.73 | AC56: 251.48 | AD56: 266.54 | AE56: 297.2
A57: 2005-12-04 | B57: 48 | C57: 242.55 | E57: 255.59 | F57: 290.55 | G57: 289.93 | I57: 372.05 | J57: 314.44 | K57: 310 | L57: 268.87 | N57: 333.81 | Q57: 224.66 | R57: 288.71 | S57: 251.24 | T57: 344.75 | U57: 277.44 | V57: 299.2 | W57: 227.47 | X57: 327.8 | Z57: 277.07 | AA57: 249.58 | AB57: 332.33 | AC57: 255.21 | AD57: 270.56 | AE57: 299.24
A58: 2005-12-11 | B58: 49 | C58: 245.66 | E58: 258.23 | F58: 290.19 | G58: 291.88 | I58: 370.74 | J58: 313.83 | K58: 311 | L58: 270.81 | N58: 323.87 | Q58: 230.17 | R58: 297.92 | S58: 246.23 | T58: 344.75 | U58: 279.37 | V58: 299 | W58: 228.27 | X58: 332.1 | Z58: 283.28 | AA58: 256.8 | AB58: 288.5 | AC58: 255.47 | AD58: 273.73 | AE58: 298.63
A59: 2005-12-18 | B59: 50 | C59: 246.29 | E59: 256.78 | F59: 294.34 | G59: 297.02 | I59: 371.01 | J59: 316.2 | K59: 312 | L59: 271.08 | N59: 330.7 | Q59: 231.99 | R59: 295.96 | S59: 249.37 | T59: 344.75 | U59: 280.53 | V59: 299.96 | W59: 229.91 | X59: 335.1 | Z59: 284.29 | AA59: 250.57 | AB59: 293.82 | AC59: 258.21 | AD59: 275.78 | AE59: 301.83
A60: 2005-12-25 | B60: 51 | C60: 246.2 | E60: 257.1 | F60: 285.37 | G60: 303.79 | I60: 370.1 | J60: 316 | K60: 310 | L60: 274.19 | N60: 322.64 | P60: 152.19 | Q60: 231.01 | R60: 291.94 | T60: 344.75 | U60: 277.82 | V60: 303.54 | W60: 229.56 | X60: 334 | Z60: 283.46 | AA60: 251.98 | AB60: 307.95 | AC60: 257.73 | AD60: 274.42 | AE60: 301.58
A61: 2006-01-01 | B61: 52 | C61: 246.29 | E61: 265.74 | F61: 296.25 | G61: 310.91 | I61: 369.24 | J61: 321.3 | K61: 310 | L61: 279.92 | N61: 314.53 | P61: 168.84 | Q61: 230.22 | R61: 294 | T61: 344.75 | U61: 276.41 | V61: 310.72 | W61: 232.24 | X61: 343.8 | Z61: 284.86 | AA61: 252.67 | AB61: 295.78 | AC61: 262 | AD61: 273.87 | AE61: 304.1
A65: Young Bulls | B65: R3
A67: 2006
C68: B | E68: CZK | F68: DK | G68: G | H68: EE | I68: Gr | J68: Sp | K68: Fr | L68: IR | M68: HR | N68: IT | P68: LVL | Q68: LTL | R68: Lux | S68: HUF | T68: MTL | U68: NL | V68: Aus | W68: PLN | X68: P | Y68: ROM | Z68: SIT | AA68: SKK | AB68: F | AC68: SW | AD68: UK | AE68: EU ave
A70: w/e | C70: euro per 100 kg dw
A72: 2006-01-08 | B72: 1 | C72: 252.8 | E72: 256.56 | F72: 286.43 | G72: 309.97 | I72: 366.75 | J72: 323.6 | K72: 316 | L72: 279.36 | N72: 324.59 | P72: 168.08 | Q72: 224.4 | R72: 295.76 | S72: 263.92 | T72: 344.75 | U72: 278.24 | V72: 314.26 | W72: 238.15 | X72: 341.2 | Z72: 283.91 | AA72: 250.67 | AB72: 315.08 | AC72: 262.68 | AD72: 271.5 | AE72: 306.84
A73: 2006-01-15 | B73: 2 | C73: 256.22 | E73: 249.56 | F73: 283.81 | G73: 306.8 | I73: 375.65 | J73: 326.4 | K73: 322 | L73: 281.3 | N73: 315.25 | P73: 183.74 | Q73: 221.77 | R73: 294.49 | S73: 241.8 | T73: 344.75 | U73: 274.81 | V73: 312.4 | W73: 239.21 | X73: 345.1 | Z73: 284.63 | AA73: 254.75 | AB73: 322.28 | AC73: 263.6 | AD73: 273.58 | AE73: 306.52
A74: 2006-01-22 | B74: 3 | C74: 255.25 | E74: 260.93 | F74: 295.93 | G74: 310.53 | I74: 373.64 | J74: 328.1 | K74: 326 | L74: 280.5 | N74: 316.36 | P74: 168.11 | Q74: 221.24 | R74: 290.28 | S74: 261.65 | T74: 347.78 | U74: 285.19 | V74: 311.82 | W74: 239.28 | X74: 347.4 | Z74: 286.94 | AA74: 256.85 | AB74: 304.77 | AC74: 263.07 | AD74: 268.36 | AE74: 308.57
A75: 2006-01-29 | B75: 4 | C75: 256.38 | E75: 266.91 | F75: 303.52 | G75: 318.44 | I75: 370.71 | J75: 331.4 | K75: 329 | L75: 278.66 | N75: 319.01 | Q75: 222.98 | R75: 299.49 | T75: 347.78 | U75: 293.27 | V75: 315.6 | W75: 239.96 | X75: 347.5 | Z75: 286.85 | AA75: 254.99 | AB75: 303.05 | AC75: 268.48 | AD75: 269.65 | AE75: 312.88
A76: 2006-02-05 | B76: 5 | C76: 256.91 | E76: 267.65 | F76: 302.37 | G76: 320.19 | I76: 371.43 | J76: 331.3 | K76: 333 | L76: 280.04 | N76: 314.75 | P76: 195.7 | Q76: 230.91 | R76: 309.88 | T76: 347.78 | U76: 297.47 | V76: 315.89 | W76: 241.95 | X76: 345.7 | Z76: 287.75 | AA76: 255.33 | AB76: 304.22 | AC76: 271.64 | AD76: 269.28 | AE76: 313.22
A77: 2006-02-12 | B77: 6 | C77: 257.29 | E77: 268.52 | F77: 308.34 | G77: 320.48 | I77: 378.86 | J77: 334.01 | K77: 338 | L77: 280.79 | N77: 341.81 | P77: 189.35 | Q77: 222.71 | R77: 299.49 | S77: 249.27 | T77: 347.78 | U77: 286.93 | V77: 316.99 | W77: 243.46 | X77: 351.9 | Z77: 288.63 | AA77: 254.62 | AB77: 299.68 | AC77: 272.61 | AD77: 270.17 | AE77: 318.69
A78: 2006-02-19 | B78: 7 | C78: 256.93 | E78: 270.99 | F78: 315.59 | G78: 323.43 | I78: 277.03 | J78: 332.71 | K78: 339 | L78: 281.57 | N78: 350.62 | P78: 191.02 | Q78: 224.84 | R78: 297.04 | T78: 347.78 | U78: 291.7 | V78: 318.43 | W78: 248.6 | X78: 357.1 | Z78: 287.91 | AA78: 254.88 | AB78: 304.47 | AC78: 267.38 | AD78: 271.14 | AE78: 321.21
A79: 2006-02-26 | B79: 8 | C79: 256 | E79: 268.16 | F79: 317.34 | G79: 326.39 | I79: 375.26 | J79: 333.73 | K79: 341 | L79: 283.29 | N79: 344.11 | P79: 186.49 | Q79: 224.77 | R79: 292.13 | T79: 34.78 | U79: 288.43 | V79: 320.96 | W79: 253.53 | X79: 349.6 | Z79: 289.49 | AA79: 248.93 | AB79: 310.44 | AC79: 268.68 | AD79: 272.92 | AE79: 321.87
A80: 2006-03-05 | B80: 9 | C80: 256.67 | E80: 271.25 | F80: 317.66 | G80: 330.9 | I80: 377.16 | J80: 334.76 | K80: 343 | L80: 285.79 | N80: 366.3 | Q80: 219.94 | R80: 289.1 | T80: 347.78 | U80: 302.53 | V80: 321.2 | W80: 250.39 | X80: 351.8 | Z80: 289.72 | AA80: 255.68 | AB80: 303.53 | AC80: 265.85 | AD80: 272.97 | AE80: 326.96
A81: 2006-03-12 | B81: 10 | C81: 257.17 | E81: 262.61 | F81: 318.49 | G81: 338.17 | I81: 378.71 | J81: 335.06 | K81: 344 | L81: 285.93 | N81: 386.43 | P81: 180.74 | Q81: 222.22 | R81: 311.35 | T81: 347.78 | U81: 293 | V81: 324.83 | W81: 245.45 | X81: 357.4 | Z81: 289.51 | AA81: 256.94 | AB81: 306.34 | AC81: 265.17 | AD81: 274.21 | AE81: 331.06
A82: 2006-03-19 | B82: 11 | C82: 257.27 | E82: 264.63 | F82: 318.32 | G82: 341.11 | I82: 373.46 | J82: 333.19 | K82: 346 | L82: 287.38 | N82: 376.23 | P82: 176.71 | Q82: 224.25 | R82: 328.2 | T82: 347.78 | U82: 292.05 | V82: 328.05 | W82: 245.29 | X82: 361.2 | Z82: 292.51 | AA82: 246.39 | AB82: 307.21 | AC82: 274.09 | AD82: 271.55 | AE82: 330.39
A83: 2006-03-26 | B83: 12 | C83: 258.25 | E83: 269.44 | F83: 317.09 | G83: 338.99 | I83: 380.26 | J83: 332 | K83: 347 | L83: 288.21 | N83: 381.76 | Q83: 223.11 | R83: 319.97 | T83: 347.78 | U83: 286.48 | V83: 328.29 | W83: 248.37 | X83: 355.3 | Z83: 291.89 | AA83: 259.53 | AB83: 302.64 | AC83: 272 | AD83: 273.28 | AE83: 331.37
A84: 2006-04-02 | B84: 13 | C84: 260.7 | E84: 270.63 | F84: 314.4 | G84: 334.4 | I84: 377.41 | J84: 335.78 | K84: 348 | L84: 288.78 | N84: 379.08 | P84: 164.13 | Q84: 222.29 | R84: 326.34 | T84: 347.78 | U84: 300.76 | V84: 328.07 | W84: 244.35 | X84: 354.8 | Z84: 291.81 | AA84: 256.58 | AB84: 304.99 | AC84: 270.68 | AD84: 273.61 | AE84: 330.08
A85: 2006-04-09 | B85: 14 | C85: 261.29 | E85: 270.29 | F85: 316.9 | G85: 328.66 | I85: 382.05 | J85: 332.84 | K85: 348 | L85: 291.45 | N85: 368.33 | P85: 165.42 | Q85: 229.6 | R85: 323.89 | T85: 347.78 | U85: 297.6 | V85: 323.88 | W85: 242.37 | X85: 354.6 | Z85: 290.74 | AA85: 264.5 | AB85: 294.67 | AC85: 274.04 | AD85: 276.21 | AE85: 326.58
A86: 2006-04-16 | B86: 15 | C86: 261.39 | E86: 273.93 | F86: 315.588 | G86: 328.51 | I86: 379.26 | J86: 322.57 | K86: 346 | L86: 292.27 | N86: 365.28 | P86: 158.03 | Q86: 232.02 | R86: 314.68 | T86: 347.78 | U86: 297.44 | V86: 319.61 | W86: 241.73 | X86: 354 | Z86: 288.9 | AA86: 259.82 | AB86: 296.13 | AC86: 269.61 | AD86: 283.5 | AE86: 323.75
A87: 2006-04-23 | B87: 16 | C87: 262.28 | E87: 275.06 | F87: 317.89 | G87: 331.21 | I87: 378.98 | J87: 331.37 | K87: 344 | L87: 294.04 | N87: 366.22 | P87: 163.78 | Q87: 233.17 | R87: 317.42 | T87: 347.78 | U87: 295.35 | V87: 320.46 | W87: 246.34 | X87: 357.9 | Z87: 290.61 | AA87: 264.61 | AB87: 304.86 | AC87: 278.78 | AD87: 285.03 | AE87: 326.73
A88: 2006-04-30 | B88: 17 | C88: 262.38 | E88: 278.03 | F88: 318.07 | G88: 330.4 | I88: 384.32 | J88: 332.56 | K88: 341 | L88: 294.79 | N88: 366.75 | P88: 159.47 | Q88: 239.29 | R88: 299.49 | T88: 347.78 | U88: 305.79 | V88: 320.12 | W88: 248.7 | X88: 355 | Z88: 294.12 | AA88: 261.16 | AB88: 297.49 | AC88: 278.61 | AD88: 285.2 | AE88: 326.75
A89: 2006-05-07 | B89: 18 | C89: 264.63 | E89: 276.53 | F89: 323.41 | G89: 326.26 | I89: 387.81 | J89: 333.36 | K89: 338 | L89: 296.24 | N89: 365.23 | P89: 168.02 | Q89: 234.12 | R89: 332.3 | T89: 347.78 | U89: 295.13 | V89: 320.46 | W89: 251.13 | X89: 356.6 | Z89: 292.88 | AA89: 254.32 | AB89: 299.94 | AC89: 279.08 | AD89: 288.02 | AE89: 326.85
A90: 2006-05-14 | B90: 19 | C90: 264.83 | E90: 278.4 | F90: 323.87 | G90: 321.06 | I90: 387.81 | J90: 332.85 | K90: 334 | L90: 295.941 | N90: 375.28 | Q90: 239.83 | R90: 313.6 | T90: 347.78 | U90: 304.58 | V90: 319.47 | W90: 249.52 | X90: 354.3 | Z90: 293.32 | AA90: 257.44 | AB90: 302.42 | AC90: 279.8 | AD90: 293.87 | AE90: 327.18
A91: 2006-05-21 | B91: 20 | C91: 265.62 | E91: 277.26 | F91: 328.78 | G91: 315.62 | I91: 387.99 | J91: 330.37 | K91: 332 | L91: 295.14 | N91: 367.84 | Q91: 242.7 | R91: 308.7 | T91: 347.78 | U91: 303.92 | V91: 314.7 | W91: 245.62 | X91: 354.4 | Z91: 291.85 | AA91: 254.03 | AB91: 298.03 | AC91: 277.02 | AD91: 296.12 | AE91: 323.62
A92: 2006-05-28 | B92: 21 | C92: 270.01 | E92: 282.82 | F92: 327.76 | G92: 311.66 | I92: 386.63 | J92: 325.17 | K92: 332 | L92: 294.51 | N92: 357.72 | Q92: 242.44 | R92: 308.7 | T92: 347.78 | U92: 302.51 | V92: 311.29 | W92: 243.86 | X92: 353.1 | Z92: 291.79 | AA92: 257.67 | AB92: 301.83 | AC92: 276.98 | AD92: 296.41 | AE92: 319.94
A93: 2006-06-04 | B93: 22 | C93: 270.9 | E93: 282.99 | F93: 329.31 | G93: 308.4 | I93: 390.2 | J93: 321.67 | K93: 331 | L93: 293.87 | N93: 358.05 | P93: 164.24 | Q93: 237.42 | R93: 332.3 | T93: 347.78 | U93: 301.51 | V93: 310.15 | W93: 244.05 | X93: 349.8 | Z93: 291.72 | AA93: 252.98 | AB93: 308.47 | AC93: 279.98 | AD93: 292.19 | AE93: 317.66
A94: 2006-06-11 | B94: 23 | C94: 271.59 | E94: 278.55 | F94: 331.05 | G94: 306.21 | I94: 389.6 | J94: 325.5 | K94: 330 | L94: 294.02 | N94: 359.01 | Q94: 235.32 | R94: 320.75 | T94: 347.78 | U94: 291.43 | V94: 308.73 | W94: 244.04 | X94: 344.7 | Z94: 289.51 | AA94: 249.57 | AB94: 299.78 | AC94: 283.41 | AD94: 291.13 | AE94: 318.21
A95: 2006-06-18 | B95: 24 | C95: 272.28 | E95: 278.49 | F95: 329.72 | G95: 305.84 | I95: 390.3 | J95: 322.08 | K95: 330 | L95: 294.13 | N95: 361.39 | P95: 162.34 | Q95: 235.23 | R95: 327.71 | T95: 347.78 | U95: 290.6 | V95: 310.98 | W95: 240.52 | X95: 346.9 | Z95: 293.08 | AA95: 260.95 | AB95: 303.24 | AC95: 281.74 | AD95: 295.59 | AE95: 317.33
A96: 2006-06-25 | B96: 25 | C96: 272.18 | E96: 272.85 | F96: 327.83 | G96: 307.96 | I96: 389 | J96: 307.06 | K96: 328 | L96: 294.56 | N96: 355.07 | Q96: 238.49 | R96: 311.05 | T96: 347.78 | U96: 304.52 | V96: 308.43 | W96: 244.45 | X96: 339.1 | Z96: 293.99 | AA96: 257.33 | AB96: 306.33 | AC96: 280.81 | AD96: 296.51 | AE96: 313.92
A97: 2006-07-02 | B97: 26 | C97: 269.84 | E97: 273.21 | F97: 321.95 | G97: 304.95 | I97: 392.8 | J97: 314.2 | K97: 325 | L97: 292.62 | N97: 355.07 | Q97: 239.55 | R97: 321.44 | T97: 347.78 | U97: 306.73 | V97: 308.4 | W97: 240.09 | X97: 343.6 | Z97: 294.15 | AA97: 252.84 | AB97: 303.23 | AC97: 284.04 | AD97: 296.9 | AE97: 314.16
A98: 2006-07-09 | B98: 27 | C98: 269.54 | E98: 280.01 | F98: 323.88 | G98: 297.25 | I98: 393.4 | J98: 300.44 | K98: 321 | L98: 291.27 | N98: 348.99 | Q98: 235.6 | R98: 312.13 | T98: 366.88 | U98: 295.31 | V98: 304.6 | W98: 242.87 | X98: 339.3 | Z98: 295.11 | AA98: 258.41 | AB98: 303.7 | AC98: 283.08 | AD98: 294.8 | AE98: 307.87
A99: 2006-07-16 | B99: 28 | C99: 269.14 | E99: 275.65 | F99: 321.21 | G99: 289.92 | I99: 393.19 | J99: 300.44 | K99: 317 | L99: 288.62 | N99: 350.92 | Q99: 225.67 | R99: 312.62 | T99: 366.88 | U99: 298.95 | V99: 298.41 | W99: 235.43 | X99: 334.4 | Z99: 294.38 | AA99: 260.84 | AB99: 303.7 | AC99: 282.91 | AD99: 293.14 | AE99: 304.93
A100: 2006-07-23 | B100: 29 | C100: 269.04 | E100: 276.03 | F100: 317.03 | G100: 289.78 | I100: 397.6 | J100: 315.1 | K100: 315 | L100: 287.39 | N100: 356.19 | P100: 165.23 | Q100: 220.04 | R100: 323.6 | T100: 366.88 | U100: 300.94 | V100: 297.29 | W100: 234.73 | X100: 330.8 | Z100: 292.86 | AA100: 262.71 | AB100: 304.36 | AC100: 282.29 | AD100: 292.36 | AE100: 307.83
A101: 2006-07-30 | B101: 30 | C101: 268.75 | E101: 276.57 | F101: 317.38 | G101: 294.46 | I101: 397.56 | J101: 314.24 | K101: 314 | L101: 281.76 | N101: 351.16 | Q101: 202.64 | R101: 305.66 | T101: 366.88 | U101: 289.16 | V101: 300.4 | W101: 238.7 | X101: 328.6 | Z101: 294.17 | AA101: 266.02 | AB101: 309.46 | AC101: 281.97 | AD101: 289.51 | AE101: 308.39
A102: 2006-08-06 | B102: 31 | C102: 268.25 | E102: 270.24 | F102: 314.68 | G102: 294.62 | I102: 398.4 | J102: 315.68 | K102: 314 | L102: 281.02 | N102: 344.05 | P102: 173.09 | Q102: 200.16 | R102: 308.5 | T102: 366.88 | U102: 299.45 | V102: 300.43 | W102: 239.4 | X102: 332.1 | Z102: 291.72 | AA102: 255.93 | AB102: 310.67 | AC102: 281.66 | AD102: 285.4 | AE102: 307.03
A103: 2006-08-13 | B103: 32 | C103: 268.15 | E103: 270.37 | F103: 328.78 | G103: 296.75 | I103: 398.09 | J103: 315.31 | K103: 314 | L103: 278.55 | N103: 344.05 | Q103: 196.93 | R103: 308.5 | T103: 366.88 | U103: 293 | V103: 298.81 | W103: 237.94 | X103: 335 | Z103: 289.43 | AA103: 266.31 | AB103: 302.78 | AC103: 282.54 | AD103: 282.05 | AE103: 307.69
A104: 2006-08-20 | B104: 33 | C104: 268.15 | E104: 272.24 | F104: 328.24 | G104: 298.66 | I104: 396.75 | J104: 316.43 | K104: 316 | L104: 280.63 | N104: 354.65 | Q104: 209.43 | R104: 310.37 | T104: 366.88 | U104: 294.41 | V104: 302.64 | W104: 239.69 | X104: 337.1 | Z104: 290.83 | AA104: 264.23 | AB104: 316.32 | AC104: 280.83 | AD104: 281.31 | AE104: 310.57
A105: 2006-08-27 | B105: 34 | C105: 268.15 | E105: 268.88 | F105: 324.35 | G105: 301.38 | I105: 400.81 | J105: 318.49 | K105: 318 | L105: 280.79 | N105: 347.22 | Q105: 213.43 | R105: 323.2 | T105: 366.88 | U105: 306.94 | V105: 307.07 | W105: 240.55 | X105: 348.5 | Z105: 287.94 | AA105: 263.36 | AB105: 319.64 | AC105: 284.33 | AD105: 287.81 | AE105: 311.63
A106: 2006-09-03 | B106: 35 | C106: 268.45 | E106: 267.12 | F106: 320.77 | G106: 300.38 | I106: 398.08 | J106: 322.67 | K106: 319 | L106: 281.32 | N106: 343.55 | Q106: 216.35 | R106: 307.82 | T106: 366.88 | U106: 311.98 | V106: 313.16 | W106: 243.59 | X106: 346 | Z106: 288.65 | AA106: 263.05 | AB106: 308.96 | AC106: 281.32 | AD106: 292.77 | AE106: 312.35
A107: 2006-09-10 | B107: 36 | C107: 268.45 | E107: 263.96 | F107: 329.74 | G107: 298.64 | I107: 398 | J107: 328.41 | K107: 318 | L107: 283.4 | N107: 341.72 | P107: 155.15 | Q107: 217.18 | R107: 313.7 | T107: 366.88 | U107: 253.27 | V107: 313.08 | W107: 243.26 | X107: 359.1 | Z107: 286.88 | AA107: 273.02 | AB107: 308.81 | AC107: 276.89 | AD107: 297 | AE107: 312.25
A108: 2006-09-17 | B108: 37 | C108: 268.45 | E108: 266.11 | F108: 329.6 | G108: 294.26 | I108: 396.63 | J108: 329.35 | K108: 314 | L108: 283.7 | N108: 336.67 | P108: 172.6 | Q108: 217.69 | R108: 297.72 | T108: 366.88 | U108: 304.42 | V108: 307.94 | W108: 244.1 | X108: 361.8 | Z108: 293.44 | AA108: 263.98 | AB108: 318.9 | AC108: 281.45 | AD108: 298.72 | AE108: 310.63
A109: 2006-09-24 | B109: 38 | C109: 268.45 | E109: 265.04 | F109: 325.18 | G109: 293.24 | I109: 400.52 | J109: 330.05 | K109: 311 | L109: 286.25 | N109: 336.61 | P109: 193.95 | Q109: 212.91 | R109: 305.37 | T109: 366.88 | U109: 287.48 | V109: 301.58 | W109: 242.08 | X109: 362.6 | Z109: 292.06 | AA109: 226.76 | AB109: 313.49 | AC109: 282.96 | AD109: 301.01 | AE109: 309.75
A110: 2006-10-01 | B110: 39 | C110: 268.25 | E110: 262.62 | F110: 323.23 | G110: 297.27 | I110: 399.93 | J110: 331.29 | K110: 308 | L110: 285.67 | N110: 336.61 | P110: 172.8 | Q110: 207.52 | R110: 291.35 | T110: 366.88 | U110: 306.23 | V110: 304.42 | W110: 240.32 | X110: 368.3 | Z110: 294.45 | AA110: 262.52 | AB110: 309.1 | AC110: 279.04 | AD110: 298.58 | AE110: 310.41
A111: 2006-10-08 | B111: 40 | C111: 268.35 | E111: 263.52 | F111: 326.69 | G111: 300.2 | I111: 399.93 | J111: 330.08 | K111: 306 | L111: 286.92 | N111: 341.13 | P111: 179.58 | Q111: 208.31 | R111: 303.51 | T111: 366.88 | U111: 292.93 | V111: 309.48 | W111: 240.8 | X111: 361.3 | Z111: 293.28 | AA111: 261.5 | AB111: 314.63 | AC111: 277.29 | AD111: 296.49 | AE111: 311.11
A112: 2006-10-15 | B112: 41 | C112: 268.25 | E112: 260.39 | F112: 328.08 | G112: 299.8 | I112: 402.13 | J112: 330.86 | K112: 307 | L112: 288.38 | N112: 336.34 | P112: 163.78 | Q112: 195.08 | R112: 305.86 | T112: 366.88 | U112: 298.33 | V112: 309.27 | W112: 242.34 | X112: 362.4 | Z112: 295.31 | AA112: 263.41 | AB112: 313.83 | AC112: 281.55 | AD112: 294.26 | AE112: 310.75
A113: 2006-10-22 | B113: 42 | C113: 266.2 | E113: 261.83 | F113: 326.88 | G113: 296.32 | I113: 404.39 | J113: 331.83 | K113: 310 | L113: 285.41 | N113: 338.44 | Q113: 198.69 | R113: 293.02 | T113: 366.88 | U113: 293.53 | V113: 309.7 | W113: 242.58 | X113: 363.4 | Z113: 295.44 | AA113: 265.15 | AB113: 308.08 | AC113: 280.97 | AD113: 294.33 | AE113: 311.51
A114: 2006-10-29 | B114: 43 | C114: 264.92 | E114: 262.89 | F114: 322.2 | G114: 293.82 | I114: 404.39 | J114: 331.14 | K114: 312 | L114: 285.28 | N114: 331.56 | P114: 172.4 | Q114: 185.35 | R114: 293.02 | T114: 366.88 | U114: 297.73 | V114: 305.97 | W114: 240.1 | X114: 360.6 | Z114: 296.22 | AA114: 247.73 | AB114: 312.58 | AC114: 280.99 | AD114: 295.49 | AE114: 309.29
A115: 2006-11-05 | B115: 44 | C115: 264.52 | E115: 267.92 | F115: 321.55 | G115: 294.7 | I115: 404.12 | J115: 330.5 | K115: 313 | L115: 286.36 | N115: 339.48 | P115: 178.6 | Q115: 188.88 | R115: 292.73 | T115: 366.88 | U115: 264.23 | V115: 307.21 | W115: 239.27 | X115: 363.9 | Z115: 293.53 | AA115: 225.82 | AB115: 309.38 | AC115: 282.61 | AD115: 299.55 | AE115: 310.73
A116: 2006-11-12 | B116: 45 | C116: 266.17 | E116: 268.46 | F116: 323.18 | G116: 299.83 | I116: 201 | J116: 331.97 | K116: 314 | L116: 286.03 | N116: 334.17 | Q116: 189.37 | R116: 311.74 | T116: 366.88 | U116: 294.37 | V116: 307.75 | W116: 243.92 | X116: 366.5 | Z116: 288.73 | AB116: 313.46 | AC116: 286.01 | AD116: 299.35 | AE116: 312.77
A117: 2006-11-19 | B117: 46 | C117: 265.77 | E117: 264.55 | F117: 316.16 | G117: 302.69 | I117: 404.19 | J117: 333.88 | K117: 314 | L117: 287.21 | N117: 329.13 | P117: 165 | Q117: 197.07 | R117: 303.02 | T117: 366.88 | U117: 291.67 | V117: 308.67 | W117: 244.23 | X117: 363.7 | Z117: 285.77 | AA117: 262.5 | AB117: 308.82 | AC117: 285.68 | AD117: 299.48 | AE117: 312.3
A118: 2006-11-26 | B118: 47 | C118: 265.77 | E118: 264.26 | F118: 318.81 | G118: 303.57 | I118: 400.83 | J118: 331.27 | K118: 314 | L118: 285.3 | N118: 323.16 | Q118: 207.28 | R118: 294.49 | T118: 366.88 | U118: 302 | V118: 313.27 | W118: 244.76 | X118: 365.9 | Z118: 272.79 | AA118: 267.69 | AB118: 312.61 | AC118: 288.55 | AD118: 299.56 | AE118: 311.71
A119: 2006-12-03 | B119: 48 | C119: 264.49 | E119: 266.09 | F119: 319.4 | G119: 302.78 | I119: 404.67 | J119: 334.13 | K119: 312 | L119: 286.88 | N119: 324.07 | P119: 179.6 | Q119: 220.09 | R119: 320.17 | T119: 366.88 | U119: 298.48 | V119: 312.65 | W119: 246.66 | X119: 372.2 | Z119: 288.46 | AA119: 264.78 | AB119: 309.58 | AC119: 287.66 | AD119: 297.98 | AE119: 311.93
A120: 2006-12-10 | B120: 49 | C120: 264.49 | E120: 267.13 | F120: 318.81 | G120: 301.64 | I120: 407.01 | J120: 328.98 | K120: 311 | L120: 282.62 | N120: 330.29 | P120: 190.48 | Q120: 224.66 | R120: 309.29 | S120: 248.59 | T120: 366.88 | U120: 306.64 | V120: 311.39 | W120: 245.25 | X120: 372 | Z120: 284.02 | AA120: 265.84 | AB120: 312.95 | AC120: 289.44 | AD120: 297.03 | AE120: 311.09
A121: 2006-12-17 | B121: 50 | C121: 264.39 | E121: 268.26 | F121: 314.84 | G121: 302.66 | I121: 403.46 | J121: 339.74 | K121: 311 | L121: 280.64 | N121: 336.11 | Q121: 212.45 | R121: 300.37 | T121: 366.88 | U121: 253.49 | V121: 312.23 | W121: 241.22 | X121: 371.2 | Z121: 279.64 | AA121: 267.45 | AB121: 302.96 | AC121: 291.03 | AD121: 297.34 | AE121: 314.34
A122: 2006-12-24 | B122: 51 | C122: 264.39 | E122: 268.68 | F122: 317.56 | G122: 302.66 | I122: 401.52 | J122: 339.74 | K122: 312 | L122: 284.04 | N122: 337.28 | Q122: 201.74 | R122: 317.52 | T122: 366.88 | U122: 279.91 | V122: 311.9 | W122: 240.23 | X122: 372.9 | Z122: 271.69 | AA122: 270.05 | AB122: 326.38 | AC122: 294.79 | AD122: 298.25 | AE122: 314.9
A123: 2006-12-31 | B123: 52 | C123: 264.09 | E123: 271.11 | F123: 317.11 | G123: 309.79 | I123: 407.74 | J123: 339.74 | K123: 313 | L123: 288.23 | N123: 333.63 | P123: 183.56 | R123: 313.6 | T123: 366.88 | U123: 301.75 | V123: 318.78 | W123: 242.93 | X123: 371.4 | Z123: 280.05 | AA123: 263.92 | AB123: 295.99 | AC123: 290.24 | AD123: 294.18 | AE123: 316.15
A127: Young Bulls | B127: R3
A129: 2007
C130: B | E130: CZK | F130: DK | G130: G | H130: EE | I130: Gr | J130: Sp | K130: Fr | L130: IR | M130: HR | N130: IT | P130: LVL | Q130: LTL | R130: Lux | S130: HUF | T130: MTL | U130: NL | V130: Aus | W130: PLN | X130: P | Y130: ROM | Z130: SIT | AA130: SKK | AB130: F | AC130: SW | AD130: UK | AE130: EU ave
A132: w/e | C132: euro per 100 kg dw
A134: 2007-01-07 | B134: 1 | C134: 262.2 | E134: 270.9 | F134: 314 | G134: 308 | H134: 247.7 | I134: 403.4 | J134: 342.1 | K134: 316 | L134: 287.6 | N134: 329.8 | Q134: 207.2 | R134: 317.3 | T134: 366.9 | U134: 300.5 | V134: 317.8 | W134: 244.2 | X134: 379.2 | Y134: 185.87 | Z134: 310.9 | AA134: 272.4 | AB134: 334.8 | AC134: 289.2 | AD134: 295.9 | AE134: 315.1
A135: 2007-01-14 | B135: 2 | C135: 262 | E135: 267.5 | F135: 310.2 | G135: 306.2 | I135: 399.7 | J135: 341.9 | K135: 317 | L135: 285.4 | N135: 325.8 | P135: 160.5 | Q135: 212 | R135: 301 | T135: 366.9 | U135: 296.1 | V135: 317.8 | W135: 247.2 | X135: 381.6 | Y135: 201.89 | Z135: 312 | AA135: 268.3 | AB135: 327.8 | AC135: 289.2 | AD135: 297.7 | AE135: 314.4
A136: 2007-01-21 | B136: 3 | C136: 261.5 | E136: 270.9 | F136: 308.7 | G136: 305.7 | H136: 237.6 | I136: 398.7 | J136: 344.5 | K136: 316 | L136: 286.4 | N136: 333.7 | P136: 188 | Q136: 206.5 | R136: 312.6 | S136: 249.9 | T136: 366.9 | U136: 299.9 | V136: 314.4 | W136: 245.9 | X136: 384.4 | Y136: 187.9 | Z136: 306 | AA136: 266.5 | AB136: 324 | AC136: 291.8 | AD136: 301.5 | AE136: 315.5
A137: 2007-01-28 | B137: 4 | C137: 261.1 | E137: 266.4 | F137: 308.7 | G137: 306.4 | I137: 398.2 | J137: 343.1 | K137: 314 | L137: 286.6 | N137: 328.6 | P137: 186.4 | Q137: 210 | R137: 296.8 | T137: 366.9 | U137: 300.6 | V137: 310.9 | W137: 244.3 | X137: 384.8 | Y137: 194.2 | Z137: 303.2 | AA137: 259.3 | AB137: 317.9 | AC137: 292.7 | AD137: 301.9 | AE137: 314.2
A138: 2007-02-04 | B138: 5 | C138: 258.8 | E138: 264.4 | F138: 313.9 | G138: 310.2 | I138: 398 | J138: 349.5 | K138: 312 | L138: 286.7 | N138: 330.7 | P138: 189.5 | Q138: 199.9 | R138: 302.6 | T138: 366.9 | U138: 287.5 | V138: 312.6 | W138: 239.9 | X138: 389.2 | Y138: 199.4 | Z138: 308.4 | AA138: 259.4 | AB138: 326.6 | AC138: 296.1 | AD138: 298 | AE138: 316.2
A139: 2007-02-11 | B139: 6 | C139: 259.1 | E139: 267 | F139: 314 | G139: 312.8 | I139: 395.9 | J139: 351.2 | K139: 311 | L139: 285.8 | N139: 311.6 | P139: 179.1 | Q139: 195.7 | R139: 295.5 | T139: 366.9 | U139: 298.7 | V139: 314.8 | W139: 245.2 | X139: 289.6 | Y139: 199.3 | Z139: 301.9 | AA139: 260.5 | AB139: 324.9 | AC139: 292.8 | AD139: 297.3 | AE139: 314.5
A140: 2007-02-18 | B140: 7 | C140: 258.4 | E140: 263.4 | F140: 317.1 | G140: 314.9 | I140: 395.2 | J140: 345.6 | K140: 311 | L140: 285.7 | N140: 324.3 | P140: 175.4 | Q140: 190.7 | R140: 301.5 | S140: 247.7 | T140: 366.9 | U140: 298 | V140: 316.8 | W140: 242.6 | X140: 388.7 | Y140: 209.2 | Z140: 302.4 | AA140: 264.8 | AB140: 305.7 | AC140: 291.6 | AD140: 295.3 | AE140: 315.3
A141: 2007-02-25 | B141: 8 | C141: 257.8 | E141: 266.8 | F141: 306.9 | G141: 314.7 | I141: 395.9 | J141: 347.4 | K141: 309 | L141: 285.3 | N141: 325.1 | P141: 181.6 | Q141: 189.8 | R141: 294 | S141: 250.4 | T141: 366.9 | U141: 290.3 | V141: 316.5 | W141: 243.9 | X141: 382.7 | Y141: 175.2 | Z141: 299.3 | AA141: 264.4 | AB141: 321.6 | AC141: 286.3 | AD141: 294 | AE141: 314.7
A142: 2007-03-04 | B142: 9 | C142: 257.5 | E142: 264.1 | F142: 307.6 | G142: 314.7 | I142: 402.4 | J142: 345.2 | K142: 307 | L142: 285.3 | N142: 322.7 | P142: 184 | Q142: 186 | R142: 251.7 | T142: 366.9 | U142: 296.2 | V142: 315.9 | W142: 243.6 | X142: 388.8 | Y142: 175.6 | Z142: 294.7 | AA142: 266.5 | AB142: 323.4 | AC142: 288.3 | AD142: 291.6 | AE142: 313.8
A143: 2007-03-11 | B143: 10 | C143: 256.5 | E143: 265.7 | F143: 311.6 | G143: 312.4 | I143: 406.1 | J143: 344.5 | K143: 305 | L143: 282.9 | N143: 330.5 | Q143: 193.6 | R143: 299.4 | S143: 252.6 | T143: 358.3 | U143: 293.9 | V143: 316.8 | W143: 241.7 | X143: 390.4 | Y143: 179.9 | Z143: 293.9 | AA143: 275 | AB143: 332 | AC143: 283.1 | AD143: 288 | AE143: 314.2
A144: 2007-03-18 | B144: 11 | C144: 256 | E144: 268.3 | F144: 312.2 | G144: 307.8 | I144: 405 | J144: 342.6 | K144: 302 | L144: 282.9 | N144: 327.8 | Q144: 192.2 | R144: 306.5 | T144: 358.3 | U144: 294 | V144: 313 | W144: 240.7 | X144: 388.6 | Y144: 199.6 | Z144: 295 | AA144: 262.7 | AB144: 323.5 | AC144: 286.8 | AD144: 287.5 | AE144: 312.1
A145: 2007-03-25 | B145: 12 | C145: 254.9 | E145: 272 | F145: 316 | G145: 302.6 | I145: 399.6 | J145: 338.6 | K145: 298 | L145: 285.6 | N145: 332.1 | P145: 159.5 | Q145: 189.9 | R145: 309.7 | S145: 258.5 | T145: 358.3 | U145: 289.6 | V145: 313.9 | W145: 241.1 | X145: 383.8 | Y145: 194.2 | Z145: 293.1 | AA145: 269.8 | AB145: 327.1 | AC145: 287.4 | AD145: 289.3 | AE145: 309.4
A146: 2007-04-01 | B146: 13 | C146: 254.5 | E146: 268.8 | F146: 298.2 | G146: 300 | I146: 393 | J146: 338.6 | K146: 293 | L146: 286.3 | N146: 328.5 | P146: 153.6 | Q146: 180.2 | R146: 309.7 | S146: 264.6 | T146: 358.3 | U146: 297.4 | V146: 306.3 | W146: 237.1 | X146: 382.1 | Y146: 187 | Z146: 292.9 | AA146: 267.9 | AB146: 313.8 | AC146: 279.6 | AD146: 290.7 | AE146: 306.3
A147: 2007-04-08 | B147: 14 | C147: 254.1 | E147: 270.3 | F147: 310.8 | G147: 298.7 | I147: 389 | J147: 335.4 | K147: 290 | L147: 287.9 | N147: 323.9 | P147: 169.5 | Q147: 178.5 | R147: 318.6 | T147: 352.2 | U147: 294.6 | V147: 307.8 | W147: 239.3 | X147: 382.3 | Y147: 195.1 | Z147: 293.7 | AA147: 269.6 | AB147: 311 | AC147: 278 | AD147: 291.5 | AE147: 305
A148: 2007-04-15 | B148: 15 | C148: 225.8 | E148: 267.2 | F148: 316 | G148: 298.4 | I148: 401 | J148: 345.7 | K148: 287 | L148: 287.1 | N148: 332.5 | Q148: 187.3 | R148: 305.4 | T148: 358.3 | U148: 290.6 | V148: 307.5 | W148: 239.6 | X148: 379.7 | Y148: 201.2 | Z148: 292.8 | AA148: 298.5 | AB148: 325.2 | AC148: 282.4 | AD148: 293.2 | AE148: 308.8
A149: 2007-04-22 | B149: 16 | C149: 255.8 | E149: 267.6 | F149: 316.8 | G149: 294.5 | I149: 399 | J149: 342.8 | K149: 285 | L149: 286.8 | N149: 329.8 | Q149: 193.4 | R149: 303.8 | S149: 260.9 | T149: 358.3 | U149: 288.1 | V149: 305.7 | W149: 244.8 | X149: 377.2 | Y149: 193.7 | Z149: 294.3 | AA149: 269.2 | AB149: 315.1 | AC149: 281.9 | AD149: 294.4 | AE149: 306.6
A150: 2007-04-29 | B150: 17 | C150: 255.8 | E150: 269.5 | F150: 313.9 | G150: 288.1 | H150: 221.6 | I150: 404.8 | J150: 333.8 | K150: 283 | L150: 282.7 | N150: 329.8 | Q150: 192.6 | R150: 304.7 | T150: 358.3 | U150: 287.7 | V150: 299.4 | W150: 246.6 | X150: 377.2 | Y150: 199.7 | Z150: 290.1 | AA150: 266.8 | AB150: 317.3 | AC150: 288.5 | AD150: 293.7 | AE150: 303.1
A151: 2007-05-06 | B151: 18 | C151: 253.9 | E151: 265.6 | F151: 317.1 | G151: 281.4 | I151: 400.6 | J151: 332.4 | K151: 281 | L151: 282.4 | N151: 325.9 | P151: 183.5 | Q151: 188.6 | R151: 304.7 | S151: 259.3 | T151: 358.3 | U151: 285.9 | V151: 293.7 | W151: 246 | X151: 376.3 | Y151: 194.9 | Z151: 292.2 | AA151: 267 | AB151: 321.2 | AC151: 287.8 | AD151: 289.2 | AE151: 299.9
A152: 2007-05-13 | B152: 19 | C152: 253.8 | E152: 268 | F152: 314.1 | G152: 277 | I152: 399.6 | J152: 336.4 | K152: 279 | L152: 280.8 | N152: 328.1 | P152: 174.6 | Q152: 188.4 | R152: 306.4 | T152: 358.3 | U152: 286.3 | V152: 290.5 | W152: 242.1 | X152: 367.7 | Y152: 204.8 | Z152: 286.8 | AA152: 267.8 | AB152: 316.5 | AC152: 286.5 | AD152: 287.2 | AE152: 299.2
A153: 2007-05-20 | B153: 20 | C153: 251.4 | E153: 263.5 | F153: 307.9 | G153: 276.6 | H153: 179.3 | I153: 402.1 | J153: 331.8 | K153: 277 | L153: 277.3 | N153: 324.9 | P153: 186.7 | Q153: 187.7 | R153: 289.1 | T153: 358.3 | U153: 286.3 | V153: 290.5 | W153: 236 | X153: 365.1 | Y153: 206 | Z153: 282.9 | AA153: 267.2 | AB153: 312.2 | AC153: 276.8 | AD153: 284 | AE153: 296.4
A154: 2007-05-27 | B154: 21 | C154: 251.3 | E154: 265.9 | F154: 307 | G154: 276.6 | H154: 196.3 | I154: 401.1 | J154: 322.1 | K154: 275 | L154: 273.6 | N154: 328.1 | P154: 183.9 | Q154: 188.6 | R154: 289.4 | T154: 358.3 | U154: 275.2 | V154: 290 | W154: 247.5 | X154: 362 | Y154: 199.7 | Z154: 279.2 | AA154: 251.2 | AB154: 317.5 | AC154: 276 | AD154: 286.4 | AE154: 295
A155: 2007-06-03 | B155: 22 | C155: 249.9 | E155: 264.2 | F155: 301.9 | G155: 274.6 | H155: 215.1 | I155: 402.8 | J155: 315.6 | K155: 271 | L155: 275.7 | N155: 332.4 | P155: 172.4 | Q155: 190.3 | R155: 283.1 | T155: 358.3 | U155: 286.3 | V155: 289.5 | W155: 229.4 | X155: 357.2 | Y155: 178.9 | Z155: 275.2 | AB155: 313.6 | AC155: 271.7 | AD155: 283.3 | AE155: 291.5
A156: 2007-06-10 | B156: 23 | C156: 249 | E156: 263.1 | F156: 302.1 | G156: 270.6 | I156: 402.6 | J156: 309.1 | K156: 268 | L156: 278.8 | N156: 328.4 | P156: 162.3 | Q156: 191.3 | R156: 272.2 | T156: 358.3 | U156: 270.8 | V156: 289.1 | W156: 231.4 | X156: 349.3 | Y156: 194.5 | Z156: 275.8 | AA156: 242.5 | AB156: 309.1 | AC156: 268.1 | AD156: 282.7 | AE156: 288.1
A157: 2007-06-17 | B157: 24 | C157: 247.7 | E157: 252.7 | F157: 294.9 | G157: 266.4 | I157: 402.6 | J157: 307.7 | K157: 264 | L157: 278.7 | N157: 328.4 | P157: 175 | Q157: 194.8 | R157: 279.3 | S157: 236.9 | T157: 358.3 | U157: 275.3 | V157: 284.7 | W157: 229.4 | X157: 349 | Y157: 190.7 | Z157: 276.4 | AA157: 249 | AB157: 318.5 | AC157: 270 | AD157: 284 | AE157: 286
A158: 2007-06-24 | B158: 25 | C158: 246.1 | E158: 256.9 | F158: 292.8 | G158: 262.6 | H158: 254.2 | I158: 404 | J158: 302.9 | K158: 263 | L158: 280.4 | N158: 319.4 | P158: 184.6 | Q158: 193.3 | R158: 275.6 | S158: 238 | T158: 258.3 | U158: 266 | V158: 280.8 | W158: 232.5 | X158: 343.1 | Y158: 202.4 | Z158: 280.2 | AA158: 245 | AB158: 307.6 | AC158: 264.2 | AD158: 287.3 | AE158: 282.9
A159: 2007-07-01 | B159: 26 | C159: 244.9 | E159: 251.7 | F159: 292 | G159: 261.6 | I159: 401.8 | J159: 295.2 | K159: 262 | L159: 279.6 | N159: 321.2 | Q159: 190.9 | R159: 269.7 | S159: 240.5 | T159: 358.3 | U159: 365.6 | V159: 276.9 | W159: 231 | X159: 340.5 | Y159: 195.8 | Z159: 281.1 | AA159: 255.4 | AB159: 314.1 | AC159: 266.7 | AD159: 287.5 | AE159: 280.9
A160: 2007-07-08 | B160: 27 | C160: 245.2 | E160: 258.2 | F160: 287.4 | G160: 262.9 | I160: 406.3 | J160: 293.1 | K160: 263 | L160: 278.7 | N160: 321.8 | P160: 174.8 | Q160: 184.8 | R160: 272.5 | T160: 358.3 | U160: 256.8 | V160: 275.6 | W160: 229.1 | X160: 340.5 | Y160: 203.2 | Z160: 281.9 | AA160: 262.9 | AB160: 323.3 | AC160: 269.8 | AD160: 284.8 | AE160: 280.9
A161: 2007-07-15 | B161: 28 | C161: 245.6 | E161: 254.5 | F161: 284.4 | G161: 268.6 | I161: 400.3 | J161: 283.9 | K161: 266 | L161: 278 | N161: 319.2 | P161: 186.5 | Q161: 187 | R161: 247.8 | S161: 237.4 | T161: 358.3 | U161: 261 | V161: 277.2 | W161: 232.9 | X161: 336.4 | Y161: 195.1 | Z161: 282.7 | AA161: 259.9 | AB161: 313 | AC161: 269.3 | AD161: 283.9 | AE161: 280.1
A162: 2007-07-22 | B162: 29 | C162: 245.6 | E162: 258.2 | F162: 277.4 | G162: 275.5 | I162: 399.9 | J162: 286.4 | K162: 271 | L162: 276.8 | N162: 311.3 | Q162: 188.6 | R162: 274.5 | S162: 235 | T162: 358.3 | U162: 262.9 | V162: 283.2 | W162: 232.4 | X162: 333.1 | Y162: 192.6 | Z162: 281.8 | AA162: 249 | AB162: 328 | AC162: 271.7 | AD162: 286.4 | AE162: 282.1
A163: 2007-07-29 | B163: 30 | C163: 246.8 | E163: 258.8 | F163: 282 | G163: 278 | I163: 405.1 | J163: 286.4 | K163: 277 | L163: 275 | N163: 314.3 | Q163: 189.2 | R163: 282.1 | T163: 358.3 | U163: 261.3 | V163: 286.8 | W163: 230.2 | X163: 325.4 | Y163: 198.9 | Z163: 281.9 | AB163: 329.9 | AC163: 268.1 | AD163: 289.1 | AE163: 284.2
A164: 2007-08-05 | B164: 31 | C164: 246.9 | E164: 254.7 | F164: 279.8 | G164: 277.8 | I164: 401.3 | J164: 293.4 | K164: 285 | L164: 274.7 | N164: 313.5 | P164: 173.4 | Q164: 180.8 | R164: 286.7 | T164: 358.3 | U164: 267.1 | V164: 286 | W164: 231.3 | X164: 333 | Y164: 189.1 | Z164: 273.9 | AA164: 275.6 | AB164: 322.5 | AC164: 271.4 | AD164: 288.4 | AE164: 286.3
A165: 2007-08-12 | B165: 32 | C165: 248.63 | E165: 255 | F165: 281.5 | G165: 279 | I165: 401.1 | J165: 293.4 | K165: 289 | L165: 278.3 | N165: 312.5 | Q165: 180.2 | R165: 282.9 | S165: 238.3 | T165: 358.3 | U165: 265.5 | V165: 286 | W165: 239.3 | X165: 332.3 | Y165: 190 | Z165: 279.4 | AB165: 320.4 | AC165: 267.9 | AD165: 290.6 | AE165: 288
A166: 2007-08-19 | B166: 33 | C166: 247.5 | E166: 261.3 | F166: 288.1 | G166: 284.2 | I166: 398.6 | J166: 293.4 | K166: 291 | L166: 279.4 | N166: 326.2 | P166: 197.4 | Q166: 187 | R166: 288.2 | T166: 358.3 | U166: 277.2 | V166: 289.8 | W166: 238.8 | X166: 335.5 | Y166: 186.6 | Z166: 279.4 | AA166: 234.5 | AB166: 320.2 | AC166: 269.3 | AD166: 287.5 | AE166: 291.4
A167: 2007-08-26 | B167: 34 | C167: 248.5 | E167: 258.9 | F167: 286.4 | G167: 289.6 | H167: 233.2 | I167: 405.5 | J167: 293.4 | K167: 293 | L167: 279.8 | N167: 330.6 | Q167: 192.1 | R167: 284.2 | S167: 225.5 | T167: 358.3 | U167: 268.1 | V167: 294.6 | W167: 239.7 | X167: 340.1 | Y167: 200.7 | Z167: 279.3 | AA167: 244.3 | AB167: 328.7 | AC167: 263.8 | AD167: 286.9 | AE167: 294.1
A168: 2007-09-02 | B168: 35 | C168: 248.8 | E168: 260 | F168: 286.7 | G168: 293.1 | I168: 405.1 | J168: 293.4 | K168: 293 | L168: 278.9 | N168: 335.8 | P168: 160.1 | Q168: 188.3 | R168: 286.8 | T168: 358.3 | U168: 271.7 | V168: 297.1 | W168: 240 | X168: 345.9 | Y168: 192.8 | Z168: 283.4 | AA168: 250.1 | AB168: 324.3 | AC168: 265.2 | AD168: 287.3 | AE168: 295.8
A169: 2007-09-09 | B169: 36 | C169: 247.3 | E169: 254 | F169: 300.6 | G169: 292 | H169: 254.2 | I169: 399.4 | J169: 316.2 | K169: 292 | L169: 276.5 | N169: 334 | Q169: 190.5 | R169: 289.9 | S169: 223.8 | T169: 358.3 | U169: 273.6 | V169: 298.9 | W169: 240.8 | X169: 354.6 | Y169: 192.8 | Z169: 285.7 | AA169: 238.5 | AB169: 316.9 | AC169: 266.5 | AD169: 291.2 | AE169: 300.4
A170: 2007-09-16 | B170: 37 | C170: 249.2 | E170: 260.7 | F170: 301.7 | G170: 289.6 | I170: 401.8 | J170: 313.7 | K170: 291 | L170: 277 | N170: 326 | P170: 196.4 | Q170: 187.4 | R170: 300.2 | T170: 358.3 | U170: 279.3 | V170: 298.4 | W170: 241 | X170: 356.7 | Y170: 187.4 | Z170: 288.2 | AA170: 237.5 | AB170: 323.1 | AC170: 269.8 | AD170: 289 | AE170: 298
A171: 2007-09-23 | B171: 38 | C171: 249.1 | E171: 258.5 | F171: 302.9 | G171: 290.5 | H171: 254.2 | I171: 399.1 | J171: 307.7 | K171: 290 | L171: 277.2 | N171: 333.7 | P171: 202.9 | Q171: 184.5 | R171: 290.5 | S171: 225 | T171: 358.3 | U171: 271.2 | V171: 299.5 | W171: 235.9 | X171: 350.5 | Y171: 186.8 | Z171: 289.2 | AA171: 243.9 | AB171: 328.7 | AC171: 266.2 | AD171: 283.5 | AE171: 297.2
A172: 2007-09-30 | B172: 39 | C172: 247.9 | E172: 260.5 | F172: 304.6 | G172: 295.3 | I172: 403.3 | J172: 302.9 | K172: 292 | L172: 277.2 | N172: 329.2 | P172: 196.1 | Q172: 186.8 | R172: 294.5 | S172: 234.4 | T172: 358.3 | U172: 295.7 | V172: 302.1 | W172: 240 | X172: 342.6 | Y172: 177.8 | Z172: 293.6 | AA172: 237.7 | AB172: 322 | AC172: 273.6 | AD172: 284.7 | AE172: 297.3
A173: 2007-10-07 | B173: 40 | C173: 248 | E173: 258.8 | F173: 307.9 | G173: 298 | I173: 404.1 | J173: 305.2 | K173: 295 | L173: 274.1 | N173: 329.2 | P173: 189.8 | Q173: 183.6 | R173: 305.1 | S173: 226.5 | T173: 358.3 | U173: 275.8 | V173: 304.2 | W173: 238.9 | X173: 346.2 | Y173: 177.6 | Z173: 295.1 | AA173: 242.8 | AB173: 322.5 | AC173: 271.2 | AD173: 283.3 | AE173: 298.7
A174: 2007-10-14 | B174: 41 | C174: 249.4 | E174: 257.1 | F174: 306.7 | G174: 298 | H174: 273.8 | I174: 404.1 | J174: 303.4 | K174: 298 | L174: 273 | N174: 332 | P174: 202.9 | Q174: 185.4 | R174: 298.6 | T174: 358.3 | U174: 280.6 | V174: 305.1 | W174: 238.1 | X174: 346.9 | Y174: 172.3 | Z174: 296.6 | AB174: 329.5 | AC174: 288.3 | AD174: 285.2 | AE174: 299.8
A175: 2007-10-21 | B175: 42 | C175: 250.8 | E175: 257 | F175: 300 | G175: 298.8 | H175: 273.8 | I175: 405.5 | J175: 305.2 | K175: 301 | L175: 272 | N175: 333.5 | P175: 173.6 | Q175: 189.7 | R175: 302.3 | T175: 358.3 | U175: 280 | V175: 304.2 | W175: 238.3 | X175: 345.1 | Y175: 178.1 | Z175: 297 | AA175: 235 | AB175: 330.4 | AC175: 289.3 | AD175: 284.1 | AE175: 300.8
A176: 2007-10-28 | B176: 43 | C176: 250.7 | E176: 260.8 | F176: 298.2 | G176: 299.7 | I176: 406.2 | J176: 298.4 | K176: 302 | L176: 272.4 | N176: 337 | P176: 194.9 | Q176: 191.3 | R176: 291.7 | T176: 358.3 | U176: 270.1 | V176: 303.6 | W176: 239.6 | X176: 345.2 | Z176: 294.6 | AA176: 244.2 | AB176: 300.7 | AC176: 21.1 | AD176: 282.7 | AE176: 301.9
A177: 2007-11-04 | B177: 44 | C177: 250.8 | E177: 259.5 | F177: 303.2 | G177: 300.2 | H177: 236.3 | I177: 413.7 | J177: 306.1 | K177: 305 | L177: 275.4 | N177: 340.7 | P177: 184.9 | Q177: 186.8 | R177: 295.6 | S177: 229.3 | T177: 358.3 | U177: 280.1 | V177: 304.3 | W177: 241.7 | X177: 342.3 | Y177: 187.4 | Z177: 297.6 | AA177: 245.3 | AB177: 323.2 | AC177: 283.8 | AD177: 284.7 | AE177: 303.4
A178: 2007-11-11 | B178: 45 | C178: 251.3 | E178: 259.3 | F178: 309.6 | G178: 300.8 | H178: 273.8 | I178: 417.3 | J178: 305.4 | K178: 307 | L178: 275.3 | N178: 340.7 | P178: 200.6 | Q178: 185 | R178: 294.7 | T178: 358.3 | U178: 268.4 | V178: 307.6 | W178: 239.6 | X178: 341.5 | Y178: 184.2 | Z178: 295.2 | AA178: 246 | AB178: 330.9 | AC178: 286.5 | AD178: 285.3 | AE178: 303.8
A179: 2007-11-18 | B179: 46 | C179: 251.4 | E179: 266.5 | F179: 307.7 | G179: 303.2 | I179: 409.7 | J179: 305.9 | K179: 310 | L179: 276.2 | N179: 345.2 | P179: 195.3 | Q179: 190.1 | R179: 295.6 | S179: 237.6 | T179: 358.3 | U179: 271.9 | V179: 308.5 | W179: 240.8 | X179: 342.5 | Y179: 173.4 | Z179: 292.8 | AA179: 249.8 | AB179: 322.1 | AC179: 287.6 | AD179: 281 | AE179: 305
A180: 2007-11-25 | B180: 47 | C180: 249.9 | E180: 261.8 | F180: 307.6 | G180: 307.5 | I180: 413.1 | J180: 306 | K180: 311 | L180: 277.9 | N180: 342 | P180: 175.8 | Q180: 194.3 | R180: 313.2 | S180: 211.5 | T180: 358.3 | U180: 281.2 | V180: 320.1 | W180: 238.2 | X180: 340.2 | Y180: 177.5 | Z180: 286.5 | AA180: 242 | AB180: 325.9 | AC180: 290.4 | AD180: 277.5 | AE180: 305.9
A181: 2007-12-02 | B181: 48 | C181: 250 | E181: 264.8 | F181: 307.2 | G181: 312.3 | H181: 273.8 | I181: 412.6 | J181: 307.5 | K181: 311 | L181: 278.5 | N181: 337.5 | P181: 190 | Q181: 207 | R181: 294 | T181: 358.3 | U181: 279 | V181: 317.8 | W181: 240.6 | X181: 337.1 | Y181: 180.7 | Z181: 285.5 | AA181: 253.2 | AB181: 325.3 | AC181: 285.7 | AD181: 279 | AE181: 306.7
A182: 2007-12-09 | B182: 49 | C182: 249.9 | E182: 270.9 | F182: 303.8 | G182: 311.9 | H182: 256.3 | I182: 412.6 | J182: 311.3 | K182: 312 | L182: 278.5 | N182: 333.9 | P182: 201.1 | Q182: 223.4 | R182: 302.2 | T182: 358.3 | U182: 276.9 | V182: 319.5 | W182: 245.4 | X182: 337.9 | Y182: 174.7 | Z182: 285.1 | AB182: 315.7 | AC182: 289 | AD182: 279 | AE182: 307.5
A183: 2007-12-16 | B183: 50 | C183: 250.1 | E183: 269.9 | F183: 306 | G183: 312.6 | H183: 268.4 | I183: 410 | J183: 307.4 | K183: 312 | L183: 279.2 | N183: 335.3 | P183: 160.4 | Q183: 221.4 | R183: 301.4 | S183: 229.1 | T183: 358.3 | U183: 281.6 | V183: 318.2 | W183: 244.8 | X183: 340.9 | Y183: 186.2 | Z183: 286.8 | AA183: 248.5 | AB183: 326.6 | AC183: 281.8 | AD183: 277.9 | AE183: 306.9
A184: 2007-12-23 | B184: 51 | C184: 249.9 | E184: 268 | F184: 305.3 | G184: 316.4 | H184: 273.8 | I184: 407.6 | J184: 306.4 | K184: 313 | L184: 280.8 | N184: 341.9 | P184: 160.5 | Q184: 219.3 | R184: 303.8 | S184: 212.1 | T184: 358.3 | U184: 277.8 | V184: 317.3 | W184: 246.5 | X184: 337.4 | Y184: 186.5 | Z184: 287.7 | AA184: 257 | AB184: 335 | AC184: 284.4 | AD184: 279.2 | AE184: 308.8
A185: 2007-12-30 | B185: 52 | C185: 249.9 | E185: 268.3 | F185: 310.2 | G185: 316.4 | H185: 273.8 | I185: 407.6 | J185: 306.4 | K185: 314 | L185: 282.7 | N185: 347.8 | P185: 189.2 | Q185: 221.8 | R185: 312.9 | T185: 358.3 | U185: 281.6 | V185: 320.2 | W185: 247.2 | X185: 337.6 | Y185: 178 | Z185: 293.9 | AB185: 339.3 | AC185: 284.6 | AD185: 278.3 | AE185: 310.2
A189: Young Bulls | B189: R3
A191: 2008
C192: B | D192: BG | E192: CZK | F192: DK | G192: G | H192: EE | I192: Gr | J192: Sp | K192: Fr | L192: IR | M192: HR | N192: IT | P192: LVL | Q192: LTL | R192: Lux | S192: HUF | T192: MTL | U192: NL | V192: Aus | W192: PLN | X192: P | Y192: ROM | Z192: SIT | AA192: SKK | AB192: F | AC192: SW | AD192: UK | AE192: EU ave
A194: w/e | C194: euro per 100 kg dw
A196: 2008-01-06 | B196: 1 | C196: 249.7 | E196: 271.8 | F196: 302.6 | G196: 323.9 | I196: 407.6 | J196: 306.8 | K196: 317 | L196: 291.9 | N196: 343 | P196: 204.7 | Q196: 219.4 | R196: 213.6 | T196: 358.3 | U196: 274 | V196: 330.2 | W196: 256.1 | X196: 340.4 | Z196: 303.8 | AA196: 246 | AB196: 346.2 | AC196: 286.7 | AD196: 276.8 | AE196: 314.6
A197: 2008-01-13 | B197: 2 | C197: 252.6 | E197: 278 | F197: 303.3 | G197: 325.1 | I197: 409.7 | J197: 308.2 | K197: 319 | L197: 298.3 | N197: 347.4 | Q197: 231.1 | R197: 206.5 | S197: 228.9 | T197: 358.3 | U197: 279.3 | V197: 330.9 | W197: 260 | X197: 339.4 | Y197: 196.3 | Z197: 305.1 | AA197: 244.7 | AB197: 362.2 | AC197: 286.1 | AD197: 278.5 | AE197: 315.2
A198: 2008-01-20 | B198: 3 | C198: 253.3 | D198: 242.9 | E198: 242.9 | F198: 307.8 | G198: 323.8 | I198: 404 | J198: 312.9 | K198: 321 | L198: 304 | N198: 348.3 | Q198: 232.2 | R198: 313.4 | T198: 358.3 | U198: 290.6 | V198: 330.8 | W198: 260.3 | X198: 331.7 | Y198: 176.6 | Z198: 305 | AA198: 220.6 | AB198: 353.5 | AC198: 289.3 | AD198: 284.3 | AE198: 316.2
A199: 2008-01-27 | B199: 4 | C199: 253.2 | E199: 276.3 | F199: 308.8 | G199: 321.5 | H199: 273.8 | I199: 407.3 | J199: 311.8 | K199: 320 | L199: 306.2 | N199: 351.6 | P199: 210.6 | Q199: 237.4 | R199: 311.8 | T199: 358.3 | U199: 274.7 | V199: 324.6 | W199: 252.4 | X199: 336.3 | Y199: 194.6 | Z199: 303.2 | AA199: 245.7 | AB199: 348.2 | AC199: 289.5 | AD199: 293.1 | AE199: 315.8
A200: 2008-02-03 | B200: 5 | C200: 253.1 | E200: 279 | F200: 307.9 | G200: 323.2 | H200: 273.8 | J200: 311.9 | K200: 319 | L200: 307.8 | N200: 358.5 | P200: 204.8 | Q200: 243.3 | R200: 299.2 | U200: 279.5 | W200: 254 | X200: 340.4 | Z200: 303.2 | AA200: 245.9 | AB200: 349.6 | AC200: 295.2 | AD200: 295.6 | AE200: 317.8
A201: 2008-02-10 | B201: 6 | C201: 253.9 | E201: 282.7 | F201: 306.6 | G201: 329.3 | I201: 407.6 | J201: 318.6 | K201: 318 | L201: 312.1 | N201: 358.1 | P201: 222.2 | Q201: 239.5 | R201: 308.7 | T201: 358.3 | U201: 270 | V201: 324.4 | W201: 253.4 | X201: 337.9 | Y201: 171.8 | Z201: 301.5 | AB201: 336.5 | AC201: 296.9 | AD201: 300.9 | AE201: 320
A202: 2008-02-17 | B202: 7 | C202: 257.9 | E202: 288 | F202: 318.1 | G202: 333.2 | I202: 407.4 | J202: 315.3 | K202: 318 | L202: 316.6 | N202: 363.9 | P202: 226.6 | Q202: 246.8 | R202: 318.5 | T202: 358.3 | U202: 305.3 | V202: 329.9 | W202: 254.8 | X202: 340.6 | Y202: 171.1 | Z202: 297.6 | AA202: 246.3 | AB202: 348.3 | AC202: 307.4 | AD202: 308.7 | AE202: 322.1
A203: 2008-02-24 | B203: 8 | C203: 256.2 | E203: 290.4 | F203: 321 | G203: 331.9 | H203: 273.8 | I203: 406.5 | J203: 312.1 | K203: 319 | L203: 319.5 | N203: 358.3 | P203: 243.8 | Q203: 247.3 | R203: 318.5 | T203: 358.3 | U203: 272.1 | V203: 330.1 | W203: 255.5 | X203: 336.4 | Y203: 184.8 | Z203: 296.3 | AA203: 250.2 | AB203: 337.7 | AC203: 312.2 | AD203: 311.2 | AE203: 320.7
A204: 2008-03-02 | B204: 9 | C204: 256.7 | D204: 250.5 | E204: 291.5 | F204: 324.1 | G204: 330.7 | H204: 273.8 | I204: 403.4 | J204: 313.5 | K204: 319 | L204: 323.2 | N204: 340 | P204: 233.7 | Q204: 227.3 | R204: 323.4 | T204: 358.3 | U204: 287.5 | V204: 329.8 | W204: 260.5 | X204: 343.4 | Y204: 159.9 | Z204: 298 | AB204: 332.1 | AC204: 325.4 | AD204: 309 | AE204: 318.4
A205: 2008-03-09 | B205: 10 | C205: 256.3 | E205: 293.1 | F205: 331 | G205: 326.3 | I205: 412.9 | J205: 308.7 | K205: 319 | L205: 322.4 | N205: 347.3 | P205: 230.8 | Q205: 233.7 | R205: 317.2 | S205: 275.2 | T205: 358.3 | U205: 283.3 | V205: 326.9 | W205: 258.7 | X205: 336.5 | Z205: 299.2 | AA205: 266.6 | AB205: 344.4 | AC205: 324.1 | AD205: 310 | AE205: 319.7
A206: 2008-03-16 | B206: 11 | C206: 256.6 | E206: 290.1 | F206: 327.5 | G206: 323.7 | H206: 273.8 | I206: 411.8 | J206: 306.6 | K206: 316 | L206: 321 | N206: 352.8 | P206: 230.8 | Q206: 250.9 | R206: 325.4 | T206: 358.3 | U206: 303.2 | V206: 322.6 | W206: 254.3 | X206: 340.3 | Y206: 189.1 | Z206: 297.3 | AA206: 249.2 | AB206: 336.1 | AC206: 326.2 | AD206: 308.6 | AE206: 316.7
A207: 2008-03-23 | B207: 12 | C207: 258.5 | E207: 287.8 | F207: 323.9 | G207: 322.6 | I207: 409.5 | J207: 306.5 | K207: 315 | L207: 323.5 | N207: 352.8 | P207: 227.3 | Q207: 250.7 | R207: 319.6 | T207: 358.3 | U207: 300.2 | V207: 321.4 | W207: 255.9 | X207: 336.3 | Y207: 183.5 | Z207: 297.3 | AA207: 253.4 | AB207: 337.4 | AC207: 328 | AD207: 306.1 | AE207: 316.1
A208: 2008-03-30 | B208: 13 | C208: 258.1 | D208: 250.5 | E208: 286.1 | F208: 327 | G208: 322.5 | I208: 411.4 | J208: 306.6 | K208: 312 | L208: 325 | N208: 352.8 | P208: 233.7 | Q208: 255.5 | R208: 323.4 | T208: 358.3 | U208: 291.1 | V208: 322.1 | W208: 258.2 | X208: 338.5 | Y208: 175.2 | Z208: 294.7 | AB208: 342.9 | AC208: 322.1 | AD208: 303.9 | AE208: 315.6
A209: 2008-04-06 | B209: 14 | C209: 257.9 | E209: 287.7 | F209: 330.8 | G209: 321 | I209: 414.3 | J209: 306.7 | K209: 310 | L209: 328.1 | N209: 344.4 | Q209: 257.3 | R209: 320.6 | T209: 358.3 | U209: 304.1 | V209: 320.7 | W209: 260.5 | X209: 334.1 | Y209: 203.4 | Z209: 293.6 | AA209: 266.6 | AB209: 338.7 | AC209: 327.6 | AD209: 307.2 | AE209: 314.6
A210: 2008-04-13 | B210: 15 | C210: 258.4 | D210: 242.9 | E210: 291.3 | F210: 329.9 | G210: 317.1 | I210: 411.4 | J210: 307 | K210: 308 | L210: 331 | N210: 347.8 | P210: 230.9 | Q210: 260.1 | R210: 320.6 | S210: 250.8 | T210: 358.3 | U210: 294.1 | V210: 314.3 | W210: 266.4 | X210: 334 | Y210: 166.9 | Z210: 289.3 | AA210: 266.1 | AB210: 336.3 | AC210: 336.5 | AD210: 306.8 | AE210: 313.4
A211: 2008-04-20 | B211: 16 | C211: 259.3 | D211: 242.9 | E211: 292.8 | F211: 330.8 | G211: 311.6 | H211: 273.8 | I211: 411.1 | J211: 307.2 | K211: 306 | L211: 331.3 | N211: 353 | P211: 226.4 | Q211: 260.8 | R211: 307.3 | S211: 256.1 | T211: 358.3 | U211: 297.1 | V211: 314.3 | W211: 268.4 | X211: 329.7 | Y211: 212.3 | Z211: 287.1 | AA211: 254.7 | AB211: 338.4 | AC211: 330.3 | AD211: 310.3 | AE211: 313.5
A212: 2008-04-27 | B212: 17 | C212: 258.3 | E212: 290.4 | F212: 326.3 | G212: 308.3 | H212: 185.8 | I212: 406.2 | J212: 306.1 | K212: 304 | L212: 329.7 | N212: 349.5 | P212: 226.2 | Q212: 259.6 | R212: 318.4 | S212: 254.6 | T212: 358.3 | U212: 295.2 | V212: 311.2 | W212: 266.9 | X212: 326.1 | Y212: 208.6 | Z212: 288.2 | AA212: 270.2 | AB212: 339.4 | AC212: 331.1 | AD212: 318.3 | AE212: 311.8
A213: 2008-05-04 | B213: 18 | C213: 258.4 | E213: 292.2 | F213: 324.4 | G213: 306.6 | H213: 280.3 | I213: 414.5 | J213: 303.2 | K213: 304 | L213: 324.6 | N213: 344.4 | P213: 213.2 | Q213: 260.7 | R213: 321.8 | T213: 358.3 | U213: 301.8 | V213: 310.2 | W213: 266.2 | X213: 321.7 | Y213: 218.8 | Z213: 291.5 | AA213: 278.3 | AB213: 360 | AC213: 327.2 | AD213: 325.4 | AE213: 310.5
A214: 2008-05-11 | B214: 19 | C214: 258.6 | E214: 287.9 | F214: 325.2 | G214: 305.4 | H214: 197.5 | I214: 414.8 | J214: 300.1 | K214: 305 | L214: 326.2 | N214: 350.4 | P214: 233.3 | Q214: 256.6 | R214: 313.6 | S214: 215.2 | T214: 358.3 | U214: 294.8 | V214: 310.1 | W214: 265.4 | X214: 326.4 | Y214: 215.2 | Z214: 285.4 | AA214: 257.1 | AB214: 335.2 | AC214: 338.1 | AD214: 326.3 | AE214: 312.5
A215: 2008-05-18 | B215: 20 | C215: 258.9 | E215: 293.5 | F215: 328.3 | G215: 303.9 | I215: 412.2 | J215: 296 | K215: 308 | L215: 327.9 | N215: 359.6 | P215: 246.2 | Q215: 251.2 | R215: 317.3 | S215: 232.9 | T215: 358.3 | U215: 303 | V215: 310.1 | W215: 267.7 | X215: 322.4 | Y215: 210.7 | Z215: 290.6 | AA215: 260.3 | AB215: 337.1 | AC215: 326.2 | AD215: 325.1 | AE215: 313.1
A216: 2008-05-25 | B216: 21 | C216: 261.9 | E216: 289.2 | F216: 326 | G216: 304.2 | H216: 236.3 | I216: 415.3 | J216: 294.8 | K216: 311 | L216: 330.4 | N216: 369.9 | Q216: 213.9 | R216: 308.6 | S216: 229 | T216: 358.3 | U216: 304.2 | V216: 310.2 | W216: 271.6 | X216: 317.2 | Y216: 205.1 | Z216: 292.1 | AA216: 268.5 | AB216: 349.7 | AC216: 330.3 | AD216: 326.9 | AE216: 315.3
A217: 2008-06-01 | B217: 22 | C217: 262.1 | E217: 290.6 | F217: 327.8 | G217: 307.5 | H217: 252 | I217: 414 | J217: 291.2 | K217: 311 | L217: 333.4 | N217: 369.3 | Q217: 220.4 | R217: 318.6 | T217: 358.3 | U217: 302.5 | V217: 311.2 | W217: 273.3 | X217: 217.9 | Y217: 218.7 | Z217: 293.7 | AA217: 268.8 | AB217: 328.6 | AC217: 326.5 | AD217: 329.9 | AE217: 315.5
A218: 2008-06-08 | B218: 23 | C218: 262.5 | D218: 242.9 | E218: 295 | F218: 327.8 | G218: 309.2 | I218: 415.1 | J218: 294.6 | K218: 310 | L218: 337 | N218: 361.2 | Q218: 225.7 | R218: 246.7 | S218: 318.6 | T218: 358.3 | U218: 304.2 | V218: 311.1 | W218: 276.1 | X218: 321.2 | Y218: 228.6 | Z218: 293.7 | AA218: 266.1 | AB218: 348 | AC218: 319.7 | AD218: 330.8 | AE218: 315.5
A219: 2008-06-15 | B219: 24 | C219: 262.5 | D219: 242.9 | E219: 299.5 | F219: 325.3 | G219: 309 | I219: 417.6 | J219: 294.8 | K219: 306 | L219: 341.7 | N219: 360.8 | P219: 239.4 | Q219: 240.7 | R219: 313.7 | T219: 358.3 | U219: 304.5 | V219: 313.7 | W219: 269.2 | X219: 315.1 | Y219: 229.4 | Z219: 296.9 | AA219: 289.6 | AB219: 346 | AC219: 320.9 | AD219: 332.5 | AE219: 314.7
A220: 2008-06-22 | B220: 25 | C220: 262.6 | E220: 299.6 | F220: 325.9 | G220: 308.2 | J220: 295.9 | K220: 306 | L220: 344.3 | N220: 353.4 | Q220: 242.6 | R220: 318.9 | T220: 358.3 | U220: 307 | V220: 313.1 | W220: 275.3 | X220: 315.1 | Z220: 295.5 | AA220: 272.8 | AB220: 360.2 | AC220: 316.2 | AD220: 342.9 | AE220: 313.3
A221: 2008-06-29 | B221: 26 | C221: 263.3 | E221: 300 | F221: 323.4 | G221: 307.9 | I221: 415.7 | J221: 297.2 | K221: 307 | L221: 346.7 | N221: 361.5 | P221: 240.9 | Q221: 240.3 | S221: 239.8 | T221: 358.3 | V221: 310.8 | W221: 276 | X221: 311.4 | Z221: 297.3 | AA221: 284.2 | AB221: 352.4 | AC221: 324.3 | AD221: 343.2 | AE221: 317
... 782 more rows

Sheet Young Bulls R3 2005+ £ (hidden)
A1: Deadweight Cattle prices
A3: Young Bulls | B3: R3
A5: 2005
D6: B | F6: CZK | G6: DK | H6: G | J6: Gr | K6: Sp | L6: Fr | M6: IE | N6: HR | O6: IT | P6: LVL | Q6: LTL | R6: Lux | S6: HUF | T6: MTL | U6: NL | V6: Aus | W6: PLN | X6: P | Z6: SIT | AA6: SKK | AB6: F | AC6: SW | AD6: UK | AE6: EU ave | AG6: GB
AG7: from 30/09/2018
A8: w/e | D8: Pence per Kg
A10: 2005-01-09 | B10: 1 | C10: 0.704693 | D10: 147.5627142 | F10: 165.9199669 | G10: 182.7409888 | H10: 201.7888406 | J10: 0 | K10: 259.4609157 | L10: 199.3365089 | M10: 207.884435 | O10: 184.3758765 | P10: 217.750137 | Q10: 108.9525847 | R10: 118.7760052 | S10: 186.6661288 | T10: 173.9252793 | U10: 225.3114929 | V10: 171.9732797 | W10: 207.2924929 | X10: 148.2955949 | Y10: 200.0623427 | Z10: 0 | AA10: 179.090679 | AB10: 157.5411671 | AC10: 208.2156407 | AD10: 0 | AE10: 174.0380302
A11: 2005-01-16 | B11: 2 | C11: 0.700686 | D11: 147.5995059 | F11: 165.7893145 | G11: 184.9670903 | H11: 207.0176787 | J11: 0 | K11: 260.1226706 | L11: 199.1980229 | M11: 208.804428 | O11: 190.1031187 | P11: 217.0024542 | Q11: 111.0517241 | R11: 118.7032153 | S11: 193.5715144 | T11: 163.7363045 | U11: 224.5278218 | V11: 183.278437 | W11: 207.5922412 | X11: 148.1600547 | Y11: 206.352027 | Z11: 0 | AA11: 179.1654102 | AB11: 157.5842814 | AC11: 209.7153198 | AD11: 0 | AE11: 182.7949637
A12: 2005-01-23 | B12: 3 | C12: 0.697421 | D12: 147.6649483 | F12: 165.1702154 | G12: 184.649184 | H12: 204.9162382 | J12: 0 | K12: 256.2464238 | L12: 199.0509276 | M12: 209.2263 | O12: 191.7280071 | P12: 218.5856898 | Q12: 116.3856165 | R12: 117.8711232 | S12: 192.6695255 | T12: 169.7243746 | U12: 223.8372699 | V12: 174.3761726 | W12: 207.2735212 | X12: 147.4138768 | Y12: 210.9698525 | Z12: 0 | AA12: 179.104687 | AB12: 158.7748649 | AC12: 205.6345818 | AD12: 0 | AE12: 185.2977855
A13: 2005-01-30 | B13: 4 | C13: 0.693743 | D13: 146.7613317 | F13: 167.6013714 | G13: 183.2660883 | H13: 196.7038902 | J13: 0 | K13: 253.9931872 | L13: 198.4382477 | M13: 208.1229 | O13: 191.2926948 | P13: 213.5618451 | Q13: 115.8689559 | R13: 113.9681 | S13: 191.1816959 | T13: 179.8944973 | U13: 222.885751 | V13: 179.1105677 | W13: 204.1477526 | X13: 148.0308813 | Y13: 209.7878832 | Z13: 0 | AA13: 178.4098873 | AB13: 157.6461593 | AC13: 209.9751938 | AD13: 0 | AE13: 186.0826849
A14: 2005-02-06 | B14: 5 | C14: 0.690657 | D14: 146.8474913 | F14: 166.6555341 | G14: 182.8169079 | H14: 192.1407774 | J14: 0 | K14: 253.567811 | L14: 195.5871558 | M14: 208.578414 | O14: 191.3948678 | P14: 213.8688466 | Q14: 113.3782531 | R14: 119.8704289 | S14: 196.2847194 | T14: 178.7213119 | U14: 222.0876649 | V14: 175.0262969 | W14: 204.33778 | X14: 152.8562072 | Y14: 213.7583415 | Z14: 0 | AA14: 179.2393046 | AB14: 163.14009 | AC14: 203.8197873 | AD14: 0 | AE14: 187.0437287
A15: 2005-02-13 | B15: 6 | C15: 0.687493 | D15: 147.6391218 | F15: 167.4732948 | G15: 184.2893736 | H15: 188.4762059 | J15: 0 | K15: 255.2730258 | L15: 199.0429734 | M15: 208.310379 | O15: 191.8930462 | P15: 213.0540807 | Q15: 114.7288318 | R15: 120.3593995 | S15: 190.8686816 | T15: 188.0568352 | U15: 221.468995 | V15: 178.5831817 | W15: 204.4672931 | X15: 154.493427 | Y15: 210.6478552 | Z15: 0 | AA15: 178.8513039 | AB15: 157.9996413 | AC15: 198.8229756 | AD15: 0 | AE15: 186.503101
A16: 2005-02-20 | B16: 7 | C16: 0.689207 | D16: 152.0114959 | F16: 167.8494728 | G16: 183.7012338 | H16: 189.8765285 | J16: 0 | K16: 253.8969667 | L16: 198.0229552 | M16: 209.518928 | O16: 193.8946053 | P16: 217.2242623 | Q16: 115.6075822 | R16: 121.2797558 | S16: 191.3445394 | T16: 182.4606612 | U16: 221.7041078 | V16: 179.6418045 | W16: 208.1129457 | X16: 155.9330838 | Y16: 212.8960423 | Z16: 0 | AA16: 178.9801658 | AB16: 154.9268415 | AC16: 197.6921359 | AD16: 0 | AE16: 187.8847203
A17: 2005-02-27 | B17: 8 | C17: 0.690664 | D17: 155.8621449 | F17: 169.6201718 | G17: 184.0205162 | H17: 192.1841646 | J17: 0 | K17: 250.1999406 | L17: 199.5121097 | M17: 210.65252 | O17: 194.6498351 | P17: 216.3228714 | Q17: 116.8810687 | R17: 128.7950227 | S17: 190.9409694 | T17: 165.9941858 | U17: 221.9103432 | V17: 186.5690663 | W17: 210.728493 | X17: 157.7960041 | Y17: 213.760508 | Z17: 0 | AA17: 179.7383994 | AB17: 162.4648927 | AC17: 200.6931451 | AD17: 0 | AE17: 187.0041846
A18: 2005-03-06 | B18: 9 | C18: 0.688043 | D18: 156.6880324 | F18: 170.6553053 | G18: 186.0812293 | H18: 201.9475009 | J18: 0 | K18: 253.887867 | L18: 201.0461646 | M18: 211.917244 | O18: 194.9225819 | P18: 215.901013 | Q18: 121.8248936 | R18: 127.7283025 | S18: 198.7136988 | T18: 156.6673911 | U18: 221.2333462 | V18: 182.9506337 | W18: 212.6328087 | X18: 158.9035308 | Y18: 212.5364827 | Z18: 0 | AA18: 178.987506 | AB18: 164.9170267 | AC18: 200.1998717 | AD18: 0 | AE18: 186.8931201
A19: 2005-03-13 | B19: 10 | C19: 0.693386 | D19: 158.7784601 | F19: 173.9150765 | G19: 199.299938 | H19: 225.0800295 | J19: 0 | K19: 257.0659256 | L19: 201.0680723 | M19: 214.256274 | O19: 195.6457938 | P19: 218.7008783 | Q19: 116.5304512 | R19: 141.6379582 | S19: 190.2651184 | T19: 169.6923558 | U19: 220.3372692 | V19: 188.4207116 | W19: 214.8733875 | X19: 154.9579033 | Y19: 215.296353 | Z19: 0 | AA19: 184.8497737 | AB19: 126.5013418 | AC19: 202.6905955 | AD19: 0 | AE19: 185.5084904
A20: 2005-03-20 | B20: 11 | C20: 0.695864 | D20: 160.0904718 | F20: 173.966 | G20: 199.6781748 | H20: 224.3604709 | J20: 0 | K20: 258.1377094 | L20: 204.4518018 | M20: 216.413704 | O20: 197.2565681 | P20: 220.240956 | Q20: 124.4204832 | R20: 139.1449654 | S20: 221.632684 | T20: 169.9091129 | U20: 222.9548256 | V20: 191.787077 | W20: 215.9961856 | X20: 156.8755802 | Y20: 214.7436304 | Z20: 0 | AA20: 184.9049821 | AB20: 166.4506688 | AC20: 200.3949147 | AD20: 0 | AE20: 185.2668314
A21: 2005-03-27 | B21: 12 | C21: 0.69421 | D21: 160.5221783 | F21: 172.1918484 | G21: 197.3916714 | H21: 223.6952883 | J21: 0 | K21: 253.7129287 | L21: 203.9866664 | M21: 216.59352 | O21: 197.3500188 | P21: 222.2513315 | Q21: 114.6904341 | R21: 151.6224061 | S21: 196.4753142 | T21: 177.4886707 | U21: 222.7997574 | V21: 190.5398187 | W21: 215.6355102 | X21: 154.1493305 | Y21: 215.829889 | Z21: 0 | AA21: 185.1874596 | AB21: 158.9185532 | AC21: 201.6471787 | AD21: 0 | AE21: 184.7015126
A22: 2005-04-03 | B22: 13 | C22: 0.68975 | D22: 160.4151575 | F22: 170.2371975 | G22: 204.9868025 | H22: 223.89285 | J22: 0 | K22: 251.3655925 | L22: 202.9727325 | M22: 214.51225 | O22: 195.14407 | P22: 217.4436875 | Q22: 0 | R22: 148.310045 | S22: 196.02695 | T22: 166.8988075 | U22: 221.9270625 | V22: 189.8536875 | W22: 214.7398675 | X22: 152.7865225 | Y22: 211.75325 | Z22: 0 | AA22: 183.7011175 | AB22: 162.546485 | AC22: 198.7376675 | AD22: 0 | AE22: 184.2253275
A23: 2005-04-10 | B23: 14 | C23: 0.686 | D23: 160.7641 | F23: 171.8087 | G23: 205.6285 | H23: 222.59328 | J23: 0 | K23: 254.82842 | L23: 203.4676 | M23: 211.974 | O23: 195.5786 | P23: 216.54962 | Q23: 123.60348 | R23: 145.39084 | S23: 192.60822 | T23: 178.27768 | U23: 222.0239 | V23: 193.67838 | W23: 214.94438 | X23: 153.47878 | Y23: 212.7286 | Z23: 0 | AA23: 182.3731 | AB23: 161.26488 | AC23: 197.06722 | AD23: 0 | AE23: 185.67276
A24: 2005-04-17 | B24: 15 | C24: 0.683771 | D24: 161.2879035 | F24: 171.5376308 | G24: 203.9141876 | H24: 219.4084385 | J24: 0 | K24: 254.9850436 | L24: 201.2611561 | M24: 209.917697 | O24: 194.450797 | P24: 214.1092132 | Q24: 120.8291734 | R24: 137.4995104 | S24: 196.6730527 | T24: 179.359971 | U24: 221.4118875 | V24: 185.2062131 | W24: 213.808354 | X24: 151.7151095 | Y24: 210.1912054 | Z24: 0 | AA24: 181.7805204 | AB24: 167.4213294 | AC24: 199.4354876 | AD24: 0 | AE24: 186.1566548
A25: 2005-04-24 | B25: 16 | C25: 0.682521 | D25: 161.1705089 | F25: 168.3096786 | G25: 207.7389168 | H25: 216.4956612 | J25: 0 | K25: 249.9050641 | L25: 200.1834093 | M25: 208.168905 | O25: 193.4674027 | P25: 218.2292645 | Q25: 121.0382741 | R25: 142.2988033 | S25: 195.7128967 | T25: 176.902618 | U25: 222.3585166 | V25: 183.9394095 | W25: 213.3287638 | X25: 148.3254637 | Y25: 207.5546361 | Z25: 0 | AA25: 180.4380768 | AB25: 161.8257291 | AC25: 203.3434815 | AD25: 0 | AE25: 186.881075
A26: 2005-05-01 | B26: 17 | C26: 0.679221 | D26: 160.3912469 | F26: 168.154743 | G26: 209.1185615 | H26: 215.4489012 | J26: 0 | K26: 247.1888985 | L26: 197.4087914 | M26: 207.841626 | O26: 192.6202834 | P26: 212.8814458 | Q26: 124.3381963 | R26: 143.0846959 | S26: 209.6755227 | T26: 179.606409 | U26: 223.1376829 | V26: 180.5029807 | W26: 209.5532629 | X26: 146.5555152 | Y26: 203.5625337 | Z26: 0 | AA26: 178.8388893 | AB26: 160.683312 | AC26: 200.2139742 | AD26: 0 | AE26: 188.3547755
A27: 2005-05-08 | B27: 18 | C27: 0.680036 | D27: 160.5224978 | F27: 171.1854623 | G27: 205.9013001 | H27: 210.7023542 | J27: 0 | K27: 247.8527209 | L27: 201.0866452 | M27: 208.091016 | O27: 191.8313552 | P27: 215.5646116 | Q27: 120.5023792 | R27: 143.2563838 | S27: 199.930584 | T27: 179.6111083 | U27: 223.5482343 | V27: 181.2363944 | W27: 208.9886635 | X27: 148.6694703 | Y27: 205.2348648 | Z27: 0 | AA27: 181.2771965 | AB27: 163.3174458 | AC27: 196.0883806 | AD27: 0 | AE27: 187.4927256
A28: 2005-05-15 | B28: 19 | C28: 0.682007 | D28: 161.3560361 | F28: 173.5162209 | G28: 206.54582 | H28: 212.1928379 | J28: 0 | K28: 254.3135902 | L28: 200.7965009 | M28: 208.694142 | O28: 193.2262232 | P28: 216.2712398 | Q28: 116.2208129 | R28: 147.0066089 | S28: 193.5604067 | T28: 179.3610209 | U28: 224.1620608 | V28: 181.9662877 | W28: 208.5372804 | X28: 143.8693766 | Y28: 205.0795049 | Z28: 0 | AA28: 181.8708067 | AB28: 168.455729 | AC28: 202.2423558 | AD28: 0 | AE28: 187.9543091
A29: 2005-05-22 | B29: 20 | C29: 0.686321 | D29: 162.7472987 | F29: 173.2342836 | G29: 207.8797677 | H29: 213.0958073 | J29: 0 | K29: 254.5495957 | L29: 197.9006604 | M29: 211.386868 | O29: 194.6063195 | P29: 219.5678143 | Q29: 117.3334382 | R29: 153.6466823 | S29: 201.778374 | T29: 178.704262 | U29: 225.5799863 | V29: 188.5872844 | W29: 209.5681173 | X29: 151.8279316 | Y29: 207.4748383 | Z29: 0 | AA29: 183.8173534 | AB29: 168.2996356 | AC29: 200.2204253 | AD29: 0 | AE29: 188.0725436
A30: 2005-05-29 | B30: 21 | C30: 0.687221 | D30: 163.8953363 | F30: 174.4785397 | G30: 207.7537805 | H30: 212.0351673 | J30: 0 | K30: 251.3098475 | L30: 197.5897819 | M30: 213.03851 | O30: 195.0745531 | P30: 219.8557423 | Q30: 115.1644952 | R30: 150.8175207 | S30: 198.8130353 | T30: 0 | U30: 225.8757983 | V30: 188.0786433 | W30: 211.5609849 | X30: 150.0340887 | Y30: 208.227963 | Z30: 0 | AA30: 184.993021 | AB30: 167.5719686 | AC30: 203.67856 | AD30: 0 | AE30: 188.5871868
A31: 2005-06-05 | B31: 22 | C31: 0.678764 | D31: 162.3060477 | F31: 166.127489 | G31: 203.8667674 | H31: 206.5410976 | J31: 0 | K31: 249.9344801 | L31: 196.7193825 | M31: 210.41684 | O31: 191.5947143 | P31: 215.0460105 | Q31: 111.3308713 | R31: 148.0384284 | S31: 200.4186463 | T31: 169.786027 | U31: 223.0961515 | V31: 191.072066 | W31: 209.303667 | X31: 150.4480406 | Y31: 205.1903572 | Z31: 0 | AA31: 181.6983352 | AB31: 168.1230552 | AC31: 197.350633 | AD31: 0 | AE31: 188.1398055
A32: 2005-06-12 | B32: 23 | C32: 0.672157 | D32: 162.0436096 | F32: 171.8033292 | G32: 202.4671315 | H32: 199.9801506 | J32: 0 | K32: 247.4344348 | L32: 188.251011 | M32: 207.024356 | O32: 188.8357876 | P32: 214.6735027 | Q32: 116.189059 | R32: 155.4900788 | S32: 230.549851 | T32: 180.8841703 | U32: 225.9321324 | V32: 185.3405712 | W32: 204.6449202 | X32: 151.1143367 | Y32: 204.8734536 | Z32: 0 | AA32: 180.7699036 | AB32: 169.8809602 | AC32: 199.146676 | AD32: 0 | AE32: 188.2106816
A33: 2005-06-19 | B33: 24 | C33: 0.667879 | D33: 161.593324 | F33: 170.4627572 | G33: 196.4913376 | H33: 193.5980857 | J33: 0 | K33: 249.786746 | L33: 191.5610548 | M33: 205.038853 | O33: 187.707393 | P33: 214.0685771 | Q33: 108.4902648 | R33: 153.7924973 | S33: 201.1317608 | T33: 181.3625425 | U33: 224.4941683 | V33: 178.864675 | W33: 199.6290331 | X33: 150.7469691 | Y33: 200.4972758 | Z33: 0 | AA33: 180.1803966 | AB33: 162.2144515 | AC33: 196.7638322 | AD33: 0 | AE33: 187.1463746
A34: 2005-06-26 | B34: 25 | C34: 0.664914 | D34: 160.1112912 | F34: 171.5411629 | G34: 190.3582291 | H34: 190.9367042 | J34: 0 | K34: 245.1271952 | L34: 191.5550743 | M34: 202.133856 | O34: 185.8966561 | P34: 213.1182353 | Q34: 98.39397372 | R34: 138.9138329 | S34: 202.3931725 | T34: 172.3523579 | U34: 223.4975428 | V34: 174.9987157 | W34: 196.8743863 | X34: 150.2772131 | Y34: 199.141743 | Z34: 0 | AA34: 178.9948488 | AB34: 170.2578788 | AC34: 197.5060546 | AD34: 0 | AE34: 187.7650645
A35: 2005-07-03 | B35: 26 | C35: 0.670257 | D35: 161.8737681 | F35: 172.3565875 | G35: 190.6210908 | H35: 192.5380258 | J35: 0 | K35: 248.9267472 | L35: 188.4427555 | M35: 201.0771 | O35: 184.8434755 | P35: 214.9112045 | Q35: 107.3416586 | R35: 139.7150716 | S35: 193.9053501 | T35: 229.1943811 | U35: 183.1879407 | V35: 197.7861381 | W35: 159.3468992 | X35: 197.7861381 | Y35: 159.3468992 | Z35: 0 | AA35: 198.7312005 | AB35: 182.9198379 | AC35: 168.2076967 | AD35: 0 | AE35: 187.1625647
A36: 2005-07-10 | B36: 27 | C36: 0.681286 | D36: 164.5373819 | F36: 175.3017007 | G36: 194.5957202 | H36: 194.4867144 | J36: 0 | K36: 252.1371357 | L36: 195.2633805 | M36: 203.023228 | O36: 186.086458 | P36: 211.5665544 | Q36: 113.5703762 | R36: 137.9740407 | S36: 180.2682756 | T36: 175.8262909 | U36: 232.9657477 | V36: 180.2887142 | W36: 198.2406003 | X36: 154.723457 | Y36: 201.7287846 | Z36: 0 | AA36: 184.8669561 | AB36: 170.8256516 | AC36: 205.5780505 | AD36: 0 | AE36: 185.405172
A37: 2005-07-17 | B37: 28 | C37: 0.687314 | D37: 165.9932041 | F37: 176.048608 | G37: 191.9599271 | H37: 195.88449 | J37: 0 | K37: 255.5433452 | L37: 191.7399866 | M37: 203.444944 | O37: 183.8908607 | P37: 214.8887221 | Q37: 112.2452493 | R37: 138.7755697 | S37: 188.7364244 | T37: 177.5400793 | U37: 236.9515015 | V37: 182.0007472 | W37: 200.4207624 | X37: 152.63182 | Y37: 204.2009894 | Z37: 0 | AA37: 0 | AB37: 195.0047281 | AC37: 205.8917818 | AD37: 0 | AE37: 179.5057974
A38: 2005-07-24 | B38: 29 | C38: 0.692071 | D38: 167.1420672 | F38: 181.7862896 | G38: 192.3611344 | H38: 198.6105356 | J38: 0 | K38: 256.7721824 | L38: 198.4998042 | M38: 204.160945 | O38: 183.2742422 | P38: 217.6355674 | Q38: 120.634896 | R38: 134.0403113 | S38: 202.4307675 | T38: 185.7103321 | U38: 238.5914772 | V38: 187.4197475 | W38: 202.9844243 | X38: 151.7573289 | Y38: 203.6764953 | Z38: 0 | AA38: 194.9633214 | AB38: 170.8031228 | AC38: 209.0884905 | AD38: 0 | AE38: 176.0767038
A39: 2005-07-31 | B39: 30 | C39: 0.691236 | D39: 167.3136738 | F39: 180.066978 | G39: 191.6106192 | H39: 199.9814872 | J39: 0 | K39: 258.4807898 | L39: 197.2787544 | M39: 205.297092 | O39: 178.684506 | P39: 219.370657 | Q39: 107.9987126 | R39: 137.555964 | S39: 194.2165789 | T39: 191.5967945 | U39: 238.303611 | V39: 185.6867267 | W39: 204.0528672 | X39: 152.8184549 | Y39: 203.6381256 | Z39: 0 | AA39: 195.8617206 | AB39: 168.8067436 | AC39: 207.2325528 | AD39: 0 | AE39: 174.1016113
A40: 2005-08-07 | B40: 31 | C40: 0.692307 | D40: 167.5729094 | F40: 179.5705897 | G40: 192.5513459 | H40: 202.2990285 | J40: 0 | K40: 256.2158976 | L40: 202.3613361 | M40: 205.615179 | O40: 170.7436754 | P40: 226.7097733 | Q40: 115.3798846 | R40: 134.4944809 | S40: 213.7151709 | T40: 192.066731 | U40: 238.6728383 | V40: 184.7975075 | W40: 202.4651822 | X40: 159.1267639 | Y40: 202.3613361 | Z40: 0 | AA40: 195.4451892 | AB40: 173.8452108 | AC40: 212.3997876 | AD40: 0 | AE40: 172.4329045
A41: 2005-08-14 | B41: 32 | C41: 0.690314 | D41: 167.5254015 | F41: 179.3573835 | G41: 199.0934607 | H41: 201.3714969 | J41: 0 | K41: 257.9696515 | L41: 201.9030387 | M41: 205.023258 | O41: 167.9672025 | P41: 220.3206162 | Q41: 108.130785 | R41: 146.3051492 | S41: 195.2415086 | T41: 175.9265229 | U41: 237.9857515 | V41: 185.1836336 | W41: 205.0853863 | X41: 159.807691 | Y41: 203.4355358 | Z41: 0 | AA41: 194.9101579 | AB41: 174.8151174 | AC41: 207.0734906 | AD41: 0 | AE41: 170.8251024
A42: 2005-08-21 | B42: 33 | C42: 0.680779 | D42: 165.0957153 | F42: 179.8005417 | G42: 192.953192 | H42: 197.296562 | J42: 0 | K42: 251.0100251 | L42: 194.9751056 | M42: 202.872142 | O42: 164.2038948 | P42: 220.7425908 | Q42: 119.3337509 | R42: 0 | S42: 197.813954 | T42: 183.5244028 | U42: 234.705368 | V42: 182.7687381 | W42: 204.0635053 | X42: 150.3364266 | Y42: 199.8767144 | Z42: 0 | AA42: 194.056054 | AB42: 169.5003554 | AC42: 210.2585942 | AD42: 0 | AE42: 170.4262149
A43: 2005-08-28 | B43: 34 | C43: 0.6804 | D43: 165.248748 | F43: 180.142704 | G43: 189.137592 | H43: 196.587972 | J43: 0 | K43: 252.503244 | L43: 198.152892 | M43: 202.7592 | O43: 164.466288 | P43: 216.993168 | Q43: 104.597892 | R43: 134.27694 | S43: 190.899828 | T43: 187.838028 | U43: 234.5679 | V43: 184.415616 | W43: 205.793784 | X43: 152.130636 | Y43: 198.81288 | Z43: 0 | AA43: 192.512376 | AB43: 167.534892 | AC43: 212.033052 | AD43: 0 | AE43: 169.242696
A44: 2005-09-04 | B44: 35 | C44: 0.682293 | D44: 165.6539175 | F44: 181.1829062 | G44: 203.7326898 | H44: 197.0939789 | J44: 0 | K44: 255.1707591 | L44: 199.6048172 | M44: 201.958728 | O44: 169.7476755 | P44: 213.6941676 | Q44: 87.23798298 | R44: 133.1290102 | S44: 192.6386056 | T44: 0 | U44: 235.2205118 | V44: 180.616603 | W44: 205.4111306 | X44: 157.5005161 | Y44: 202.2316452 | Z44: 0 | AA44: 192.3042821 | AB44: 168.7037672 | AC44: 210.6579638 | AD44: 0 | AE44: 166.6910028
A45: 2005-09-11 | B45: 36 | C45: 0.677293 | D45: 163.2411589 | F45: 180.8981874 | G45: 201.9349079 | H45: 194.9791088 | J45: 0 | K45: 251.4585721 | L45: 198.1352942 | M45: 199.124142 | O45: 168.449542 | P45: 210.5026644 | Q45: 0 | R45: 130.3924484 | S45: 199.124142 | T45: 186.2013916 | U45: 233.4967618 | V45: 183.6344511 | W45: 204.6576258 | X45: 156.1431282 | Y45: 202.1042312 | Z45: 0 | AA45: 193.0555967 | AB45: 169.418071 | AC45: 212.4329494 | AD45: 0 | AE45: 166.8985411
A46: 2005-09-18 | B46: 37 | C46: 0.675243 | D46: 162.2608929 | F46: 178.7165648 | G46: 196.2458731 | H46: 192.0323568 | J46: 0 | K46: 250.6974686 | L46: 200.0407388 | M46: 197.170956 | O46: 167.9396865 | P46: 208.7108589 | Q46: 0 | R46: 126.6823392 | S46: 197.5963591 | T46: 0 | U46: 232.7900243 | V46: 181.1271823 | W46: 200.5809332 | X46: 157.9055756 | Y46: 201.0198411 | Z46: 0 | AA46: 192.3902356 | AB46: 170.9580227 | AC46: 203.5790121 | AD46: 0 | AE46: 167.318463
A47: 2005-09-25 | B47: 38 | C47: 0.676207 | D47: 161.1130798 | F47: 178.4780756 | G47: 196.1676507 | H47: 189.0607151 | J47: 0 | K47: 249.3716175 | L47: 199.4607788 | M47: 194.747616 | O47: 168.862412 | P47: 211.172684 | Q47: 0 | R47: 137.7839383 | S47: 196.4178473 | T47: 178.0926376 | U47: 233.1223633 | V47: 184.4760317 | W47: 199.6433547 | X47: 156.9003102 | Y47: 204.6878589 | Z47: 0 | AA47: 193.0570985 | AB47: 167.8413395 | AC47: 207.1222041 | AD47: 0 | AE47: 166.346922
A48: 2005-10-02 | B48: 39 | C48: 0.680743 | D48: 162.1325603 | F48: 176.0265249 | G48: 197.6877672 | H48: 189.2397466 | J48: 0 | K48: 247.2254353 | L48: 201.2208234 | M48: 194.692498 | O48: 162.3844352 | P48: 219.8936039 | Q48: 115.3178642 | R48: 133.1397159 | S48: 209.1446719 | T48: 176.2239404 | U48: 234.6861492 | V48: 180.5806956 | W48: 198.7429188 | X48: 154.2835935 | Y48: 209.5326954 | Z48: 0 | AA48: 194.3725488 | AB48: 168.1094838 | AC48: 205.5911934 | AD48: 0 | AE48: 164.7942654
A49: 2005-10-09 | B49: 40 | C49: 0.682029 | D49: 161.9136846 | F49: 176.5636675 | G49: 198.0612216 | H49: 190.1087635 | J49: 0 | K49: 247.6992922 | L49: 201.5941318 | M49: 195.060294 | O49: 164.839589 | P49: 224.5853294 | Q49: 117.4999561 | R49: 140.8935508 | S49: 201.3827028 | T49: 0 | U49: 235.1294977 | V49: 180.0351951 | W49: 199.834497 | X49: 153.3337598 | Y49: 207.9506421 | Z49: 0 | AA49: 193.273378 | AB49: 165.6239224 | AC49: 204.9769957 | AD49: 0 | AE49: 163.9529513
A50: 2005-10-16 | B50: 41 | C50: 0.686279 | D50: 163.759895 | F50: 174.6854567 | G50: 199.9267983 | H50: 193.921857 | J50: 0 | K50: 253.1751859 | L50: 203.0836817 | M50: 198.334631 | O50: 164.9883344 | P50: 226.0946165 | Q50: 99.06437365 | R50: 141.2773949 | S50: 201.6973981 | T50: 178.7962679 | U50: 236.5946852 | V50: 182.3992326 | W50: 202.6307375 | X50: 155.7716074 | Y50: 211.4425599 | Z50: 0 | AA50: 195.2738267 | AB50: 164.4530368 | AC50: 211.1062832 | AD50: 0 | AE50: 163.8422485
A51: 2005-10-23 | B51: 42 | C51: 0.680729 | D51: 162.8031476 | F51: 167.0236674 | G51: 198.3099723 | H51: 194.5795774 | J51: 0 | K51: 250.6920688 | L51: 202.693867 | M51: 198.092139 | O51: 171.8159996 | P51: 224.2661691 | Q51: 91.89160771 | R51: 139.9578824 | S51: 191.3256927 | T51: 0 | U51: 234.6813228 | V51: 184.1984601 | W51: 202.7142889 | X51: 154.5867486 | Y51: 208.7115114 | Z51: 0 | AA51: 190.2365263 | AB51: 168.7322972 | AC51: 209.3241675 | AD51: 0 | AE51: 163.7629755
A52: 2005-10-30 | B52: 43 | C52: 0.678664 | D52: 162.3092822 | F52: 170.7993689 | G52: 196.4868013 | H52: 194.1521971 | J52: 0 | K52: 250.1894836 | L52: 204.7936486 | M52: 198.848552 | O52: 170.9215284 | P52: 212.0960733 | Q52: 87.71053536 | R52: 136.3096644 | S52: 202.7169368 | T52: 0 | U52: 233.969414 | V52: 182.7031354 | W52: 201.5224882 | X52: 152.020736 | Y52: 210.7930384 | Z52: 0 | AA52: 188.2206738 | AB52: 166.1301606 | AC52: 206.14419 | AD52: 0 | AE52: 166.6730918
A53: 2005-11-06 | B53: 44 | C53: 0.678079 | D53: 162.2914279 | F53: 170.5978956 | G53: 197.707494 | H53: 194.2018256 | J53: 0 | K53: 249.9738233 | L53: 207.8312135 | M53: 201.389463 | O53: 173.5814432 | P53: 219.7111576 | Q53: 105.1564913 | R53: 132.3406784 | S53: 196.0326389 | T53: 175.8733502 | U53: 233.7677352 | V53: 186.3632324 | W53: 201.7420641 | X53: 151.8761344 | Y53: 212.7811902 | Z53: 0 | AA53: 192.9202563 | AB53: 167.9330451 | AC53: 205.9393731 | AD53: 0 | AE53: 171.038647
A54: 2005-11-13 | B54: 45 | C54: 0.674779 | D54: 162.7634426 | F54: 171.2049279 | G54: 195.4429896 | H54: 194.3093608 | J54: 0 | K54: 251.3551775 | L54: 207.3865779 | M54: 202.4337 | O54: 175.1726284 | P54: 221.617667 | Q54: 106.5745953 | R54: 135.5563533 | S54: 186.4144465 | T54: 170.3277152 | U54: 232.6300603 | V54: 185.4157736 | W54: 200.8682127 | X54: 150.1923098 | Y54: 211.880606 | Z54: 0 | AA54: 191.927391 | AB54: 168.2628914 | AC54: 204.0126829 | AD54: 0 | AE54: 176.0430933
A55: 2005-11-20 | B55: 46 | C55: 0.676936 | D55: 163.8862056 | F55: 171.2512693 | G55: 196.4535966 | H55: 196.3588255 | J55: 0 | K55: 250.2158537 | L55: 208.2593604 | M55: 205.788544 | O55: 177.093227 | P55: 225.2572234 | Q55: 106.9423493 | R55: 145.1621558 | S55: 197.760083 | T55: 167.3995034 | U55: 233.373686 | V55: 180.0108211 | W55: 201.2801502 | X55: 150.354255 | Y55: 216.5518264 | Z55: 0 | AA55: 192.6356775 | AB55: 163.5341989 | AC55: 205.5651551 | AD55: 0 | AE55: 179.9837437
A56: 2005-11-27 | B56: 47 | C56: 0.673964 | D56: 163.4093114 | F56: 171.2542524 | G56: 196.3189736 | H56: 195.6652285 | J56: 0 | K56: 249.7393821 | L56: 208.0998643 | M56: 206.232984 | O56: 178.9509213 | P56: 227.1191284 | Q56: 91.98260672 | R56: 146.9174124 | S56: 196.891843 | T56: 0 | U56: 232.349089 | V56: 190.8733444 | W56: 201.7174252 | X56: 151.6486396 | Y56: 219.4426784 | Z56: 0 | AA56: 192.6054319 | AB56: 169.3199757 | AC56: 206.0510137 | AD56: 0 | AE56: 179.6383646
A57: 2005-12-04 | B57: 48 | C57: 0.681436 | D57: 165.2823018 | F57: 174.1682272 | G57: 197.9912298 | H57: 197.5687395 | J57: 0 | K57: 253.5282638 | L57: 214.2707358 | M57: 211.24516 | O57: 183.2176973 | P57: 227.4701512 | Q57: 0 | R57: 153.0914118 | S57: 196.7373876 | T57: 171.2039806 | U57: 234.925061 | V57: 189.0576038 | W57: 203.8856512 | X57: 155.0062469 | Y57: 223.3747208 | Z57: 0 | AA57: 188.8054725 | AB57: 170.0727969 | AC57: 226.4616259 | AD57: 0 | AE57: 184.3693242
A58: 2005-12-11 | B58: 49 | C58: 0.676007 | D58: 166.0678796 | F58: 174.5652876 | G58: 196.1704713 | H58: 197.3129232 | J58: 0 | K58: 250.6228352 | L58: 212.1512768 | M58: 210.238177 | O58: 183.0694557 | P58: 218.9383871 | Q58: 0 | R58: 155.5965312 | S58: 201.3960054 | T58: 166.4532036 | U58: 233.0534133 | V58: 188.8560756 | W58: 202.126093 | X58: 154.3121179 | Y58: 224.5019247 | Z58: 0 | AA58: 191.499263 | AB58: 173.5985976 | AC58: 195.0280195 | AD58: 0 | AE58: 185.0433961
A59: 2005-12-18 | B59: 50 | C59: 0.67595 | D59: 166.4797255 | F59: 173.570441 | G59: 198.959123 | H59: 200.770669 | J59: 0 | K59: 250.7842095 | L59: 213.73539 | M59: 210.8964 | O59: 183.236526 | P59: 223.536665 | Q59: 0 | R59: 156.8136405 | S59: 200.054162 | T59: 168.5616515 | U59: 233.0337625 | V59: 189.6242535 | W59: 202.757962 | X59: 155.4076645 | Y59: 226.510845 | Z59: 0 | AA59: 192.1658255 | AB59: 169.3727915 | AC59: 198.607629 | AD59: 0 | AE59: 186.413491
A60: 2005-12-25 | B60: 51 | C60: 0.680286 | D60: 167.4864132 | F60: 174.9015306 | G60: 194.1332158 | H60: 206.6640839 | J60: 0 | K60: 251.7738486 | L60: 214.970376 | M60: 210.88866 | O60: 186.5276183 | P60: 219.487475 | Q60: 103.5327263 | R60: 157.1528689 | S60: 198.6026948 | T60: 0 | U60: 234.5285985 | V60: 188.9970565 | W60: 206.4940124 | X60: 156.1664542 | Y60: 227.215524 | Z60: 0 | AA60: 192.8338696 | AB60: 171.4184663 | AC60: 209.4940737 | AD60: 0 | AE60: 186.6840841
A61: 2006-01-01 | B61: 52 | C61: 0.684993 | D61: 168.706926 | F61: 182.0300398 | G61: 202.9291762 | H61: 212.9711736 | J61: 0 | K61: 252.9268153 | L61: 220.0882509 | M61: 212.34783 | O61: 191.7432406 | P61: 215.4508483 | Q61: 115.6542181 | R61: 157.6990885 | S61: 201.387942 | T61: 0 | U61: 236.1513367 | V61: 189.3389151 | W61: 212.841025 | X61: 159.0827743 | Y61: 235.5005934 | Z61: 0 | AA61: 195.127106 | AB61: 173.0771813 | AC61: 202.6072295 | AD61: 0 | AE61: 187.5990329
A65: Young Bulls | B65: R3
A67: 2006
D68: B | F68: CZK | G68: DK | H68: G | J68: Gr | K68: Sp | L68: Fr | M68: IR | N68: HR | O68: IT | P68: LVL | Q68: LTL | R68: Lux | S68: HUF | T68: MTL | U68: NL | V68: Aus | W68: PLN | X68: P | Y68: ROM | Z68: SIT | AA68: SKK | AB68: F | AC68: SW | AD68: UK | AE68: EU ave
A70: w/e | D70: Pence per Kg
A72: 2006-01-08 | B72: 1 | C72: 0.687657 | D72: 173.8396896 | F72: 176.4252799 | G72: 196.9655945 | H72: 213.1530403 | J72: 0 | K72: 0 | L72: 222.5258052 | M72: 217.299612 | O72: 192.1038595 | P72: 223.2065856 | Q72: 115.5813886 | R72: 154.3102308 | S72: 203.3814343 | T72: 181.4864354 | U72: 237.0697507 | V72: 191.3336837 | W72: 216.1030888 | X72: 163.7655146 | Y72: 234.6285684 | Z72: 0 | AA72: 195.2326989 | AB72: 172.3749802 | AC72: 216.6669676 | AD72: 180.6337408 | AE72: 186.6988755
A73: 2006-01-15 | B73: 2 | C73: 0.684471 | D73: 175.3751596 | F73: 170.8165828 | G73: 194.2597145 | H73: 209.9957028 | J73: 0 | K73: 0 | L73: 223.4113344 | M73: 220.399662 | O73: 192.5416923 | P73: 215.7794828 | Q73: 125.7647015 | R73: 151.7951337 | S73: 201.5698648 | T73: 165.5050878 | U73: 235.9713773 | V73: 188.0994755 | W73: 213.8287404 | X73: 163.7323079 | Y73: 236.2109421 | Z73: 0 | AA73: 194.8209807 | AB73: 174.3689873 | AC73: 220.5913139 | AD73: 180.4265556 | AE73: 187.2575762
A74: 2006-01-22 | B74: 3 | C74: 0.686336 | D74: 175.187264 | F74: 179.0856525 | G74: 203.1074125 | H74: 213.1279181 | J74: 0 | K74: 0 | L74: 225.1868416 | M74: 223.745536 | O74: 192.517248 | P74: 217.129257 | Q74: 115.379945 | R74: 151.8449766 | S74: 199.2296141 | T74: 179.5798144 | U74: 238.6939341 | V74: 195.7361638 | W74: 214.0132915 | X74: 164.2264781 | Y74: 238.4331264 | Z74: 0 | AA74: 196.9372518 | AB74: 176.2854016 | AC74: 209.1746227 | AD74: 180.5544115 | AE74: 184.185129
A75: 2006-01-29 | B75: 4 | C75: 0.6861 | D75: 175.902318 | F75: 183.126951 | G75: 208.245072 | H75: 218.481684 | J75: 0 | K75: 0 | L75: 227.37354 | M75: 225.7269 | O75: 191.188626 | P75: 218.872761 | Q75: 0 | R75: 152.986578 | S75: 205.480089 | T75: 0 | U75: 238.611858 | V75: 201.212547 | W75: 216.53316 | X75: 164.636556 | Y75: 238.41975 | Z75: 0 | AA75: 196.807785 | AB75: 174.948639 | AC75: 207.922605 | AD75: 184.204128 | AE75: 185.006865
A76: 2006-02-05 | B76: 5 | C76: 0.68145 | D76: 175.0713195 | F76: 182.3900925 | G76: 206.0500365 | H76: 218.1934755 | J76: 0 | K76: 0 | L76: 225.764385 | M76: 226.92285 | O76: 190.833258 | P76: 214.4863875 | Q76: 133.359765 | R76: 157.3536195 | S76: 211.167726 | T76: 0 | U76: 236.994681 | V76: 202.7109315 | W76: 215.2632405 | X76: 164.8768275 | Y76: 235.577265 | Z76: 0 | AA76: 196.0872375 | AB76: 173.9946285 | AC76: 207.310719 | AD76: 185.109078 | AE76: 183.500856
A77: 2006-02-12 | B77: 6 | C77: 0.684329 | D77: 176.0710084 | F77: 183.7560231 | G77: 211.0060039 | H77: 219.3137579 | J77: 0 | K77: 0 | L77: 228.5727293 | M77: 231.303202 | O77: 192.1527399 | P77: 233.9104955 | Q77: 129.5776961 | R77: 152.4069116 | S77: 204.9496922 | T77: 170.5826898 | U77: 237.9959396 | V77: 196.35452 | W77: 216.9254497 | X77: 166.6067383 | Y77: 240.8153751 | Z77: 0 | AA77: 197.5178793 | AB77: 174.24385 | AC77: 205.0797147 | AD77: 186.5549287 | AE77: 184.8851659
A78: 2006-02-19 | B78: 7 | C78: 0.684136 | D78: 175.7750625 | F78: 185.3940146 | G78: 215.9064802 | H78: 221.2701065 | J78: 0 | K78: 0 | L78: 227.6188886 | M78: 231.922104 | O78: 192.6321735 | P78: 239.8717643 | Q78: 130.6836587 | R78: 153.8211382 | S78: 203.2157574 | T78: 0 | U78: 237.9288181 | V78: 199.5624712 | W78: 217.8494265 | X78: 170.0762096 | Y78: 244.3049656 | Z78: 0 | AA78: 196.9695958 | AB78: 174.3725837 | AC78: 208.2988879 | AD78: 182.9242837 | AE78: 185.496635
A79: 2006-02-26 | B79: 8 | C79: 0.682293 | D79: 174.667008 | F79: 182.9636909 | G79: 216.5188606 | H79: 222.6936123 | J79: 0 | K79: 0 | L79: 227.7016429 | M79: 232.661913 | O79: 193.286784 | P79: 234.7838442 | Q79: 127.2408216 | R79: 153.3589976 | S79: 199.3182541 | T79: 0 | U79: 23.73015054 | V79: 196.79377 | W79: 218.9887613 | X79: 172.9817443 | Y79: 238.5296328 | Z79: 0 | AA79: 197.5170006 | AB79: 169.8431965 | AC79: 211.8110389 | AD79: 183.3184832 | AE79: 186.2114056
A80: 2006-03-05 | B80: 9 | C80: 0.682093 | D80: 175.0728103 | F80: 185.0177262 | G80: 216.6736624 | H80: 225.7045737 | J80: 0 | K80: 0 | L80: 228.3374527 | M80: 233.957899 | O80: 194.9353585 | P80: 249.8506659 | Q80: 0 | R80: 150.0195344 | S80: 197.1930863 | T80: 0 | U80: 237.2183035 | V80: 206.3535953 | W80: 219.0882716 | X80: 170.7892663 | Y80: 239.9603174 | Z80: 0 | AA80: 197.615984 | AB80: 174.3975382 | AC80: 207.0356883 | AD80: 181.334424 | AE80: 186.1909262
A81: 2006-03-12 | B81: 10 | C81: 0.685793 | D81: 176.3653858 | F81: 180.0960997 | G81: 218.4182126 | H81: 231.9146188 | J81: 0 | K81: 0 | L81: 229.7818026 | M81: 235.912792 | O81: 196.0887925 | P81: 265.010989 | Q81: 123.9502268 | R81: 152.3969205 | S81: 213.5216506 | T81: 0 | U81: 238.5050895 | V81: 200.937349 | W81: 222.7661402 | X81: 168.3278918 | Y81: 245.1024182 | Z81: 0 | AA81: 198.5439314 | AB81: 176.2076534 | AC81: 210.0858276 | AD81: 181.8517298 | AE81: 188.0512985
A82: 2006-03-19 | B82: 11 | C82: 0.690564 | D82: 177.6614003 | F82: 182.7439513 | G82: 219.8203325 | H82: 235.558286 | J82: 0 | K82: 0 | L82: 230.0890192 | M82: 238.935144 | O82: 198.4542823 | P82: 259.8108937 | Q82: 122.0295644 | R82: 154.858977 | S82: 226.6431048 | T82: 0 | U82: 240.1643479 | V82: 201.6792162 | W82: 226.5395202 | X82: 169.3884436 | Y82: 249.4317168 | Z82: 0 | AA82: 201.9968756 | AB82: 170.148064 | AC82: 212.1481664 | AD82: 189.2766868 | AE82: 187.5226542
A83: 2006-03-26 | B83: 12 | C83: 0.69245 | D83: 178.8252125 | F83: 186.573728 | G83: 219.5689705 | H83: 234.7336255 | J83: 0 | K83: 0 | L83: 229.8934 | M83: 240.28015 | O83: 199.5710145 | P83: 264.349712 | Q83: 0 | R83: 154.4925195 | S83: 221.5632265 | T83: 0 | U83: 240.820261 | V83: 198.373076 | W83: 227.3244105 | X83: 171.9838065 | Y83: 246.027485 | Z83: 0 | AA83: 202.1192305 | AB83: 179.7115485 | AC83: 209.563068 | AD83: 188.3464 | AE83: 189.232736
A84: 2006-04-02 | B84: 13 | C84: 0.692721 | D84: 180.5923647 | F84: 187.4710842 | G84: 217.7914824 | H84: 231.6459024 | J84: 0 | K84: 0 | L84: 232.6018574 | M84: 241.066908 | O84: 200.0439704 | P84: 262.5966767 | Q84: 113.6962977 | R84: 153.9849511 | S84: 226.0625711 | T84: 0 | U84: 240.9145094 | V84: 208.342768 | W84: 227.2609785 | X84: 169.2663764 | Y84: 245.7774108 | Z84: 0 | AA84: 202.142915 | AB84: 177.7383542 | AC84: 211.2729778 | AD84: 187.5057203 | AE84: 189.5353928
A85: 2006-04-09 | B85: 14 | C85: 0.698086 | D85: 182.4028909 | F85: 188.6856649 | G85: 221.2234534 | H85: 229.4329448 | J85: 0 | K85: 0 | L85: 232.3509442 | M85: 242.933928 | O85: 203.4571647 | P85: 257.1260164 | Q85: 115.4773861 | R85: 160.2805456 | S85: 226.1030745 | T85: 0 | U85: 242.7803491 | V85: 207.7503936 | W85: 226.0960937 | X85: 169.1951038 | Y85: 247.5412956 | Z85: 0 | AA85: 202.9615236 | AB85: 184.643747 | AC85: 205.7050016 | AD85: 191.3034874 | AE85: 192.8183341
A86: 2006-04-16 | B86: 15 | C86: 0.692393 | D86: 180.9846063 | F86: 189.6672145 | G86: 218.5109221 | H86: 227.4580244 | J86: 0 | K86: 0 | L86: 223.34521 | M86: 239.567978 | O86: 202.3657021 | P86: 252.917315 | Q86: 109.4188658 | R86: 160.6490239 | S86: 217.8822292 | T86: 0 | U86: 240.8004375 | V86: 205.9453739 | W86: 221.2957267 | X86: 167.3721599 | Y86: 245.107122 | Z86: 0 | AA86: 200.0323377 | AB86: 179.8975493 | AC86: 205.0383391 | AD86: 186.6760767 | AE86: 196.2934155
A87: 2006-04-23 | B87: 16 | C87: 0.691536 | D87: 181.3760621 | F87: 190.2138922 | G87: 219.832379 | H87: 229.0436386 | J87: 0 | K87: 0 | L87: 229.1542843 | M87: 237.888384 | O87: 203.3392454 | P87: 253.2543139 | Q87: 113.2597661 | R87: 161.2454491 | S87: 219.5073571 | T87: 0 | U87: 240.5023901 | V87: 204.2451576 | W87: 221.6096266 | X87: 170.3529782 | Y87: 247.5007344 | Z87: 0 | AA87: 200.967277 | AB87: 182.987341 | AC87: 210.821665 | AD87: 192.7864061 | AE87: 197.1085061
A88: 2006-04-30 | B88: 17 | C88: 0.694136 | D88: 182.1274037 | F88: 192.9906321 | G88: 220.7838375 | H88: 229.3425344 | J88: 0 | K88: 0 | L88: 230.8418682 | M88: 236.700376 | O88: 204.6243514 | P88: 254.574378 | Q88: 110.6938679 | R88: 166.0998034 | S88: 207.8867906 | T88: 0 | U88: 241.4066181 | V88: 212.2598474 | W88: 222.2068163 | X88: 172.6316232 | Y88: 246.41828 | Z88: 0 | AA88: 204.1592803 | AB88: 181.2805578 | AC88: 206.4985186 | AD88: 193.393231 | AE88: 197.9675872
A89: 2006-05-07 | B89: 18 | C89: 0.688793 | D89: 182.2752916 | F89: 190.4719283 | G89: 222.7625441 | H89: 224.7256042 | J89: 0 | K89: 0 | L89: 229.6160345 | M89: 232.812034 | O89: 204.0480383 | P89: 251.5678674 | Q89: 115.7309999 | R89: 161.2602172 | S89: 228.8859139 | T89: 0 | U89: 239.5484295 | V89: 203.2834781 | W89: 220.7306048 | X89: 172.9765861 | Y89: 245.6235838 | Z89: 0 | AA89: 201.7336938 | AB89: 175.1738358 | AC89: 206.5965724 | AD89: 192.2283504 | AE89: 198.3861599
A90: 2006-05-14 | B90: 19 | C90: 0.683571 | D90: 181.0301079 | F90: 190.3061664 | G90: 221.3881398 | H90: 219.4673053 | J90: 0 | K90: 0 | L90: 227.5266074 | M90: 228.312714 | O90: 202.2966853 | P90: 256.5305249 | Q90: 0 | R90: 163.9408329 | S90: 214.3678656 | T90: 0 | U90: 237.7323224 | V90: 208.2020552 | W90: 218.3804274 | X90: 170.5646359 | Y90: 242.1892053 | Z90: 0 | AA90: 200.5050457 | AB90: 175.9785182 | AC90: 206.7255418 | AD90: 191.2631658 | AE90: 200.8810098
A91: 2006-05-21 | B91: 20 | C91: 0.680021 | D91: 180.627178 | F91: 188.5426225 | G91: 223.5773044 | H91: 214.628228 | J91: 0 | K91: 0 | L91: 224.6585378 | M91: 225.766972 | O91: 200.7013979 | P91: 250.1389246 | Q91: 0 | R91: 165.0410967 | S91: 209.9224827 | T91: 0 | U91: 236.4977034 | V91: 206.6719823 | W91: 214.0026087 | X91: 167.026758 | Y91: 240.9994424 | Z91: 0 | AA91: 198.4641289 | AB91: 172.7457346 | AC91: 202.6666586 | AD91: 188.3794174 | AE91: 201.3678185
A92: 2006-05-28 | B92: 21 | C92: 0.682643 | D92: 184.3204364 | F92: 193.0650933 | G92: 223.7430697 | H92: 212.7525174 | J92: 0 | K92: 0 | L92: 221.9750243 | M92: 226.637476 | O92: 201.0451899 | P92: 244.195054 | Q92: 0 | R92: 165.4999689 | S92: 210.7318941 | T92: 0 | U92: 237.4095825 | V92: 206.5063339 | W92: 212.4999395 | X92: 166.469322 | Y92: 241.0412433 | Z92: 0 | AA92: 199.188401 | AB92: 175.8966218 | AC92: 206.0421367 | AD92: 189.0784581 | AE92: 202.3422116
A93: 2006-06-04 | B93: 22 | C93: 0.685643 | D93: 185.7406887 | F93: 194.0301126 | G93: 225.7890963 | H93: 211.4523012 | J93: 0 | K93: 0 | L93: 220.5507838 | M93: 226.947833 | O93: 201.4899084 | P93: 245.4944761 | Q93: 112.6100063 | R93: 162.7853611 | S93: 227.8391689 | T93: 0 | U93: 238.4529225 | V93: 206.7282209 | W93: 212.6521764 | X93: 167.3311742 | Y93: 239.8379214 | Z93: 0 | AA93: 200.015776 | AB93: 173.4539661 | AC93: 211.5002962 | AD93: 191.9663271 | AE93: 200.3380282
A94: 2006-06-11 | B94: 23 | C94: 0.687964 | D94: 186.8441428 | F94: 191.6323722 | G94: 227.7504822 | H94: 210.6614564 | J94: 0 | K94: 0 | L94: 223.932282 | M94: 227.02812 | O94: 202.2751753 | P94: 246.9859556 | Q94: 0 | R94: 161.8916885 | S94: 220.664453 | T94: 0 | U94: 239.2601199 | V94: 200.4933485 | W94: 212.3951257 | X94: 167.8907346 | Y94: 237.1411908 | Z94: 0 | AA94: 199.1724576 | AB94: 171.6951755 | AC94: 206.2378479 | AD94: 194.9758772 | AE94: 200.2869593
A95: 2006-06-18 | B95: 24 | C95: 0.683879 | D95: 186.2065741 | F95: 190.4534627 | G95: 225.4885839 | H95: 209.1575534 | J95: 0 | K95: 0 | L95: 220.2637483 | M95: 225.68007 | O95: 201.1493303 | P95: 247.1470318 | Q95: 111.0209169 | R95: 160.8688572 | S95: 224.1139871 | T95: 0 | U95: 237.8394386 | V95: 198.7352374 | W95: 212.6726914 | X95: 164.4865771 | Y95: 237.2376251 | Z95: 0 | AA95: 200.4312573 | AB95: 178.4582251 | AC95: 207.379468 | AD95: 192.6760695 | AE95: 202.1477936
A96: 2006-06-25 | B96: 25 | C96: 0.686614 | D96: 186.8825985 | F96: 187.3426299 | G96: 225.0926676 | H96: 211.4496474 | J96: 0 | K96: 0 | L96: 210.8316948 | M96: 225.209392 | O96: 202.2490198 | P96: 243.796033 | Q96: 0 | R96: 163.7505729 | S96: 213.5712847 | T96: 0 | U96: 238.7906169 | V96: 209.0876953 | W96: 211.772356 | X96: 167.8427923 | Y96: 232.8308074 | Z96: 0 | AA96: 201.8576499 | AB96: 176.6863806 | AC96: 210.3304666 | AD96: 192.8080773 | AE96: 203.5879171
A97: 2006-07-02 | B97: 26 | C97: 0.690636 | D97: 186.3612182 | F97: 188.6886616 | G97: 222.3502602 | H97: 210.6094482 | J97: 0 | K97: 0 | L97: 216.9978312 | M97: 224.4567 | O97: 202.0939063 | P97: 245.2241245 | Q97: 0 | R97: 165.4418538 | S97: 221.9980358 | T97: 0 | U97: 240.1893881 | V97: 211.8387803 | W97: 212.9921424 | X97: 165.8147972 | Y97: 237.3025296 | Z97: 0 | AA97: 203.1505794 | AB97: 174.6204062 | AC97: 209.4215543 | AD97: 196.1682494 | AE97: 205.0498284
A98: 2006-07-09 | B98: 27 | C98: 0.69355 | D98: 186.939467 | F98: 194.2009355 | G98: 224.626974 | H98: 206.1577375 | J98: 0 | K98: 0 | L98: 208.370162 | M98: 222.62955 | O98: 202.0103085 | P98: 242.0420145 | Q98: 0 | R98: 163.40038 | S98: 216.4777615 | T98: 0 | U98: 254.449624 | V98: 204.8122505 | W98: 211.25533 | X98: 168.4424885 | Y98: 235.321515 | Z98: 0 | AA98: 204.6735405 | AB98: 179.2202555 | AC98: 210.631135 | AD98: 196.330134 | AE98: 204.45854
A99: 2006-07-16 | B99: 28 | C99: 0.690707 | D99: 185.896882 | F99: 190.3933845 | G99: 221.8619955 | H99: 200.2497734 | J99: 0 | K99: 0 | L99: 207.5160111 | M99: 218.954119 | O99: 199.3518543 | P99: 242.3829004 | Q99: 0 | R99: 155.8718487 | S99: 215.9288223 | T99: 0 | U99: 253.4065842 | V99: 206.4868576 | W99: 206.1138759 | X99: 162.613149 | Y99: 230.9724208 | Z99: 0 | AA99: 203.3303267 | AB99: 180.1640139 | AC99: 209.7677159 | AD99: 195.4079174 | AE99: 202.47385
A100: 2006-07-23 | B100: 29 | C100: 0.68475 | D100: 184.22514 | F100: 189.0115425 | G100: 217.0862925 | H100: 198.426855 | J100: 0 | K100: 0 | L100: 215.764725 | M100: 215.69625 | O100: 196.7903025 | P100: 243.9011025 | Q100: 113.1412425 | R100: 150.67239 | S100: 221.5851 | T100: 0 | U100: 251.22108 | V100: 206.068665 | W100: 203.5693275 | X100: 160.7313675 | Y100: 226.5153 | Z100: 0 | AA100: 200.535885 | AB100: 179.8906725 | AC100: 208.41051 | AD100: 193.2980775 | AE100: 200.19351
A101: 2006-07-30 | B101: 30 | C101: 0.683021 | D101: 183.5618937 | F101: 188.903118 | G101: 216.777205 | H101: 201.1223637 | J101: 0 | K101: 0 | L101: 214.632519 | M101: 214.468594 | O101: 192.447997 | P101: 239.8496544 | Q101: 0 | R101: 138.4073754 | S101: 208.7721989 | T101: 0 | U101: 250.5867445 | V101: 197.5023524 | W101: 205.1795084 | X101: 163.0371127 | Y101: 224.4407006 | Z101: 0 | AA101: 200.9242876 | AB101: 181.6972464 | AC101: 211.3676787 | AD101: 192.5914314 | AE101: 197.7414097
A102: 2006-08-06 | B102: 31 | C102: 0.680357 | D102: 182.5057652 | F102: 183.8596757 | G102: 214.0947408 | H102: 200.4467793 | J102: 0 | K102: 0 | L102: 214.7750978 | M102: 213.632098 | O102: 191.1939241 | P102: 234.0768259 | Q102: 117.7629931 | R102: 136.1802571 | S102: 209.8901345 | T102: 0 | U102: 249.6093762 | V102: 203.7329036 | W102: 204.3996535 | X102: 162.8774658 | Y102: 225.9465597 | Z102: 0 | AA102: 198.473744 | AB102: 174.123767 | AC102: 211.3665092 | AD102: 191.6293526 | AE102: 194.1738878
A103: 2006-08-13 | B103: 32 | C103: 0.674543 | D103: 180.8787054 | F103: 182.3761909 | G103: 221.7762475 | H103: 200.1706353 | J103: 0 | K103: 0 | L103: 212.6901533 | M103: 211.806502 | O103: 187.8939527 | P103: 232.0765191 | Q103: 0 | R103: 132.837753 | S103: 208.0965155 | T103: 0 | U103: 247.4763358 | V103: 197.641099 | W103: 201.5601938 | X103: 160.5007614 | Y103: 225.971905 | Z103: 0 | AA103: 195.2329805 | AB103: 179.6375463 | AC103: 204.2381295 | AD103: 190.5853792 | AE103: 190.2548532
A104: 2006-08-20 | B104: 33 | C104: 0.676829 | D104: 181.4916963 | F104: 184.259927 | G104: 222.162351 | H104: 202.1417491 | J104: 0 | K104: 0 | L104: 214.1690005 | M104: 213.877964 | O104: 189.9385223 | P104: 240.0374049 | Q104: 0 | R104: 141.7482975 | S104: 210.0674167 | T104: 0 | U104: 248.3150235 | V104: 199.2652259 | W104: 204.8355286 | X104: 162.229143 | Y104: 228.1590559 | Z104: 0 | AA104: 196.8421781 | AB104: 178.8385267 | AC104: 214.0945493 | AD104: 190.0738881 | AE104: 190.398766
A105: 2006-08-27 | B105: 34 | C105: 0.678093 | D105: 181.8306379 | F105: 182.3256458 | G105: 219.9394645 | H105: 204.3636683 | J105: 0 | K105: 0 | L105: 215.9658396 | M105: 215.633574 | O105: 190.4017335 | P105: 235.4474515 | Q105: 0 | R105: 144.725389 | S105: 219.1596576 | T105: 0 | U105: 248.7787598 | V105: 208.1338654 | W105: 208.2220175 | X105: 163.1152711 | Y105: 236.3154105 | Z105: 0 | AA105: 195.2500984 | AB105: 178.5825725 | AC105: 216.7456465 | AD105: 192.8021827 | AE105: 195.1619463
A106: 2006-09-03 | B106: 35 | C106: 0.674279 | D106: 181.0101975 | F106: 180.1134065 | G106: 216.2884748 | H106: 202.539926 | J106: 0 | K106: 0 | L106: 217.5696049 | M106: 215.095001 | O106: 189.6881683 | P106: 231.6485504 | Q106: 0 | R106: 145.8802616 | S106: 207.5565618 | T106: 0 | U106: 247.3794795 | V106: 210.3615624 | W106: 211.1572116 | X106: 164.2476216 | Y106: 233.300534 | Z106: 0 | AA106: 194.6306333 | AB106: 177.3690909 | AC106: 208.3252398 | AD106: 189.6881683 | AE106: 197.4086628
A107: 2006-09-10 | B107: 36 | C107: 0.677107 | D107: 181.7693742 | F107: 178.7291637 | G107: 223.2692622 | H107: 202.2112345 | J107: 0 | K107: 0 | L107: 222.3687099 | M107: 215.320026 | O107: 191.8921238 | P107: 231.381004 | Q107: 105.0531511 | R107: 147.0540983 | S107: 212.4084659 | T107: 0 | U107: 248.4170162 | V107: 171.4908899 | W107: 211.9886596 | X107: 164.7130488 | Y107: 243.1491237 | Z107: 0 | AA107: 194.2484562 | AB107: 184.8637531 | AC107: 209.0974127 | AD107: 187.4841572 | AE107: 201.100779
A108: 2006-09-17 | B108: 37 | C108: 0.676864 | D108: 181.7041408 | F108: 180.120279 | G108: 223.0943744 | H108: 199.1740006 | J108: 0 | K108: 0 | L108: 222.9251584 | M108: 212.535296 | O108: 192.0263168 | P108: 227.8798029 | Q108: 116.8267264 | R108: 147.3465242 | S108: 201.5159501 | T108: 0 | U108: 248.3278643 | V108: 206.0509389 | W108: 208.4335002 | X108: 165.2225024 | Y108: 244.8893952 | Z108: 0 | AA108: 198.6189722 | AB108: 178.6785587 | AC108: 215.8519296 | AD108: 190.5033728 | AE108: 202.1928141
A109: 2006-09-24 | B109: 38 | C109: 0.673271 | D109: 180.7395999 | F109: 178.4437458 | G109: 218.9342638 | H109: 197.429988 | J109: 0 | K109: 0 | L109: 222.2130935 | M109: 209.387281 | O109: 192.7238237 | P109: 226.6297513 | Q109: 130.5809104 | R109: 143.3461286 | S109: 205.5967653 | T109: 0 | U109: 247.0096645 | V109: 193.5519471 | W109: 203.0450682 | X109: 162.9854437 | Y109: 244.1280646 | Z109: 0 | AA109: 196.6355283 | AB109: 152.670932 | AC109: 211.0637258 | AD109: 190.5087622 | AE109: 202.6613037
A110: 2006-10-01 | B110: 39 | C110: 0.673993 | D110: 180.7986222 | F110: 177.0040417 | G110: 217.8547574 | H110: 200.3578991 | J110: 0 | K110: 0 | L110: 223.287141 | M110: 207.589844 | O110: 192.5395803 | P110: 226.8727837 | Q110: 116.4659904 | R110: 139.8670274 | S110: 196.3678605 | T110: 0 | U110: 247.2745518 | V110: 206.3968764 | W110: 205.1769491 | X110: 161.9739978 | Y110: 248.2316219 | Z110: 0 | AA110: 198.4572388 | AB110: 176.9366424 | AC110: 208.3312363 | AD110: 188.0710067 | AE110: 201.2408299
A111: 2006-10-08 | B111: 40 | C111: 0.675143 | D111: 181.1746241 | F111: 177.9136834 | G111: 220.5624667 | H111: 202.6779286 | J111: 0 | K111: 0 | L111: 222.8512014 | M111: 206.593758 | O111: 193.7120296 | P111: 230.3115316 | Q111: 121.2421799 | R111: 140.6390383 | S111: 204.9126519 | T111: 0 | U111: 247.6964638 | V111: 197.769639 | W111: 208.9432556 | X111: 162.5744344 | Y111: 243.9291659 | Z111: 0 | AA111: 198.005939 | AB111: 176.5498945 | AC111: 212.4202421 | AD111: 187.2104025 | AE111: 200.1731481
A112: 2006-10-15 | B112: 41 | C112: 0.674729 | D112: 180.9960543 | F112: 175.6926843 | G112: 221.3650903 | H112: 202.2837542 | J112: 0 | K112: 0 | L112: 223.2408369 | M112: 207.141803 | O112: 194.578349 | P112: 226.9383519 | Q112: 110.5071156 | R112: 131.6261333 | S112: 206.3726119 | T112: 0 | U112: 247.5445755 | V112: 201.2919026 | W112: 208.6734378 | X112: 163.5138259 | Y112: 244.5217896 | Z112: 0 | AA112: 199.254221 | AB112: 177.7303659 | AC112: 211.7502021 | AD112: 189.96995 | AE112: 198.5457555
A113: 2006-10-22 | B113: 42 | C113: 0.671264 | D113: 178.6904768 | F113: 175.7570531 | G113: 219.4227763 | H113: 198.9089485 | J113: 0 | K113: 0 | L113: 222.7455331 | M113: 208.09184 | O113: 191.5854582 | P113: 227.1825882 | Q113: 0 | R113: 133.3734442 | S113: 196.6937773 | T113: 0 | U113: 246.2733363 | V113: 197.0361219 | W113: 207.8904608 | X113: 162.8352211 | Y113: 243.9373376 | Z113: 0 | AA113: 198.3182362 | AB113: 177.9856496 | AC113: 206.8030131 | AD113: 188.6050461 | AE113: 197.5731331
A114: 2006-10-29 | B114: 43 | C114: 0.670429 | D114: 177.6100507 | F114: 176.2490798 | G114: 216.0122238 | H114: 196.9854488 | J114: 0 | K114: 0 | L114: 222.0058591 | M114: 209.173848 | O114: 191.2599851 | P114: 222.2874392 | Q114: 115.5819596 | R114: 124.2640152 | S114: 196.4491056 | T114: 0 | U114: 245.9669915 | V114: 199.6068262 | W114: 205.1311611 | X114: 160.9700029 | Y114: 241.7566974 | Z114: 0 | AA114: 198.5944784 | AB114: 166.0853762 | AC114: 209.5626968 | AD114: 188.3838447 | AE114: 198.1050652
A115: 2006-11-05 | B115: 44 | C115: 0.668893 | D115: 176.9355764 | F115: 179.2098126 | G115: 215.0825441 | H115: 197.1227671 | J115: 0 | K115: 0 | L115: 221.0691365 | M115: 209.363509 | O115: 191.5441995 | P115: 227.0757956 | Q115: 119.4642898 | R115: 126.3405098 | S115: 195.8050479 | T115: 0 | U115: 245.4034638 | V115: 176.7415974 | W115: 205.4906185 | X115: 160.0460281 | Y115: 243.4101627 | Z115: 0 | AA115: 196.3401623 | AB115: 151.0494173 | AC115: 206.9421163 | AD115: 189.0358507 | AE115: 200.3668981
A116: 2006-11-12 | B116: 45 | C116: 0.670829 | D116: 178.5545549 | F116: 180.0907533 | G116: 216.7985162 | H116: 201.1346591 | J116: 0 | K116: 0 | L116: 222.6951031 | M116: 210.640306 | O116: 191.8772189 | P116: 224.1709269 | Q116: 0 | R116: 127.0348877 | S116: 209.1242325 | T116: 0 | U116: 246.1137435 | V116: 197.4719327 | W116: 206.4476247 | X116: 163.6286097 | Y116: 245.8588285 | Z116: 0 | AA116: 193.6884572 | AB116: 0 | AC116: 210.2780583 | AD116: 191.8638023 | AE116: 200.8126612
A117: 2006-11-19 | B117: 46 | C117: 0.67625 | D117: 179.7269625 | F117: 178.9019375 | G117: 213.8032 | H117: 204.6941125 | J117: 0 | K117: 0 | L117: 225.78635 | M117: 212.3425 | O117: 194.2257625 | P117: 222.5741625 | Q117: 111.58125 | R117: 133.2685875 | S117: 204.917275 | T117: 0 | U117: 248.1026 | V117: 197.2418375 | W117: 208.7380875 | X117: 165.1605375 | Y117: 245.952125 | Z117: 0 | AA117: 193.2519625 | AB117: 177.515625 | AC117: 208.839525 | AD117: 193.1911 | AE117: 202.52335
A118: 2006-11-26 | B118: 47 | C118: 0.676343 | D118: 179.7516791 | F118: 178.7304012 | G118: 215.6249118 | H118: 205.3174445 | J118: 0 | K118: 0 | L118: 224.0521456 | M118: 212.371702 | O118: 192.9606579 | P118: 218.5670039 | Q118: 0 | R118: 140.192377 | S118: 199.1762501 | T118: 0 | U118: 248.1367198 | V118: 204.255586 | W118: 211.8779716 | X118: 165.5417127 | Y118: 247.4739037 | Z118: 0 | AA118: 184.499607 | AB118: 181.0502577 | AC118: 211.4315852 | AD118: 195.1587727 | AE118: 202.6053091
A119: 2006-12-03 | B119: 48 | C119: 0.675029 | D119: 178.5384202 | F119: 179.6184666 | G119: 215.6042626 | H119: 204.3852806 | J119: 0 | K119: 0 | L119: 225.5474398 | M119: 210.609048 | O119: 193.6523195 | P119: 218.756648 | Q119: 121.2352084 | R119: 148.5671326 | S119: 216.1240349 | T119: 0 | U119: 247.6546395 | V119: 201.4826559 | W119: 211.0478168 | X119: 166.5026531 | Y119: 251.2457938 | Z119: 0 | AA119: 194.7188653 | AB119: 178.7341786 | AC119: 208.9754778 | AD119: 194.1788421 | AE119: 201.1451414
A120: 2006-12-10 | B120: 49 | C120: 0.675329 | D120: 178.6177672 | F120: 180.4006358 | G120: 215.3016385 | H120: 203.7062396 | J120: 0 | K120: 0 | L120: 222.1697344 | M120: 210.027319 | O120: 190.861482 | P120: 223.0544154 | Q120: 128.6366679 | R120: 151.7194131 | S120: 208.8725064 | T120: 167.8800361 | U120: 247.7647035 | V120: 207.0828846 | W120: 210.2906973 | X120: 165.6244372 | Y120: 251.222388 | Z120: 0 | AA120: 191.8069426 | AB120: 179.5294614 | AC120: 211.3442105 | AD120: 195.4672258 | AE120: 200.5929729
A121: 2006-12-17 | B121: 50 | C121: 0.673221 | D121: 177.9929002 | F121: 180.5982655 | G121: 211.9568996 | H121: 203.7570679 | J121: 0 | K121: 0 | L121: 228.7201025 | M121: 209.371731 | O121: 188.9327414 | P121: 226.2763103 | Q121: 0 | R121: 143.0258014 | S121: 202.2153918 | T121: 0 | U121: 246.9913205 | V121: 170.6547913 | W121: 210.1997928 | X121: 162.3943696 | Y121: 249.8996352 | Z121: 0 | AA121: 188.2595204 | AB121: 180.0529564 | AC121: 203.9590342 | AD121: 195.9275076 | AE121: 200.1755321
A122: 2006-12-24 | B122: 51 | C122: 0.671071 | D122: 177.4244617 | F122: 180.3033563 | G122: 213.1053068 | H122: 203.1063489 | J122: 0 | K122: 0 | L122: 227.9896615 | M122: 209.374152 | O122: 190.6110068 | P122: 226.3388269 | Q122: 0 | R122: 135.3818635 | S122: 213.0784639 | T122: 0 | U122: 246.2025285 | V122: 187.8394836 | W122: 209.3070449 | X122: 161.2113863 | Y122: 250.2423759 | Z122: 0 | AA122: 182.32328 | AB122: 181.2227236 | AC122: 219.024153 | AD122: 197.8250201 | AE122: 200.1469257
A123: 2006-12-31 | B123: 52 | C123: 0.671357 | D123: 177.2986701 | F123: 182.0115963 | G123: 212.8940183 | H123: 207.979685 | J123: 0 | K123: 0 | L123: 228.0868272 | M123: 210.134741 | O123: 193.5052281 | P123: 223.9848359 | Q123: 123.2342909 | R123: 0 | S123: 210.5375552 | T123: 0 | U123: 246.3074562 | V123: 202.5819748 | W123: 214.0151845 | X123: 163.092756 | Y123: 249.3419898 | Z123: 0 | AA123: 188.0135279 | AB123: 177.1845394 | AC123: 198.7149584 | AD123: 194.8546557 | AE123: 197.4998023
A127: Young Bulls
A129: 2007
D130: B | F130: CZK | G130: DK | H130: G | I130: EE | J130: Gr | K130: Sp | L130: Fr | M130: IR | N130: HR | O130: IT | P130: LVL | Q130: LTL | R130: Lux | S130: HUF | T130: MTL | U130: NL | V130: Aus | W130: PLN | X130: P | Y130: ROM | Z130: SIT | AA130: SKK | AB130: F | AC130: SW | AD130: UK | AE130: EU ave
A132: w/e | D132: Pence per Kg
A134: 2007-01-07 | B134: 1 | C134: 0.6735 | D134: 176.5917 | F134: 182.45115 | G134: 211.479 | H134: 207.438 | I134: 166.82595 | J134: 271.6899 | K134: 230.40435 | L134: 212.826 | M134: 193.6986 | O134: 222.1203 | P134: 0 | Q134: 139.5492 | R134: 213.70155 | S134: 0 | T134: 247.10715 | U134: 202.38675 | V134: 214.0383 | W134: 164.4687 | X134: 255.3912 | Y134: 125.183445 | Z134: 209.39115 | AA134: 183.4614 | AB134: 225.4878 | AC134: 194.7762 | AD134: 199.28865 | AE134: 212.21985
A135: 2007-01-14 | B135: 2 | C135: 0.668136 | D135: 175.051632 | F135: 178.72638 | G135: 207.2557872 | H135: 204.5832432 | I135: 0 | J135: 267.0539592 | K135: 228.4356984 | L135: 211.799112 | M135: 190.6860144 | O135: 217.6787088 | P135: 107.235828 | Q135: 141.644832 | R135: 201.108936 | S135: 0 | T135: 245.1390984 | U135: 197.8350696 | V135: 212.3336208 | W135: 165.1632192 | X135: 254.9606976 | Y135: 134.889977 | Z135: 208.458432 | AA135: 179.2608888 | AB135: 219.0149808 | AC135: 193.2249312 | AD135: 198.9040872 | AE135: 210.0619584
A136: 2007-01-21 | B136: 3 | C136: 0.659814 | D136: 172.541361 | F136: 178.7436126 | G136: 203.6845818 | H136: 201.7051398 | I136: 156.7718064 | J136: 263.0678418 | K136: 227.305923 | L136: 208.501224 | M136: 188.9707296 | O136: 220.1799318 | P136: 124.045032 | Q136: 136.251591 | R136: 206.2578564 | S136: 164.8875186 | T136: 242.0857566 | U136: 197.8782186 | V136: 207.4455216 | W136: 162.2482626 | X136: 253.6325016 | Y136: 123.9790506 | Z136: 201.903084 | AA136: 175.840431 | AB136: 213.779736 | AC136: 192.5337252 | AD136: 198.933921 | AE136: 208.171317
A137: 2007-01-28 | B137: 4 | C137: 0.661407 | D137: 172.6933677 | F137: 176.1988248 | G137: 204.1763409 | H137: 202.6551048 | I137: 0 | J137: 263.3722674 | K137: 226.9287417 | L137: 207.681798 | M137: 189.5592462 | O137: 217.3383402 | P137: 123.2862648 | Q137: 138.89547 | R137: 196.3055976 | S137: 0 | T137: 242.6702283 | U137: 198.8189442 | V137: 205.6314363 | W137: 161.5817301 | X137: 254.5094136 | Y137: 128.4452394 | Z137: 200.5386024 | AA137: 171.5028351 | AB137: 210.2612853 | AC137: 193.5938289 | AD137: 199.6787733 | AE137: 207.8140794
A138: 2007-02-04 | B138: 5 | C138: 0.660857 | D138: 171.0297916 | F138: 174.7305908 | G138: 207.4430123 | H138: 204.9978414 | I138: 0 | J138: 263.021086 | K138: 230.9695215 | L138: 206.187384 | M138: 189.4677019 | O138: 218.5454099 | P138: 125.2324015 | Q138: 132.1053143 | R138: 199.9753282 | S138: 0 | T138: 242.4684333 | U138: 189.9963875 | V138: 206.5838982 | W138: 158.5395943 | X138: 257.2055444 | Y138: 131.7748858 | Z138: 203.8082988 | AA138: 171.4263058 | AB138: 215.8358962 | AC138: 195.6797577 | AD138: 196.935386 | AE138: 208.9629834
A139: 2007-02-11 | B139: 6 | C139: 0.662443 | D139: 171.6389813 | F139: 176.872281 | G139: 208.007102 | H139: 207.2121704 | I139: 0 | J139: 262.2611837 | K139: 232.6499816 | L139: 206.019773 | M139: 189.3262094 | O139: 206.4172388 | P139: 118.6435413 | Q139: 129.6400951 | R139: 195.7519065 | S139: 0 | T139: 243.0503367 | U139: 197.8717241 | V139: 208.5370564 | W139: 162.4310236 | X139: 191.8434928 | Y139: 132.0248899 | Z139: 199.9915417 | AA139: 172.5664015 | AB139: 215.2277307 | AC139: 193.9633104 | AD139: 196.9443039 | AE139: 208.3383235
A140: 2007-02-18 | B140: 7 | C140: 0.669971 | D140: 173.1205064 | F140: 176.4703614 | G140: 212.4478041 | H140: 210.9738679 | I140: 0 | J140: 264.7725392 | K140: 231.5419776 | L140: 208.360981 | M140: 191.4107147 | O140: 217.2715953 | P140: 117.5129134 | Q140: 127.7634697 | R140: 201.9962565 | S140: 165.9518167 | T140: 245.8123599 | U140: 199.651358 | V140: 212.2468128 | W140: 162.5349646 | X140: 260.4177277 | Y140: 140.1579332 | Z140: 202.5992304 | AA140: 177.4083208 | AB140: 204.8101347 | AC140: 195.3635436 | AD140: 197.8424363 | AE140: 211.2418563
A141: 2007-02-25 | B141: 8 | C141: 0.6721 | D141: 173.26738 | F141: 179.31628 | G141: 206.26749 | H141: 211.50987 | I141: 0 | J141: 266.08439 | K141: 233.48754 | L141: 207.6789 | M141: 191.75013 | O141: 218.49971 | P141: 122.05336 | Q141: 127.56458 | R141: 197.5974 | S141: 168.29384 | T141: 246.59349 | U141: 195.11063 | V141: 212.71965 | W141: 163.92519 | X141: 257.21267 | Y141: 117.75192 | Z141: 201.15953 | AA141: 177.70324 | AB141: 216.14736 | AC141: 192.42223 | AD141: 197.5974 | AE141: 211.50987
A142: 2007-03-04 | B142: 9 | C142: 0.673486 | D142: 173.422645 | F142: 177.8676526 | G142: 207.1642936 | H142: 211.9460442 | I142: 0 | J142: 271.0107664 | K142: 232.4873672 | L142: 206.760202 | M142: 192.1455558 | O142: 217.3339322 | P142: 123.921424 | Q142: 125.268396 | R142: 169.5164262 | S142: 0 | T142: 247.1020134 | U142: 199.4865532 | V142: 212.7542274 | W142: 164.0611896 | X142: 261.8513568 | Y142: 118.2641416 | Z142: 198.4763242 | AA142: 179.484019 | AB142: 217.8053724 | AC142: 194.1660138 | AD142: 196.3885176 | AE142: 211.3399068
A143: 2007-03-11 | B143: 10 | C143: 0.68035 | D143: 174.509775 | F143: 180.768995 | G143: 211.99706 | H143: 212.54134 | I143: 0 | J143: 276.290135 | K143: 234.380575 | L143: 207.50675 | M143: 192.471015 | O143: 224.855675 | P143: 0 | Q143: 131.71576 | R143: 203.69679 | S143: 171.85641 | T143: 243.769405 | U143: 199.954865 | V143: 215.53488 | W143: 164.440595 | X143: 265.60864 | Y143: 122.394965 | Z143: 199.954865 | AA143: 187.09625 | AB143: 225.8762 | AC143: 192.607085 | AD143: 195.9408 | AE143: 213.76597
A144: 2007-03-18 | B144: 11 | C144: 0.680343 | D144: 174.167808 | F144: 182.5360269 | G144: 212.4030846 | H144: 209.4095754 | I144: 0 | J144: 275.538915 | K144: 233.0855118 | L144: 205.463586 | M144: 192.4690347 | O144: 223.0164354 | P144: 0 | Q144: 130.7619246 | R144: 208.5251295 | S144: 0 | T144: 243.7668969 | U144: 200.020842 | V144: 212.947359 | W144: 163.7585601 | X144: 264.3812898 | Y144: 135.7964628 | Z144: 200.701185 | AA144: 178.7261061 | AB144: 220.0909605 | AC144: 195.1223724 | AD144: 195.5986125 | AE144: 212.3350503
A145: 2007-03-25 | B145: 12 | C145: 0.678514 | D145: 172.9532186 | F145: 184.555808 | G145: 214.410424 | H145: 205.3183364 | I145: 0 | J145: 271.1341944 | K145: 229.7448404 | L145: 202.197172 | M145: 193.7835984 | O145: 225.3344994 | P145: 108.222983 | Q145: 128.8498086 | R145: 210.1357858 | S145: 175.395869 | T145: 243.1115662 | U145: 196.4976544 | V145: 212.9855446 | W145: 163.5897254 | X145: 260.4136732 | Y145: 131.7674188 | Z145: 198.8724534 | AA145: 183.0630772 | AB145: 221.9419294 | AC145: 195.0049236 | AD145: 196.2941002 | AE145: 209.9322316
A146: 2007-04-01 | B146: 13 | C146: 0.678793 | D146: 172.7528185 | F146: 182.4595584 | G146: 202.4160726 | H146: 203.6379 | I146: 0 | J146: 266.765649 | K146: 229.8393098 | L146: 198.886349 | M146: 194.3384359 | O146: 222.9835005 | P146: 104.2626048 | Q146: 122.3184986 | R146: 210.2221921 | S146: 179.6086278 | T146: 243.2115319 | U146: 201.8730382 | V146: 207.9142959 | W146: 160.9418203 | X146: 259.3668053 | Y146: 126.934291 | Z146: 198.8184697 | AA146: 181.8486447 | AB146: 213.0052434 | AC146: 189.7905228 | AD146: 197.3251251 | AE146: 207.9142959
A147: 2007-04-08 | B147: 14 | C147: 0.67825 | D147: 172.343325 | F147: 183.330975 | G147: 210.8001 | H147: 202.593275 | I147: 0 | J147: 263.83925 | K147: 227.48505 | L147: 196.6925 | M147: 195.268175 | O147: 219.685175 | P147: 114.963375 | Q147: 121.067625 | R147: 216.09045 | S147: 0 | T147: 238.87965 | U147: 199.81245 | V147: 208.76535 | W147: 162.305225 | X147: 259.294975 | Y147: 132.326575 | Z147: 199.202025 | AA147: 182.8562 | AB147: 210.93575 | AC147: 188.5535 | AD147: 197.709875 | AE147: 206.86625
A148: 2007-04-15 | B148: 15 | C148: 0.680143 | D148: 153.5762894 | F148: 181.7342096 | G148: 214.925188 | H148: 202.9546712 | I148: 0 | J148: 272.737343 | K148: 235.1254351 | L148: 195.201041 | M148: 195.2690553 | O148: 226.1475475 | P148: 0 | Q148: 127.3907839 | R148: 207.7156722 | S148: 0 | T148: 243.6952369 | U148: 197.6495558 | V148: 209.1439725 | W148: 162.9622628 | X148: 258.2502971 | Y148: 136.8447716 | Z148: 199.1458704 | AA148: 203.0226855 | AB148: 221.1825036 | AC148: 192.0723832 | AD148: 199.4179276 | AE148: 210.0281584
A149: 2007-04-22 | B149: 16 | C149: 0.680607 | D149: 174.0992706 | F149: 182.1304332 | G149: 215.6162976 | H149: 200.4387615 | I149: 0 | J149: 271.562193 | K149: 233.3120796 | L149: 193.972995 | M149: 195.1980876 | O149: 224.4641886 | P149: 0 | Q149: 131.6293938 | R149: 206.7684066 | S149: 177.5703663 | T149: 243.8614881 | U149: 196.0828767 | V149: 208.0615599 | W149: 166.6125936 | X149: 256.7249604 | Y149: 131.8335759 | Z149: 200.3026401 | AA149: 183.2194044 | AB149: 214.4592657 | AC149: 191.8631133 | AD149: 200.3707008 | AE149: 208.6741062
A150: 2007-04-29 | B150: 17 | C150: 0.680607 | D150: 174.0992706 | F150: 183.4235865 | G150: 213.6425373 | H150: 196.0828767 | I150: 150.8225112 | J150: 275.5097136 | K150: 227.1866166 | L150: 192.611781 | M150: 192.4075989 | O150: 224.4641886 | P150: 0 | Q150: 131.0849082 | R150: 207.3809529 | S150: 0 | T150: 243.8614881 | U150: 195.8106339 | V150: 203.7737358 | W150: 167.8376862 | X150: 256.7249604 | Y150: 135.9172179 | Z150: 197.4440907 | AA150: 181.5859476 | AB150: 215.9566011 | AC150: 196.3551195 | AD150: 199.8942759 | AE150: 206.2919817
A151: 2007-05-06 | B151: 18 | C151: 0.682593 | D151: 173.3103627 | F151: 181.2967008 | G151: 216.4502403 | H151: 192.0816702 | I151: 0 | J151: 273.4467558 | K151: 226.8939132 | L151: 191.808633 | M151: 192.7642632 | O151: 222.4570587 | P151: 125.2558155 | Q151: 128.7370398 | R151: 207.9860871 | S151: 176.9963649 | T151: 244.5730719 | U151: 195.1533387 | V151: 200.4775641 | W151: 167.917878 | X151: 256.8597459 | Y151: 133.0373757 | Z151: 199.4536746 | AA151: 182.252331 | AB151: 219.2488716 | AC151: 196.4502654 | AD151: 197.4058956 | AE151: 204.7096407
A152: 2007-05-13 | B152: 19 | C152: 0.681221 | D152: 172.8938898 | F152: 182.567228 | G152: 213.9715161 | H152: 188.698217 | I152: 0 | J152: 272.2159116 | K152: 229.1627444 | L152: 190.060659 | M152: 191.2868568 | O152: 223.5086101 | P152: 118.9411866 | Q152: 128.3420364 | R152: 208.7261144 | S152: 0 | T152: 244.0814843 | U152: 195.0335723 | V152: 197.8947005 | W152: 164.9236041 | X152: 250.4849617 | Y152: 139.5140608 | Z152: 195.3741828 | AA152: 182.4309838 | AB152: 215.6064465 | AC152: 195.1698165 | AD152: 195.6466712 | AE152: 203.8213232
A153: 2007-05-20 | B153: 20 | C153: 0.683857 | D153: 171.9216498 | F153: 180.1963195 | G153: 210.5595703 | H153: 189.1548462 | I153: 122.6155601 | J153: 274.9788997 | K153: 226.9037526 | L153: 189.428389 | M153: 189.6335461 | O153: 222.1851393 | P153: 127.6761019 | Q153: 128.3599589 | R153: 197.7030587 | S153: 0 | T153: 245.0259631 | U153: 195.7882591 | V153: 198.6604585 | W153: 161.390252 | X153: 249.6761907 | Y153: 140.874542 | Z153: 193.4631453 | AA153: 182.7265904 | AB153: 213.5001554 | AC153: 189.2916176 | AD153: 194.215388 | AE153: 202.6952148
A154: 2007-05-27 | B154: 21 | C154: 0.679914 | D154: 170.8623882 | F154: 180.7891326 | G154: 208.733598 | H154: 188.0642124 | I154: 133.4671182 | J154: 272.7135054 | K154: 219.0002994 | L154: 186.97635 | M154: 186.0244704 | O154: 223.0797834 | P154: 125.0361846 | Q154: 128.2317804 | R154: 196.7671116 | S154: 0 | T154: 243.6131862 | U154: 187.1123328 | V154: 197.17506 | W154: 168.278715 | X154: 246.128868 | Y154: 135.7788258 | Z154: 189.8319888 | AA154: 170.7943968 | AB154: 215.872695 | AC154: 187.656264 | AD154: 194.7273696 | AE154: 200.57463
A155: 2007-06-03 | B155: 22 | C155: 0.679126 | D155: 169.7135874 | F155: 179.4250892 | G155: 205.0281394 | H155: 186.4879996 | I155: 146.0800026 | J155: 273.5519528 | K155: 214.3321656 | L155: 184.043146 | M155: 187.2350382 | O155: 225.7414824 | P155: 117.0813224 | Q155: 129.2376778 | R155: 192.2605706 | S155: 0 | T155: 243.3308458 | U155: 194.4337738 | V155: 196.606977 | W155: 155.7915044 | X155: 242.5838072 | Y155: 121.4956414 | Z155: 186.8954752 | AA155: 0 | AB155: 212.9739136 | AC155: 184.5185342 | AD155: 192.3963958 | AE155: 197.965229
A156: 2007-06-10 | B156: 23 | C156: 0.678643 | D156: 168.982107 | F156: 178.5509733 | G156: 205.0180503 | H156: 183.6407958 | I156: 0 | J156: 273.2216718 | K156: 209.7685513 | L156: 181.876324 | M156: 189.2056684 | O156: 222.8663612 | P156: 110.1437589 | Q156: 129.8244059 | R156: 184.7266246 | S156: 0 | T156: 243.1577869 | U156: 183.7765244 | V156: 196.1956913 | W156: 157.0379902 | X156: 237.0499999 | Y156: 131.9960635 | Z156: 187.1697394 | AA156: 164.5709275 | AB156: 209.7685513 | AC156: 181.9441883 | AD156: 191.8523761 | AE156: 195.5170483
A157: 2007-06-17 | B157: 24 | C157: 0.676529 | D157: 167.5762333 | F157: 170.9588783 | G157: 199.5084021 | H157: 180.2273256 | I157: 0 | J157: 272.3705754 | K157: 208.1679733 | L157: 178.603656 | M157: 188.5486323 | O157: 222.1721236 | P157: 118.392575 | Q157: 131.7878492 | R157: 188.9545497 | S157: 160.2697201 | T157: 242.4003407 | U157: 186.2484337 | V157: 192.6078063 | W157: 155.1957526 | X157: 236.108621 | Y157: 129.0140803 | Z157: 186.9926156 | AA157: 168.455721 | AB157: 215.4744865 | AC157: 182.66283 | AD157: 192.134236 | AE157: 193.487294
A158: 2007-06-24 | B158: 25 | C158: 0.674114 | D158: 165.8994554 | F158: 173.1798866 | G158: 197.3805792 | H158: 177.0223364 | I158: 171.3597788 | J158: 272.342056 | K158: 204.1891306 | L158: 177.291982 | M158: 189.0215656 | O158: 215.3120116 | P158: 124.4414444 | Q158: 130.3062362 | R158: 185.7858184 | S158: 160.439132 | T158: 174.1236462 | U158: 179.314324 | V158: 189.2912112 | W158: 156.731505 | X158: 231.2885134 | Y158: 136.4406736 | Z158: 188.8867428 | AA158: 165.15793 | AB158: 207.3574664 | AC158: 178.1009188 | AD158: 193.6729522 | AE158: 190.7068506
A159: 2007-07-01 | B159: 26 | C159: 0.673257 | D159: 164.8806393 | F159: 169.4587869 | G159: 196.591044 | H159: 176.1240312 | I159: 0 | J159: 270.5146626 | K159: 198.7454664 | L159: 176.393334 | M159: 188.2426572 | O159: 216.2501484 | P159: 0 | Q159: 128.5247613 | R159: 181.5774129 | S159: 161.9183085 | T159: 241.2279831 | U159: 246.1427592 | V159: 186.4248633 | W159: 155.522367 | X159: 229.2440085 | Y159: 131.8237206 | Z159: 189.2525427 | AA159: 171.9498378 | AB159: 211.4700237 | AC159: 179.5576419 | AD159: 193.5613875 | AE159: 189.1178913
A160: 2007-07-08 | B160: 27 | C160: 0.675486 | D160: 165.6291672 | F160: 174.4104852 | G160: 194.1346764 | H160: 177.5852694 | I160: 0 | J160: 274.4499618 | K160: 197.9849466 | L160: 177.652818 | M160: 188.2579482 | O160: 217.3713948 | P160: 118.0749528 | Q160: 124.8298128 | R160: 184.069935 | S160: 0 | T160: 242.0266338 | U160: 173.4648048 | V160: 186.1639416 | W160: 154.7538426 | X160: 230.002983 | Y160: 137.2587552 | Z160: 190.4195034 | AA160: 177.5852694 | AB160: 218.3846238 | AC160: 182.2461228 | AD160: 192.3784128 | AE160: 189.7440174
A161: 2007-07-15 | B161: 28 | C161: 0.677307 | D161: 166.3465992 | F161: 172.3746315 | G161: 192.6261108 | H161: 181.9246602 | I161: 0 | J161: 271.1259921 | K161: 192.2874573 | L161: 180.163662 | M161: 188.291346 | O161: 216.1963944 | P161: 126.3177555 | Q161: 126.656409 | R161: 167.8366746 | S161: 160.7926818 | T161: 242.6790981 | U161: 176.777127 | V161: 187.7495004 | W161: 157.7448003 | X161: 227.8460748 | Y161: 132.1425957 | Z161: 191.4746889 | AA161: 176.0320893 | AB161: 211.997091 | AC161: 182.3987751 | AD161: 192.2874573 | AE161: 189.7136907
A162: 2007-07-22 | B162: 29 | C162: 0.674093 | D162: 165.5572408 | F162: 174.0508126 | G162: 186.9933982 | H162: 185.7126215 | I162: 0 | J162: 269.5697907 | K162: 193.0602352 | L162: 182.679203 | M162: 186.5889424 | O162: 209.8451509 | P162: 0 | Q162: 127.1339398 | R162: 185.0385285 | S162: 158.411855 | T162: 241.5275219 | U162: 177.2190497 | V162: 190.9031376 | W162: 156.6592132 | X162: 224.5403783 | Y162: 129.8303118 | Z162: 189.9594074 | AA162: 167.849157 | AB162: 221.102504 | AC162: 183.1510681 | AD162: 193.0602352 | AE162: 190.1616353
A163: 2007-07-29 | B163: 30 | C163: 0.671186 | D163: 165.6487048 | F163: 173.7029368 | G163: 189.274452 | H163: 186.589708 | I163: 0 | J163: 271.8974486 | K163: 192.2276704 | L163: 185.918522 | M163: 184.57615 | O163: 210.9537598 | P163: 0 | Q163: 126.9883912 | R163: 189.3415706 | S163: 0 | T163: 240.4859438 | U163: 175.3809018 | V163: 192.4961448 | W163: 154.5070172 | X163: 218.4039244 | Y163: 133.4988954 | Z163: 189.2073334 | AA163: 0 | AB163: 221.4242614 | AC163: 179.9449666 | AD163: 194.0398726 | AE163: 190.7510612
A164: 2007-08-05 | B164: 31 | C164: 0.673679 | D164: 166.3313451 | F164: 171.5860413 | G164: 188.4953842 | H164: 187.1480262 | I164: 0 | J164: 270.3473827 | K164: 197.6574186 | L164: 191.998515 | M164: 185.0596213 | O164: 211.1983665 | P164: 116.8159386 | Q164: 121.8011632 | R164: 193.1437693 | S164: 0 | T164: 241.3791857 | U164: 179.9396609 | V164: 192.672194 | W164: 155.8219527 | X164: 224.335107 | Y164: 127.3926989 | Z164: 184.5206781 | AA164: 185.6659324 | AB164: 217.2614775 | AC164: 182.8364806 | AD164: 194.2890236 | AE164: 192.8742977
A165: 2007-08-12 | B165: 32 | C165: 0.677529 | D165: 168.4540353 | F165: 172.769895 | G165: 190.7244135 | H165: 189.030591 | I165: 0 | J165: 271.7568819 | K165: 198.7870086 | L165: 195.805881 | M165: 188.5563207 | O165: 211.7278125 | P165: 0 | Q165: 122.0907258 | R165: 191.6729541 | S165: 161.4551607 | T165: 242.7586407 | U165: 179.8839495 | V165: 193.773294 | W165: 162.1326897 | X165: 225.1428867 | Y165: 128.73051 | Z165: 189.3016026 | AA165: 0 | AB165: 217.0802916 | AC165: 181.5100191 | AD165: 196.8899274 | AE165: 195.128352
A166: 2007-08-19 | B166: 33 | C166: 0.677843 | D166: 167.7661425 | F166: 177.1203759 | G166: 195.2865683 | H166: 192.6429806 | I166: 0 | J166: 270.1882198 | K166: 198.8791362 | L166: 197.252313 | M166: 189.3893342 | O166: 221.1123866 | P166: 133.8062082 | Q166: 126.756641 | R166: 195.3543526 | S166: 0 | T166: 242.8711469 | U166: 187.8980796 | V166: 196.4389014 | W166: 161.8689084 | X166: 227.4163265 | Y166: 126.4855038 | Z166: 189.3893342 | AA166: 158.9541835 | AB166: 217.0453286 | AC166: 182.5431199 | AD166: 194.8798625 | AE166: 197.5234502
A167: 2007-08-26 | B167: 34 | C167: 0.678643 | D167: 168.6427855 | F167: 175.7006727 | G167: 194.3633552 | H167: 196.5350128 | I167: 158.2595476 | J167: 275.1897365 | K167: 199.1138562 | L167: 198.842399 | M167: 189.8843114 | O167: 224.3593758 | P167: 0 | Q167: 130.3673203 | R167: 192.8703406 | S167: 153.0339965 | T167: 243.1577869 | U167: 181.9441883 | V167: 199.9282278 | W167: 162.6707271 | X167: 230.8064843 | Y167: 136.2036501 | Z167: 189.5449899 | AA167: 165.7924849 | AB167: 223.0699541 | AC167: 179.0260234 | AD167: 194.7026767 | AE167: 199.5889063
A168: 2007-09-02 | B168: 35 | C168: 0.678094 | D168: 168.7097872 | F168: 176.30444 | G168: 194.4095498 | H168: 198.7493514 | I168: 0 | J168: 274.6958794 | K168: 198.9527796 | L168: 198.681542 | M168: 189.1204166 | O168: 227.7039652 | P168: 108.5628494 | Q168: 127.6851002 | R168: 194.4773592 | S168: 0 | T168: 242.9610802 | U168: 184.2381398 | V168: 201.4617274 | W168: 162.74256 | X168: 234.5527146 | Y168: 130.7365232 | Z168: 192.1718396 | AA168: 169.5913094 | AB168: 219.9058842 | AC168: 179.8305288 | AD168: 194.8164062 | AE168: 200.5802052
A169: 2007-09-09 | B169: 36 | C169: 0.676686 | D169: 167.3444478 | F169: 171.878244 | G169: 203.4118116 | H169: 197.592312 | I169: 172.0135812 | J169: 270.2683884 | K169: 213.9681132 | L169: 197.592312 | M169: 187.103679 | O169: 226.013124 | P169: 128.908683 | Q169: 196.1712714 | R169: 151.4423268 | S169: 242.4565938 | T169: 242.4565938 | U169: 185.1412896 | V169: 202.2614454 | W169: 162.9459888 | X169: 239.9528556 | Y169: 130.4650608 | Z169: 193.3291902 | AA169: 161.389611 | AB169: 214.4417934 | AC169: 180.336819 | AD169: 197.0509632 | AE169: 203.2764744
A170: 2007-09-16 | B170: 37 | C170: 0.683457 | D170: 170.3174844 | F170: 178.1772399 | G170: 206.1989769 | H170: 197.9291472 | I170: 0 | J170: 274.6130226 | K170: 214.4004609 | L170: 198.885987 | M170: 189.317589 | O170: 222.806982 | P170: 134.2309548 | Q170: 128.0798418 | R170: 205.1737914 | S170: 0 | T170: 244.8826431 | U170: 190.8895401 | V170: 203.9435688 | W170: 164.713137 | X170: 243.7891119 | Y170: 128.0798418 | Z170: 196.9723074 | AA170: 162.3210375 | AB170: 220.8249567 | AC170: 184.3966986 | AD170: 197.519073 | AE170: 203.670186
A171: 2007-09-23 | B171: 38 | C171: 0.695814 | D171: 173.3272674 | F171: 179.867919 | G171: 210.7620606 | H171: 202.133967 | I171: 176.8759188 | J171: 277.6993674 | K171: 214.1019678 | L171: 201.78606 | M171: 192.8796408 | O171: 232.1931318 | P171: 141.1806606 | Q171: 128.377683 | R171: 202.133967 | S171: 156.55815 | T171: 249.3101562 | U171: 188.7047568 | V171: 208.396293 | W171: 164.1425226 | X171: 243.882807 | Y171: 129.9780552 | Z171: 201.2294088 | AA171: 169.7090346 | AB171: 228.7140618 | AC171: 185.2256868 | AD171: 197.263269 | AE171: 206.7959208
A172: 2007-09-30 | B172: 39 | C172: 0.698279 | D172: 173.1033641 | F172: 181.9016795 | G172: 212.6957834 | H172: 206.2017887 | I172: 0 | J172: 281.6159207 | K172: 211.5087091 | L172: 203.897468 | M172: 193.5629388 | O172: 229.8734468 | P172: 136.9325119 | Q172: 130.4385172 | R172: 205.6431655 | S172: 163.6765976 | T172: 250.1933657 | U172: 206.4811003 | V172: 210.9500859 | W172: 167.58696 | X172: 239.2303854 | Y172: 124.1540062 | Z172: 205.0147144 | AA172: 165.9809183 | AB172: 224.845838 | AC172: 191.0491344 | AD172: 198.8000313 | AE172: 207.5983467
A173: 2007-10-07 | B173: 40 | C173: 0.694686 | D173: 172.282128 | F173: 179.7847368 | G173: 213.8938194 | H173: 207.016428 | I173: 0 | J173: 280.7226126 | K173: 212.0181672 | L173: 204.93237 | M173: 190.4134326 | O173: 228.6906312 | P173: 131.8514028 | Q173: 127.5443496 | R173: 211.9486986 | S173: 157.346379 | T173: 248.9059938 | U173: 191.5943988 | V173: 211.3234812 | W173: 165.9604854 | X173: 240.5002932 | Y173: 123.3762336 | Z173: 205.0018386 | AA173: 168.6697608 | AB173: 224.036235 | AC173: 188.3988432 | AD173: 196.8045438 | AE173: 207.5027082
A174: 2007-10-14 | B174: 41 | C174: 0.69465 | D174: 173.24571 | F174: 178.594515 | G174: 213.049155 | H174: 207.0057 | I174: 190.19517 | J174: 280.708065 | K174: 210.75681 | L174: 207.0057 | M174: 189.63945 | O174: 230.6238 | P174: 140.944485 | Q174: 128.78811 | R174: 207.42249 | S174: 0 | T174: 248.893095 | U174: 194.91879 | V174: 211.937715 | W174: 165.396165 | X174: 240.974085 | Y174: 119.688195 | Z174: 206.03319 | AA174: 0 | AB174: 228.887175 | AC174: 200.267595 | AD174: 198.11418 | AE174: 208.25607
A175: 2007-10-21 | B175: 42 | C175: 0.697407 | D175: 174.9096756 | F175: 179.233599 | G175: 209.2221 | H175: 208.3852116 | I175: 190.9500366 | J175: 282.7985385 | K175: 212.8486164 | L175: 209.919507 | M175: 189.694704 | O175: 232.5852345 | P175: 121.0698552 | Q175: 132.2981079 | R175: 210.8261361 | S175: 0 | T175: 249.8809281 | U175: 195.27396 | V175: 212.1512094 | W175: 166.1920881 | X175: 240.6751557 | Y175: 124.2081867 | Z175: 207.129879 | AA175: 163.890645 | AB175: 230.4232728 | AC175: 201.7598451 | AD175: 198.1333287 | AE175: 209.7800256
A176: 2007-10-28 | B176: 43 | C176: 0.697957 | D176: 174.9778199 | F176: 182.0271856 | G176: 208.1307774 | H176: 209.1777129 | I176: 0 | J176: 283.5101334 | K176: 208.2703688 | L176: 210.783014 | M176: 190.1234868 | O176: 235.211509 | P176: 136.0318193 | Q176: 133.5191741 | R176: 203.5940569 | S176: 0 | T176: 250.0779931 | U176: 188.5181857 | V176: 211.8997452 | W176: 167.2304972 | X176: 240.9347564 | Y176: 0 | Z176: 205.6181322 | AA176: 170.4410994 | AB176: 209.8756699 | AC176: 14.7268927 | AD176: 197.3124439 | AE176: 210.7132183
A177: 2007-11-04 | B177: 44 | C177: 0.696721 | D177: 174.7376268 | F177: 180.7990995 | G177: 211.2458072 | H177: 209.1556442 | I177: 164.6351723 | J177: 288.2334777 | K177: 213.2662981 | L177: 212.499905 | M177: 191.8769634 | O177: 237.3728447 | P177: 128.8237129 | Q177: 130.1474828 | R177: 205.9507276 | S177: 159.7581253 | T177: 249.6351343 | U177: 195.1515521 | V177: 212.0122003 | W177: 168.3974657 | X177: 238.4875983 | Y177: 130.5655154 | Z177: 207.3441696 | AA177: 170.9056613 | AB177: 225.1802272 | AC177: 197.7294198 | AD177: 198.3564687 | AE177: 211.3851514
A178: 2007-11-11 | B178: 45 | C178: 0.69783 | D178: 175.364679 | F178: 180.947319 | G178: 216.048168 | H178: 209.907264 | I178: 191.065854 | J178: 291.204459 | K178: 213.117282 | L178: 214.23381 | M178: 192.112599 | O178: 237.750681 | P178: 139.984698 | Q178: 129.09855 | R178: 205.650501 | S178: 0 | T178: 250.032489 | U178: 187.297572 | V178: 214.652508 | W178: 167.200068 | X178: 238.308945 | Y178: 128.540286 | Z178: 205.999416 | AA178: 171.66618 | AB178: 230.911947 | AC178: 199.928295 | AD178: 199.090899 | AE178: 212.000754
A179: 2007-11-18 | B179: 46 | C179: 0.710043 | D179: 178.5048102 | F179: 189.2264595 | G179: 218.4802311 | H179: 215.2850376 | I179: 0 | J179: 290.9046171 | K179: 217.2021537 | L179: 220.11333 | M179: 196.1138766 | O179: 245.1068436 | P179: 138.6713979 | Q179: 134.9791743 | R179: 209.8887108 | S179: 168.7062168 | T179: 254.4084069 | U179: 193.0606917 | V179: 219.0482655 | W179: 170.9783544 | X179: 243.1897275 | Y179: 123.1214562 | Z179: 207.9005904 | AA179: 177.3687414 | AB179: 228.7048503 | AC179: 204.2083668 | AD179: 199.522083 | AE179: 216.563115
A180: 2007-11-25 | B180: 47 | C180: 0.718086 | D180: 179.4496914 | F180: 187.9949148 | G180: 220.8832536 | H180: 220.811445 | I180: 0 | J180: 296.6413266 | K180: 219.734316 | L180: 223.324746 | M180: 199.5560994 | O180: 245.585412 | P180: 126.2395188 | Q180: 139.5241098 | R180: 224.9045352 | S180: 151.875189 | T180: 257.2902138 | U180: 201.9257832 | V180: 229.8593286 | W180: 171.0480852 | X180: 244.2928572 | Y180: 127.460265 | Z180: 205.731639 | AA180: 173.776812 | AB180: 234.0242274 | AC180: 208.5321744 | AD180: 199.268865 | AE180: 219.6625074
A181: 2007-12-02 | B181: 48 | C181: 0.716336 | D181: 179.084 | F181: 189.6857728 | G181: 220.0584192 | H181: 223.7117328 | I181: 196.1327968 | J181: 295.5602336 | K181: 220.27332 | L181: 222.780496 | M181: 199.499576 | O181: 241.7634 | P181: 136.10384 | Q181: 148.281552 | R181: 210.602784 | S181: 0 | T181: 256.6631888 | U181: 199.857744 | V181: 227.6515808 | W181: 172.3504416 | X181: 241.4768656 | Y181: 129.4419152 | Z181: 204.513928 | AA181: 181.3762752 | AB181: 233.0241008 | AC181: 204.6571952 | AD181: 199.857744 | AE181: 219.7002512
A182: 2007-12-09 | B182: 49 | C182: 0.71735 | D182: 179.265765 | F182: 194.330115 | G182: 217.93093 | H182: 223.741465 | I182: 183.856805 | J182: 295.97861 | K182: 223.311055 | L182: 223.8132 | M182: 199.781975 | O182: 239.523165 | P182: 144.259085 | Q182: 160.25599 | R182: 216.78317 | S182: 0 | T182: 257.026505 | U182: 198.634215 | V182: 229.193325 | W182: 176.03769 | X182: 242.392565 | Y182: 125.321045 | Z182: 204.516485 | AA182: 0 | AB182: 226.467395 | AC182: 207.31415 | AD182: 200.14065 | AE182: 220.585125
A183: 2007-12-16 | B183: 50 | C183: 0.718007 | D183: 179.5735507 | F183: 193.7900893 | G183: 219.710142 | H183: 224.4489882 | I183: 192.7130788 | J183: 294.38287 | K183: 220.7153518 | L183: 224.018184 | M183: 200.4675544 | O183: 240.7477471 | P183: 115.1683228 | Q183: 158.9667498 | R183: 216.4073098 | S183: 164.4954037 | T183: 257.2619081 | U183: 202.1907712 | V183: 228.4698274 | W183: 175.7681136 | X183: 244.7685863 | Y183: 133.6929034 | Z183: 205.9244076 | AA183: 178.4247395 | AB183: 234.5010862 | AC183: 202.3343726 | AD183: 199.5341453 | AE183: 220.3563483
A184: 2007-12-23 | B184: 51 | C184: 0.718636 | D184: 179.5871364 | F184: 192.594448 | G184: 219.3995708 | H184: 227.3764304 | I184: 196.7625368 | J184: 292.9160336 | K184: 220.1900704 | L184: 224.933068 | M184: 201.7929888 | O184: 245.7016484 | P184: 115.341078 | Q184: 157.5968748 | R184: 218.3216168 | S184: 152.4226956 | T184: 257.4872788 | U184: 199.6370808 | V184: 228.0232028 | W184: 177.143774 | X184: 242.4677864 | Y184: 134.025614 | Z184: 206.7515772 | AA184: 184.689452 | AB184: 240.74306 | AC184: 204.3800784 | AD184: 200.6431712 | AE184: 221.9147968
A185: 2007-12-30 | B185: 52 | C185: 0.72983 | D185: 182.384517 | F185: 195.813389 | G185: 226.393266 | H185: 230.918212 | I185: 199.827454 | J185: 297.478708 | K185: 223.619912 | L185: 229.16662 | M185: 206.322941 | O185: 253.834874 | P185: 138.083836 | Q185: 161.876294 | R185: 228.363807 | S185: 0 | T185: 261.498089 | U185: 205.520128 | V185: 233.691566 | W185: 180.413976 | X185: 246.390608 | Y185: 129.90974 | Z185: 214.497037 | AA185: 0 | AB185: 247.631319 | AC185: 207.709618 | AD185: 203.111689 | AE185: 226.393266
A189: Young Bulls
A191: 2008
D192: B | F192: CZK | G192: DK | H192: G | I192: EE | J192: Gr | K192: Sp | L192: Fr | M192: IR | N192: HR | O192: IT | P192: LVL | Q192: LTL | R192: Lux | S192: HUF | T192: MTL | U192: NL | V192: Aus | W192: PLN | X192: P | Y192: ROM | Z192: SIT | AA192: SKK | AB192: F | AC192: SW | AD192: UK | AE192: EU ave
A194: w/e | D194: Pence per Kg
A196: 2008-01-06 | B196: 1 | C196: 0.740692 | D196: 184.9507924 | E196: 0 | F196: 201.3200856 | G196: 224.1333992 | H196: 239.9101388 | I196: 0 | J196: 301.9060592 | K196: 227.2443056 | L196: 234.799364 | M196: 216.2079948 | O196: 254.057356 | P196: 151.6196524 | Q196: 162.5078248 | R196: 158.2118112 | S196: 0 | T196: 265.3899436 | U196: 202.949608 | V196: 244.5764984 | W196: 189.6912212 | X196: 252.1315568 | Y196: 0 | Z196: 225.0222296 | AA196: 182.210232 | AB196: 256.4275704 | AC196: 212.3563964 | AD196: 205.0235456 | AE196: 233.0217032
A197: 2008-01-13 | B197: 2 | C197: 0.749236 | D197: 189.2570136 | E197: 0 | F197: 208.287608 | G197: 227.2432788 | H197: 243.5766236 | I197: 0 | J197: 306.9619892 | K197: 230.9145352 | L197: 239.006284 | M197: 223.4970988 | O197: 260.2845864 | P197: 0 | Q197: 173.1484396 | R197: 154.717234 | S197: 171.5001204 | T197: 268.4512588 | U197: 209.2616148 | V197: 247.9221924 | W197: 194.80136 | X197: 254.2906984 | Y197: 147.0750268 | Z197: 228.5919036 | AA197: 183.3380492 | AB197: 271.3732792 | AC197: 214.3564196 | AD197: 208.662226 | AE197: 236.1591872
A198: 2008-01-20 | B198: 3 | C198: 0.752621 | D198: 190.6388993 | E198: 182.8116409 | F198: 182.8116409 | G198: 231.6567438 | H198: 243.6986798 | I198: 0 | J198: 304.058884 | K198: 235.4951109 | L198: 241.591341 | M198: 228.796784 | O198: 262.1378943 | P198: 0 | Q198: 174.7585962 | R198: 235.8714214 | S198: 0 | T198: 269.6641043 | U198: 218.7116626 | V198: 248.9670268 | W198: 195.9072463 | X198: 249.6443857 | Y198: 132.9128686 | Z198: 229.549405 | AA198: 166.0281926 | AB198: 266.0515235 | AC198: 217.7332553 | AD198: 213.9701503 | AE198: 237.9787602
A199: 2008-01-27 | B199: 4 | C199: 0.744721 | D199: 188.5633572 | E199: 0 | F199: 205.7664123 | G199: 229.9698448 | H199: 239.4278015 | I199: 203.9046098 | J199: 303.3248633 | K199: 232.2040078 | L199: 238.31072 | M199: 228.0335702 | O199: 261.8439036 | P199: 156.8382426 | Q199: 176.7967654 | R199: 232.2040078 | S199: 0 | T199: 266.8335343 | U199: 204.5748587 | V199: 241.7364366 | W199: 187.9675804 | X199: 250.4496723 | Y199: 144.9227066 | Z199: 225.7994072 | AA199: 182.9779497 | AB199: 259.3118522 | AC199: 215.5967295 | AD199: 218.2777251 | AE199: 235.1828918
A200: 2008-02-03 | B200: 5 | C200: 0.745521 | D200: 188.6913651 | E200: 0 | F200: 208.000359 | G200: 229.5459159 | H200: 240.9523872 | I200: 204.1236498 | J200: 0 | K200: 232.5279999 | L200: 237.821199 | M200: 229.4713638 | O200: 267.2692785 | P200: 152.6827008 | Q200: 181.3852593 | R200: 223.0598832 | S200: 0 | T200: 0 | U200: 208.3731195 | V200: 0 | W200: 189.362334 | X200: 253.7753484 | Y200: 0 | Z200: 226.0419672 | AA200: 183.3236139 | AB200: 260.6341416 | AC200: 220.0777992 | AD200: 220.3760076 | AE200: 236.9265738
A201: 2008-02-10 | B201: 6 | C201: 0.7462 | D201: 189.46018 | E201: 0 | F201: 210.95074 | G201: 228.78492 | H201: 245.72366 | I201: 0 | J201: 304.15112 | K201: 237.73932 | L201: 237.2916 | M201: 232.88902 | O201: 267.21422 | P201: 165.80564 | Q201: 178.7149 | R201: 230.35194 | S201: 0 | T201: 267.36346 | U201: 201.474 | V201: 242.06728 | W201: 189.08708 | X201: 252.14098 | Y201: 128.19716 | Z201: 224.9793 | AA201: 0 | AB201: 251.0963 | AC201: 221.54678 | AD201: 224.53158 | AE201: 238.784
A202: 2008-02-17 | B202: 7 | C202: 0.745207 | D202: 192.1888853 | E202: 0 | F202: 214.619616 | G202: 237.0503467 | H202: 248.3029724 | I202: 0 | J202: 303.5973318 | K202: 234.9637671 | L202: 236.975826 | M202: 235.9325362 | O202: 271.1808273 | P202: 168.8639062 | Q202: 183.9170876 | R202: 237.3484295 | S202: 0 | T202: 267.0076681 | U202: 227.5116971 | V202: 245.8437893 | W202: 189.8787436 | X202: 253.8175042 | Y202: 127.5049177 | Z202: 221.7736032 | AA202: 183.5444841 | AB202: 259.5555981 | AC202: 229.0766318 | AD202: 230.0454009 | AE202: 240.0311747
A203: 2008-02-24 | B203: 8 | C203: 0.7529 | D203: 192.89298 | E203: 0 | F203: 218.64216 | G203: 241.6809 | H203: 249.88751 | I203: 206.14402 | J203: 306.05385 | K203: 234.98009 | L203: 240.1751 | M203: 240.55155 | O203: 269.76407 | P203: 183.55702 | Q203: 186.19217 | R203: 239.79865 | S203: 0 | T203: 269.76407 | U203: 204.86409 | V203: 248.53229 | W203: 192.36595 | X203: 253.27556 | Y203: 139.13592 | Z203: 223.08427 | AA203: 188.37558 | AB203: 254.25433 | AC203: 235.05538 | AD203: 234.30248 | AE203: 241.45503
A204: 2008-03-02 | B204: 9 | C204: 0.758779 | D204: 194.7785693 | E204: 190.0741395 | F204: 221.1840785 | G204: 245.9202739 | H204: 250.9282153 | I204: 207.7536902 | J204: 306.0914486 | K204: 237.8772165 | L204: 242.050501 | M204: 245.2373728 | O204: 257.98486 | P204: 177.3266523 | Q204: 172.4704667 | R204: 245.3891286 | S204: 0 | T204: 271.8705157 | U204: 218.1489625 | V204: 250.2453142 | W204: 197.6619295 | X204: 260.5647086 | Y204: 121.3287621 | Z204: 226.116142 | AA204: 0 | AB204: 251.9905059 | AC204: 246.9066866 | AD204: 234.462711 | AE204: 241.5952336
A205: 2008-03-09 | B205: 10 | C205: 0.7655 | D205: 196.19765 | E205: 0 | F205: 224.36805 | G205: 253.3805 | H205: 249.78265 | I205: 0 | J205: 316.07495 | K205: 236.30985 | L205: 244.1945 | M205: 246.7972 | O205: 265.85815 | P205: 176.6774 | Q205: 178.89735 | R205: 242.8166 | S205: 210.6656 | T205: 274.27865 | U205: 216.86615 | V205: 250.24195 | W205: 198.03485 | X205: 257.59075 | Y205: 0 | Z205: 229.0376 | AA205: 204.0823 | AB205: 263.6382 | AC205: 248.09855 | AD205: 237.305 | AE205: 244.73035
A206: 2008-03-16 | B206: 11 | C206: 0.765321 | D206: 196.3813686 | E206: 0 | F206: 222.0196221 | G206: 250.6426275 | H206: 247.7344077 | I206: 209.5448898 | J206: 315.1591878 | K206: 234.6474186 | L206: 241.841436 | M206: 245.668041 | O206: 270.0052488 | P206: 176.6360868 | Q206: 192.0190389 | R206: 249.0354534 | S206: 0 | T206: 274.2145143 | U206: 232.0453272 | V206: 246.8925546 | W206: 194.6211303 | X206: 260.4387363 | Y206: 144.7222011 | Z206: 227.5299333 | AA206: 190.7179932 | AB206: 257.2243881 | AC206: 249.6477102 | AD206: 236.1780606 | AE206: 242.3771607
A207: 2008-03-23 | B207: 12 | C207: 0.779393 | D207: 201.4730905 | E207: 0 | F207: 224.3093054 | G207: 252.4453927 | H207: 251.4321818 | I207: 0 | J207: 319.1614335 | K207: 238.8839545 | L207: 245.508795 | M207: 252.1336355 | O207: 274.9698504 | P207: 177.1560289 | Q207: 195.3938251 | R207: 249.0940028 | S207: 0 | T207: 279.2565119 | U207: 233.9737786 | V207: 250.4969102 | W207: 199.4466687 | X207: 262.1098659 | Y207: 143.0186155 | Z207: 231.7135389 | AA207: 197.4981862 | AB207: 262.9671982 | AC207: 255.640904 | AD207: 238.5721973 | AE207: 246.3661273
A208: 2008-03-30 | B208: 13 | C208: 0.785325 | D208: 202.6923825 | E208: 196.7239125 | F208: 224.6814825 | G208: 256.801275 | H208: 253.2673125 | I208: 0 | J208: 323.082705 | K208: 240.780645 | L208: 245.0214 | M208: 255.230625 | O208: 277.06266 | P208: 183.5304525 | Q208: 200.6505375 | R208: 253.974105 | S208: 0 | T208: 281.3819475 | U208: 228.6081075 | V208: 252.9531825 | W208: 202.770915 | X208: 265.8325125 | Y208: 137.58894 | Z208: 231.4352775 | AA208: 0 | AB208: 269.2879425 | AC208: 252.9531825 | AD208: 238.6602675 | AE208: 247.84857
A209: 2008-04-06 | B209: 14 | C209: 0.7883 | D209: 203.30257 | E209: 0 | F209: 226.79391 | G209: 260.76964 | H209: 253.0443 | I209: 0 | J209: 326.59269 | K209: 241.77161 | L209: 244.373 | M209: 258.64123 | O209: 271.49052 | P209: 0 | Q209: 202.82959 | R209: 252.72898 | S209: 0 | T209: 282.44789 | U209: 239.72203 | V209: 252.80781 | W209: 205.35215 | X209: 263.37103 | Y209: 160.34022 | Z209: 231.44488 | AA209: 210.16078 | AB209: 266.99721 | AC209: 258.24708 | AD209: 242.16576 | AE209: 247.99918
A210: 2008-04-13 | B210: 15 | C210: 0.79635 | D210: 205.77684 | E210: 193.433415 | F210: 231.976755 | G210: 262.715865 | H210: 252.522585 | I210: 0 | J210: 327.61839 | K210: 244.47945 | L210: 245.2758 | M210: 263.59185 | O210: 276.97053 | P210: 183.877215 | Q210: 207.130635 | R210: 255.30981 | S210: 199.72458 | T210: 285.332205 | U210: 234.206535 | V210: 250.292805 | W210: 212.14764 | X210: 265.9809 | Y210: 132.910815 | Z210: 230.384055 | AA210: 211.908735 | AB210: 267.812505 | AC210: 267.971775 | AD210: 244.32018 | AE210: 249.57609
A211: 2008-04-20 | B211: 16 | C211: 0.7992 | D211: 207.23256 | E211: 194.12568 | F211: 234.00576 | G211: 264.37536 | H211: 249.03072 | I211: 218.82096 | J211: 328.55112 | K211: 245.51424 | L211: 244.5552 | M211: 264.77496 | O211: 282.1176 | P211: 180.93888 | Q211: 208.43136 | R211: 245.59416 | S211: 204.67512 | T211: 286.35336 | U211: 237.44232 | V211: 251.18856 | W211: 214.50528 | X211: 263.49624 | Y211: 169.67016 | Z211: 229.45032 | AA211: 203.55624 | AB211: 270.44928 | AC211: 263.97576 | AD211: 247.99176 | AE211: 250.5492
A212: 2008-04-27 | B212: 17 | C212: 0.794964 | D212: 205.3392012 | E212: 0 | F212: 230.8575456 | G212: 259.3967532 | H212: 245.0874012 | I212: 147.7043112 | J212: 322.9143768 | K212: 243.3384804 | L212: 241.669056 | M212: 262.0996308 | O212: 277.839918 | P212: 179.8208568 | Q212: 206.3726544 | R212: 253.1165376 | S212: 202.3978344 | T212: 284.8356012 | U212: 234.6733728 | V212: 247.3927968 | W212: 212.1758916 | X212: 259.2377604 | Y212: 165.8294904 | Z212: 229.1086248 | AA212: 214.7992728 | AB212: 269.8107816 | AC212: 263.2125804 | AD212: 253.0370412 | AE212: 247.8697752
A213: 2008-05-04 | B213: 18 | C213: 0.785429 | D213: 202.9548536 | E213: 0 | F213: 229.5023538 | G213: 254.7931676 | H213: 240.8125314 | I213: 220.1557487 | J213: 325.5603205 | K213: 238.1420728 | L213: 238.770416 | M213: 254.9502534 | O213: 270.5017476 | P213: 167.4534628 | Q213: 204.7613403 | R213: 252.7510522 | S213: 0 | T213: 281.4192107 | U213: 237.0424722 | V213: 243.6400758 | W213: 209.0811998 | X213: 252.6725093 | Y213: 171.8518652 | Z213: 228.9525535 | AA213: 218.5848907 | AB213: 282.75444 | AC213: 256.9923688 | AD213: 255.5785966 | AE213: 243.8757045
A214: 2008-05-11 | B214: 19 | C214: 0.787657 | D214: 203.6881002 | E214: 0 | F214: 226.7664503 | G214: 256.1460564 | H214: 240.5504478 | I214: 155.5622575 | J214: 326.7201236 | K214: 236.3758657 | L214: 240.235385 | M214: 256.9337134 | O214: 275.9950128 | P214: 183.7603781 | Q214: 202.1127862 | R214: 247.0092352 | S214: 169.5037864 | T214: 282.2175031 | U214: 232.2012836 | V214: 244.2524357 | W214: 209.0441678 | X214: 257.0912448 | Y214: 169.5037864 | Z214: 224.7973078 | AA214: 202.5066147 | AB214: 264.0226264 | AC214: 266.3068317 | AD214: 257.0124791 | AE214: 246.1428125
A215: 2008-05-18 | B215: 20 | C215: 0.79435 | D215: 205.657215 | E215: 0 | F215: 233.141725 | G215: 260.785105 | H215: 241.402965 | I215: 0 | J215: 327.43107 | K215: 235.1276 | L215: 244.6598 | M215: 260.467365 | O215: 285.64826 | P215: 195.56897 | Q215: 199.54072 | R215: 252.047255 | S215: 185.004115 | T215: 284.615605 | U215: 240.68805 | V215: 246.327935 | W215: 212.647495 | X215: 256.09844 | Y215: 167.369545 | Z215: 230.83811 | AA215: 206.769305 | AB215: 267.775385 | AC215: 259.11697 | AD215: 258.243185 | AE215: 248.710985
